Workbook

Sheet ануїтет (2)_old (hidden)
A2: Пропонована ануїтетна схема погашення кредиту
B4: Сума кредиту (у вал.кредиту) | G4: =Оцінка!E11 -> 3000000 | N4: Smin | O4: =G4/G6 -> 25000 | P4: 0 | Q4: =ROUND(P4,4) -> 0
B5: Відсоткова ставка | G5: =Оцінка!E14 -> 0.11 | N5: Smax | O5: =O4+(G4*31*G5)/36000 -> 25284.16667 | P5: 0 | Q5: =ROUND(P5,4) -> 0
B6: Термін кредиту (міс.) | G6: =Оцінка!E12 -> 120 | N6: SA | O6: =(O4+O5)/2 -> 25142.08333 | P6: 0 | Q6: 0
B7: Дата кредиту | G7: =Оцінка!E2 -> 2021-09-01
B9: Графік погашення
B10: День | C10: Початок періоду | D10: Кінець періоду | E10: Сума ануїтетного платежу | G10: Відсотки за кредит | H10: Погашення тіла кредиту | I10: Залишок на початок періоду | K10: Залишок на кінець періоду | O10: =MATCH(0,K11:K130,0) -> 120 | P10: =ROUND(Q4,3) -> 0
B11: 1 | C11: =$G$7 -> 2021-09-01 | D11: =IF(DAY(C11)<15,EDATE(C11,1)-DAY(EDATE(C11,1))+1,EDATE(C11,2)-DAY(EDATE(C11,1))+1) -> 2021-10-01 | E11: =G11+H11 -> 0 | G11: =ROUND((I11*$G$5/360/100)*(D11-C11),2) -> 275 | H11: =ROUND(IF(B11<$G$6,ROUND($Q$6,2)-G11,IF(B11=$G$6,I11,0)),2) -> -275 | I11: =G4 -> 3000000 | K11: =ROUND(IF(I11>$Q$6,I11-H11,0),2) -> 3000275 | O11: =INDEX(B11:L130,G6,7) -> 3025202.43 | P11: =ROUND(Q5,3) -> 0
B12: 2 | C12: =D11+1 -> 2021-10-02 | D12: =EDATE(C12,1)-1 -> 2021-11-01 | E12: =G12+H12 -> 0 | G12: =ROUND((I12*$G$5/360/100)*(D12-C12+1),2) -> 284.19 | H12: =ROUND(IF(B12<$G$6,ROUND($Q$6,2)-G12,IF(B12=$G$6,I12,0)),2) -> -284.19 | I12: =ROUND(K11,2) -> 3000275 | K12: =ROUND(IF(I12>$Q$6,I12-H12,0),2) -> 3000559.19 | P12: =ROUND(E11,0) -> 0
B13: 3 | C13: 2021-11-02 | D13: 2021-12-01 | E13: 0 | G13: =ROUND((I13*$G$5/360/100)*(D13-C13+1),2) -> 275.05 | H13: -275.05 | I13: =ROUND(K12,2) -> 3000559.19 | K13: =ROUND(IF(I13>$Q$6,I13-H13,0),2) -> 3000834.24
B14: 4 | C14: 2021-12-02 | D14: 2022-01-01 | E14: 0 | G14: 284.25 | H14: -284.25 | I14: 3000834.24 | K14: 3001118.49
B15: 5 | C15: 2022-01-02 | D15: 2022-02-01 | E15: 0 | G15: 284.27 | H15: -284.27 | I15: 3001118.49 | K15: 3001402.76
B16: 6 | C16: 2022-02-02 | D16: 2022-03-01 | E16: 0 | G16: 256.79 | H16: -256.79 | I16: 3001402.76 | K16: 3001659.55
B17: 7 | C17: 2022-03-02 | D17: 2022-04-01 | E17: 0 | G17: 284.32 | H17: -284.32 | I17: 3001659.55 | K17: 3001943.87
B18: 8 | C18: 2022-04-02 | D18: 2022-05-01 | E18: 0 | G18: 275.18 | H18: -275.18 | I18: 3001943.87 | K18: 3002219.05
B19: 9 | C19: 2022-05-02 | D19: 2022-06-01 | E19: 0 | G19: 284.38 | H19: -284.38 | I19: 3002219.05 | K19: 3002503.43
B20: 10 | C20: 2022-06-02 | D20: 2022-07-01 | E20: 0 | G20: 275.23 | H20: -275.23 | I20: 3002503.43 | K20: 3002778.66
B21: 11 | C21: 2022-07-02 | D21: 2022-08-01 | E21: 0 | G21: 284.43 | H21: -284.43 | I21: 3002778.66 | K21: 3003063.09
B22: 12 | C22: 2022-08-02 | D22: 2022-09-01 | E22: 0 | G22: 284.46 | H22: -284.46 | I22: 3003063.09 | K22: 3003347.55
B23: 13 | C23: 2022-09-02 | D23: 2022-10-01 | E23: 0 | G23: 275.31 | H23: -275.31 | I23: 3003347.55 | K23: 3003622.86
B24: 14 | C24: 2022-10-02 | D24: 2022-11-01 | E24: 0 | G24: 284.51 | H24: -284.51 | I24: 3003622.86 | K24: 3003907.37
B25: 15 | C25: 2022-11-02 | D25: 2022-12-01 | E25: 0 | G25: 275.36 | H25: -275.36 | I25: 3003907.37 | K25: 3004182.73
B26: 16 | C26: 2022-12-02 | D26: 2023-01-01 | E26: 0 | G26: 284.56 | H26: -284.56 | I26: 3004182.73 | K26: 3004467.29
B27: 17 | C27: 2023-01-02 | D27: 2023-02-01 | E27: 0 | G27: 284.59 | H27: -284.59 | I27: 3004467.29 | K27: 3004751.88
B28: 18 | C28: 2023-02-02 | D28: 2023-03-01 | E28: 0 | G28: 257.07 | H28: -257.07 | I28: 3004751.88 | K28: 3005008.95
B29: 19 | C29: 2023-03-02 | D29: 2023-04-01 | E29: 0 | G29: 284.64 | H29: -284.64 | I29: 3005008.95 | K29: 3005293.59
B30: 20 | C30: 2023-04-02 | D30: 2023-05-01 | E30: 0 | G30: 275.49 | H30: -275.49 | I30: 3005293.59 | K30: 3005569.08
B31: 21 | C31: 2023-05-02 | D31: 2023-06-01 | E31: 0 | G31: 284.69 | H31: -284.69 | I31: 3005569.08 | K31: 3005853.77
B32: 22 | C32: 2023-06-02 | D32: 2023-07-01 | E32: 0 | G32: 275.54 | H32: -275.54 | I32: 3005853.77 | K32: 3006129.31
B33: 23 | C33: 2023-07-02 | D33: 2023-08-01 | E33: 0 | G33: 284.75 | H33: -284.75 | I33: 3006129.31 | K33: 3006414.06
B34: 24 | C34: 2023-08-02 | D34: 2023-09-01 | E34: 0 | G34: 284.77 | H34: -284.77 | I34: 3006414.06 | K34: 3006698.83
B35: 25 | C35: 2023-09-02 | D35: 2023-10-01 | E35: 0 | G35: 275.61 | H35: -275.61 | I35: 3006698.83 | K35: 3006974.44
B36: 26 | C36: 2023-10-02 | D36: 2023-11-01 | E36: 0 | G36: 284.83 | H36: -284.83 | I36: 3006974.44 | K36: 3007259.27
B37: 27 | C37: 2023-11-02 | D37: 2023-12-01 | E37: 0 | G37: 275.67 | H37: -275.67 | I37: 3007259.27 | K37: 3007534.94
B38: 28 | C38: 2023-12-02 | D38: 2024-01-01 | E38: 0 | G38: 284.88 | H38: -284.88 | I38: 3007534.94 | K38: 3007819.82
B39: 29 | C39: 2024-01-02 | D39: 2024-02-01 | E39: 0 | G39: 284.91 | H39: -284.91 | I39: 3007819.82 | K39: 3008104.73
B40: 30 | C40: 2024-02-02 | D40: 2024-03-01 | E40: 0 | G40: 266.55 | H40: -266.55 | I40: 3008104.73 | K40: 3008371.28
B41: 31 | C41: 2024-03-02 | D41: 2024-04-01 | E41: 0 | G41: 284.96 | H41: -284.96 | I41: 3008371.28 | K41: 3008656.24
B42: 32 | C42: 2024-04-02 | D42: 2024-05-01 | E42: 0 | G42: 275.79 | H42: -275.79 | I42: 3008656.24 | K42: 3008932.03
B43: 33 | C43: 2024-05-02 | D43: 2024-06-01 | E43: 0 | G43: 285.01 | H43: -285.01 | I43: 3008932.03 | K43: 3009217.04
B44: 34 | C44: 2024-06-02 | D44: 2024-07-01 | E44: 0 | G44: 275.84 | H44: -275.84 | I44: 3009217.04 | K44: 3009492.88
B45: 35 | C45: 2024-07-02 | D45: 2024-08-01 | E45: 0 | G45: 285.07 | H45: -285.07 | I45: 3009492.88 | K45: 3009777.95
B46: 36 | C46: 2024-08-02 | D46: 2024-09-01 | E46: 0 | G46: 285.09 | H46: -285.09 | I46: 3009777.95 | K46: 3010063.04
B47: 37 | C47: 2024-09-02 | D47: 2024-10-01 | E47: 0 | G47: 275.92 | H47: -275.92 | I47: 3010063.04 | K47: 3010338.96
B48: 38 | C48: 2024-10-02 | D48: 2024-11-01 | E48: 0 | G48: 285.15 | H48: -285.15 | I48: 3010338.96 | K48: 3010624.11
B49: 39 | C49: 2024-11-02 | D49: 2024-12-01 | E49: 0 | G49: 275.97 | H49: -275.97 | I49: 3010624.11 | K49: 3010900.08
B50: 40 | C50: 2024-12-02 | D50: 2025-01-01 | E50: 0 | G50: 285.2 | H50: -285.2 | I50: 3010900.08 | K50: 3011185.28
B51: 41 | C51: 2025-01-02 | D51: 2025-02-01 | E51: 0 | G51: 285.23 | H51: -285.23 | I51: 3011185.28 | K51: 3011470.51
B52: 42 | C52: 2025-02-02 | D52: 2025-03-01 | E52: 0 | G52: 257.65 | H52: -257.65 | I52: 3011470.51 | K52: 3011728.16
B53: 43 | C53: 2025-03-02 | D53: 2025-04-01 | E53: 0 | G53: 285.28 | H53: -285.28 | I53: 3011728.16 | K53: 3012013.44
B54: 44 | C54: 2025-04-02 | D54: 2025-05-01 | E54: 0 | G54: 276.1 | H54: -276.1 | I54: 3012013.44 | K54: 3012289.54
B55: 45 | C55: 2025-05-02 | D55: 2025-06-01 | E55: 0 | G55: 285.33 | H55: -285.33 | I55: 3012289.54 | K55: 3012574.87
B56: 46 | C56: 2025-06-02 | D56: 2025-07-01 | E56: 0 | G56: 276.15 | H56: -276.15 | I56: 3012574.87 | K56: 3012851.02
B57: 47 | C57: 2025-07-02 | D57: 2025-08-01 | E57: 0 | G57: 285.38 | H57: -285.38 | I57: 3012851.02 | K57: 3013136.4
B58: 48 | C58: 2025-08-02 | D58: 2025-09-01 | E58: 0 | G58: 285.41 | H58: -285.41 | I58: 3013136.4 | K58: 3013421.81
B59: 49 | C59: 2025-09-02 | D59: 2025-10-01 | E59: 0 | G59: 276.23 | H59: -276.23 | I59: 3013421.81 | K59: 3013698.04
B60: 50 | C60: 2025-10-02 | D60: 2025-11-01 | E60: 0 | G60: 285.46 | H60: -285.46 | I60: 3013698.04 | K60: 3013983.5
B61: 51 | C61: 2025-11-02 | D61: 2025-12-01 | E61: 0 | G61: 276.28 | H61: -276.28 | I61: 3013983.5 | K61: 3014259.78
B62: 52 | C62: 2025-12-02 | D62: 2026-01-01 | E62: 0 | G62: 285.52 | H62: -285.52 | I62: 3014259.78 | K62: 3014545.3
B63: 53 | C63: 2026-01-02 | D63: 2026-02-01 | E63: 0 | G63: 285.54 | H63: -285.54 | I63: 3014545.3 | K63: 3014830.84
B64: 54 | C64: 2026-02-02 | D64: 2026-03-01 | E64: 0 | G64: 257.94 | H64: -257.94 | I64: 3014830.84 | K64: 3015088.78
B65: 55 | C65: 2026-03-02 | D65: 2026-04-01 | E65: 0 | G65: 285.6 | H65: -285.6 | I65: 3015088.78 | K65: 3015374.38
B66: 56 | C66: 2026-04-02 | D66: 2026-05-01 | E66: 0 | G66: 276.41 | H66: -276.41 | I66: 3015374.38 | K66: 3015650.79
B67: 57 | C67: 2026-05-02 | D67: 2026-06-01 | E67: 0 | G67: 285.65 | H67: -285.65 | I67: 3015650.79 | K67: 3015936.44
B68: 58 | C68: 2026-06-02 | D68: 2026-07-01 | E68: 0 | G68: 276.46 | H68: -276.46 | I68: 3015936.44 | K68: 3016212.9
B69: 59 | C69: 2026-07-02 | D69: 2026-08-01 | E69: 0 | G69: 285.7 | H69: -285.7 | I69: 3016212.9 | K69: 3016498.6
B70: 60 | C70: 2026-08-02 | D70: 2026-09-01 | E70: 0 | G70: 285.73 | H70: -285.73 | I70: 3016498.6 | K70: 3016784.33
B71: 61 | C71: 2026-09-02 | D71: 2026-10-01 | E71: 0 | G71: 276.54 | H71: -276.54 | I71: 3016784.33 | K71: 3017060.87
B72: 62 | C72: 2026-10-02 | D72: 2026-11-01 | E72: 0 | G72: 285.78 | H72: -285.78 | I72: 3017060.87 | K72: 3017346.65
B73: 63 | C73: 2026-11-02 | D73: 2026-12-01 | E73: 0 | G73: 276.59 | H73: -276.59 | I73: 3017346.65 | K73: 3017623.24
B74: 64 | C74: 2026-12-02 | D74: 2027-01-01 | E74: 0 | G74: 285.84 | H74: -285.84 | I74: 3017623.24 | K74: 3017909.08
B75: 65 | C75: 2027-01-02 | D75: 2027-02-01 | E75: 0 | G75: 285.86 | H75: -285.86 | I75: 3017909.08 | K75: 3018194.94
B76: 66 | C76: =D75+1 -> 2027-02-02 | D76: =EDATE(C76,1)-1 -> 2027-03-01 | E76: =G76+H76 -> 0 | G76: 258.22 | H76: =ROUND(IF(B76<$G$6,ROUND($Q$6,2)-G76,IF(B76=$G$6,I76,0)),2) -> -258.22 | I76: 3018194.94 | K76: 3018453.16
B77: 67 | C77: 2027-03-02 | D77: 2027-04-01 | E77: 0 | G77: =ROUND((I77*$G$5/360/100)*(D77-C77+1),2) -> 285.91 | H77: -285.91 | I77: =ROUND(K76,2) -> 3018453.16 | K77: =ROUND(IF(I77>$Q$6,I77-H77,0),2) -> 3018739.07
B78: 68 | C78: 2027-04-02 | D78: 2027-05-01 | E78: 0 | G78: 276.72 | H78: -276.72 | I78: 3018739.07 | K78: 3019015.79
B79: 69 | C79: 2027-05-02 | D79: 2027-06-01 | E79: 0 | G79: 285.97 | H79: -285.97 | I79: 3019015.79 | K79: 3019301.76
B80: 70 | C80: 2027-06-02 | D80: 2027-07-01 | E80: 0 | G80: 276.77 | H80: -276.77 | I80: 3019301.76 | K80: 3019578.53
B81: 71 | C81: 2027-07-02 | D81: 2027-08-01 | E81: 0 | G81: 286.02 | H81: -286.02 | I81: 3019578.53 | K81: 3019864.55
B82: 72 | C82: 2027-08-02 | D82: 2027-09-01 | E82: 0 | G82: 286.05 | H82: -286.05 | I82: 3019864.55 | K82: 3020150.6
B83: 73 | C83: 2027-09-02 | D83: 2027-10-01 | E83: 0 | G83: 276.85 | H83: -276.85 | I83: 3020150.6 | K83: 3020427.45
B84: 74 | C84: 2027-10-02 | D84: 2027-11-01 | E84: 0 | G84: 286.1 | H84: -286.1 | I84: 3020427.45 | K84: 3020713.55
B85: 75 | C85: 2027-11-02 | D85: 2027-12-01 | E85: 0 | G85: 276.9 | H85: -276.9 | I85: 3020713.55 | K85: 3020990.45
B86: 76 | C86: 2027-12-02 | D86: 2028-01-01 | E86: 0 | G86: 286.15 | H86: -286.15 | I86: 3020990.45 | K86: 3021276.6
B87: 77 | C87: 2028-01-02 | D87: 2028-02-01 | E87: 0 | G87: 286.18 | H87: -286.18 | I87: 3021276.6 | K87: 3021562.78
B88: 78 | C88: 2028-02-02 | D88: 2028-03-01 | E88: 0 | G88: 267.74 | H88: -267.74 | I88: 3021562.78 | K88: 3021830.52
B89: 79 | C89: 2028-03-02 | D89: 2028-04-01 | E89: 0 | G89: 286.23 | H89: -286.23 | I89: 3021830.52 | K89: 3022116.75
B90: 80 | C90: 2028-04-02 | D90: 2028-05-01 | E90: 0 | G90: 277.03 | H90: -277.03 | I90: 3022116.75 | K90: 3022393.78
B91: 81 | C91: 2028-05-02 | D91: 2028-06-01 | E91: 0 | G91: 286.29 | H91: -286.29 | I91: 3022393.78 | K91: 3022680.07
B92: 82 | C92: 2028-06-02 | D92: 2028-07-01 | E92: 0 | G92: 277.08 | H92: -277.08 | I92: 3022680.07 | K92: 3022957.15
B93: 83 | C93: 2028-07-02 | D93: 2028-08-01 | E93: 0 | G93: 286.34 | H93: -286.34 | I93: 3022957.15 | K93: 3023243.49
B94: 84 | C94: 2028-08-02 | D94: 2028-09-01 | E94: =G94+H94 -> 0 | G94: 286.37 | H94: -286.37 | I94: 3023243.49 | K94: 3023529.86
B95: 85 | C95: 2028-09-02 | D95: 2028-10-01 | E95: =G95+H95 -> 0 | G95: 277.16 | H95: -277.16 | I95: 3023529.86 | K95: 3023807.02
B96: 86 | C96: 2028-10-02 | D96: 2028-11-01 | E96: 0 | G96: 286.42 | H96: -286.42 | I96: 3023807.02 | K96: 3024093.44
B97: 87 | C97: 2028-11-02 | D97: 2028-12-01 | E97: 0 | G97: 277.21 | H97: -277.21 | I97: 3024093.44 | K97: 3024370.65
B98: 88 | C98: 2028-12-02 | D98: 2029-01-01 | E98: 0 | G98: 286.48 | H98: -286.48 | I98: 3024370.65 | K98: 3024657.13
B99: 89 | C99: 2029-01-02 | D99: 2029-02-01 | E99: 0 | G99: 286.5 | H99: -286.5 | I99: 3024657.13 | K99: 3024943.63
B100: 90 | C100: 2029-02-02 | D100: 2029-03-01 | E100: 0 | G100: 258.8 | H100: -258.8 | I100: 3024943.63 | K100: 3025202.43
B101: 91 | C101: 2029-03-02 | D101: 2029-04-01 | E101: 286.55 | G101: 286.55 | H101: =ROUND(IF(B101<>$G$6,MIN(I101, MAX((ROUND($Q$6,2)-G101),0)),I101),2) -> 0 | I101: 3025202.43 | K101: 3025202.43
B102: 92 | C102: 2029-04-02 | D102: 2029-05-01 | E102: 277.31 | G102: 277.31 | H102: 0 | I102: 3025202.43 | K102: 3025202.43
B103: 93 | C103: 2029-05-02 | D103: 2029-06-01 | E103: 286.55 | G103: 286.55 | H103: 0 | I103: 3025202.43 | K103: 3025202.43
B104: 94 | C104: 2029-06-02 | D104: 2029-07-01 | E104: 277.31 | G104: 277.31 | H104: 0 | I104: 3025202.43 | K104: 3025202.43
B105: 95 | C105: 2029-07-02 | D105: 2029-08-01 | E105: 286.55 | G105: 286.55 | H105: 0 | I105: 3025202.43 | K105: 3025202.43
B106: 96 | C106: 2029-08-02 | D106: 2029-09-01 | E106: 286.55 | G106: 286.55 | H106: 0 | I106: 3025202.43 | K106: 3025202.43
B107: 97 | C107: 2029-09-02 | D107: 2029-10-01 | E107: 277.31 | G107: 277.31 | H107: 0 | I107: 3025202.43 | K107: 3025202.43
B108: 98 | C108: 2029-10-02 | D108: 2029-11-01 | E108: 286.55 | G108: 286.55 | H108: 0 | I108: 3025202.43 | K108: 3025202.43
B109: 99 | C109: 2029-11-02 | D109: 2029-12-01 | E109: 277.31 | G109: 277.31 | H109: 0 | I109: 3025202.43 | K109: 3025202.43
B110: 100 | C110: 2029-12-02 | D110: 2030-01-01 | E110: 286.55 | G110: 286.55 | H110: 0 | I110: 3025202.43 | K110: 3025202.43
B111: 101 | C111: 2030-01-02 | D111: 2030-02-01 | E111: 286.55 | G111: 286.55 | H111: 0 | I111: 3025202.43 | K111: 3025202.43
B112: 102 | C112: 2030-02-02 | D112: 2030-03-01 | E112: 258.82 | G112: 258.82 | H112: 0 | I112: 3025202.43 | K112: 3025202.43
B113: 103 | C113: 2030-03-02 | D113: 2030-04-01 | E113: 286.55 | G113: 286.55 | H113: 0 | I113: 3025202.43 | K113: 3025202.43
B114: 104 | C114: 2030-04-02 | D114: 2030-05-01 | E114: 277.31 | G114: 277.31 | H114: 0 | I114: 3025202.43 | K114: 3025202.43
B115: 105 | C115: 2030-05-02 | D115: 2030-06-01 | E115: 286.55 | G115: 286.55 | H115: 0 | I115: 3025202.43 | K115: 3025202.43
B116: 106 | C116: 2030-06-02 | D116: 2030-07-01 | E116: 277.31 | G116: 277.31 | H116: 0 | I116: 3025202.43 | K116: 3025202.43
B117: 107 | C117: 2030-07-02 | D117: 2030-08-01 | E117: 286.55 | G117: 286.55 | H117: 0 | I117: 3025202.43 | K117: 3025202.43
B118: 108 | C118: 2030-08-02 | D118: 2030-09-01 | E118: 286.55 | G118: 286.55 | H118: 0 | I118: 3025202.43 | K118: 3025202.43
B119: 109 | C119: 2030-09-02 | D119: 2030-10-01 | E119: 277.31 | G119: 277.31 | H119: 0 | I119: 3025202.43 | K119: 3025202.43
B120: 110 | C120: 2030-10-02 | D120: 2030-11-01 | E120: 286.55 | G120: 286.55 | H120: 0 | I120: 3025202.43 | K120: 3025202.43
B121: 111 | C121: 2030-11-02 | D121: 2030-12-01 | E121: 277.31 | G121: 277.31 | H121: 0 | I121: 3025202.43 | K121: 3025202.43
B122: 112 | C122: 2030-12-02 | D122: 2031-01-01 | E122: 286.55 | G122: 286.55 | H122: 0 | I122: 3025202.43 | K122: 3025202.43
B123: 113 | C123: 2031-01-02 | D123: 2031-02-01 | E123: 286.55 | G123: 286.55 | H123: 0 | I123: 3025202.43 | K123: 3025202.43
B124: 114 | C124: 2031-02-02 | D124: 2031-03-01 | E124: 258.82 | G124: 258.82 | H124: 0 | I124: 3025202.43 | K124: 3025202.43
B125: 115 | C125: 2031-03-02 | D125: 2031-04-01 | E125: 286.55 | G125: 286.55 | H125: 0 | I125: 3025202.43 | K125: 3025202.43
B126: 116 | C126: 2031-04-02 | D126: 2031-05-01 | E126: 277.31 | G126: 277.31 | H126: 0 | I126: 3025202.43 | K126: 3025202.43
B127: 117 | C127: 2031-05-02 | D127: 2031-06-01 | E127: 286.55 | G127: 286.55 | H127: 0 | I127: 3025202.43 | K127: 3025202.43
B128: 118 | C128: 2031-06-02 | D128: 2031-07-01 | E128: 277.31 | G128: 277.31 | H128: 0 | I128: 3025202.43 | K128: 3025202.43
B129: 119 | C129: 2031-07-02 | D129: 2031-08-01 | E129: 286.55 | G129: 286.55 | H129: 0 | I129: 3025202.43 | K129: 3025202.43
B130: 120 | C130: 2031-08-02 | D130: 2031-09-01 | E130: 3025488.98 | G130: 286.55 | H130: 3025202.43 | I130: 3025202.43 | K130: 0
B131: 121 | C131: 2031-09-02 | D131: 2031-10-01 | E131: 0 | G131: 0 | H131: 0 | I131: 0 | K131: 0
B132: 122 | C132: 2031-10-02 | D132: 2031-11-01 | E132: 0 | G132: 0 | H132: 0 | I132: 0 | K132: 0
B133: 123 | C133: 2031-11-02 | D133: 2031-12-01 | E133: 0 | G133: 0 | H133: 0 | I133: 0 | K133: 0
B134: 124 | C134: 2031-12-02 | D134: 2032-01-01 | E134: 0 | G134: 0 | H134: 0 | I134: 0 | K134: 0
B135: 125 | C135: 2032-01-02 | D135: 2032-02-01 | E135: 0 | G135: 0 | H135: 0 | I135: 0 | K135: 0
B136: 126 | C136: 2032-02-02 | D136: 2032-03-01 | E136: 0 | G136: 0 | H136: 0 | I136: 0 | K136: 0
B137: 127 | C137: 2032-03-02 | D137: 2032-04-01 | E137: 0 | G137: 0 | H137: 0 | I137: 0 | K137: 0
B138: 128 | C138: 2032-04-02 | D138: 2032-05-01 | E138: 0 | G138: 0 | H138: 0 | I138: 0 | K138: 0
B139: 129 | C139: 2032-05-02 | D139: 2032-06-01 | E139: 0 | G139: 0 | H139: 0 | I139: 0 | K139: 0
B140: 130 | C140: =D139+1 -> 2032-06-02 | D140: =EDATE(C140,1)-1 -> 2032-07-01 | E140: 0 | G140: 0 | H140: 0 | I140: 0 | K140: 0

Sheet Вхідні параметри
A1: v_2
B3: Вхідні параметри для ОЦІНКИ ПРОЕКТУ ФІНАНСУВАННЯ ОСББ
B5: * заповнити клітинки виділені зеленим кольором
B6: Відділення | F6: Відділення вул.Проскурівського підпілля, 81/1 АТ "КРЕДОБАНК" у м.Хмельницький
B7: Менеджер | F7: Красюк Віта Андріївна
B9: Назва клієнта
B10: Сума кредиту (грн.) | F10: 3000000
B11: Строк кредитування (міс.) | F11: 120
B12: Відтермінування (міс.) | F12: 12
B13: Відсоткова ставка (%) | F13: 0.11
B14: Схема погашення | F14: класика | I14: =IF(F14=Оцінка!AJ3,"При ануїтетній схемі погашення треба розрахувати платіж на аркушах ануїтет, ануїтет (після компенсації)","") -> 
B16: Сума компенсації (грн.) | F16: 0
B17: Місяць отримання компенсації | F17: 0
B18: Сума кредит з врахуванням компенсації (грн.) | F18: =F10-F16 -> 3000000
B20: Прогнозна дата видачі кредиту ОСББ | F20: 2021-09-01
B21: Дата візиту до ОСББ | F21: 2021-07-22
F23: 1,2 поверх | H23: >= 3го поверху | K23: 1,2 поверх | L23: >= 3го поверху
B24: Кількість квартир в будинку | K24: =Оцінка!B45 -> 0 | L24: =Оцінка!C45 -> 22.25950783 | M24: без компенсації
B25: Загальна площа приміщень у будинку ОСББ, яка береться до розрахунку тарифу, кв.м | H25: 2980 | K25: =-Оцінка!J45 -> 0 | L25: =Оцінка!K45 -> 22.25950783 | M25: після компенсації
B26: Діючий тариф, грн/м
B28: БАЛАНС ОСББ (грн.)
B29: АКТИВ | F29: 2021-01-01 | H29: ПАСИВ | M29: =F29 -> 2021-01-01
B30: Основні засоби | H30: Власний капітал | M30: =M36-M34-M35 -> 0
B31: Кошти ОСББ | F31: =SUM(F32:G33) -> 10200
B32: каса
B33: кошти в Банку | F33: 10200
B34: Заборгованість мешканців перед ОСББ | F34: 90400 | H34: Заборгованість ОСББ перед постачальниками | M34: 18800
H35: Кредити | M35: 81800
B36: ВАЛЮТА БАЛАНСУ | F36: =F30+F31+F34 -> 100600 | H36: ВАЛЮТА БАЛАНСУ | M36: =F36 -> 100600
A40: Версія файлу | C40: 2
A41: Дата | C41: 2021-08-04

Sheet Оцінка (hidden)
A1: ОЦІНКА ПРОЕКТУ ФІНАНСУВАННЯ ОСББ*
A2: Прогнозна дата видачі кредиту ОСББ | E2: ='Вхідні параметри'!F20 -> 2021-09-01 | I2: * заповнюються клітинки виділені зеленим кольором | AI2: 0 | AJ2: класика
AI3: 1 | AJ3: ануїтет
A4: Дата візиту до ОСББ | E4: ='Вхідні параметри'!F21 -> 2021-07-22 | AI4: 2
AI5: 3
A6: Відділення | E6: ='Вхідні параметри'!F6 -> Відділення вул.Проскурівського підпілля, 81/1 АТ "КРЕДОБАНК" у м.Хмельницький | AI6: 4
A7: Менеджер | E7: ='Вхідні параметри'!F7 -> Красюк Віта Андріївна | AI7: 5
AI8: 6
A9: Назва клієнта | E9: ='Вхідні параметри'!F9 -> 0 | AI9: 7
A11: Сума кредиту (грн.) | E11: ='Вхідні параметри'!F10 -> 3000000 | AI11: 8
A12: Строк кредитування (міс.) | E12: ='Вхідні параметри'!F11 -> 120 | AI12: 9
A13: Відтермінування (міс.) | E13: ='Вхідні параметри'!F12 -> 12 | AI13: 10
A14: Відсоткова ставка (%) | E14: ='Вхідні параметри'!F13 -> 0.11 | AI14: 11
A15: Схема погашення | E15: ='Вхідні параметри'!F14 -> класика
A22: Сума компенсації (грн.) | E22: ='Вхідні параметри'!F16 -> 0 | AI22: 12
A23: Місяць отримання компенсації | E23: ='Вхідні параметри'!F17 -> 0
A24: Сума кредит з врахуванням компенсації (грн.) | E24: =E11-E22 -> 3000000
E31: Для 1,2 поверху | F31: >= 3го поверху | G31: РАЗОМ
B32: Кількість квартир в будинку | E32: ='Вхідні параметри'!F24 -> 0 | F32: ='Вхідні параметри'!H24 -> 0
A33: Загальна площа приміщень у будинку ОСББ, яка береться до розрахунку тарифу | E33: ='Вхідні параметри'!F25 -> 0 | F33: ='Вхідні параметри'!H25 -> 2980 | G33: =E33+F33 -> 2980
A34: Частка в загальній площі приміщень що йдуть до тарифу (залежно від поверхів) | E34: =IFERROR(E33/G33,0) -> 0 | F34: =IFERROR(F33/G33,0) -> 1
B35: Діючий Тариф грн/м | E35: ='Вхідні параметри'!F26 -> 0 | F35: ='Вхідні параметри'!H26 -> 0
B36: Загальна сума збору в місяць ПЛАН, грн. | E36: =E33*E35 -> 0 | F36: =F33*F35 -> 0 | G36: =E36+F36 -> 0
B37: Загальна сума збору в рік ПЛАН, грн. | E37: =E36*12 -> 0 | F37: =F36*12 -> 0 | G37: =E37+F37 -> 0
A42: Збільшений тариф та загальна сума збору після отримання кредиту(грн.) (без компенсації) | J42: Збільшений тариф та загальна сума збору після отримання кредиту (грн.) (після отримання компенсації)
B43: Для 1,2 поверху | C43: >= 3го поверху | D43: РАЗОМ | E43: Для 1,2 поверху | F43: >= 3го поверху | G43: РАЗОМ | J43: Для 1,2 поверху | K43: >= 3го поверху | L43: РАЗОМ | M43: Для 1,2 поверху | N43: >= 3го поверху | O43: РАЗОМ
B44: Класика | C44: Класика | E44: Ануїтет | F44: Ануїтет | J44: Класика | K44: Класика | M44: Ануїтет | N44: Ануїтет
A45: Збільшений тариф, грн. | B45: =IFERROR(B47/E33,0) -> 0 | C45: =IFERROR(C47/F33,0) -> 22.25950783 | E45: =IFERROR(E47/E33,0) -> 0 | F45: =IFERROR(F47/F33,0) -> 16.64094096 | J45: =IFERROR(J47/E33,0) -> 0 | K45: =IFERROR(K47/F33,0) -> 22.25950783 | M45: =IFERROR(M47/E33,0) -> 0 | N45: =IFERROR(N47/F33,0) -> 16.64094096 | P45: Збільшений тариф, грн.
A47: Сума збору платежів в міс. = (діючий тариф + збільшений на 20% платіж по кредиту згідно графіку) | B47: =E36+B49 -> 0 | C47: =F36+C49 -> 66333.33333 | D47: =B47+C47 -> 66333.33333 | E47: =E36+E49 -> 0 | F47: =F36+F49 -> 49590.00407 | G47: =E47+F47 -> 49590.00407 | J47: =E36+J49 -> 0 | K47: =F36+K49 -> 66333.33333 | L47: =J47+K47 -> 66333.33333 | M47: =E36+M49 -> 0 | N47: =F36+N49 -> 49590.00407 | O47: =M47+N47 -> 49590.00407 | P47: Сума збору платежів в міс. = (діючий тариф + збільшений на 20% платіж по кредиту згідно графіку)
A49: МАХ платіж по кредиту * 1,2 (в т.ч. розподіл залежно від площ та поверхів) | B49: =D49*E34 -> 0 | C49: =D49*F34 -> 66333.33333 | D49: =MAX(Класична!P20:R379)*1.2 -> 66333.33333 | E49: =G49*E34 -> 0 | F49: =G49*F34 -> 49590.00407 | G49: =ануїтет!E11*1.2 -> 49590.00407 | J49: =L49*E34 -> 0 | K49: =L49*F34 -> 66333.33333 | L49: =MAX(OFFSET('Класична (після компенсації)'!$P$19,Оцінка!$E$23,0,Оцінка!$E$12))*1.2 -> 66333.33333 | M49: =O49*E34 -> 0 | N49: =O49*F34 -> 49590.00407 | O49: ='ануїтет (після компенсації)'!E11*1.2 -> 49590.00407 | P49: МАХ платіж по кредиту * 1,2 (в т.ч. розподіл залежно від площ та поверхів)
A51: Сума збору платежів в рік = (діючий тариф + збільшений на 20% платіж по кредиту згідно графіку) | B51: =B47*12 -> 0 | C51: =C47*12 -> 796000 | D51: =B51+C51 -> 796000 | E51: =E47*12 -> 0 | F51: =F47*12 -> 595080.0488 | G51: =E51+F51 -> 595080.0488 | J51: =J47*12 -> 0 | K51: =K47*12 -> 796000 | L51: =J51+K51 -> 796000 | M51: =M47*12 -> 0 | N51: =N47*12 -> 595080.0488 | O51: =M51+N51 -> 595080.0488 | P51: Сума збору платежів в рік = (діючий тариф + збільшений на 20% платіж по кредиту згідно графіку)
A54: БАЛАНС ОСББ (грн.)
A55: АКТИВ | D55: ='Вхідні параметри'!F29 -> 2021-01-01 | E55: ПАСИВ | I55: =D55 -> 2021-01-01
A56: Основні засоби | D56: ='Вхідні параметри'!F30 -> 0 | E56: Власний капітал | I56: =D62-I60-I61 -> 0
A57: Кошти ОСББ | D57: =SUM(D58:E59) -> 10200
A58: каса | D58: ='Вхідні параметри'!F32 -> 0
A59: кошти в Банку | D59: ='Вхідні параметри'!F33 -> 10200
A60: Заборгованість мешканців перед ОСББ | D60: ='Вхідні параметри'!F34 -> 90400 | E60: Заборгованість ОСББ перед постачальниками | I60: ='Вхідні параметри'!M34 -> 18800
E61: Кредити | I61: ='Вхідні параметри'!M35 -> 81800
A62: ВАЛЮТА БАЛАНСУ | D62: =D56+D57+D60 -> 100600 | E62: ВАЛЮТА БАЛАНСУ | I62: =D62 -> 100600
A65: CASH FLOW (історичний)
B66: ='cash flow істор_заповн.Клієнт'!B2 -> 2020-04-28 | C66: ='cash flow істор_заповн.Клієнт'!C2 -> 2020-05-28 | D66: ='cash flow істор_заповн.Клієнт'!D2 -> 2020-06-28 | E66: ='cash flow істор_заповн.Клієнт'!E2 -> 2020-07-28 | F66: ='cash flow істор_заповн.Клієнт'!F2 -> 2020-08-28 | G66: ='cash flow істор_заповн.Клієнт'!G2 -> 2020-09-28 | H66: ='cash flow істор_заповн.Клієнт'!H2 -> 2020-10-28 | I66: ='cash flow істор_заповн.Клієнт'!I2 -> 2020-11-28 | J66: ='cash flow істор_заповн.Клієнт'!J2 -> 2020-12-28 | K66: ='cash flow істор_заповн.Клієнт'!K2 -> 2021-01-28 | L66: ='cash flow істор_заповн.Клієнт'!L2 -> 2021-02-28 | M66: ='cash flow істор_заповн.Клієнт'!M2 -> 2021-03-31 | N66: Всього за рік | P66: ПЛАН надходжень (збір по тарифу на заг.площу), за рік - по істор кеш-фло клієнта | S66: =N68 -> 255119.04
A67: Залишок коштів на поч. міс. | B67: ='cash flow істор_заповн.Клієнт'!B3 -> 51285.06 | C67: =B81 -> 52491.23 | D67: 53809.31 | E67: 53869.95 | F67: 67482.41 | G67: 64401.25 | H67: 63887.19 | I67: 53343.84 | J67: 53773.22 | K67: 45374.36 | L67: =K81 -> 26445.46 | M67: =L81 -> 10429.73
A68: ПЛАН надходжень остані 12 міс. | B68: ='cash flow істор_заповн.Клієнт'!B4 -> 20326.49 | C68: ='cash flow істор_заповн.Клієнт'!C4 -> 20326.49 | D68: ='cash flow істор_заповн.Клієнт'!D4 -> 20326.49 | E68: ='cash flow істор_заповн.Клієнт'!E4 -> 20326.49 | F68: ='cash flow істор_заповн.Клієнт'!F4 -> 20326.49 | G68: ='cash flow істор_заповн.Клієнт'!G4 -> 20326.49 | H68: ='cash flow істор_заповн.Клієнт'!H4 -> 22193.35 | I68: ='cash flow істор_заповн.Клієнт'!I4 -> 22193.35 | J68: ='cash flow істор_заповн.Клієнт'!J4 -> 22193.35 | K68: ='cash flow істор_заповн.Клієнт'!K4 -> 22193.35 | L68: ='cash flow істор_заповн.Клієнт'!L4 -> 22193.35 | M68: ='cash flow істор_заповн.Клієнт'!M4 -> 22193.35 | N68: =SUM(B68:M68) -> 255119.04 | P68: ПЛАН надходжень (збір по тарифу на площу) за міс. в середньому (за останні 12 міс., без місяців де 0) - по істор кеш-фло клієнта | S68: =IFERROR(AVERAGEIF(B68:M68,">0"),0) -> 21259.92
A69: Надходження на поточний рахунок, в т.ч.: | B69: =SUM(B70:B73) -> 21131.93 | C69: =SUM(C70:C73) -> 15771.44 | D69: 18508 | E69: 35924.82 | F69: 20722.52 | G69: 22552.28 | H69: 18274.74 | I69: 29144.65 | J69: 38146.69 | K69: 16829.64 | L69: 19465.82 | M69: 19574.31 | N69: 276046.84
A70: Членські внески на утримання будинку | B70: ='cash flow істор_заповн.Клієнт'!B6 -> 19679.82 | C70: ='cash flow істор_заповн.Клієнт'!C6 -> 15435.13 | D70: ='cash flow істор_заповн.Клієнт'!D6 -> 12667.73 | E70: ='cash flow істор_заповн.Клієнт'!E6 -> 32926.13 | F70: ='cash flow істор_заповн.Клієнт'!F6 -> 20356.13 | G70: ='cash flow істор_заповн.Клієнт'!G6 -> 22185.89 | H70: ='cash flow істор_заповн.Клієнт'!H6 -> 16267.51 | I70: ='cash flow істор_заповн.Клієнт'!I6 -> 25394.58 | J70: ='cash flow істор_заповн.Клієнт'!J6 -> 37537.24 | K70: ='cash flow істор_заповн.Клієнт'!K6 -> 14295.96 | L70: ='cash flow істор_заповн.Клієнт'!L6 -> 18065.54 | M70: ='cash flow істор_заповн.Клієнт'!M6 -> 16731.54 | N70: 251543.2 | P70: Загальна сума збору в місяць, грн. (тариф * площа) | S70: =E37+F37 -> 0
A71: Субсидії за квартплату та інші компенсації держави для пільгових категорій населення | B71: ='cash flow істор_заповн.Клієнт'!B7 -> 10.72 | C71: ='cash flow істор_заповн.Клієнт'!C7 -> 247.87 | D71: ='cash flow істор_заповн.Клієнт'!D7 -> 0 | E71: ='cash flow істор_заповн.Клієнт'!E7 -> 0 | F71: ='cash flow істор_заповн.Клієнт'!F7 -> 0 | G71: ='cash flow істор_заповн.Клієнт'!G7 -> 0 | H71: ='cash flow істор_заповн.Клієнт'!H7 -> 138.94 | I71: ='cash flow істор_заповн.Клієнт'!I7 -> 408.68 | J71: ='cash flow істор_заповн.Клієнт'!J7 -> 271.01 | K71: ='cash flow істор_заповн.Клієнт'!K7 -> 242.29 | L71: ='cash flow істор_заповн.Клієнт'!L7 -> 468.63 | M71: ='cash flow істор_заповн.Клієнт'!M7 -> 0 | N71: 1788.14
A72: Оплата провайдерів за використання будинкових шахт | B72: ='cash flow істор_заповн.Клієнт'!B8 -> 0 | C72: ='cash flow істор_заповн.Клієнт'!C8 -> 0 | D72: ='cash flow істор_заповн.Клієнт'!D8 -> 0 | E72: ='cash flow істор_заповн.Клієнт'!E8 -> 0 | F72: ='cash flow істор_заповн.Клієнт'!F8 -> 0 | G72: ='cash flow істор_заповн.Клієнт'!G8 -> 0 | H72: ='cash flow істор_заповн.Клієнт'!H8 -> 0 | I72: ='cash flow істор_заповн.Клієнт'!I8 -> 0 | J72: ='cash flow істор_заповн.Клієнт'!J8 -> 0 | K72: ='cash flow істор_заповн.Клієнт'!K8 -> 0 | L72: ='cash flow істор_заповн.Клієнт'!L8 -> 0 | M72: ='cash flow істор_заповн.Клієнт'!M8 -> 0 | N72: 0
A73: Інше | B73: ='cash flow істор_заповн.Клієнт'!B9 -> 1441.39 | C73: ='cash flow істор_заповн.Клієнт'!C9 -> 88.44 | D73: ='cash flow істор_заповн.Клієнт'!D9 -> 5840.27 | E73: ='cash flow істор_заповн.Клієнт'!E9 -> 2998.69 | F73: ='cash flow істор_заповн.Клієнт'!F9 -> 366.39 | G73: ='cash flow істор_заповн.Клієнт'!G9 -> 366.39 | H73: ='cash flow істор_заповн.Клієнт'!H9 -> 1868.29 | I73: ='cash flow істор_заповн.Клієнт'!I9 -> 3341.39 | J73: ='cash flow істор_заповн.Клієнт'!J9 -> 338.44 | K73: ='cash flow істор_заповн.Клієнт'!K9 -> 2291.39 | L73: ='cash flow істор_заповн.Клієнт'!L9 -> 931.65 | M73: ='cash flow істор_заповн.Клієнт'!M9 -> 2842.77 | N73: 22715.5
A74: % оплати тарифу | B74: =IFERROR((B70+B71+B72)/B68,) -> 0.9687132407 | C74: =IFERROR((C70+C71+C72)/C68,) -> 0.7715547544 | D74: 0.6232128616 | E74: 1.619863046 | F74: 1.001458196 | G74: 1.091476689 | H74: 0.7392507215 | I74: 1.162657282 | J74: 1.703584632 | K74: 0.6550723528 | L74: 0.8351226831 | M74: 0.753898803 | N74: =IFERROR((N70+N71+N72)/N68,) -> 0.9929926829 | O74: =IF(N74>=0.85,"видати кредит","не видавати кредит") -> видати кредит
A75: Розрахунки з постачальниками послуг, в т.ч. | B75: ='cash flow істор_заповн.Клієнт'!B11 -> 0 | C75: ='cash flow істор_заповн.Клієнт'!C11 -> 0 | D75: ='cash flow істор_заповн.Клієнт'!D11 -> 2280 | E75: ='cash flow істор_заповн.Клієнт'!E11 -> 2812 | F75: ='cash flow істор_заповн.Клієнт'!F11 -> 2812 | G75: ='cash flow істор_заповн.Клієнт'!G11 -> 2812 | H75: ='cash flow істор_заповн.Клієнт'!H11 -> 8436 | I75: ='cash flow істор_заповн.Клієнт'!I11 -> 5624 | J75: ='cash flow істор_заповн.Клієнт'!J11 -> 9594.62 | K75: ='cash flow істор_заповн.Клієнт'!K11 -> 0 | L75: ='cash flow істор_заповн.Клієнт'!L11 -> 2300 | M75: ='cash flow істор_заповн.Клієнт'!M11 -> 0 | N75: =SUM(B75:M75) -> 36670.62
A76: Бухгалтерські послуги + паспортний облік | B76: ='cash flow істор_заповн.Клієнт'!B12 -> 0 | C76: ='cash flow істор_заповн.Клієнт'!C12 -> 0 | D76: ='cash flow істор_заповн.Клієнт'!D12 -> 0 | E76: ='cash flow істор_заповн.Клієнт'!E12 -> 0 | F76: ='cash flow істор_заповн.Клієнт'!F12 -> 0 | G76: ='cash flow істор_заповн.Клієнт'!G12 -> 0 | H76: ='cash flow істор_заповн.Клієнт'!H12 -> 0 | I76: ='cash flow істор_заповн.Клієнт'!I12 -> 0 | J76: ='cash flow істор_заповн.Клієнт'!J12 -> 0 | K76: ='cash flow істор_заповн.Клієнт'!K12 -> 0 | L76: ='cash flow істор_заповн.Клієнт'!L12 -> 0 | M76: ='cash flow істор_заповн.Клієнт'!M12 -> 0 | N76: =SUM(B76:M76) -> 0
A77: Забезпечення функціонування програмного забезпечення та офісної техніки | B77: ='cash flow істор_заповн.Клієнт'!B13 -> 0 | C77: ='cash flow істор_заповн.Клієнт'!C13 -> 0 | D77: ='cash flow істор_заповн.Клієнт'!D13 -> 0 | E77: ='cash flow істор_заповн.Клієнт'!E13 -> 0 | F77: ='cash flow істор_заповн.Клієнт'!F13 -> 0 | G77: ='cash flow істор_заповн.Клієнт'!G13 -> 0 | H77: ='cash flow істор_заповн.Клієнт'!H13 -> 0 | I77: ='cash flow істор_заповн.Клієнт'!I13 -> 0 | J77: ='cash flow істор_заповн.Клієнт'!J13 -> 0 | K77: ='cash flow істор_заповн.Клієнт'!K13 -> 0 | L77: ='cash flow істор_заповн.Клієнт'!L13 -> 0 | M77: ='cash flow істор_заповн.Клієнт'!M13 -> 0 | N77: =SUM(B77:M77) -> 0
A78: Витрати на РКО в банку | B78: ='cash flow істор_заповн.Клієнт'!B14 -> 101 | C78: ='cash flow істор_заповн.Клієнт'!C14 -> 99 | D78: ='cash flow істор_заповн.Клієнт'!D14 -> 99 | E78: ='cash flow істор_заповн.Клієнт'!E14 -> 139 | F78: ='cash flow істор_заповн.Клієнт'!F14 -> 129 | G78: ='cash flow істор_заповн.Клієнт'!G14 -> 119 | H78: ='cash flow істор_заповн.Клієнт'!H14 -> 99 | I78: ='cash flow істор_заповн.Клієнт'!I14 -> 121 | J78: ='cash flow істор_заповн.Клієнт'!J14 -> 209 | K78: ='cash flow істор_заповн.Клієнт'!K14 -> 269.26 | L78: ='cash flow істор_заповн.Клієнт'!L14 -> 275 | M78: ='cash flow істор_заповн.Клієнт'!M14 -> 259 | N78: =SUM(B78:M78) -> 1918.26
A79: Інші витрати | B79: ='cash flow істор_заповн.Клієнт'!B15 -> 19824.76 | C79: ='cash flow істор_заповн.Клієнт'!C15 -> 14354.36 | D79: ='cash flow істор_заповн.Клієнт'!D15 -> 16068.36 | E79: ='cash flow істор_заповн.Клієнт'!E15 -> 19361.36 | F79: ='cash flow істор_заповн.Клієнт'!F15 -> 20862.68 | G79: ='cash flow істор_заповн.Клієнт'!G15 -> 20135.34 | H79: ='cash flow істор_заповн.Клієнт'!H15 -> 20283.09 | I79: ='cash flow істор_заповн.Клієнт'!I15 -> 22970.27 | J79: ='cash flow істор_заповн.Клієнт'!J15 -> 36741.93 | K79: ='cash flow істор_заповн.Клієнт'!K15 -> 35489.28 | L79: ='cash flow істор_заповн.Клієнт'!L15 -> 32906.55 | M79: ='cash flow істор_заповн.Клієнт'!M15 -> 22952.35 | N79: =SUM(B79:M79) -> 281950.33
A80: Чистий грошовий потік | B80: =B69-B75-B78-B76-B77-B79 -> 1206.17 | C80: =C69-C75-C78-C76-C77-C79 -> 1318.08 | D80: 60.64 | E80: 13612.46 | F80: -3081.16 | G80: -514.06 | H80: -10543.35 | I80: 429.38 | J80: -8398.86 | K80: -18928.9 | L80: -16015.73 | M80: -3637.04 | N80: -44492.37
A81: Залишок коштів на кін. міс. | B81: =B67+B80 -> 52491.23 | C81: 53809.31 | D81: 53869.95 | E81: 67482.41 | F81: 64401.25 | G81: 63887.19 | H81: 53343.84 | I81: 53773.22 | J81: 45374.36 | K81: 26445.46 | L81: 10429.73 | M81: 6792.69
A83: CASH FLOW (Прогноз) | B83: 1 | C83: 2 | D83: 3 | E83: 4 | F83: 5 | G83: 6 | H83: 7 | I83: 8 | J83: 9 | K83: 10 | L83: 11 | M83: 12
B84: =EOMONTH($E$2,B83) -> 2021-10-31 | C84: =EOMONTH($E$2,C83) -> 2021-11-30 | D84: =EOMONTH($E$2,D83) -> 2021-12-31 | E84: 2022-01-31 | F84: 2022-02-28 | G84: 2022-03-31 | H84: 2022-04-30 | I84: 2022-05-31 | J84: 2022-06-30 | K84: 2022-07-31 | L84: 2022-08-31 | M84: 2022-09-30 | N84: Всього за рік | O84: 2 рік | P84: 3 рік | Q84: 4 рік | R84: 5 рік | S84: 6 рік | T84: 7 рік | U84: 8 рік | V84: 9 рік | W84: 10 рік
A85: Залишок коштів на поч. міс. | B85: ='cash flow прогноз_заповн.Клієнт'!B4 -> 3106716 | C85: =B106 -> 649519 | D85: =C106 -> 704849.3333 | E85: 142155.5933 | F85: 197485.9267 | G85: 253936.26 | H85: 1184944.953 | I85: 1240075.287 | J85: 1297242.287 | K85: 1352372.62 | L85: =K106 -> 1409539.62 | M85: =L106 -> 1902452.453 | O85: =M106 -> 2945537.057 | P85: =O106 -> 2347581.279 | Q85: =O106 -> 2347581.279 | R85: =Q106 -> 1822958.834 | S85: =R106 -> 1335003.057 | T85: =S106 -> 883713.9456 | U85: =T106 -> 469091.5011 | V85: 91135.72333 | W85: -250153.3878
A86: Надходження на поточний рахунок, в т.ч.: | B86: =SUM(B87:B90) -> 72477 | C86: =SUM(C87:C90) -> 72477 | D86: 72477 | E86: 72477 | F86: 72477 | G86: 72477 | H86: 72477 | I86: 72477 | J86: 72477 | K86: 72477 | L86: 72477 | M86: 72477 | N86: 869724 | O86: 317316 | P86: =SUM(P87:P90) -> 317316 | Q86: 317316 | R86: 317316 | S86: =SUM(S87:S90) -> 317316 | T86: =SUM(T87:T90) -> 317316 | U86: =SUM(U87:U90) -> 317316 | V86: =SUM(V87:V90) -> 317316 | W86: =SUM(W87:W90) -> 317316
A87: Членські внески на утримання будинку | B87: ='cash flow прогноз_заповн.Клієнт'!B6 -> 46877 | C87: ='cash flow прогноз_заповн.Клієнт'!C6 -> 46877 | D87: ='cash flow прогноз_заповн.Клієнт'!D6 -> 46877 | E87: ='cash flow прогноз_заповн.Клієнт'!E6 -> 46877 | F87: ='cash flow прогноз_заповн.Клієнт'!F6 -> 46877 | G87: ='cash flow прогноз_заповн.Клієнт'!G6 -> 46877 | H87: ='cash flow прогноз_заповн.Клієнт'!H6 -> 46877 | I87: ='cash flow прогноз_заповн.Клієнт'!I6 -> 46877 | J87: ='cash flow прогноз_заповн.Клієнт'!J6 -> 46877 | K87: ='cash flow прогноз_заповн.Клієнт'!K6 -> 46877 | L87: ='cash flow прогноз_заповн.Клієнт'!L6 -> 46877 | M87: ='cash flow прогноз_заповн.Клієнт'!M6 -> 46877 | N87: =SUM(B87:M87) -> 562524 | O87: ='cash flow прогноз_заповн.Клієнт'!O6 -> 317316 | P87: ='cash flow прогноз_заповн.Клієнт'!P6 -> 317316 | Q87: ='cash flow прогноз_заповн.Клієнт'!Q6 -> 317316 | R87: ='cash flow прогноз_заповн.Клієнт'!R6 -> 317316 | S87: ='cash flow прогноз_заповн.Клієнт'!S6 -> 317316 | T87: ='cash flow прогноз_заповн.Клієнт'!T6 -> 317316 | U87: ='cash flow прогноз_заповн.Клієнт'!U6 -> 317316 | V87: ='cash flow прогноз_заповн.Клієнт'!V6 -> 317316 | W87: ='cash flow прогноз_заповн.Клієнт'!W6 -> 317316
A88: Субсидії за квартплату та інші компенсації держави для пільгових категорій населення | B88: ='cash flow прогноз_заповн.Клієнт'!B7 -> 0 | C88: ='cash flow прогноз_заповн.Клієнт'!C7 -> 0 | D88: ='cash flow прогноз_заповн.Клієнт'!D7 -> 0 | E88: ='cash flow прогноз_заповн.Клієнт'!E7 -> 0 | F88: ='cash flow прогноз_заповн.Клієнт'!F7 -> 0 | G88: ='cash flow прогноз_заповн.Клієнт'!G7 -> 0 | H88: ='cash flow прогноз_заповн.Клієнт'!H7 -> 0 | I88: ='cash flow прогноз_заповн.Клієнт'!I7 -> 0 | J88: ='cash flow прогноз_заповн.Клієнт'!J7 -> 0 | K88: ='cash flow прогноз_заповн.Клієнт'!K7 -> 0 | L88: ='cash flow прогноз_заповн.Клієнт'!L7 -> 0 | M88: ='cash flow прогноз_заповн.Клієнт'!M7 -> 0 | N88: =SUM(B88:M88) -> 0 | O88: ='cash flow прогноз_заповн.Клієнт'!O7 -> 0 | P88: ='cash flow прогноз_заповн.Клієнт'!P7 -> 0 | Q88: ='cash flow прогноз_заповн.Клієнт'!Q7 -> 0 | R88: ='cash flow прогноз_заповн.Клієнт'!R7 -> 0 | S88: ='cash flow прогноз_заповн.Клієнт'!S7 ->  | T88: ='cash flow прогноз_заповн.Клієнт'!T7 -> 0 | U88: ='cash flow прогноз_заповн.Клієнт'!U7 -> 0 | V88: ='cash flow прогноз_заповн.Клієнт'!V7 -> 0 | W88: ='cash flow прогноз_заповн.Клієнт'!W7 -> 0
A89: Оплата провайдерів за використання будинкових шахт | B89: ='cash flow прогноз_заповн.Клієнт'!B8 -> 0 | C89: ='cash flow прогноз_заповн.Клієнт'!C8 -> 0 | D89: ='cash flow прогноз_заповн.Клієнт'!D8 -> 0 | E89: ='cash flow прогноз_заповн.Клієнт'!E8 -> 0 | F89: ='cash flow прогноз_заповн.Клієнт'!F8 -> 0 | G89: ='cash flow прогноз_заповн.Клієнт'!G8 -> 0 | H89: ='cash flow прогноз_заповн.Клієнт'!H8 -> 0 | I89: ='cash flow прогноз_заповн.Клієнт'!I8 -> 0 | J89: ='cash flow прогноз_заповн.Клієнт'!J8 -> 0 | K89: ='cash flow прогноз_заповн.Клієнт'!K8 -> 0 | L89: ='cash flow прогноз_заповн.Клієнт'!L8 -> 0 | M89: ='cash flow прогноз_заповн.Клієнт'!M8 -> 0 | N89: =SUM(B89:M89) -> 0 | O89: ='cash flow прогноз_заповн.Клієнт'!O8 -> 0 | P89: ='cash flow прогноз_заповн.Клієнт'!P8 -> 0 | Q89: ='cash flow прогноз_заповн.Клієнт'!Q8 -> 0 | R89: ='cash flow прогноз_заповн.Клієнт'!R8 -> 0 | S89: ='cash flow прогноз_заповн.Клієнт'!S8 -> 0 | T89: ='cash flow прогноз_заповн.Клієнт'!T8 -> 0 | U89: ='cash flow прогноз_заповн.Клієнт'!U8 -> 0 | V89: ='cash flow прогноз_заповн.Клієнт'!V8 -> 0 | W89: ='cash flow прогноз_заповн.Клієнт'!W8 -> 0
A90: Інше | B90: ='cash flow прогноз_заповн.Клієнт'!B9 -> 25600 | C90: ='cash flow прогноз_заповн.Клієнт'!C9 -> 25600 | D90: ='cash flow прогноз_заповн.Клієнт'!D9 -> 25600 | E90: ='cash flow прогноз_заповн.Клієнт'!E9 -> 25600 | F90: ='cash flow прогноз_заповн.Клієнт'!F9 -> 25600 | G90: ='cash flow прогноз_заповн.Клієнт'!G9 -> 25600 | H90: ='cash flow прогноз_заповн.Клієнт'!H9 -> 25600 | I90: ='cash flow прогноз_заповн.Клієнт'!I9 -> 25600 | J90: ='cash flow прогноз_заповн.Клієнт'!J9 -> 25600 | K90: ='cash flow прогноз_заповн.Клієнт'!K9 -> 25600 | L90: ='cash flow прогноз_заповн.Клієнт'!L9 -> 25600 | M90: ='cash flow прогноз_заповн.Клієнт'!M9 -> 25600 | N90: =SUM(B90:M90) -> 307200 | O90: ='cash flow прогноз_заповн.Клієнт'!O9 -> 0 | P90: ='cash flow прогноз_заповн.Клієнт'!P9 -> 0 | Q90: ='cash flow прогноз_заповн.Клієнт'!Q9 -> 0 | R90: ='cash flow прогноз_заповн.Клієнт'!R9 -> 0 | S90: ='cash flow прогноз_заповн.Клієнт'!S9 -> 0 | T90: ='cash flow прогноз_заповн.Клієнт'!T9 -> 0 | U90: ='cash flow прогноз_заповн.Клієнт'!U9 -> 0 | V90: ='cash flow прогноз_заповн.Клієнт'!V9 -> 0 | W90: ='cash flow прогноз_заповн.Клієнт'!W9 -> 0
A91: % оплати тарифу (без компенсації) | B91: =IF($E$15=$AJ$2,B86/($B$47+$C$47),B86/($E$47+$F$47)) -> 1.09261809 | C91: =IF($E$15=$AJ$2,C86/($B$47+$C$47),C86/($E$47+$F$47)) -> 1.09261809 | D91: 1.09261809 | E91: 1.09261809 | F91: 1.09261809 | G91: 1.09261809 | H91: 1.09261809 | I91: 1.09261809 | J91: 1.09261809 | K91: 1.09261809 | L91: 1.09261809 | M91: 1.09261809 | N91: =IF($E$15=$AJ$2,N86/(($B$47+$C$47)*12),N86/(($E$47+$F$47)*12)) -> 1.09261809 | O91: =IF($E$15=$AJ$2,O86/(($B$47+$C$47)*12),O86/(($E$47+$F$47)*12)) -> 0.398638191 | P91: 0.398638191 | Q91: 0.398638191 | R91: 0.398638191 | S91: 0.398638191 | T91: 0.398638191 | U91: 0.398638191 | V91: 0.398638191 | W91: 0.398638191
A92: % оплати тарифу (з компенсацією) | B92: =IF($E$15=$AJ$2,B86/($J$47+$K$47),B86/($M$47+$N$47)) -> 1.09261809 | C92: =IF($E$15=$AJ$2,C86/($J$47+$K$47),C86/($M$47+$N$47)) -> 1.09261809 | D92: 1.09261809 | E92: 1.09261809 | F92: 1.09261809 | G92: 1.09261809 | H92: 1.09261809 | I92: 1.09261809 | J92: 1.09261809 | K92: 1.09261809 | L92: 1.09261809 | M92: 1.09261809 | N92: =IF($E$15=$AJ$2,N86/(($J$47+$K$47)*12),N86/(($M$47+$N$47)*12)) -> 1.09261809 | O92: =IF($E$15=$AJ$2,O86/(($J$47+$K$47)*12),O86/(($M$47+$N$47)*12)) -> 0.398638191 | P92: 0.398638191 | Q92: 0.398638191 | R92: 0.398638191 | S92: 0.398638191 | T92: 0.398638191 | U92: 0.398638191 | V92: 0.398638191 | W92: 0.398638191
A93: Розрахунки з постачальниками послуг, в т.ч.: | B93: ='cash flow прогноз_заповн.Клієнт'!B10 -> 22012 | C93: ='cash flow прогноз_заповн.Клієнт'!C10 -> 22012 | D93: ='cash flow прогноз_заповн.Клієнт'!D10 -> 22012 | E93: ='cash flow прогноз_заповн.Клієнт'!E10 -> 22012 | F93: ='cash flow прогноз_заповн.Клієнт'!F10 -> 22012 | G93: ='cash flow прогноз_заповн.Клієнт'!G10 -> 22012 | H93: ='cash flow прогноз_заповн.Клієнт'!H10 -> 22212 | I93: ='cash flow прогноз_заповн.Клієнт'!I10 -> 22212 | J93: ='cash flow прогноз_заповн.Клієнт'!J10 -> 22212 | K93: ='cash flow прогноз_заповн.Клієнт'!K10 -> 22212 | L93: ='cash flow прогноз_заповн.Клієнт'!L10 -> 22212 | M93: ='cash flow прогноз_заповн.Клієнт'!M10 -> 22012 | N93: =SUM(B93:M93) -> 265144 | O93: ='cash flow прогноз_заповн.Клієнт'!O10 -> 265144 | P93: ='cash flow прогноз_заповн.Клієнт'!P10 -> 265144 | Q93: ='cash flow прогноз_заповн.Клієнт'!Q10 -> 265144 | R93: ='cash flow прогноз_заповн.Клієнт'!R10 -> 265144 | S93: ='cash flow прогноз_заповн.Клієнт'!S10 -> 265144 | T93: ='cash flow прогноз_заповн.Клієнт'!T10 -> 265144 | U93: ='cash flow прогноз_заповн.Клієнт'!U10 -> 265144 | V93: ='cash flow прогноз_заповн.Клієнт'!V10 -> 265144 | W93: ='cash flow прогноз_заповн.Клієнт'!W10 -> 265144
A94: Бухгалтерські послуги + паспортний облік | B94: ='cash flow прогноз_заповн.Клієнт'!B11 -> 0 | C94: ='cash flow прогноз_заповн.Клієнт'!C11 -> 0 | D94: ='cash flow прогноз_заповн.Клієнт'!D11 -> 0 | E94: ='cash flow прогноз_заповн.Клієнт'!E11 -> 0 | F94: ='cash flow прогноз_заповн.Клієнт'!F11 -> 0 | G94: ='cash flow прогноз_заповн.Клієнт'!G11 -> 0 | H94: ='cash flow прогноз_заповн.Клієнт'!H11 -> 0 | I94: ='cash flow прогноз_заповн.Клієнт'!I11 -> 0 | J94: ='cash flow прогноз_заповн.Клієнт'!J11 -> 0 | K94: ='cash flow прогноз_заповн.Клієнт'!K11 -> 0 | L94: ='cash flow прогноз_заповн.Клієнт'!L11 -> 0 | M94: ='cash flow прогноз_заповн.Клієнт'!M11 -> 0 | N94: =SUM(B94:M94) -> 0 | O94: ='cash flow прогноз_заповн.Клієнт'!O11 -> 0 | P94: ='cash flow прогноз_заповн.Клієнт'!P11 -> 0 | Q94: ='cash flow прогноз_заповн.Клієнт'!Q11 -> 0 | R94: ='cash flow прогноз_заповн.Клієнт'!R11 -> 0 | S94: ='cash flow прогноз_заповн.Клієнт'!S11 -> 0 | T94: ='cash flow прогноз_заповн.Клієнт'!T11 -> 0 | U94: ='cash flow прогноз_заповн.Клієнт'!U11 -> 0 | V94: ='cash flow прогноз_заповн.Клієнт'!V11 -> 0 | W94: ='cash flow прогноз_заповн.Клієнт'!W11 -> 0
A95: Забезпечення функціонування програмного забезпечення та офісної техніки | B95: ='cash flow прогноз_заповн.Клієнт'!B12 -> 0 | C95: ='cash flow прогноз_заповн.Клієнт'!C12 -> 0 | D95: ='cash flow прогноз_заповн.Клієнт'!D12 -> 0 | E95: ='cash flow прогноз_заповн.Клієнт'!E12 -> 0 | F95: ='cash flow прогноз_заповн.Клієнт'!F12 -> 0 | G95: ='cash flow прогноз_заповн.Клієнт'!G12 -> 0 | H95: ='cash flow прогноз_заповн.Клієнт'!H12 -> 0 | I95: ='cash flow прогноз_заповн.Клієнт'!I12 -> 0 | J95: ='cash flow прогноз_заповн.Клієнт'!J12 -> 0 | K95: ='cash flow прогноз_заповн.Клієнт'!K12 -> 0 | L95: ='cash flow прогноз_заповн.Клієнт'!L12 -> 0 | M95: ='cash flow прогноз_заповн.Клієнт'!M12 -> 0 | N95: =SUM(B95:M95) -> 0 | O95: ='cash flow прогноз_заповн.Клієнт'!O12 -> 0 | P95: ='cash flow прогноз_заповн.Клієнт'!P12 -> 0 | Q95: ='cash flow прогноз_заповн.Клієнт'!Q12 -> 0 | R95: ='cash flow прогноз_заповн.Клієнт'!R12 -> 0 | S95: ='cash flow прогноз_заповн.Клієнт'!S12 -> 0 | T95: ='cash flow прогноз_заповн.Клієнт'!T12 -> 0 | U95: ='cash flow прогноз_заповн.Клієнт'!U12 -> 0 | V95: ='cash flow прогноз_заповн.Клієнт'!V12 -> 0 | W95: ='cash flow прогноз_заповн.Клієнт'!W12 -> 0
A96: Витрати на РКО в банку | B96: ='cash flow прогноз_заповн.Клієнт'!B13 -> 300 | C96: ='cash flow прогноз_заповн.Клієнт'!C13 -> 300 | D96: ='cash flow прогноз_заповн.Клієнт'!D13 -> 300 | E96: ='cash flow прогноз_заповн.Клієнт'!E13 -> 300 | F96: ='cash flow прогноз_заповн.Клієнт'!F13 -> 300 | G96: ='cash flow прогноз_заповн.Клієнт'!G13 -> 300 | H96: ='cash flow прогноз_заповн.Клієнт'!H13 -> 300 | I96: ='cash flow прогноз_заповн.Клієнт'!I13 -> 300 | J96: ='cash flow прогноз_заповн.Клієнт'!J13 -> 300 | K96: ='cash flow прогноз_заповн.Клієнт'!K13 -> 300 | L96: ='cash flow прогноз_заповн.Клієнт'!L13 -> 300 | M96: ='cash flow прогноз_заповн.Клієнт'!M13 -> 300 | N96: =SUM(B96:M96) -> 3600 | O96: ='cash flow прогноз_заповн.Клієнт'!O13 -> 3600 | P96: ='cash flow прогноз_заповн.Клієнт'!P13 -> 3600 | Q96: ='cash flow прогноз_заповн.Клієнт'!Q13 -> 3600 | R96: ='cash flow прогноз_заповн.Клієнт'!R13 -> 3600 | S96: ='cash flow прогноз_заповн.Клієнт'!S13 -> 3600 | T96: ='cash flow прогноз_заповн.Клієнт'!T13 -> 3600 | U96: ='cash flow прогноз_заповн.Клієнт'!U13 -> 3600 | V96: ='cash flow прогноз_заповн.Клієнт'!V13 -> 3600 | W96: ='cash flow прогноз_заповн.Клієнт'!W13 -> 3600
A97: Чистий грошовий потік | B97: =B86-B93-B94-B95-B96 -> 50165 | C97: =C86-C93-C94-C95-C96 -> 50165 | D97: 50165 | E97: 50165 | F97: 50165 | G97: 50165 | H97: 49965 | I97: 49965 | J97: 49965 | K97: 49965 | L97: 49965 | M97: 50165 | N97: 600980 | O97: =O86-O93-O94-O95-O96 -> 48572 | P97: =P86-P93-P94-P95-P96 -> 48572 | Q97: 48572 | R97: 48572 | S97: 48572 | T97: 48572 | U97: 48572 | V97: 48572 | W97: 48572
A98: КРЕДИТ (+) | B98: ='cash flow прогноз_заповн.Клієнт'!B15 -> 0 | C98: ='cash flow прогноз_заповн.Клієнт'!C15 -> 0 | D98: ='cash flow прогноз_заповн.Клієнт'!D15 -> 0 | E98: ='cash flow прогноз_заповн.Клієнт'!E15 -> 0 | F98: ='cash flow прогноз_заповн.Клієнт'!F15 -> 0 | G98: ='cash flow прогноз_заповн.Клієнт'!G15 -> 0 | H98: ='cash flow прогноз_заповн.Клієнт'!H15 -> 0 | I98: ='cash flow прогноз_заповн.Клієнт'!I15 -> 0 | J98: ='cash flow прогноз_заповн.Клієнт'!J15 -> 0 | K98: ='cash flow прогноз_заповн.Клієнт'!K15 -> 0 | L98: ='cash flow прогноз_заповн.Клієнт'!L15 -> 0 | M98: ='cash flow прогноз_заповн.Клієнт'!M15 -> 0 | N98: =SUM(B98:M98) -> 0 | O98: ='cash flow прогноз_заповн.Клієнт'!O15 -> 0 | P98: ='cash flow прогноз_заповн.Клієнт'!P15 -> 0 | Q98: ='cash flow прогноз_заповн.Клієнт'!Q15 -> 0 | R98: ='cash flow прогноз_заповн.Клієнт'!R15 -> 0 | S98: ='cash flow прогноз_заповн.Клієнт'!S15 -> 0 | T98: ='cash flow прогноз_заповн.Клієнт'!T15 -> 0 | U98: ='cash flow прогноз_заповн.Клієнт'!U15 -> 0 | V98: ='cash flow прогноз_заповн.Клієнт'!V15 -> 0 | W98: ='cash flow прогноз_заповн.Клієнт'!W15 -> 0
A99: Витрати на ремонт (-) | B99: ='cash flow прогноз_заповн.Клієнт'!B16 -> 2479862 | C99: ='cash flow прогноз_заповн.Клієнт'!C16 -> 0 | D99: ='cash flow прогноз_заповн.Клієнт'!D16 -> 620060.74 | E99: ='cash flow прогноз_заповн.Клієнт'!E16 -> 0 | F99: ='cash flow прогноз_заповн.Клієнт'!F16 -> 0 | G99: ='cash flow прогноз_заповн.Клієнт'!G16 -> 851475.06 | H99: ='cash flow прогноз_заповн.Клієнт'!H16 -> 0 | I99: ='cash flow прогноз_заповн.Клієнт'!I16 -> 0 | J99: ='cash flow прогноз_заповн.Клієнт'!J16 -> 0 | K99: ='cash flow прогноз_заповн.Клієнт'!K16 -> 0 | L99: ='cash flow прогноз_заповн.Клієнт'!L16 -> 0 | M99: ='cash flow прогноз_заповн.Клієнт'!M16 -> 0 | N99: 3951397.8 | O99: ='cash flow прогноз_заповн.Клієнт'!O16 -> 0 | P99: ='cash flow прогноз_заповн.Клієнт'!P16 -> 0 | Q99: ='cash flow прогноз_заповн.Клієнт'!Q16 -> 0 | R99: ='cash flow прогноз_заповн.Клієнт'!R16 -> 0 | S99: ='cash flow прогноз_заповн.Клієнт'!S16 -> 0 | T99: ='cash flow прогноз_заповн.Клієнт'!T16 -> 0 | U99: ='cash flow прогноз_заповн.Клієнт'!U16 -> 0 | V99: ='cash flow прогноз_заповн.Клієнт'!V16 -> 0 | W99: ='cash flow прогноз_заповн.Клієнт'!W16 -> 0
A100: Компенсація з державного бюджету (+) | B100: ='cash flow прогноз_заповн.Клієнт'!B17 -> 0 | C100: ='cash flow прогноз_заповн.Клієнт'!C17 -> 0 | D100: ='cash flow прогноз_заповн.Клієнт'!D17 -> 0 | E100: ='cash flow прогноз_заповн.Клієнт'!E17 -> 0 | F100: ='cash flow прогноз_заповн.Клієнт'!F17 -> 0 | G100: ='cash flow прогноз_заповн.Клієнт'!G17 -> 1723283.42 | H100: ='cash flow прогноз_заповн.Клієнт'!H17 -> 0 | I100: ='cash flow прогноз_заповн.Клієнт'!I17 -> 0 | J100: ='cash flow прогноз_заповн.Клієнт'!J17 -> 0 | K100: ='cash flow прогноз_заповн.Клієнт'!K17 -> 0 | L100: ='cash flow прогноз_заповн.Клієнт'!L17 -> 446662.5 | M100: ='cash flow прогноз_заповн.Клієнт'!M17 -> 680000 | N100: 2849945.92 | O100: ='cash flow прогноз_заповн.Клієнт'!O17 -> 0 | P100: ='cash flow прогноз_заповн.Клієнт'!P17 -> 0 | Q100: ='cash flow прогноз_заповн.Клієнт'!Q17 -> 0 | R100: ='cash flow прогноз_заповн.Клієнт'!R17 -> 0 | S100: ='cash flow прогноз_заповн.Клієнт'!S17 -> 0 | T100: ='cash flow прогноз_заповн.Клієнт'!T17 -> 0 | U100: ='cash flow прогноз_заповн.Клієнт'!U17 -> 0 | V100: ='cash flow прогноз_заповн.Клієнт'!V17 -> 0 | W100: ='cash flow прогноз_заповн.Клієнт'!W17 -> 0
A101: Компенсація з регіонального бюджету (+) | B101: ='cash flow прогноз_заповн.Клієнт'!B18 -> 0 | C101: ='cash flow прогноз_заповн.Клієнт'!C18 -> 33582 | D101: ='cash flow прогноз_заповн.Клієнт'!D18 -> 34702 | E101: ='cash flow прогноз_заповн.Клієнт'!E18 -> 33582 | F101: ='cash flow прогноз_заповн.Клієнт'!F18 -> 34702 | G101: ='cash flow прогноз_заповн.Клієнт'!G18 -> 34702 | H101: ='cash flow прогноз_заповн.Клієнт'!H18 -> 33582 | I101: ='cash flow прогноз_заповн.Клієнт'!I18 -> 34702 | J101: ='cash flow прогноз_заповн.Клієнт'!J18 -> 33582 | K101: ='cash flow прогноз_заповн.Клієнт'!K18 -> 34702 | L101: ='cash flow прогноз_заповн.Клієнт'!L18 -> 24702 | M101: ='cash flow прогноз_заповн.Клієнт'!M18 -> 341336.27 | N101: 673876.27 | O101: ='cash flow прогноз_заповн.Клієнт'!O18 -> 0 | P101: ='cash flow прогноз_заповн.Клієнт'!P18 -> 0 | Q101: ='cash flow прогноз_заповн.Клієнт'!Q18 -> 0 | R101: ='cash flow прогноз_заповн.Клієнт'!R18 -> 0 | S101: ='cash flow прогноз_заповн.Клієнт'!S18 -> 0 | T101: ='cash flow прогноз_заповн.Клієнт'!T18 -> 0 | U101: ='cash flow прогноз_заповн.Клієнт'!U18 -> 0 | V101: ='cash flow прогноз_заповн.Клієнт'!V18 -> 0 | W101: ='cash flow прогноз_заповн.Клієнт'!W18 -> 0
A102: Погашення тіла кредиту (-) | B102: =IF($E$15=$AJ$2,'Класична (після компенсації)'!$E20+IF($E$23=1,$E$22),'ануїтет (після компенсації)'!H11+IF($E$23=1,$E$22)) -> 0 | C102: =IF($E$15=$AJ$2,'Класична (після компенсації)'!$E21+IF($E$23=2,$E$22),'ануїтет (після компенсації)'!H12+IF($E$23=2,$E$22)) -> 0 | D102: =IF($E$15=$AJ$2,'Класична (після компенсації)'!$E22+IF($E$23=3,$E$22),'ануїтет (після компенсації)'!H13+IF($E$23=3,$E$22)) -> 0 | E102: =IF($E$15=$AJ$2,'Класична (після компенсації)'!$E23+IF($E$23=4,$E$22),'ануїтет (після компенсації)'!H14+IF($E$23=4,$E$22)) -> 0 | F102: =IF($E$15=$AJ$2,'Класична (після компенсації)'!$E24+IF($E$23=5,$E$22),'ануїтет (після компенсації)'!H15+IF($E$23=5,$E$22)) -> 0 | G102: =IF($E$15=$AJ$2,'Класична (після компенсації)'!$E25+IF($E$23=6,$E$22),'ануїтет (після компенсації)'!H16+IF($E$23=6,$E$22)) -> 0 | H102: =IF($E$15=$AJ$2,'Класична (після компенсації)'!$E26+IF($E$23=7,$E$22),'ануїтет (після компенсації)'!H17+IF($E$23=7,$E$22)) -> 0 | I102: =IF($E$15=$AJ$2,'Класична (після компенсації)'!$E27+IF($E$23=8,$E$22),'ануїтет (після компенсації)'!H18+IF($E$23=8,$E$22)) -> 0 | J102: =IF($E$15=$AJ$2,'Класична (після компенсації)'!$E28+IF($E$23=9,$E$22),'ануїтет (після компенсації)'!H19+IF($E$23=9,$E$22)) -> 0 | K102: =IF($E$15=$AJ$2,'Класична (після компенсації)'!$E29+IF($E$23=10,$E$22),'ануїтет (після компенсації)'!H20+IF($E$23=10,$E$22)) -> 0 | L102: =IF($E$15=$AJ$2,'Класична (після компенсації)'!$E30+IF($E$23=11,$E$22),'ануїтет (після компенсації)'!H21+IF($E$23=11,$E$22)) -> 0 | M102: =IF($E$15=$AJ$2,'Класична (після компенсації)'!$E31+IF($E$23=12,$E$22),'ануїтет (після компенсації)'!H22+IF($E$23=12,$E$22)) -> 0 | N102: =SUM(B102:M102) -> 0 | O102: =IF($E$15=$AJ$2,SUMIFS('Класична (після компенсації)'!$E$32:$E$153,'Класична (після компенсації)'!$B$32:$B$153,">12",'Класична (після компенсації)'!$B$32:$B$153,"<25")+IF(AND($E$23>12,$E$23<25),$E$22),7777) -> 333333.3333 | P102: =IF($E$15=$AJ$2,SUMIFS('Класична (після компенсації)'!$E$32:$E$153,'Класична (після компенсації)'!$B$32:$B$153,">24",'Класична (після компенсації)'!$B$32:$B$153,"<37")+IF(AND($E$23>24,$E$23<37),$E$22),7777) -> 333333.3333 | Q102: =IF($E$15=$AJ$2,SUMIFS('Класична (після компенсації)'!$E$32:$E$153,'Класична (після компенсації)'!$B$32:$B$153,">36",'Класична (після компенсації)'!$B$32:$B$153,"<49")+IF(AND($E$23>36,$E$23<49),$E$22),7777) -> 333333.3333 | R102: =IF($E$15=$AJ$2,SUMIFS('Класична (після компенсації)'!$E$32:$E$153,'Класична (після компенсації)'!$B$32:$B$153,">48",'Класична (після компенсації)'!$B$32:$B$153,"<61")+IF(AND($E$23>48,$E$23<61),$E$22),7777) -> 333333.3333 | S102: =IF($E$15=$AJ$2,SUMIFS('Класична (після компенсації)'!$E$32:$E$153,'Класична (після компенсації)'!$B$32:$B$153,">60",'Класична (після компенсації)'!$B$32:$B$153,"<73")+IF(AND($E$23>60,$E$23<73),$E$22),7777) -> 333333.3333 | T102: =IF($E$15=$AJ$2,SUMIFS('Класична (після компенсації)'!$E$32:$E$153,'Класична (після компенсації)'!$B$32:$B$153,">72",'Класична (після компенсації)'!$B$32:$B$153,"<85")+IF(AND($E$23>72,$E$23<85),$E$22),7777) -> 333333.3333 | U102: =IF($E$15=$AJ$2,SUMIFS('Класична (після компенсації)'!$E$32:$E$153,'Класична (після компенсації)'!$B$32:$B$153,">84",'Класична (після компенсації)'!$B$32:$B$153,"<97")+IF(AND($E$23>84,$E$23<97),$E$22),7777) -> 333333.3333 | V102: =IF($E$15=$AJ$2,SUMIFS('Класична (після компенсації)'!$E$32:$E$153,'Класична (після компенсації)'!$B$32:$B$153,">96",'Класична (після компенсації)'!$B$32:$B$153,"<109")+IF(AND($E$23>96,$E$23<109),$E$22),7777) -> 333333.3333 | W102: =IF($E$15=$AJ$2,SUMIFS('Класична (після компенсації)'!$E$32:$E$153,'Класична (після компенсації)'!$B$32:$B$153,">108",'Класична (після компенсації)'!$B$32:$B$153,"<121")+IF(AND($E$23>108,$E$23<121),$E$22),7777) -> 333333.3333
A103: Погашення відсотків (-) | B103: =IF($E$15=$AJ$2,'Класична (після компенсації)'!$F20,'ануїтет (після компенсації)'!G11) -> 27500 | C103: =IF($E$15=$AJ$2,'Класична (після компенсації)'!$F21,7777) -> 28416.66667 | D103: =IF($E$15=$AJ$2,'Класична (після компенсації)'!$F22,7777) -> 27500 | E103: =IF($E$15=$AJ$2,'Класична (після компенсації)'!$F23,7777) -> 28416.66667 | F103: =IF($E$15=$AJ$2,'Класична (після компенсації)'!$F24,7777) -> 28416.66667 | G103: =IF($E$15=$AJ$2,'Класична (після компенсації)'!$F25,7777) -> 25666.66667 | H103: =IF($E$15=$AJ$2,'Класична (після компенсації)'!$F26,7777) -> 28416.66667 | I103: =IF($E$15=$AJ$2,'Класична (після компенсації)'!$F27,7777) -> 27500 | J103: =IF($E$15=$AJ$2,'Класична (після компенсації)'!$F28,7777) -> 28416.66667 | K103: =IF($E$15=$AJ$2,'Класична (після компенсації)'!$F29,7777) -> 27500 | L103: =IF($E$15=$AJ$2,'Класична (після компенсації)'!$F30,7777) -> 28416.66667 | M103: =IF($E$15=$AJ$2,'Класична (після компенсації)'!$F31,7777) -> 28416.66667 | N103: =SUM(B103:M103) -> 334583.3333 | O103: =IF($E$15=$AJ$2,SUMIFS('Класична (після компенсації)'!$F$32:$F$153,'Класична (після компенсації)'!$B$32:$B$153,">12",'Класична (після компенсації)'!$B$32:$B$153,"<25"),7777) -> 313194.4444 | P103: =IF($E$15=$AJ$2,SUMIFS('Класична (після компенсації)'!$F$32:$F$153,'Класична (після компенсації)'!$B$32:$B$153,">24",'Класична (після компенсації)'!$B$32:$B$153,"<37"),7777) -> 276527.7778 | Q103: =IF($E$15=$AJ$2,SUMIFS('Класична (після компенсації)'!$F$32:$F$153,'Класична (після компенсації)'!$B$32:$B$153,">36",'Класична (після компенсації)'!$B$32:$B$153,"<49"),7777) -> 239861.1111 | R103: =IF($E$15=$AJ$2,SUMIFS('Класична (після компенсації)'!$F$32:$F$153,'Класична (після компенсації)'!$B$32:$B$153,">48",'Класична (після компенсації)'!$B$32:$B$153,"<61"),7777) -> 203194.4444 | S103: =IF($E$15=$AJ$2,SUMIFS('Класична (після компенсації)'!$F$32:$F$153,'Класична (після компенсації)'!$B$32:$B$153,">60",'Класична (після компенсації)'!$B$32:$B$153,"<73"),7777) -> 166527.7778 | T103: =IF($E$15=$AJ$2,SUMIFS('Класична (після компенсації)'!$F$32:$F$153,'Класична (після компенсації)'!$B$32:$B$153,">72",'Класична (після компенсації)'!$B$32:$B$153,"<85"),7777) -> 129861.1111 | U103: =IF($E$15=$AJ$2,SUMIFS('Класична (після компенсації)'!$F$32:$F$153,'Класична (після компенсації)'!$B$32:$B$153,">84",'Класична (після компенсації)'!$B$32:$B$153,"<97"),7777) -> 93194.44444 | V103: =IF($E$15=$AJ$2,SUMIFS('Класична (після компенсації)'!$F$32:$F$153,'Класична (після компенсації)'!$B$32:$B$153,">96",'Класична (після компенсації)'!$B$32:$B$153,"<109"),7777) -> 56527.77778 | W103: =IF($E$15=$AJ$2,SUMIFS('Класична (після компенсації)'!$F$32:$F$153,'Класична (після компенсації)'!$B$32:$B$153,">108",'Класична (після компенсації)'!$B$32:$B$153,"<121"),7777) -> 19861.11111
A104: Погашення комісій (-) | B104: =IF($E$15=$AJ$2,SUM('Класична (після компенсації)'!G20:M20),7777) -> 0 | C104: =IF($E$15=$AJ$2,SUM('Класична (після компенсації)'!G21:M21),7777) -> 0 | D104: =IF($E$15=$AJ$2,SUM('Класична (після компенсації)'!G22:M22),7777) -> 0 | E104: =IF($E$15=$AJ$2,SUM('Класична (після компенсації)'!G23:M23),7777) -> 0 | F104: =IF($E$15=$AJ$2,SUM('Класична (після компенсації)'!G24:M24),7777) -> 0 | G104: =IF($E$15=$AJ$2,SUM('Класична (після компенсації)'!G25:M25),7777) -> 0 | H104: =IF($E$15=$AJ$2,SUM('Класична (після компенсації)'!G26:M26),7777) -> 0 | I104: =IF($E$15=$AJ$2,SUM('Класична (після компенсації)'!G27:M27),7777) -> 0 | J104: =IF($E$15=$AJ$2,SUM('Класична (після компенсації)'!G28:M28),7777) -> 0 | K104: =IF($E$15=$AJ$2,SUM('Класична (після компенсації)'!G29:M29),7777) -> 0 | L104: =IF($E$15=$AJ$2,SUM('Класична (після компенсації)'!G30:M30),7777) -> 0 | M104: =IF($E$15=$AJ$2,SUM('Класична (після компенсації)'!G31:M31),7777) -> 0 | N104: =SUM(B104:M104) -> 0 | O104: =IF($E$15=$AJ$2,SUM('Класична (після компенсації)'!G32:M43),7777) -> 0 | P104: =IF($E$15=$AJ$2,SUM('Класична (після компенсації)'!G44:M55),7777) -> 0 | Q104: =IF($E$15=$AJ$2,SUM('Класична (після компенсації)'!G56:M67),7777) -> 0 | R104: =IF($E$15=$AJ$2,SUM('Класична (після компенсації)'!G68:M79),7777) -> 0 | S104: =IF($E$15=$AJ$2,SUM('Класична (після компенсації)'!G80:M91),7777) -> 0 | T104: =IF($E$15=$AJ$2,SUM('Класична (після компенсації)'!G92:M103),7777) -> 0 | U104: =IF($E$15=$AJ$2,SUM('Класична (після компенсації)'!G104:M115),7777) -> 0 | V104: =IF($E$15=$AJ$2,SUM('Класична (після компенсації)'!G116:M127),7777) -> 0 | W104: =IF($E$15=$AJ$2,SUM('Класична (після компенсації)'!G128:M139),7777) -> 0
A105: Чистий грошовий потік по проекту фінансування | B105: =B98-B99+B100+B101-B102-B103-B104 -> -2507362 | C105: =C98-C99+C100+C101-C102-C103-C104 -> 5165.333333 | D105: -612858.74 | E105: 5165.333333 | F105: 6285.333333 | G105: 880843.6933 | H105: 5165.333333 | I105: 7202 | J105: 5165.333333 | K105: 7202 | L105: 442947.8333 | M105: 992919.6033 | N105: -762158.9433 | O105: =O98-O99+O100+O101-O102-O103-O104 -> -646527.7778 | P105: =P98-P99+P100+P101-P102-P103-P104 -> -609861.1111 | Q105: =Q98-Q99+Q100+Q101-Q102-Q103-Q104 -> -573194.4444 | R105: =R98-R99+R100+R101-R102-R103-R104 -> -536527.7778 | S105: =S98-S99+S100+S101-S102-S103-S104 -> -499861.1111 | T105: =T98-T99+T100+T101-T102-T103-T104 -> -463194.4444 | U105: =U98-U99+U100+U101-U102-U103-U104 -> -426527.7778 | V105: =V98-V99+V100+V101-V102-V103-V104 -> -389861.1111 | W105: =W98-W99+W100+W101-W102-W103-W104 -> -353194.4444
A106: Залишок коштів на кін. міс. | B106: =B85+B97+B105 -> 649519 | C106: =C85+C97+C105 -> 704849.3333 | D106: 142155.5933 | E106: 197485.9267 | F106: 253936.26 | G106: 1184944.953 | H106: 1240075.287 | I106: 1297242.287 | J106: 1352372.62 | K106: 1409539.62 | L106: 1902452.453 | M106: 2945537.057 | O106: =O97+O105+O85 -> 2347581.279 | P106: 1786292.168 | Q106: 1822958.834 | R106: 1335003.057 | S106: 883713.9456 | T106: 469091.5011 | U106: 91135.72333 | V106: =V97+V105+V85 -> -250153.3878 | W106: -554775.8322
A109: _____________________ | C109: _______________________ | F109: _______________________
A110: дата складення оцінки | C110: виконавець (підпис) | F110: виконавець (ПІБ)

Sheet cash flow істор_заповн.Клієнт (hidden)
A1: ="Звіт про виконання фінансового плану та рух грошових коштів за останні 12 місяців "&Оцінка!E9 -> Звіт про виконання фінансового плану та рух грошових коштів за останні 12 місяців 0
B2: =EDATE(C2,-1) -> 2020-04-28 | C2: 2020-05-28 | D2: 2020-06-28 | E2: 2020-07-28 | F2: 2020-08-28 | G2: 2020-09-28 | H2: 2020-10-28 | I2: 2020-11-28 | J2: 2020-12-28 | K2: 2021-01-28 | L2: 2021-02-28 | M2: 2021-03-31 | N2: Всього за рік
A3: Залишок коштів на початок місяця | B3: =1127.01+50158.05 -> 51285.06 | C3: =B17 -> 52491.23 | D3: 53809.31 | E3: 53869.95 | F3: 67482.41 | G3: 64401.25 | H3: 63887.19 | I3: 53343.84 | J3: 53773.22 | K3: 45374.36 | L3: 26445.46 | M3: 10429.73
A4: ПЛАН надходжень остані 12 міс. | B4: 20326.49 | C4: 20326.49 | D4: 20326.49 | E4: 20326.49 | F4: 20326.49 | G4: 20326.49 | H4: 22193.35 | I4: 22193.35 | J4: 22193.35 | K4: 22193.35 | L4: 22193.35 | M4: 22193.35 | N4: =SUM(B4:M4) -> 255119.04
A5: Надходження за останні 12 міс., в т.ч. | B5: =SUM(B6:B9) -> 21131.93 | C5: =SUM(C6:C9) -> 15771.44 | D5: 18508 | E5: 35924.82 | F5: 20722.52 | G5: 22552.28 | H5: 18274.74 | I5: 29144.65 | J5: 38146.69 | K5: 16829.64 | L5: 19465.82 | M5: 19574.31 | N5: =SUM(B5:M5) -> 276046.84
A6: Членські внески на утримання будинку | B6: =19690.54-B7 -> 19679.82 | C6: =15683-C7 -> 15435.13 | D6: 12667.73 | E6: 32926.13 | F6: 20356.13 | G6: 22185.89 | H6: =16406.45-H7 -> 16267.51 | I6: =25803.26-I7 -> 25394.58 | J6: =37808.25-J7 -> 37537.24 | K6: =14538.25-K7 -> 14295.96 | L6: =18534.17-L7 -> 18065.54 | M6: 16731.54 | N6: 251543.2
A7: Субсидії за квартплату та інші компенсації держави для пільгових категорій населення | B7: 10.72 | C7: 247.87 | H7: 138.94 | I7: 408.68 | J7: 271.01 | K7: 242.29 | L7: 468.63 | N7: 1788.14
A8: Оплата провайдерів за використання будинкових шахт | N8: 0
A9: Інше | B9: 1441.39 | C9: 88.44 | D9: 5840.27 | E9: 2998.69 | F9: 366.39 | G9: 366.39 | H9: 1868.29 | I9: 3341.39 | J9: 338.44 | K9: 2291.39 | L9: 931.65 | M9: 2842.77 | N9: 22715.5
A10: % оплати тарифу | B10: =IFERROR((B6+B7+B8)/B4,) -> 0.9687132407 | C10: =IFERROR((C6+C7+C8)/C4,) -> 0.7715547544 | D10: 0.6232128616 | E10: 1.619863046 | F10: 1.001458196 | G10: 1.091476689 | H10: 0.7392507215 | I10: 1.162657282 | J10: 1.703584632 | K10: 0.6550723528 | L10: 0.8351226831 | M10: 0.753898803 | N10: 0.9929926829
A11: Розрахунки з постачальниками послуг | D11: 2280 | E11: 2812 | F11: 2812 | G11: 2812 | H11: =2812+2812+2812 -> 8436 | I11: =2812+2812 -> 5624 | J11: =6782.62+2812 -> 9594.62 | L11: 2300 | N11: =SUM(B11:M11) -> 36670.62
A12: Бухгалтерські послуги + паспортний облік | N12: 0
A13: Забезпечення функціонування програмного забезпечення та офісної техніки | N13: 0
A14: Витрати на РКО в банку | B14: 101 | C14: 99 | D14: 99 | E14: 139 | F14: 129 | G14: 119 | H14: 99 | I14: 121 | J14: =119+90 -> 209 | K14: =127+142.26 -> 269.26 | L14: =125+150 -> 275 | M14: =119+140 -> 259 | N14: 1918.26
A15: Інші витрати | B15: =10498.84+9325.92 -> 19824.76 | C15: =5028.44+9325.92 -> 14354.36 | D15: =13042.44+3025.92 -> 16068.36 | E15: =10035.44+9325.92 -> 19361.36 | F15: =10035.44+10827.24 -> 20862.68 | G15: =10809.42+9325.92 -> 20135.34 | H15: =10035.44+10247.65 -> 20283.09 | I15: =12722.62+10247.65 -> 22970.27 | J15: =14224.56+11249.87+11267.5 -> 36741.93 | K15: =24561.63+680+10247.65 -> 35489.28 | L15: =11156.75+13250.3+8499.5 -> 32906.55 | M15: =12704.7+10247.65 -> 22952.35 | N15: 281950.33
A16: Чистий грошовий потік | B16: =B5-B11-B12-B13-B14-B15 -> 1206.17 | C16: =C5-C11-C12-C13-C14-C15 -> 1318.08 | D16: 60.64 | E16: 13612.46 | F16: -3081.16 | G16: -514.06 | H16: -10543.35 | I16: 429.38 | J16: -8398.86 | K16: -18928.9 | L16: -16015.73 | M16: -3637.04 | N16: -44492.37
A17: Залишок коштів на кін. міс. | B17: =B3+B16 -> 52491.23 | C17: =C3+C16 -> 53809.31 | D17: =D3+D16 -> 53869.95 | E17: 67482.41 | F17: 64401.25 | G17: 63887.19 | H17: 53343.84 | I17: 53773.22 | J17: 45374.36 | K17: 26445.46 | L17: 10429.73 | M17: 6792.69
A19: Додатковий коментар (при необхідності)
A22: "____" _______________ _____ рік | F22: ____________________________ | M22: _______________
G23: М.П. | M23: (ПІБ)

Sheet ануїтет (після компенсації) (hidden)
A2: Пропонована ануїтетна схема погашення кредиту
B4: Сума кредиту (у вал.кредиту) | G4: =Оцінка!E11-Оцінка!E22 -> 3000000 | N4: Smin | O4: =G4/G6 -> 25000 | P4: 0 | Q4: =ROUND(P4,4) -> 0
B5: Відсоткова ставка | G5: =Оцінка!E14 -> 0.11 | N5: Smax | O5: =O4+(G4*31*G5)/36000 -> 25284.16667 | P5: 0 | Q5: =ROUND(P5,4) -> 0
B6: Строк до кінця кредиту після отримання компенсації (міс) | G6: =Оцінка!E12-Оцінка!E23 -> 120 | N6: SA | O6: =(O4+O5)/2 -> 25142.08333 | P6: 0 | Q6: 0
B7: Дата кредиту | G7: =EDATE(Оцінка!E2,6) -> 2022-03-01
B9: Графік погашення
B10: День | C10: Початок періоду | D10: Кінець періоду | E10: Сума ануїтетного платежу | G10: Відсотки за кредит | H10: Погашення тіла кредиту | I10: Залишок на початок періоду | K10: Залишок на кінець періоду | O10: =MATCH(0,K11:K130,0) ->  | P10: =ROUND(Q4,3) -> 0
B11: 1 | C11: =$G$7 -> 2022-03-01 | D11: =IF(DAY(C11)<15,EDATE(C11,1)-DAY(EDATE(C11,1))+1,EDATE(C11,2)-DAY(EDATE(C11,1))+1) -> 2022-04-01 | E11: =G11+H11 -> 41325.00339 | G11: =IF(B11>$G$6,0,IPMT($G$5/12,B11,$G$6,-$G$4)) -> 27500 | H11: =IF(B11>$G$6,0,PPMT($G$5/12,B11,$G$6,-$G$4)) -> 13825.00339 | I11: =G4 -> 3000000 | K11: =I11-H11 -> 2986174.997 | O11: =INDEX(B11:L130,G6,7) -> 40949.63176 | P11: =ROUND(Q5,3) -> 0
B12: 2 | C12: =D11+1 -> 2022-04-02 | D12: =EDATE(C12,1)-1 -> 2022-05-01 | E12: 41325.00339 | G12: =IF(B12>$G$6,0,IPMT($G$5/12,B12,$G$6,-$G$4)) -> 27373.2708 | H12: =IF(B12>$G$6,0,PPMT($G$5/12,B12,$G$6,-$G$4)) -> 13951.73259 | I12: =K11 -> 2986174.997 | K12: =I12-H12 -> 2972223.264 | P12: =ROUND(E11,0) -> 41325
B13: 3 | C13: 2022-05-02 | D13: 2022-06-01 | E13: 41325.00339 | G13: 27245.37992 | H13: 14079.62347 | I13: =K12 -> 2972223.264 | K13: 2958143.641
B14: 4 | C14: 2022-06-02 | D14: 2022-07-01 | E14: 41325.00339 | G14: 27116.31671 | H14: 14208.68668 | I14: 2958143.641 | K14: 2943934.954
B15: 5 | C15: 2022-07-02 | D15: 2022-08-01 | E15: 41325.00339 | G15: 26986.07041 | H15: 14338.93298 | I15: 2943934.954 | K15: 2929596.021
B16: 6 | C16: 2022-08-02 | D16: 2022-09-01 | E16: 41325.00339 | G16: 26854.63019 | H16: 14470.3732 | I16: 2929596.021 | K16: 2915125.648
B17: 7 | C17: 2022-09-02 | D17: 2022-10-01 | E17: 41325.00339 | G17: 26721.9851 | H17: 14603.01828 | I17: 2915125.648 | K17: 2900522.629
B18: 8 | C18: 2022-10-02 | D18: 2022-11-01 | E18: 41325.00339 | G18: 26588.1241 | H18: 14736.87928 | I18: 2900522.629 | K18: 2885785.75
B19: 9 | C19: 2022-11-02 | D19: 2022-12-01 | E19: 41325.00339 | G19: 26453.03604 | H19: 14871.96734 | I19: 2885785.75 | K19: 2870913.783
B20: 10 | C20: 2022-12-02 | D20: 2023-01-01 | E20: 41325.00339 | G20: 26316.70968 | H20: 15008.29371 | I20: 2870913.783 | K20: 2855905.489
B21: 11 | C21: 2023-01-02 | D21: 2023-02-01 | E21: 41325.00339 | G21: 26179.13365 | H21: 15145.86974 | I21: 2855905.489 | K21: 2840759.619
B22: 12 | C22: 2023-02-02 | D22: 2023-03-01 | E22: 41325.00339 | G22: 26040.29651 | H22: 15284.70688 | I22: 2840759.619 | K22: 2825474.912
B23: 13 | C23: 2023-03-02 | D23: 2023-04-01 | E23: 41325.00339 | G23: 25900.1867 | H23: 15424.81669 | I23: 2825474.912 | K23: 2810050.096
B24: 14 | C24: 2023-04-02 | D24: 2023-05-01 | E24: 41325.00339 | G24: 25758.79254 | H24: 15566.21084 | I24: 2810050.096 | K24: 2794483.885
B25: 15 | C25: 2023-05-02 | D25: 2023-06-01 | E25: 41325.00339 | G25: 25616.10228 | H25: 15708.90111 | I25: 2794483.885 | K25: 2778774.984
B26: 16 | C26: 2023-06-02 | D26: 2023-07-01 | E26: 41325.00339 | G26: 25472.10402 | H26: 15852.89937 | I26: 2778774.984 | K26: 2762922.084
B27: 17 | C27: 2023-07-02 | D27: 2023-08-01 | E27: 41325.00339 | G27: 25326.78577 | H27: 15998.21761 | I27: 2762922.084 | K27: 2746923.867
B28: 18 | C28: 2023-08-02 | D28: 2023-09-01 | E28: 41325.00339 | G28: 25180.13545 | H28: 16144.86794 | I28: 2746923.867 | K28: 2730778.999
B29: 19 | C29: 2023-09-02 | D29: 2023-10-01 | E29: 41325.00339 | G29: 25032.14082 | H29: 16292.86256 | I29: 2730778.999 | K29: 2714486.136
B30: 20 | C30: 2023-10-02 | D30: 2023-11-01 | E30: 41325.00339 | G30: 24882.78958 | H30: 16442.2138 | I30: 2714486.136 | K30: 2698043.923
B31: 21 | C31: 2023-11-02 | D31: 2023-12-01 | E31: 41325.00339 | G31: 24732.06929 | H31: 16592.9341 | I31: 2698043.923 | K31: 2681450.988
B32: 22 | C32: 2023-12-02 | D32: 2024-01-01 | E32: 41325.00339 | G32: 24579.96739 | H32: 16745.03599 | I32: 2681450.988 | K32: 2664705.952
B33: 23 | C33: 2024-01-02 | D33: 2024-02-01 | E33: 41325.00339 | G33: 24426.47123 | H33: 16898.53216 | I33: 2664705.952 | K33: 2647807.42
B34: 24 | C34: 2024-02-02 | D34: 2024-03-01 | E34: 41325.00339 | G34: 24271.56802 | H34: 17053.43537 | I34: 2647807.42 | K34: 2630753.985
B35: 25 | C35: 2024-03-02 | D35: 2024-04-01 | E35: 41325.00339 | G35: 24115.24486 | H35: 17209.75853 | I35: 2630753.985 | K35: 2613544.226
B36: 26 | C36: 2024-04-02 | D36: 2024-05-01 | E36: 41325.00339 | G36: 23957.48874 | H36: 17367.51465 | I36: 2613544.226 | K36: 2596176.712
B37: 27 | C37: 2024-05-02 | D37: 2024-06-01 | E37: 41325.00339 | G37: 23798.28652 | H37: 17526.71686 | I37: 2596176.712 | K37: 2578649.995
B38: 28 | C38: 2024-06-02 | D38: 2024-07-01 | E38: 41325.00339 | G38: 23637.62495 | H38: 17687.37843 | I38: 2578649.995 | K38: 2560962.616
B39: 29 | C39: 2024-07-02 | D39: 2024-08-01 | E39: 41325.00339 | G39: 23475.49065 | H39: 17849.51274 | I39: 2560962.616 | K39: 2543113.104
B40: 30 | C40: 2024-08-02 | D40: 2024-09-01 | E40: 41325.00339 | G40: 23311.87012 | H40: 18013.13327 | I40: 2543113.104 | K40: 2525099.97
B41: 31 | C41: 2024-09-02 | D41: 2024-10-01 | E41: 41325.00339 | G41: 23146.74973 | H41: 18178.25366 | I41: 2525099.97 | K41: 2506921.717
B42: 32 | C42: 2024-10-02 | D42: 2024-11-01 | E42: 41325.00339 | G42: 22980.11574 | H42: 18344.88765 | I42: 2506921.717 | K42: 2488576.829
B43: 33 | C43: 2024-11-02 | D43: 2024-12-01 | E43: 41325.00339 | G43: 22811.95427 | H43: 18513.04912 | I43: 2488576.829 | K43: 2470063.78
B44: 34 | C44: 2024-12-02 | D44: 2025-01-01 | E44: 41325.00339 | G44: 22642.25132 | H44: 18682.75207 | I44: 2470063.78 | K44: 2451381.028
B45: 35 | C45: 2025-01-02 | D45: 2025-02-01 | E45: 41325.00339 | G45: 22470.99276 | H45: 18854.01063 | I45: 2451381.028 | K45: 2432527.017
B46: 36 | C46: 2025-02-02 | D46: 2025-03-01 | E46: 41325.00339 | G46: 22298.16433 | H46: 19026.83906 | I46: 2432527.017 | K46: 2413500.178
B47: 37 | C47: 2025-03-02 | D47: 2025-04-01 | E47: 41325.00339 | G47: 22123.75163 | H47: 19201.25175 | I47: 2413500.178 | K47: 2394298.926
B48: 38 | C48: 2025-04-02 | D48: 2025-05-01 | E48: 41325.00339 | G48: 21947.74016 | H48: 19377.26323 | I48: 2394298.926 | K48: 2374921.663
B49: 39 | C49: 2025-05-02 | D49: 2025-06-01 | E49: 41325.00339 | G49: 21770.11525 | H49: 19554.88814 | I49: 2374921.663 | K49: 2355366.775
B50: 40 | C50: 2025-06-02 | D50: 2025-07-01 | E50: 41325.00339 | G50: 21590.86211 | H50: 19734.14128 | I50: 2355366.775 | K50: 2335632.634
B51: 41 | C51: 2025-07-02 | D51: 2025-08-01 | E51: 41325.00339 | G51: 21409.96581 | H51: 19915.03758 | I51: 2335632.634 | K51: 2315717.596
B52: 42 | C52: 2025-08-02 | D52: 2025-09-01 | E52: 41325.00339 | G52: 21227.4113 | H52: 20097.59209 | I52: 2315717.596 | K52: 2295620.004
B53: 43 | C53: 2025-09-02 | D53: 2025-10-01 | E53: 41325.00339 | G53: 21043.18337 | H53: 20281.82002 | I53: 2295620.004 | K53: 2275338.184
B54: 44 | C54: 2025-10-02 | D54: 2025-11-01 | E54: 41325.00339 | G54: 20857.26669 | H54: 20467.7367 | I54: 2275338.184 | K54: 2254870.447
B55: 45 | C55: 2025-11-02 | D55: 2025-12-01 | E55: 41325.00339 | G55: 20669.64577 | H55: 20655.35762 | I55: 2254870.447 | K55: 2234215.09
B56: 46 | C56: 2025-12-02 | D56: 2026-01-01 | E56: 41325.00339 | G56: 20480.30499 | H56: 20844.6984 | I56: 2234215.09 | K56: 2213370.391
B57: 47 | C57: 2026-01-02 | D57: 2026-02-01 | E57: 41325.00339 | G57: 20289.22859 | H57: 21035.7748 | I57: 2213370.391 | K57: 2192334.617
B58: 48 | C58: 2026-02-02 | D58: 2026-03-01 | E58: 41325.00339 | G58: 20096.40065 | H58: 21228.60274 | I58: 2192334.617 | K58: 2171106.014
B59: 49 | C59: 2026-03-02 | D59: 2026-04-01 | E59: 41325.00339 | G59: 19901.80513 | H59: 21423.19826 | I59: 2171106.014 | K59: 2149682.816
B60: 50 | C60: 2026-04-02 | D60: 2026-05-01 | E60: 41325.00339 | G60: 19705.42581 | H60: 21619.57758 | I60: 2149682.816 | K60: 2128063.238
B61: 51 | C61: 2026-05-02 | D61: 2026-06-01 | E61: 41325.00339 | G61: 19507.24635 | H61: 21817.75704 | I61: 2128063.238 | K61: 2106245.481
B62: 52 | C62: 2026-06-02 | D62: 2026-07-01 | E62: 41325.00339 | G62: 19307.25024 | H62: 22017.75314 | I62: 2106245.481 | K62: 2084227.728
B63: 53 | C63: 2026-07-02 | D63: 2026-08-01 | E63: 41325.00339 | G63: 19105.42084 | H63: 22219.58255 | I63: 2084227.728 | K63: 2062008.145
B64: 54 | C64: 2026-08-02 | D64: 2026-09-01 | E64: 41325.00339 | G64: 18901.74133 | H64: 22423.26206 | I64: 2062008.145 | K64: 2039584.883
B65: 55 | C65: 2026-09-02 | D65: 2026-10-01 | E65: 41325.00339 | G65: 18696.19476 | H65: 22628.80862 | I65: 2039584.883 | K65: 2016956.075
B66: 56 | C66: 2026-10-02 | D66: 2026-11-01 | E66: 41325.00339 | G66: 18488.76402 | H66: 22836.23937 | I66: 2016956.075 | K66: 1994119.835
B67: 57 | C67: 2026-11-02 | D67: 2026-12-01 | E67: 41325.00339 | G67: 18279.43182 | H67: 23045.57156 | I67: 1994119.835 | K67: 1971074.264
B68: 58 | C68: 2026-12-02 | D68: 2027-01-01 | E68: 41325.00339 | G68: 18068.18075 | H68: 23256.82264 | I68: 1971074.264 | K68: 1947817.441
B69: 59 | C69: 2027-01-02 | D69: 2027-02-01 | E69: 41325.00339 | G69: 17854.99321 | H69: 23470.01018 | I69: 1947817.441 | K69: 1924347.431
B70: 60 | C70: 2027-02-02 | D70: 2027-03-01 | E70: 41325.00339 | G70: 17639.85145 | H70: 23685.15194 | I70: 1924347.431 | K70: 1900662.279
B71: 61 | C71: 2027-03-02 | D71: 2027-04-01 | E71: 41325.00339 | G71: 17422.73756 | H71: 23902.26583 | I71: 1900662.279 | K71: 1876760.013
B72: 62 | C72: 2027-04-02 | D72: 2027-05-01 | E72: 41325.00339 | G72: 17203.63345 | H72: 24121.36993 | I72: 1876760.013 | K72: 1852638.643
B73: 63 | C73: 2027-05-02 | D73: 2027-06-01 | E73: 41325.00339 | G73: 16982.5209 | H73: 24342.48249 | I73: 1852638.643 | K73: 1828296.161
B74: 64 | C74: 2027-06-02 | D74: 2027-07-01 | E74: 41325.00339 | G74: 16759.38147 | H74: 24565.62191 | I74: 1828296.161 | K74: 1803730.539
B75: 65 | C75: 2027-07-02 | D75: 2027-08-01 | E75: =G75+H75 -> 41325.00339 | G75: 16534.19661 | H75: 24790.80678 | I75: 1803730.539 | K75: 1778939.732
B76: 66 | C76: =D75+1 -> 2027-08-02 | D76: =EDATE(C76,1)-1 -> 2027-09-01 | E76: 41325.00339 | G76: =IF(B76>$G$6,0,IPMT($G$5/12,B76,$G$6,-$G$4)) -> 16306.94754 | H76: =IF(B76>$G$6,0,PPMT($G$5/12,B76,$G$6,-$G$4)) -> 25018.05584 | I76: 1778939.732 | K76: =I76-H76 -> 1753921.676
B77: 67 | C77: 2027-09-02 | D77: 2027-10-01 | E77: 41325.00339 | G77: 16077.61536 | H77: 25247.38802 | I77: =K76 -> 1753921.676 | K77: 1728674.288
B78: 68 | C78: 2027-10-02 | D78: 2027-11-01 | E78: 41325.00339 | G78: 15846.18097 | H78: 25478.82241 | I78: 1728674.288 | K78: 1703195.466
B79: 69 | C79: 2027-11-02 | D79: 2027-12-01 | E79: 41325.00339 | G79: 15612.6251 | H79: 25712.37828 | I79: 1703195.466 | K79: 1677483.087
B80: 70 | C80: 2027-12-02 | D80: 2028-01-01 | E80: 41325.00339 | G80: 15376.9283 | H80: 25948.07509 | I80: 1677483.087 | K80: 1651535.012
B81: 71 | C81: 2028-01-02 | D81: 2028-02-01 | E81: 41325.00339 | G81: 15139.07095 | H81: 26185.93244 | I81: 1651535.012 | K81: 1625349.08
B82: 72 | C82: 2028-02-02 | D82: 2028-03-01 | E82: 41325.00339 | G82: 14899.03323 | H82: 26425.97015 | I82: 1625349.08 | K82: 1598923.11
B83: 73 | C83: 2028-03-02 | D83: 2028-04-01 | E83: 41325.00339 | G83: 14656.79517 | H83: 26668.20821 | I83: 1598923.11 | K83: 1572254.902
B84: 74 | C84: 2028-04-02 | D84: 2028-05-01 | E84: 41325.00339 | G84: 14412.3366 | H84: 26912.66679 | I84: 1572254.902 | K84: 1545342.235
B85: 75 | C85: 2028-05-02 | D85: 2028-06-01 | E85: 41325.00339 | G85: 14165.63715 | H85: 27159.36624 | I85: 1545342.235 | K85: 1518182.869
B86: 76 | C86: 2028-06-02 | D86: 2028-07-01 | E86: 41325.00339 | G86: 13916.67629 | H86: 27408.32709 | I86: 1518182.869 | K86: 1490774.541
B87: 77 | C87: 2028-07-02 | D87: 2028-08-01 | E87: 41325.00339 | G87: 13665.4333 | H87: 27659.57009 | I87: 1490774.541 | K87: 1463114.971
B88: 78 | C88: 2028-08-02 | D88: 2028-09-01 | E88: 41325.00339 | G88: 13411.88724 | H88: 27913.11615 | I88: 1463114.971 | K88: 1435201.855
B89: 79 | C89: 2028-09-02 | D89: 2028-10-01 | E89: 41325.00339 | G89: 13156.01701 | H89: 28168.98638 | I89: 1435201.855 | K89: 1407032.869
B90: 80 | C90: 2028-10-02 | D90: 2028-11-01 | E90: 41325.00339 | G90: 12897.8013 | H90: 28427.20209 | I90: 1407032.869 | K90: 1378605.667
B91: 81 | C91: 2028-11-02 | D91: 2028-12-01 | E91: 41325.00339 | G91: 12637.21861 | H91: 28687.78478 | I91: 1378605.667 | K91: 1349917.882
B92: 82 | C92: 2028-12-02 | D92: 2029-01-01 | E92: 41325.00339 | G92: 12374.24725 | H92: 28950.75614 | I92: 1349917.882 | K92: 1320967.126
B93: 83 | C93: 2029-01-02 | D93: 2029-02-01 | E93: 41325.00339 | G93: 12108.86532 | H93: 29216.13807 | I93: 1320967.126 | K93: 1291750.988
B94: 84 | C94: 2029-02-02 | D94: 2029-03-01 | E94: =G94+H94 -> 41325.00339 | G94: 11841.05072 | H94: 29483.95267 | I94: 1291750.988 | K94: 1262267.035
B95: 85 | C95: 2029-03-02 | D95: 2029-04-01 | E95: =G95+H95 -> 41325.00339 | G95: 11570.78115 | H95: 29754.22223 | I95: 1262267.035 | K95: 1232512.813
B96: 86 | C96: 2029-04-02 | D96: 2029-05-01 | E96: 41325.00339 | G96: 11298.03412 | H96: 30026.96927 | I96: 1232512.813 | K96: 1202485.844
B97: 87 | C97: 2029-05-02 | D97: 2029-06-01 | E97: 41325.00339 | G97: 11022.7869 | H97: 30302.21649 | I97: 1202485.844 | K97: 1172183.627
B98: 88 | C98: 2029-06-02 | D98: 2029-07-01 | E98: 41325.00339 | G98: 10745.01658 | H98: 30579.98681 | I98: 1172183.627 | K98: 1141603.64
B99: 89 | C99: 2029-07-02 | D99: 2029-08-01 | E99: 41325.00339 | G99: 10464.70004 | H99: 30860.30335 | I99: 1141603.64 | K99: 1110743.337
B100: 90 | C100: 2029-08-02 | D100: 2029-09-01 | E100: 41325.00339 | G100: 10181.81392 | H100: 31143.18947 | I100: 1110743.337 | K100: 1079600.147
B101: 91 | C101: 2029-09-02 | D101: 2029-10-01 | E101: 41325.00339 | G101: 9896.334685 | H101: 31428.6687 | I101: 1079600.147 | K101: 1048171.479
B102: 92 | C102: 2029-10-02 | D102: 2029-11-01 | E102: 41325.00339 | G102: 9608.238555 | H102: 31716.76483 | I102: 1048171.479 | K102: 1016454.714
B103: 93 | C103: 2029-11-02 | D103: 2029-12-01 | E103: 41325.00339 | G103: 9317.501544 | H103: 32007.50184 | I103: 1016454.714 | K103: 984447.2121
B104: 94 | C104: 2029-12-02 | D104: 2030-01-01 | E104: 41325.00339 | G104: 9024.099444 | H104: 32300.90394 | I104: 984447.2121 | K104: 952146.3081
B105: 95 | C105: 2030-01-02 | D105: 2030-02-01 | E105: 41325.00339 | G105: 8728.007825 | H105: 32596.99556 | I105: 952146.3081 | K105: 919549.3126
B106: 96 | C106: 2030-02-02 | D106: 2030-03-01 | E106: 41325.00339 | G106: 8429.202032 | H106: 32895.80136 | I106: 919549.3126 | K106: 886653.5112
B107: 97 | C107: 2030-03-02 | D107: 2030-04-01 | E107: 41325.00339 | G107: 8127.657186 | H107: 33197.3462 | I107: 886653.5112 | K107: 853456.165
B108: 98 | C108: 2030-04-02 | D108: 2030-05-01 | E108: 41325.00339 | G108: 7823.348179 | H108: 33501.65521 | I108: 853456.165 | K108: 819954.5098
B109: 99 | C109: 2030-05-02 | D109: 2030-06-01 | E109: 41325.00339 | G109: 7516.249673 | H109: 33808.75371 | I109: 819954.5098 | K109: 786145.7561
B110: 100 | C110: 2030-06-02 | D110: 2030-07-01 | E110: 41325.00339 | G110: 7206.336098 | H110: 34118.66729 | I110: 786145.7561 | K110: 752027.0888
B111: 101 | C111: 2030-07-02 | D111: 2030-08-01 | E111: 41325.00339 | G111: 6893.581647 | H111: 34431.42174 | I111: 752027.0888 | K111: 717595.6671
B112: 102 | C112: 2030-08-02 | D112: 2030-09-01 | E112: 41325.00339 | G112: 6577.960281 | H112: 34747.04311 | I112: 717595.6671 | K112: 682848.624
B113: 103 | C113: 2030-09-02 | D113: 2030-10-01 | E113: 41325.00339 | G113: 6259.44572 | H113: 35065.55767 | I113: 682848.624 | K113: 647783.0663
B114: 104 | C114: 2030-10-02 | D114: 2030-11-01 | E114: 41325.00339 | G114: 5938.011441 | H114: 35386.99195 | I114: 647783.0663 | K114: 612396.0744
B115: 105 | C115: 2030-11-02 | D115: 2030-12-01 | E115: 41325.00339 | G115: 5613.630682 | H115: 35711.37271 | I115: 612396.0744 | K115: 576684.7016
B116: 106 | C116: 2030-12-02 | D116: 2031-01-01 | E116: 41325.00339 | G116: 5286.276432 | H116: 36038.72696 | I116: 576684.7016 | K116: 540645.9747
B117: 107 | C117: 2031-01-02 | D117: 2031-02-01 | E117: 41325.00339 | G117: 4955.921435 | H117: 36369.08195 | I117: 540645.9747 | K117: 504276.8927
B118: 108 | C118: 2031-02-02 | D118: 2031-03-01 | E118: 41325.00339 | G118: 4622.538183 | H118: 36702.4652 | I118: 504276.8927 | K118: 467574.4275
B119: 109 | C119: 2031-03-02 | D119: 2031-04-01 | E119: 41325.00339 | G119: 4286.098919 | H119: 37038.90447 | I119: 467574.4275 | K119: 430535.5231
B120: 110 | C120: 2031-04-02 | D120: 2031-05-01 | E120: 41325.00339 | G120: 3946.575628 | H120: 37378.42776 | I120: 430535.5231 | K120: 393157.0953
B121: 111 | C121: 2031-05-02 | D121: 2031-06-01 | E121: 41325.00339 | G121: 3603.94004 | H121: 37721.06335 | I121: 393157.0953 | K121: 355436.032
B122: 112 | C122: 2031-06-02 | D122: 2031-07-01 | E122: 41325.00339 | G122: 3258.163626 | H122: 38066.83976 | I122: 355436.032 | K122: 317369.1922
B123: 113 | C123: 2031-07-02 | D123: 2031-08-01 | E123: 41325.00339 | G123: 2909.217595 | H123: 38415.78579 | I123: 317369.1922 | K123: 278953.4064
B124: 114 | C124: 2031-08-02 | D124: 2031-09-01 | E124: 41325.00339 | G124: 2557.072892 | H124: 38767.9305 | I124: 278953.4064 | K124: 240185.4759
B125: 115 | C125: 2031-09-02 | D125: 2031-10-01 | E125: 41325.00339 | G125: 2201.700196 | H125: 39123.30319 | I125: 240185.4759 | K125: 201062.1727
B126: 116 | C126: 2031-10-02 | D126: 2031-11-01 | E126: 41325.00339 | G126: 1843.069917 | H126: 39481.93347 | I126: 201062.1727 | K126: 161580.2392
B127: 117 | C127: 2031-11-02 | D127: 2031-12-01 | E127: 41325.00339 | G127: 1481.152193 | H127: 39843.85119 | I127: 161580.2392 | K127: 121736.3881
B128: 118 | C128: 2031-12-02 | D128: 2032-01-01 | E128: 41325.00339 | G128: 1115.91689 | H128: 40209.0865 | I128: 121736.3881 | K128: 81527.30155
B129: 119 | C129: 2032-01-02 | D129: 2032-02-01 | E129: 41325.00339 | G129: 747.3335976 | H129: 40577.66979 | I129: 81527.30155 | K129: 40949.63176
B130: 120 | C130: 2032-02-02 | D130: 2032-03-01 | E130: 41325.00339 | G130: 375.3716245 | H130: 40949.63176 | I130: 40949.63176 | K130: -3.20142135e-10
B131: 121 | C131: 2032-03-02 | D131: 2032-04-01 | E131: 0 | G131: 0 | H131: 0 | I131: -3.20142135e-10 | K131: -3.20142135e-10
B132: 122 | C132: 2032-04-02 | D132: 2032-05-01 | E132: 0 | G132: 0 | H132: 0 | I132: -3.20142135e-10 | K132: -3.20142135e-10
B133: 123 | C133: 2032-05-02 | D133: 2032-06-01 | E133: 0 | G133: 0 | H133: 0 | I133: -3.20142135e-10 | K133: -3.20142135e-10
B134: 124 | C134: 2032-06-02 | D134: 2032-07-01 | E134: 0 | G134: 0 | H134: 0 | I134: -3.20142135e-10 | K134: -3.20142135e-10
B135: 125 | C135: 2032-07-02 | D135: 2032-08-01 | E135: 0 | G135: 0 | H135: 0 | I135: -3.20142135e-10 | K135: -3.20142135e-10
B136: 126 | C136: 2032-08-02 | D136: 2032-09-01 | E136: 0 | G136: 0 | H136: 0 | I136: -3.20142135e-10 | K136: -3.20142135e-10
B137: 127 | C137: 2032-09-02 | D137: 2032-10-01 | E137: 0 | G137: 0 | H137: 0 | I137: -3.20142135e-10 | K137: -3.20142135e-10
B138: 128 | C138: 2032-10-02 | D138: 2032-11-01 | E138: 0 | G138: 0 | H138: 0 | I138: -3.20142135e-10 | K138: -3.20142135e-10
B139: 129 | C139: 2032-11-02 | D139: 2032-12-01 | E139: 0 | G139: 0 | H139: 0 | I139: -3.20142135e-10 | K139: -3.20142135e-10
B140: 130 | C140: =D139+1 -> 2032-12-02 | D140: =EDATE(C140,1)-1 -> 2033-01-01 | E140: 0 | G140: =IF(B140>$G$6,0,IPMT($G$5/12,B140,$G$6,-$G$4)) -> 0 | H140: =IF(B140>$G$6,0,PPMT($G$5/12,B140,$G$6,-$G$4)) -> 0 | I140: -3.20142135e-10 | K140: =I140-H140 -> -3.20142135e-10

Sheet cash flow прогноз_заповн.Клієнт (hidden)
A1: ="Прогнозний звіт про рух грошових коштів на весь період кредитування "&Оцінка!E9 -> Прогнозний звіт про рух грошових коштів на весь період кредитування 0
B2: 1 | C2: 2 | D2: 3 | E2: 4 | F2: 5 | G2: 6 | H2: 7 | I2: 8 | J2: 9 | K2: 10 | L2: 11 | M2: 12
A3: Місяць/рік кредитування | B3: =Оцінка!B84 -> 2021-10-31 | C3: =Оцінка!C84 -> 2021-11-30 | D3: =Оцінка!D84 -> 2021-12-31 | E3: =Оцінка!E84 -> 2022-01-31 | F3: =Оцінка!F84 -> 2022-02-28 | G3: =Оцінка!G84 -> 2022-03-31 | H3: =Оцінка!H84 -> 2022-04-30 | I3: =Оцінка!I84 -> 2022-05-31 | J3: =Оцінка!J84 -> 2022-06-30 | K3: =Оцінка!K84 -> 2022-07-31 | L3: =Оцінка!L84 -> 2022-08-31 | M3: =Оцінка!M84 -> 2022-09-30 | N3: Всього за рік | O3: 2 рік | P3: 3 рік | Q3: 4 рік | R3: 5 рік | S3: 6 рік | T3: 7 рік | U3: 8 рік | V3: 9 рік | W3: 10 рік
A4: Залишок коштів на поч. міс. | B4: =3099923+6793 -> 3106716 | C4: =B23 -> 649519 | D4: =C23 -> 704849.3333 | E4: 142155.5933 | F4: 197485.9267 | G4: 253936.26 | H4: 1184944.953 | I4: 1240075.287 | J4: 1297242.287 | K4: 1352372.62 | L4: 1409539.62 | M4: 1902452.453 | O4: =M23 -> 2945537.057 | P4: =O23 -> 2347581.279 | Q4: =O23 -> 2347581.279 | R4: =Q23 -> 1822958.834 | S4: =R23 -> 1335003.057 | T4: =S23 -> 883713.9456 | U4: 469091.5011 | V4: 91135.72333 | W4: -250153.3878
A5: Надходження на поточний рахунок, в т.ч.: | B5: =SUM(B6:B9) -> 72477 | C5: 72477 | D5: 72477 | E5: 72477 | F5: 72477 | G5: 72477 | H5: 72477 | I5: 72477 | J5: 72477 | K5: 72477 | L5: 72477 | M5: 72477 | N5: 869724 | O5: =SUM(O6:O9) -> 317316 | P5: =SUM(P6:P9) -> 317316 | Q5: 317316 | R5: 317316 | S5: 317316 | T5: 317316 | U5: 317316 | V5: 317316 | W5: 317316
A6: Членські внески на утримання будинку | B6: 46877 | C6: 46877 | D6: 46877 | E6: 46877 | F6: 46877 | G6: 46877 | H6: 46877 | I6: 46877 | J6: 46877 | K6: 46877 | L6: 46877 | M6: 46877 | N6: =SUM(B6:M6) -> 562524 | O6: =266316+51000 -> 317316 | P6: =266316+51000 -> 317316 | Q6: 317316 | R6: 317316 | S6: 317316 | T6: 317316 | U6: 317316 | V6: 317316 | W6: 317316
A7: Субсидії за квартплату та інші компенсації держави для пільгових категорій населення | N7: =SUM(B7:M7) -> 0
A8: Оплата провайдерів за використання будинкових шахт | N8: 0
A9: Інше | B9: 25600 | C9: 25600 | D9: 25600 | E9: 25600 | F9: 25600 | G9: 25600 | H9: 25600 | I9: 25600 | J9: 25600 | K9: 25600 | L9: 25600 | M9: 25600 | N9: 307200
A10: Розрахунки з постачальниками послуг, в т.ч.: | B10: =2812+1200+18000 -> 22012 | C10: =2812+1200+18000 -> 22012 | D10: =2812+1200+18000 -> 22012 | E10: =2812+1200+18000 -> 22012 | F10: 22012 | G10: 22012 | H10: =2812+1400+18000 -> 22212 | I10: =2812+1400+18000 -> 22212 | J10: 22212 | K10: 22212 | L10: 22212 | M10: 22012 | N10: =SUM(B10:M10) -> 265144 | O10: 265144 | P10: 265144 | Q10: 265144 | R10: 265144 | S10: 265144 | T10: 265144 | U10: 265144 | V10: 265144 | W10: 265144
A11: Бухгалтерські послуги + паспортний облік | N11: =SUM(B11:M11) -> 0
A12: Забезпечення функціонування програмного забезпечення та офісної техніки | N12: 0
A13: Витрати на РКО в банку | B13: 300 | C13: 300 | D13: 300 | E13: 300 | F13: 300 | G13: 300 | H13: 300 | I13: 300 | J13: 300 | K13: 300 | L13: 300 | M13: 300 | N13: 3600 | O13: 3600 | P13: 3600 | Q13: 3600 | R13: 3600 | S13: 3600 | T13: 3600 | U13: 3600 | V13: 3600 | W13: 3600
A14: Чистий грошовий потік | B14: =B5-(SUM(B10:B13)) -> 50165 | C14: =C5-(SUM(C10:C13)) -> 50165 | D14: 50165 | E14: 50165 | F14: 50165 | G14: 50165 | H14: 49965 | I14: 49965 | J14: 49965 | K14: 49965 | L14: 49965 | M14: 50165 | N14: =N5-(SUM(N10:N13)) -> 600980 | O14: =O5-(SUM(O10:O13)) -> 48572 | P14: =P5-(SUM(P10:P13)) -> 48572 | Q14: =Q5-(SUM(Q10:Q13)) -> 48572 | R14: =R5-(SUM(R10:R13)) -> 48572 | S14: =S5-(SUM(S10:S13)) -> 48572 | T14: =T5-(SUM(T10:T13)) -> 48572 | U14: =U5-(SUM(U10:U13)) -> 48572 | V14: =V5-(SUM(V10:V13)) -> 48572 | W14: =W5-(SUM(W10:W13)) -> 48572
A15: КРЕДИТ(+) | N15: =SUM(B15:M15) -> 0
A16: Витрати на ремонт (-) | B16: 2479862 | D16: 620060.74 | G16: 851475.06 | N16: 3951397.8
A17: компенсація з державного бюджету(+) | G17: 1723283.42 | L17: 446662.5 | M17: 680000 | N17: 2849945.92
A18: компенсація з місцевого бюджету (+) | C18: 33582 | D18: 34702 | E18: 33582 | F18: 34702 | G18: 34702 | H18: 33582 | I18: 34702 | J18: 33582 | K18: 34702 | L18: 24702 | M18: =309992.27+31344 -> 341336.27 | N18: =SUM(B18:M18) -> 673876.27
A19: Погашення тіла кредиту (-) | B19: ='Класична (після компенсації)'!$E20+IF(Оцінка!$E$23=1,Оцінка!E22) -> 0 | C19: ='Класична (після компенсації)'!$E21+IF(Оцінка!$E$23=2,Оцінка!E22) -> 0 | D19: ='Класична (після компенсації)'!$E22+IF(Оцінка!$E$23=3,Оцінка!E22) -> 0 | E19: ='Класична (після компенсації)'!$E23+IF(Оцінка!$E$23=4,Оцінка!E22) -> 0 | F19: ='Класична (після компенсації)'!$E24+IF(Оцінка!$E$23=5,Оцінка!E22) -> 0 | G19: ='Класична (після компенсації)'!$E25+IF(Оцінка!$E$23=6,Оцінка!E22) -> 0 | H19: ='Класична (після компенсації)'!$E26+IF(Оцінка!$E$23=7,Оцінка!E22) -> 0 | I19: ='Класична (після компенсації)'!$E27+IF(Оцінка!$E$23=8,Оцінка!E22) -> 0 | J19: ='Класична (після компенсації)'!$E28+IF(Оцінка!$E$23=9,Оцінка!E22) -> 0 | K19: ='Класична (після компенсації)'!$E29+IF(Оцінка!$E$23=10,Оцінка!E22) -> 0 | L19: ='Класична (після компенсації)'!$E30+IF(Оцінка!$E$23=11,Оцінка!E22) -> 0 | M19: ='Класична (після компенсації)'!$E31+IF(Оцінка!$E$23=12,Оцінка!E22) -> 0 | N19: =SUM(B19:M19) -> 0 | O19: =SUMIFS('Класична (після компенсації)'!$E$32:$E$153,'Класична (після компенсації)'!$B$32:$B$153,">12",'Класична (після компенсації)'!$B$32:$B$153,"<25")+IF(AND(Оцінка!$E$23>12,Оцінка!$E$23<25),Оцінка!E22) -> 333333.3333 | P19: =SUMIFS('Класична (після компенсації)'!$E$32:$E$153,'Класична (після компенсації)'!$B$32:$B$153,">24",'Класична (після компенсації)'!$B$32:$B$153,"<37")+IF(AND(Оцінка!$E$23>24,Оцінка!$E$23<37),Оцінка!E22) -> 333333.3333 | Q19: =SUMIFS('Класична (після компенсації)'!$E$32:$E$153,'Класична (після компенсації)'!$B$32:$B$153,">36",'Класична (після компенсації)'!$B$32:$B$153,"<49")+IF(AND(Оцінка!$E$23>36,Оцінка!$E$23<49),Оцінка!E22) -> 333333.3333 | R19: =SUMIFS('Класична (після компенсації)'!$E$32:$E$153,'Класична (після компенсації)'!$B$32:$B$153,">48",'Класична (після компенсації)'!$B$32:$B$153,"<61")+IF(AND(Оцінка!$E$23>48,Оцінка!$E$23<61),Оцінка!E22) -> 333333.3333 | S19: =SUMIFS('Класична (після компенсації)'!$E$32:$E$153,'Класична (після компенсації)'!$B$32:$B$153,">60",'Класична (після компенсації)'!$B$32:$B$153,"<73")+IF(AND(Оцінка!$E$23>60,Оцінка!$E$23<73),Оцінка!E22) -> 333333.3333 | T19: =SUMIFS('Класична (після компенсації)'!$E$32:$E$153,'Класична (після компенсації)'!$B$32:$B$153,">72",'Класична (після компенсації)'!$B$32:$B$153,"<85")+IF(AND(Оцінка!$E$23>72,Оцінка!$E$23<85),Оцінка!E22) -> 333333.3333 | U19: =SUMIFS('Класична (після компенсації)'!$E$32:$E$153,'Класична (після компенсації)'!$B$32:$B$153,">84",'Класична (після компенсації)'!$B$32:$B$153,"<97")+IF(AND(Оцінка!$E$23>84,Оцінка!$E$23<97),Оцінка!E22) -> 333333.3333 | V19: =SUMIFS('Класична (після компенсації)'!$E$32:$E$153,'Класична (після компенсації)'!$B$32:$B$153,">96",'Класична (після компенсації)'!$B$32:$B$153,"<109")+IF(AND(Оцінка!$E$23>96,Оцінка!$E$23<109),Оцінка!E22) -> 333333.3333 | W19: =SUMIFS('Класична (після компенсації)'!$E$32:$E$153,'Класична (після компенсації)'!$B$32:$B$153,">108",'Класична (після компенсації)'!$B$32:$B$153,"<121")+IF(AND(Оцінка!$E$23>108,Оцінка!$E$23<121),Оцінка!E22) -> 333333.3333
A20: Погашення % (-) | B20: ='Класична (після компенсації)'!$F20 -> 27500 | C20: ='Класична (після компенсації)'!$F21 -> 28416.66667 | D20: ='Класична (після компенсації)'!$F22 -> 27500 | E20: ='Класична (після компенсації)'!$F23 -> 28416.66667 | F20: ='Класична (після компенсації)'!$F24 -> 28416.66667 | G20: ='Класична (після компенсації)'!$F25 -> 25666.66667 | H20: ='Класична (після компенсації)'!$F26 -> 28416.66667 | I20: ='Класична (після компенсації)'!$F27 -> 27500 | J20: ='Класична (після компенсації)'!$F28 -> 28416.66667 | K20: ='Класична (після компенсації)'!$F29 -> 27500 | L20: ='Класична (після компенсації)'!$F30 -> 28416.66667 | M20: ='Класична (після компенсації)'!$F31 -> 28416.66667 | N20: =SUM(B20:M20) -> 334583.3333 | O20: =SUMIFS('Класична (після компенсації)'!$F$32:$F$153,'Класична (після компенсації)'!$B$32:$B$153,">12",'Класична (після компенсації)'!$B$32:$B$153,"<25") -> 313194.4444 | P20: =SUMIFS('Класична (після компенсації)'!$F$32:$F$153,'Класична (після компенсації)'!$B$32:$B$153,">24",'Класична (після компенсації)'!$B$32:$B$153,"<37") -> 276527.7778 | Q20: =SUMIFS('Класична (після компенсації)'!$F$32:$F$153,'Класична (після компенсації)'!$B$32:$B$153,">36",'Класична (після компенсації)'!$B$32:$B$153,"<49") -> 239861.1111 | R20: =SUMIFS('Класична (після компенсації)'!$F$32:$F$153,'Класична (після компенсації)'!$B$32:$B$153,">48",'Класична (після компенсації)'!$B$32:$B$153,"<61") -> 203194.4444 | S20: =SUMIFS('Класична (після компенсації)'!$F$32:$F$153,'Класична (після компенсації)'!$B$32:$B$153,">60",'Класична (після компенсації)'!$B$32:$B$153,"<73") -> 166527.7778 | T20: =SUMIFS('Класична (після компенсації)'!$F$32:$F$153,'Класична (після компенсації)'!$B$32:$B$153,">72",'Класична (після компенсації)'!$B$32:$B$153,"<85") -> 129861.1111 | U20: =SUMIFS('Класична (після компенсації)'!$F$32:$F$153,'Класична (після компенсації)'!$B$32:$B$153,">84",'Класична (після компенсації)'!$B$32:$B$153,"<97") -> 93194.44444 | V20: =SUMIFS('Класична (після компенсації)'!$F$32:$F$153,'Класична (після компенсації)'!$B$32:$B$153,">96",'Класична (після компенсації)'!$B$32:$B$153,"<109") -> 56527.77778 | W20: =SUMIFS('Класична (після компенсації)'!$F$32:$F$153,'Класична (після компенсації)'!$B$32:$B$153,">108",'Класична (після компенсації)'!$B$32:$B$153,"<121") -> 19861.11111
A21: Погашення комісій (-) | B21: =SUM('Класична (після компенсації)'!G20:M20) -> 0 | C21: =SUM('Класична (після компенсації)'!G21:M21) -> 0 | D21: =SUM('Класична (після компенсації)'!G22:M22) -> 0 | E21: =SUM('Класична (після компенсації)'!G23:M23) -> 0 | F21: =SUM('Класична (після компенсації)'!G24:M24) -> 0 | G21: =SUM('Класична (після компенсації)'!G25:M25) -> 0 | H21: =SUM('Класична (після компенсації)'!G26:M26) -> 0 | I21: =SUM('Класична (після компенсації)'!G27:M27) -> 0 | J21: =SUM('Класична (після компенсації)'!G28:M28) -> 0 | K21: =SUM('Класична (після компенсації)'!G29:M29) -> 0 | L21: =SUM('Класична (після компенсації)'!G30:M30) -> 0 | M21: =SUM('Класична (після компенсації)'!G31:M31) -> 0 | N21: =SUM(B21:M21) -> 0 | O21: =SUM('Класична (після компенсації)'!G32:M43) -> 0 | P21: =SUM('Класична (після компенсації)'!G44:M55) -> 0 | Q21: =SUM('Класична (після компенсації)'!G56:M67) -> 0 | R21: =SUM('Класична (після компенсації)'!G68:M79) -> 0 | S21: =SUM('Класична (після компенсації)'!G80:M91) -> 0 | T21: =SUM('Класична (після компенсації)'!G92:M103) -> 0 | U21: =SUM('Класична (після компенсації)'!G104:M115) -> 0 | V21: =SUM('Класична (після компенсації)'!G116:M127) -> 0 | W21: =SUM('Класична (після компенсації)'!G128:M139) -> 0
A22: Чистий грошовий потік по проекту фінансування | B22: =B15-B16+B17+B18-B19-B20-B21 -> -2507362 | C22: 5165.333333 | D22: -612858.74 | E22: 5165.333333 | F22: 6285.333333 | G22: 880843.6933 | H22: =H15-H16+H17+H18-H19-H20-H21 -> 5165.333333 | I22: 7202 | J22: 5165.333333 | K22: 7202 | L22: 442947.8333 | M22: 992919.6033 | N22: =N15-N16+N17+N18-N19-N20-N21 -> -762158.9433 | O22: =O15-O16+O17+O18-O19-O20-O21 -> -646527.7778 | P22: =P15-P16+P17+P18-P19-P20-P21 -> -609861.1111 | Q22: -573194.4444 | R22: -536527.7778 | S22: -499861.1111 | T22: -463194.4444 | U22: -426527.7778 | V22: -389861.1111 | W22: -353194.4444
A23: Залишок коштів на кін. міс. | B23: =B4+B14+B22 -> 649519 | C23: 704849.3333 | D23: 142155.5933 | E23: 197485.9267 | F23: 253936.26 | G23: 1184944.953 | H23: 1240075.287 | I23: 1297242.287 | J23: 1352372.62 | K23: 1409539.62 | L23: 1902452.453 | M23: 2945537.057 | O23: =O14+O22+O4 -> 2347581.279 | P23: 1786292.168 | Q23: 1822958.834 | R23: 1335003.057 | S23: 883713.9456 | T23: 469091.5011 | U23: 91135.72333 | V23: -250153.3878 | W23: -554775.8322
A26: Додатковий коментар (при необхідності)
A30: "____" _______________ _____ рік | F30: ____________________________ | M30: ______________
G31: М.П. | M31: (ПІБ)

Sheet Класична
AJ1: щорічне | AL1: =TODAY() -> 2021-08-09
AJ2: в перший рік кредитування | AS2: 1
AS3: 0
A4: Сума кредиту | E4: =Оцінка!E11 -> 3000000 | AL4: відсутнє
A5: Термін (місяці) | E5: =Оцінка!E12 -> 120
A6: Відтермінування | E6: в перший рік кредитування | G6: місяці відтермінування
A7: Термін відтермінування | E7: =Оцінка!E13 -> 12 | G7: 1900-01-01 | H7: 1900-02-01 | I7: 1900-03-01 | J7: 1900-04-01 | K7: 1900-05-01 | L7: 1900-06-01 | M7: 1900-07-01 | N7: 1900-08-01 | O7: 1900-09-01 | P7: 1900-10-01 | Q7: 1900-11-01 | R7: 1900-12-01 | AE7: =MONTH(G7) -> 1 | AF7: =MONTH(H7) -> 2 | AG7: 3 | AH7: 4 | AI7: 5 | AJ7: 6 | AK7: 7 | AL7: 8 | AM7: =MONTH(O7) -> 9 | AN7: =MONTH(P7) -> 10 | AO7: =MONTH(Q7) -> 11 | AP7: =MONTH(R7) -> 12
A8: % ставка | E8: =Оцінка!E14 -> 0.11 | AE8: =G8 -> 0 | AF8: =H8 -> 0 | AG8: 0 | AH8: 0 | AI8: 0 | AJ8: 0 | AK8: 0 | AL8: 0 | AM8: 0 | AN8: 0 | AO8: 0 | AP8: 0
A9: Комісії:
A10: - разова (за видачу) | E10: 0.01 | H10: Кількісь місяців протягом яких сплачується комісія | Q10: 3
A11: - за управління | E11: 0
A12: - розгляд заявки | E12: 0
A13: Дата видачі кредиту | E13: =Оцінка!E2 -> 2021-09-01
F17: Всього сплачених відсотків | G17: Всього сплачені комісії | P17: Всього
F18: =SUM(F20:F379) -> 1833333.333 | G18: =SUM(G20:I139) -> 30000 | J18: =SUM(L20:L379) -> 0 | M18: =M20 -> 0 | P18: =SUM(F18:N18) -> 1863333.333 | AJ18: Погашення з щорічним відтермінуванням | AU18: Погашення з відтермінуванням в перший рік
B19: Місяць | D19: Залишок на початок місяця | E19: Погашення тіла кредиту | F19: Погашення %-ів за кредит | G19: Разова комісія (за видачу) | J19: Комісія за управління кредитом | M19: Комісія за розгляд заявки | P19: Всього платіж в місяць | AG19: Місяць | AH19: Залишок на початок місяця | AI19: Погашення тіла кредиту | AJ19: Погашення %-ів за кредит | AK19: Разова комісія (за видачу) | AL19: Комісія за управління кредитом | AM19: Комісія за розгляд заявки | AN19: Всього платіж в місяць | AR19: Місяць | AS19: Залишок на початок місяця | AT19: Погашення тіла кредиту | AU19: Погашення %-ів за кредит | AV19: Разова комісія (за видачу) | AW19: Комісія за управління кредитом | AX19: Комісія за розгляд заявки | AY19: Всього платіж в місяць
A20: =B20 -> 1 | B20: 1 | C20: =EDATE(E13,1) -> 2021-10-01 | D20: =E4 -> 3000000 | E20: =IF((B20>$E$5),0,IF($E$6="щорічне",AI20,AT20)) -> 0 | F20: =IF(B20>$E$5,"",D20*$E$8/360*(C20-E13)) -> 27500 | G20: =IF(B20<=$Q$10,$E$4*$E$10/$Q$10,0) -> 10000 | J20: =IF(B20>$E$5,"",$E$4*$E$11) -> 0 | M20: =E12*E4 -> 0 | P20: =IF(B20>$E$5,"",SUM(E20:N20)) -> 37500 | AA20: =HLOOKUP(AD20,$AE$7:$AP$8,2,0) -> 0 | AD20: =IF(AE20="","",MONTH(AE20)) -> 9 | AE20: =DATE(YEAR(E13),MONTH(EOMONTH(E13,0)),DAY(30)) -> 2021-09-30 | AF20: 1 | AG20: 1 | AH20: =E4 -> 3000000 | AI20: =IF(OR(AG20>$E$5,HLOOKUP(AD20,$AE$7:$AP$8,2,0)=1),0,$E$4/((12-$E$7)*($E$5/12))) ->  | AJ20: =IF(AG20>$E$5,"",AH20*$E$8/12) -> 27500 | AK20: =AI4*AI10 -> 0 | AL20: =IF(AG20>$E$5,"",$E$4*$E$11) -> 0 | AM20: =AI12*AI4 -> 0 | AN20: =IF(AG20>$E$5,"",SUM(AI20:AM20)) ->  | AO20: =MONTH(AP20) -> 9 | AP20: =DATE(YEAR(E13),MONTH(EOMONTH(E13,0)),DAY(30)) -> 2021-09-30 | AQ20: 1 | AR20: 1 | AS20: =E4 -> 3000000 | AT20: =IF(OR(AR20<=$E$7,AR20=""),0,$E$4/(($E$5)-$E$7)) -> 0 | AU20: =IF(AR20>$E$5,"",AS20*$E$8/12) -> 27500 | AV20: =AT4*AT10 -> 0 | AW20: =IF(AR20>$E$5,"",$E$4*$E$11) -> 0 | AX20: =AT12*AT4 -> 0 | AY20: =IF(AR20>$E$5,"",SUM(AT20:AX20)) -> 27500
A21: =B21 -> 2 | B21: =IF(B20<$E$5,B20+1,"") -> 2 | C21: =IF(B21>$E$5,"",EDATE(C20,1)) -> 2021-11-01 | D21: =IF(B21>$E$5,"",D20-E20) -> 3000000 | E21: =IF((B21>$E$5),0,IF($E$6="щорічне",AI21,AT21)) -> 0 | F21: =IF(B21>$E$5,"",D21*$E$8/360*(C21-C20)) -> 28416.66667 | G21: =IF(B21<=$Q$10,$E$4*$E$10/$Q$10,0) -> 10000 | J21: 0 | P21: =IF(B21>$E$5,"",SUM(E21:O21)) -> 38416.66667 | AA21: =HLOOKUP(AD21,$AE$7:$AP$8,2,0) -> 0 | AD21: =IF(AE21="","",MONTH(AE21)) -> 10 | AE21: =EOMONTH(AE20,1) -> 2021-10-31 | AF21: 2 | AG21: =IF(AG20<$E$5,AG20+1,"") -> 2 | AH21: =IF(AND(AG21<$E$5,AG21=Оцінка!$F$14),AH20-AI20-Оцінка!$E$14,IF(AG21>$E$5,"",AH20-AI20)) ->  | AI21: =IF(OR(AG21>$E$5,HLOOKUP(AD21,$AE$7:$AP$8,2,0)=1),0,$E$4/((12-$E$7)*($E$5/12))) ->  | AL21: =IF(AG21>$E$5,"",$E$4*$E$11) -> 0 | AO21: =MONTH(AP21) -> 11 | AP21: =IF(B21>$E$5,"",EOMONTH(C20,1)) -> 2021-11-30 | AQ21: 2 | AR21: =IF(AR20<$E$5,AR20+1,"") -> 2 | AS21: =IF(AR21>$E$5,"",AS20-AT20) -> 3000000 | AT21: =IF(OR(AR21<=$E$7,AR21=""),0,$E$4/(($E$5)-$E$7)) -> 0 | AU21: 27500 | AW21: =IF(AR21>$E$5,"",$E$4*$E$11) -> 0 | AY21: 27500
A22: 3 | B22: 3 | C22: =IF(B22>$E$5,"",EDATE(C21,1)) -> 2021-12-01 | D22: =IF(B22>$E$5,"",D21-E21) -> 3000000 | E22: =IF((B22>$E$5),0,IF($E$6="щорічне",AI22,AT22)) -> 0 | F22: =IF(B22>$E$5,"",D22*$E$8/360*(C22-C21)) -> 27500 | G22: 10000 | J22: 0 | P22: 37500 | AA22: 0 | AD22: 11 | AE22: =EOMONTH(AE21,1) -> 2021-11-30 | AF22: 3 | AG22: =IF(AG21<$E$5,AG21+1,"") -> 3 | AH22: =IF(AND(AG22<$E$5,AG22=Оцінка!$F$14),AH21-AI21-Оцінка!$E$14,IF(AG22>$E$5,"",AH21-AI21)) ->  | AL22: 0 | AO22: 12 | AP22: =IF(B22>$E$5,"",EOMONTH(C21,1)) -> 2021-12-31 | AQ22: 3 | AR22: =IF(AR21<$E$5,AR21+1,"") -> 3 | AS22: =IF(AR22>$E$5,"",AS21-AT21) -> 3000000 | AT22: =IF(OR(AR22<=$E$7,AR22=""),0,$E$4/(($E$5)-$E$7)) -> 0 | AU22: 27500 | AW22: 0 | AY22: 27500
A23: 4 | B23: 4 | C23: 2022-01-01 | D23: 3000000 | E23: =IF((B23>$E$5),0,IF($E$6="щорічне",AI23,AT23)) -> 0 | F23: 28416.66667 | G23: 0 | J23: 0 | P23: 28416.66667 | AA23: 0 | AD23: 12 | AE23: 2021-12-31 | AF23: 4 | AG23: =IF(AG22<$E$5,AG22+1,"") -> 4 | AH23: =IF(AND(AG23<$E$5,AG23=Оцінка!$F$14),AH22-AI22-Оцінка!$E$14,IF(AG23>$E$5,"",AH22-AI22)) ->  | AL23: 0 | AO23: 1 | AP23: 2022-01-31 | AQ23: 4 | AR23: =IF(AR22<$E$5,AR22+1,"") -> 4 | AS23: 3000000 | AT23: 0 | AU23: 27500 | AW23: 0 | AY23: 27500
A24: 5 | B24: 5 | C24: 2022-02-01 | D24: 3000000 | E24: 0 | F24: =IF(B24>$E$5,"",D24*$E$8/360*(C24-C23)) -> 28416.66667 | G24: 0 | J24: 0 | P24: 28416.66667 | AA24: 0 | AD24: 1 | AE24: 2022-01-31 | AF24: 5 | AG24: 5 | AH24: =IF(AND(AG24<$E$5,AG24=Оцінка!$F$14),AH23-AI23-Оцінка!$E$14,IF(AG24>$E$5,"",AH23-AI23)) ->  | AL24: 0 | AO24: 2 | AP24: 2022-02-28 | AQ24: 5 | AR24: 5 | AS24: 3000000 | AT24: 0 | AU24: 27500 | AW24: 0 | AY24: 27500
A25: 6 | B25: 6 | C25: 2022-03-01 | D25: 3000000 | E25: 0 | F25: 25666.66667 | G25: 0 | J25: 0 | P25: 25666.66667 | AA25: 0 | AD25: 2 | AE25: 2022-02-28 | AF25: 6 | AG25: 6 | AH25: =IF(AND(AG25<$E$5,AG25=Оцінка!$F$14),AH24-AI24-Оцінка!$E$14,IF(AG25>$E$5,"",AH24-AI24)) ->  | AL25: 0 | AO25: 3 | AP25: 2022-03-31 | AQ25: 6 | AR25: 6 | AS25: 3000000 | AT25: 0 | AU25: 27500 | AW25: 0 | AY25: 27500
A26: 7 | B26: 7 | C26: 2022-04-01 | D26: 3000000 | E26: =IF((B26>$E$5),0,IF($E$6="щорічне",AI26,AT26)) -> 0 | F26: 28416.66667 | G26: 0 | J26: 0 | P26: 28416.66667 | AA26: 0 | AD26: 3 | AE26: 2022-03-31 | AF26: 7 | AG26: 7 | AH26: =IF(AND(AG26<$E$5,AG26=Оцінка!$F$14),AH25-AI25-Оцінка!$E$14,IF(AG26>$E$5,"",AH25-AI25)) ->  | AL26: 0 | AO26: 4 | AP26: 2022-04-30 | AQ26: 7 | AR26: 7 | AS26: 3000000 | AT26: 0 | AU26: 27500 | AW26: 0 | AY26: 27500
A27: 8 | B27: 8 | C27: 2022-05-01 | D27: 3000000 | E27: 0 | F27: =IF(B27>$E$5,"",D27*$E$8/360*(C27-C26)) -> 27500 | G27: 0 | J27: 0 | P27: 27500 | AA27: 0 | AD27: 4 | AE27: 2022-04-30 | AF27: 8 | AG27: 8 | AH27: =IF(AND(AG27<$E$5,AG27=Оцінка!$F$14),AH26-AI26-Оцінка!$E$14,IF(AG27>$E$5,"",AH26-AI26)) ->  | AL27: 0 | AO27: 5 | AP27: 2022-05-31 | AQ27: 8 | AR27: 8 | AS27: 3000000 | AT27: 0 | AU27: 27500 | AW27: 0 | AY27: 27500
A28: 9 | B28: 9 | C28: 2022-06-01 | D28: 3000000 | E28: =IF((B28>$E$5),0,IF($E$6="щорічне",AI28,AT28)) -> 0 | F28: 28416.66667 | G28: 0 | J28: 0 | P28: 28416.66667 | AA28: 0 | AD28: 5 | AE28: 2022-05-31 | AF28: 9 | AG28: 9 | AH28: =IF(AND(AG28<$E$5,AG28=Оцінка!$F$14),AH27-AI27-Оцінка!$E$14,IF(AG28>$E$5,"",AH27-AI27)) ->  | AL28: 0 | AO28: 6 | AP28: 2022-06-30 | AQ28: 9 | AR28: 9 | AS28: 3000000 | AT28: 0 | AU28: 27500 | AW28: 0 | AY28: 27500
A29: 10 | B29: 10 | C29: 2022-07-01 | D29: 3000000 | E29: 0 | F29: 27500 | G29: 0 | J29: 0 | P29: 27500 | AA29: 0 | AD29: 6 | AE29: 2022-06-30 | AF29: 10 | AG29: 10 | AH29: =IF(AND(AG29<$E$5,AG29=Оцінка!$F$14),AH28-AI28-Оцінка!$E$14,IF(AG29>$E$5,"",AH28-AI28)) ->  | AL29: 0 | AO29: 7 | AP29: 2022-07-31 | AQ29: 10 | AR29: 10 | AS29: 3000000 | AT29: 0 | AU29: 27500 | AW29: 0 | AY29: 27500
A30: 11 | B30: 11 | C30: 2022-08-01 | D30: 3000000 | E30: 0 | F30: 28416.66667 | G30: 0 | J30: 0 | P30: 28416.66667 | AA30: 0 | AD30: 7 | AE30: 2022-07-31 | AF30: 11 | AG30: 11 | AH30: =IF(AND(AG30<$E$5,AG30=Оцінка!$F$14),AH29-AI29-Оцінка!$E$14,IF(AG30>$E$5,"",AH29-AI29)) ->  | AL30: 0 | AO30: 8 | AP30: 2022-08-31 | AQ30: 11 | AR30: 11 | AS30: 3000000 | AT30: 0 | AU30: 27500 | AW30: 0 | AY30: 27500
A31: 12 | B31: 12 | C31: 2022-09-01 | D31: 3000000 | E31: 0 | F31: 28416.66667 | G31: 0 | J31: 0 | P31: 28416.66667 | AA31: 0 | AD31: 8 | AE31: 2022-08-31 | AF31: 12 | AG31: 12 | AH31: =IF(AND(AG31<$E$5,AG31=Оцінка!$F$14),AH30-AI30-Оцінка!$E$14,IF(AG31>$E$5,"",AH30-AI30)) ->  | AL31: 0 | AO31: 9 | AP31: 2022-09-30 | AQ31: 12 | AR31: 12 | AS31: 3000000 | AT31: 0 | AU31: 27500 | AW31: 0 | AY31: 27500
A32: 13 | B32: 13 | C32: 2022-10-01 | D32: 3000000 | E32: 27777.77778 | F32: =IF(B32>$E$5,"",D32*$E$8/12) -> 27500 | G32: 0 | J32: 0 | P32: 55277.77778 | AD32: 9 | AE32: 2022-09-30 | AF32: 1 | AG32: 13 | AH32: =IF(AND(AG32<$E$5,AG32=Оцінка!$F$14),AH31-AI31-Оцінка!$E$14,IF(AG32>$E$5,"",AH31-AI31)) ->  | AL32: 0 | AO32: 10 | AP32: 2022-10-31 | AQ32: 1 | AR32: 13 | AS32: 3000000 | AT32: 27777.77778 | AU32: 27500 | AW32: 0 | AY32: 55277.77778
A33: 14 | B33: 14 | C33: 2022-11-01 | D33: 2972222.222 | E33: 27777.77778 | F33: 27245.37037 | G33: 0 | J33: 0 | P33: 55023.14815 | AD33: 10 | AE33: 2022-10-31 | AF33: 2 | AG33: 14 | AH33: =IF(AND(AG33<$E$5,AG33=Оцінка!$F$14),AH32-AI32-Оцінка!$E$14,IF(AG33>$E$5,"",AH32-AI32)) ->  | AL33: 0 | AO33: 11 | AP33: 2022-11-30 | AQ33: 2 | AR33: 14 | AS33: 2972222.222 | AT33: 27777.77778 | AU33: 27245.37037 | AW33: 0 | AY33: 55023.14815
A34: 15 | B34: 15 | C34: 2022-12-01 | D34: 2944444.444 | E34: 27777.77778 | F34: 26990.74074 | G34: 0 | J34: 0 | P34: 54768.51852 | AD34: 11 | AE34: 2022-11-30 | AF34: 3 | AG34: 15 | AH34: =IF(AND(AG34<$E$5,AG34=Оцінка!$F$14),AH33-AI33-Оцінка!$E$14,IF(AG34>$E$5,"",AH33-AI33)) ->  | AL34: 0 | AO34: 12 | AP34: 2022-12-31 | AQ34: 3 | AR34: 15 | AS34: 2944444.444 | AT34: 27777.77778 | AU34: 26990.74074 | AW34: 0 | AY34: 54768.51852
A35: 16 | B35: 16 | C35: 2023-01-01 | D35: 2916666.667 | E35: 27777.77778 | F35: 26736.11111 | G35: 0 | J35: 0 | P35: 54513.88889 | AD35: 12 | AE35: 2022-12-31 | AF35: 4 | AG35: 16 | AH35: =IF(AND(AG35<$E$5,AG35=Оцінка!$F$14),AH34-AI34-Оцінка!$E$14,IF(AG35>$E$5,"",AH34-AI34)) ->  | AL35: 0 | AO35: 1 | AP35: 2023-01-31 | AQ35: 4 | AR35: 16 | AS35: 2916666.667 | AT35: 27777.77778 | AU35: 26736.11111 | AW35: 0 | AY35: 54513.88889
A36: 17 | B36: 17 | C36: 2023-02-01 | D36: 2888888.889 | E36: 27777.77778 | F36: 26481.48148 | G36: 0 | J36: 0 | P36: 54259.25926 | AD36: 1 | AE36: 2023-01-31 | AF36: 5 | AG36: 17 | AH36: =IF(AND(AG36<$E$5,AG36=Оцінка!$F$14),AH35-AI35-Оцінка!$E$14,IF(AG36>$E$5,"",AH35-AI35)) ->  | AL36: 0 | AO36: 2 | AP36: 2023-02-28 | AQ36: 5 | AR36: 17 | AS36: 2888888.889 | AT36: 27777.77778 | AU36: 26481.48148 | AW36: 0 | AY36: 54259.25926
A37: 18 | B37: 18 | C37: 2023-03-01 | D37: 2861111.111 | E37: 27777.77778 | F37: 26226.85185 | G37: 0 | J37: 0 | P37: 54004.62963 | AD37: 2 | AE37: 2023-02-28 | AF37: 6 | AG37: 18 | AH37: =IF(AND(AG37<$E$5,AG37=Оцінка!$F$14),AH36-AI36-Оцінка!$E$14,IF(AG37>$E$5,"",AH36-AI36)) ->  | AL37: 0 | AO37: 3 | AP37: 2023-03-31 | AQ37: 6 | AR37: 18 | AS37: 2861111.111 | AT37: 27777.77778 | AU37: 26226.85185 | AW37: 0 | AY37: 54004.62963
A38: 19 | B38: 19 | C38: 2023-04-01 | D38: 2833333.333 | E38: 27777.77778 | F38: 25972.22222 | G38: 0 | J38: 0 | P38: 53750 | AD38: 3 | AE38: 2023-03-31 | AF38: 7 | AG38: 19 | AH38: =IF(AND(AG38<$E$5,AG38=Оцінка!$F$14),AH37-AI37-Оцінка!$E$14,IF(AG38>$E$5,"",AH37-AI37)) ->  | AL38: 0 | AO38: 4 | AP38: 2023-04-30 | AQ38: 7 | AR38: 19 | AS38: 2833333.333 | AT38: 27777.77778 | AU38: 25972.22222 | AW38: 0 | AY38: 53750
A39: 20 | B39: 20 | C39: 2023-05-01 | D39: 2805555.556 | E39: 27777.77778 | F39: 25717.59259 | G39: 0 | J39: 0 | P39: 53495.37037 | AD39: 4 | AE39: 2023-04-30 | AF39: 8 | AG39: 20 | AH39: =IF(AND(AG39<$E$5,AG39=Оцінка!$F$14),AH38-AI38-Оцінка!$E$14,IF(AG39>$E$5,"",AH38-AI38)) ->  | AL39: 0 | AO39: 5 | AP39: 2023-05-31 | AQ39: 8 | AR39: 20 | AS39: 2805555.556 | AT39: 27777.77778 | AU39: 25717.59259 | AW39: 0 | AY39: 53495.37037
A40: 21 | B40: 21 | C40: 2023-06-01 | D40: 2777777.778 | E40: 27777.77778 | F40: 25462.96296 | G40: 0 | J40: 0 | P40: 53240.74074 | AD40: 5 | AE40: 2023-05-31 | AF40: 9 | AG40: 21 | AH40: =IF(AND(AG40<$E$5,AG40=Оцінка!$F$14),AH39-AI39-Оцінка!$E$14,IF(AG40>$E$5,"",AH39-AI39)) ->  | AL40: 0 | AO40: 6 | AP40: 2023-06-30 | AQ40: 9 | AR40: 21 | AS40: 2777777.778 | AT40: 27777.77778 | AU40: 25462.96296 | AW40: 0 | AY40: 53240.74074
A41: 22 | B41: 22 | C41: 2023-07-01 | D41: 2750000 | E41: 27777.77778 | F41: 25208.33333 | G41: 0 | J41: 0 | P41: 52986.11111 | AD41: 6 | AE41: 2023-06-30 | AF41: 10 | AG41: 22 | AH41: =IF(AND(AG41<$E$5,AG41=Оцінка!$F$14),AH40-AI40-Оцінка!$E$14,IF(AG41>$E$5,"",AH40-AI40)) ->  | AL41: 0 | AO41: 7 | AP41: 2023-07-31 | AQ41: 10 | AR41: 22 | AS41: 2750000 | AT41: 27777.77778 | AU41: 25208.33333 | AW41: 0 | AY41: 52986.11111
A42: 23 | B42: 23 | C42: 2023-08-01 | D42: 2722222.222 | E42: 27777.77778 | F42: 24953.7037 | G42: 0 | J42: 0 | P42: 52731.48148 | AD42: 7 | AE42: 2023-07-31 | AF42: 11 | AG42: 23 | AH42: =IF(AND(AG42<$E$5,AG42=Оцінка!$F$14),AH41-AI41-Оцінка!$E$14,IF(AG42>$E$5,"",AH41-AI41)) ->  | AL42: 0 | AO42: 8 | AP42: 2023-08-31 | AQ42: 11 | AR42: 23 | AS42: 2722222.222 | AT42: 27777.77778 | AU42: 24953.7037 | AW42: 0 | AY42: 52731.48148
A43: 24 | B43: 24 | C43: 2023-09-01 | D43: 2694444.444 | E43: 27777.77778 | F43: 24699.07407 | G43: 0 | J43: 0 | P43: 52476.85185 | AD43: 8 | AE43: 2023-08-31 | AF43: 12 | AG43: 24 | AH43: =IF(AND(AG43<$E$5,AG43=Оцінка!$F$14),AH42-AI42-Оцінка!$E$14,IF(AG43>$E$5,"",AH42-AI42)) ->  | AL43: 0 | AO43: 9 | AP43: 2023-09-30 | AQ43: 12 | AR43: 24 | AS43: 2694444.444 | AT43: 27777.77778 | AU43: 24699.07407 | AW43: 0 | AY43: 52476.85185
A44: 25 | B44: 25 | C44: 2023-10-01 | D44: 2666666.667 | E44: 27777.77778 | F44: 24444.44444 | G44: 0 | J44: 0 | P44: 52222.22222 | AD44: 9 | AE44: 2023-09-30 | AF44: 1 | AG44: 25 | AH44: =IF(AND(AG44<$E$5,AG44=Оцінка!$F$14),AH43-AI43-Оцінка!$E$14,IF(AG44>$E$5,"",AH43-AI43)) ->  | AL44: 0 | AO44: 10 | AP44: 2023-10-31 | AQ44: 1 | AR44: 25 | AS44: 2666666.667 | AT44: 27777.77778 | AU44: 24444.44444 | AW44: 0 | AY44: 52222.22222
A45: 26 | B45: 26 | C45: 2023-11-01 | D45: 2638888.889 | E45: 27777.77778 | F45: 24189.81481 | G45: 0 | J45: 0 | P45: 51967.59259 | AD45: 10 | AE45: 2023-10-31 | AF45: 2 | AG45: 26 | AH45: =IF(AND(AG45<$E$5,AG45=Оцінка!$F$14),AH44-AI44-Оцінка!$E$14,IF(AG45>$E$5,"",AH44-AI44)) ->  | AL45: 0 | AO45: 11 | AP45: 2023-11-30 | AQ45: 2 | AR45: 26 | AS45: 2638888.889 | AT45: 27777.77778 | AU45: 24189.81481 | AW45: 0 | AY45: 51967.59259
A46: 27 | B46: 27 | C46: 2023-12-01 | D46: 2611111.111 | E46: 27777.77778 | F46: 23935.18519 | G46: 0 | J46: 0 | P46: 51712.96296 | AD46: 11 | AE46: 2023-11-30 | AF46: 3 | AG46: 27 | AH46: =IF(AND(AG46<$E$5,AG46=Оцінка!$F$14),AH45-AI45-Оцінка!$E$14,IF(AG46>$E$5,"",AH45-AI45)) ->  | AL46: 0 | AO46: 12 | AP46: 2023-12-31 | AQ46: 3 | AR46: 27 | AS46: 2611111.111 | AT46: 27777.77778 | AU46: 23935.18519 | AW46: 0 | AY46: 51712.96296
A47: 28 | B47: 28 | C47: 2024-01-01 | D47: 2583333.333 | E47: 27777.77778 | F47: 23680.55556 | G47: 0 | J47: 0 | P47: 51458.33333 | AD47: 12 | AE47: 2023-12-31 | AF47: 4 | AG47: 28 | AH47: =IF(AND(AG47<$E$5,AG47=Оцінка!$F$14),AH46-AI46-Оцінка!$E$14,IF(AG47>$E$5,"",AH46-AI46)) ->  | AL47: 0 | AO47: 1 | AP47: 2024-01-31 | AQ47: 4 | AR47: 28 | AS47: 2583333.333 | AT47: 27777.77778 | AU47: 23680.55556 | AW47: 0 | AY47: 51458.33333
A48: 29 | B48: 29 | C48: 2024-02-01 | D48: 2555555.556 | E48: 27777.77778 | F48: 23425.92593 | G48: 0 | J48: 0 | P48: 51203.7037 | AD48: 1 | AE48: 2024-01-31 | AF48: 5 | AG48: 29 | AH48: =IF(AND(AG48<$E$5,AG48=Оцінка!$F$14),AH47-AI47-Оцінка!$E$14,IF(AG48>$E$5,"",AH47-AI47)) ->  | AL48: 0 | AO48: 2 | AP48: 2024-02-29 | AQ48: 5 | AR48: 29 | AS48: 2555555.556 | AT48: 27777.77778 | AU48: 23425.92593 | AW48: 0 | AY48: 51203.7037
A49: 30 | B49: 30 | C49: 2024-03-01 | D49: 2527777.778 | E49: 27777.77778 | F49: 23171.2963 | G49: 0 | J49: 0 | P49: 50949.07407 | AD49: 2 | AE49: 2024-02-29 | AF49: 6 | AG49: 30 | AH49: =IF(AND(AG49<$E$5,AG49=Оцінка!$F$14),AH48-AI48-Оцінка!$E$14,IF(AG49>$E$5,"",AH48-AI48)) ->  | AL49: 0 | AO49: 3 | AP49: 2024-03-31 | AQ49: 6 | AR49: 30 | AS49: 2527777.778 | AT49: 27777.77778 | AU49: 23171.2963 | AW49: 0 | AY49: 50949.07407
A50: 31 | B50: 31 | C50: 2024-04-01 | D50: 2500000 | E50: 27777.77778 | F50: 22916.66667 | G50: 0 | J50: 0 | P50: 50694.44444 | AD50: 3 | AE50: 2024-03-31 | AF50: 7 | AG50: 31 | AH50: =IF(AND(AG50<$E$5,AG50=Оцінка!$F$14),AH49-AI49-Оцінка!$E$14,IF(AG50>$E$5,"",AH49-AI49)) ->  | AL50: 0 | AO50: 4 | AP50: 2024-04-30 | AQ50: 7 | AR50: 31 | AS50: 2500000 | AT50: 27777.77778 | AU50: 22916.66667 | AW50: 0 | AY50: 50694.44444
A51: 32 | B51: 32 | C51: 2024-05-01 | D51: 2472222.222 | E51: 27777.77778 | F51: 22662.03704 | G51: 0 | J51: 0 | P51: 50439.81481 | AD51: 4 | AE51: 2024-04-30 | AF51: 8 | AG51: 32 | AH51: =IF(AND(AG51<$E$5,AG51=Оцінка!$F$14),AH50-AI50-Оцінка!$E$14,IF(AG51>$E$5,"",AH50-AI50)) ->  | AL51: 0 | AO51: 5 | AP51: 2024-05-31 | AQ51: 8 | AR51: 32 | AS51: 2472222.222 | AT51: 27777.77778 | AU51: 22662.03704 | AW51: 0 | AY51: 50439.81481
A52: 33 | B52: 33 | C52: 2024-06-01 | D52: 2444444.444 | E52: 27777.77778 | F52: 22407.40741 | G52: 0 | J52: 0 | P52: 50185.18519 | AD52: 5 | AE52: 2024-05-31 | AF52: 9 | AG52: 33 | AH52: =IF(AND(AG52<$E$5,AG52=Оцінка!$F$14),AH51-AI51-Оцінка!$E$14,IF(AG52>$E$5,"",AH51-AI51)) ->  | AL52: 0 | AN52: =IF(AG52>$E$5,"",SUM(AI52:AM52)) ->  | AO52: 6 | AP52: 2024-06-30 | AQ52: 9 | AR52: 33 | AS52: 2444444.444 | AT52: 27777.77778 | AU52: 22407.40741 | AW52: 0 | AY52: =IF(AR52>$E$5,"",SUM(AT52:AX52)) -> 50185.18519
A53: 34 | B53: 34 | C53: 2024-07-01 | D53: 2416666.667 | E53: 27777.77778 | F53: 22152.77778 | G53: 0 | J53: 0 | P53: 49930.55556 | AD53: 6 | AE53: 2024-06-30 | AF53: 10 | AG53: 34 | AH53: =IF(AND(AG53<$E$5,AG53=Оцінка!$F$14),AH52-AI52-Оцінка!$E$14,IF(AG53>$E$5,"",AH52-AI52)) ->  | AL53: 0 | AO53: 7 | AP53: 2024-07-31 | AQ53: 10 | AR53: 34 | AS53: 2416666.667 | AT53: 27777.77778 | AU53: 22152.77778 | AW53: 0 | AY53: 49930.55556
A54: 35 | B54: 35 | C54: 2024-08-01 | D54: 2388888.889 | E54: 27777.77778 | F54: 21898.14815 | G54: 0 | J54: 0 | P54: 49675.92593 | AD54: 7 | AE54: 2024-07-31 | AF54: 11 | AG54: 35 | AH54: =IF(AND(AG54<$E$5,AG54=Оцінка!$F$14),AH53-AI53-Оцінка!$E$14,IF(AG54>$E$5,"",AH53-AI53)) ->  | AL54: 0 | AO54: 8 | AP54: 2024-08-31 | AQ54: 11 | AR54: 35 | AS54: 2388888.889 | AT54: 27777.77778 | AU54: 21898.14815 | AW54: 0 | AY54: 49675.92593
A55: 36 | B55: 36 | C55: 2024-09-01 | D55: 2361111.111 | E55: 27777.77778 | F55: 21643.51852 | G55: 0 | J55: 0 | P55: 49421.2963 | AD55: 8 | AE55: 2024-08-31 | AF55: 12 | AG55: 36 | AH55: =IF(AND(AG55<$E$5,AG55=Оцінка!$F$14),AH54-AI54-Оцінка!$E$14,IF(AG55>$E$5,"",AH54-AI54)) ->  | AL55: 0 | AO55: 9 | AP55: 2024-09-30 | AQ55: 12 | AR55: 36 | AS55: 2361111.111 | AT55: 27777.77778 | AU55: 21643.51852 | AW55: 0 | AY55: 49421.2963
A56: 37 | B56: 37 | C56: 2024-10-01 | D56: 2333333.333 | E56: 27777.77778 | F56: 21388.88889 | G56: 0 | J56: 0 | P56: 49166.66667 | AD56: 9 | AE56: 2024-09-30 | AF56: 1 | AG56: 37 | AH56: =IF(AND(AG56<$E$5,AG56=Оцінка!$F$14),AH55-AI55-Оцінка!$E$14,IF(AG56>$E$5,"",AH55-AI55)) ->  | AL56: 0 | AO56: 10 | AP56: 2024-10-31 | AQ56: 1 | AR56: 37 | AS56: 2333333.333 | AT56: 27777.77778 | AU56: 21388.88889 | AW56: 0 | AY56: 49166.66667
A57: 38 | B57: 38 | C57: 2024-11-01 | D57: 2305555.556 | E57: 27777.77778 | F57: 21134.25926 | G57: 0 | J57: 0 | P57: 48912.03704 | AD57: 10 | AE57: 2024-10-31 | AF57: 2 | AG57: 38 | AH57: =IF(AND(AG57<$E$5,AG57=Оцінка!$F$14),AH56-AI56-Оцінка!$E$14,IF(AG57>$E$5,"",AH56-AI56)) ->  | AL57: 0 | AO57: 11 | AP57: 2024-11-30 | AQ57: 2 | AR57: 38 | AS57: 2305555.556 | AT57: 27777.77778 | AU57: 21134.25926 | AW57: 0 | AY57: 48912.03704
A58: 39 | B58: 39 | C58: 2024-12-01 | D58: 2277777.778 | E58: 27777.77778 | F58: 20879.62963 | G58: 0 | J58: 0 | P58: 48657.40741 | AD58: 11 | AE58: 2024-11-30 | AF58: 3 | AG58: 39 | AH58: =IF(AND(AG58<$E$5,AG58=Оцінка!$F$14),AH57-AI57-Оцінка!$E$14,IF(AG58>$E$5,"",AH57-AI57)) ->  | AL58: 0 | AO58: 12 | AP58: 2024-12-31 | AQ58: 3 | AR58: 39 | AS58: 2277777.778 | AT58: 27777.77778 | AU58: 20879.62963 | AW58: 0 | AY58: 48657.40741
A59: 40 | B59: 40 | C59: 2025-01-01 | D59: 2250000 | E59: 27777.77778 | F59: 20625 | G59: 0 | J59: 0 | P59: 48402.77778 | AD59: 12 | AE59: 2024-12-31 | AF59: 4 | AG59: 40 | AH59: =IF(AND(AG59<$E$5,AG59=Оцінка!$F$14),AH58-AI58-Оцінка!$E$14,IF(AG59>$E$5,"",AH58-AI58)) ->  | AL59: 0 | AO59: 1 | AP59: 2025-01-31 | AQ59: 4 | AR59: 40 | AS59: 2250000 | AT59: 27777.77778 | AU59: 20625 | AW59: 0 | AY59: 48402.77778
A60: 41 | B60: 41 | C60: 2025-02-01 | D60: 2222222.222 | E60: 27777.77778 | F60: 20370.37037 | G60: 0 | J60: 0 | P60: 48148.14815 | AD60: 1 | AE60: 2025-01-31 | AF60: 5 | AG60: 41 | AH60: =IF(AND(AG60<$E$5,AG60=Оцінка!$F$14),AH59-AI59-Оцінка!$E$14,IF(AG60>$E$5,"",AH59-AI59)) ->  | AL60: 0 | AO60: 2 | AP60: 2025-02-28 | AQ60: 5 | AR60: 41 | AS60: 2222222.222 | AT60: 27777.77778 | AU60: 20370.37037 | AW60: 0 | AY60: 48148.14815
A61: 42 | B61: 42 | C61: 2025-03-01 | D61: 2194444.444 | E61: 27777.77778 | F61: 20115.74074 | G61: 0 | J61: 0 | P61: 47893.51852 | AD61: 2 | AE61: 2025-02-28 | AF61: 6 | AG61: 42 | AH61: =IF(AND(AG61<$E$5,AG61=Оцінка!$F$14),AH60-AI60-Оцінка!$E$14,IF(AG61>$E$5,"",AH60-AI60)) ->  | AL61: 0 | AO61: 3 | AP61: 2025-03-31 | AQ61: 6 | AR61: 42 | AS61: 2194444.444 | AT61: 27777.77778 | AU61: 20115.74074 | AW61: 0 | AY61: 47893.51852
A62: 43 | B62: 43 | C62: 2025-04-01 | D62: 2166666.667 | E62: 27777.77778 | F62: 19861.11111 | G62: 0 | J62: 0 | P62: 47638.88889 | AD62: 3 | AE62: 2025-03-31 | AF62: 7 | AG62: 43 | AH62: =IF(AND(AG62<$E$5,AG62=Оцінка!$F$14),AH61-AI61-Оцінка!$E$14,IF(AG62>$E$5,"",AH61-AI61)) ->  | AL62: 0 | AO62: 4 | AP62: 2025-04-30 | AQ62: 7 | AR62: 43 | AS62: 2166666.667 | AT62: 27777.77778 | AU62: 19861.11111 | AW62: 0 | AY62: 47638.88889
A63: 44 | B63: 44 | C63: 2025-05-01 | D63: 2138888.889 | E63: 27777.77778 | F63: 19606.48148 | G63: 0 | J63: 0 | P63: 47384.25926 | AD63: 4 | AE63: 2025-04-30 | AF63: 8 | AG63: 44 | AH63: =IF(AND(AG63<$E$5,AG63=Оцінка!$F$14),AH62-AI62-Оцінка!$E$14,IF(AG63>$E$5,"",AH62-AI62)) ->  | AL63: 0 | AO63: 5 | AP63: 2025-05-31 | AQ63: 8 | AR63: 44 | AS63: 2138888.889 | AT63: 27777.77778 | AU63: 19606.48148 | AW63: 0 | AY63: 47384.25926
A64: 45 | B64: 45 | C64: 2025-06-01 | D64: 2111111.111 | E64: 27777.77778 | F64: 19351.85185 | G64: 0 | J64: 0 | P64: 47129.62963 | AD64: 5 | AE64: 2025-05-31 | AF64: 9 | AG64: 45 | AH64: =IF(AND(AG64<$E$5,AG64=Оцінка!$F$14),AH63-AI63-Оцінка!$E$14,IF(AG64>$E$5,"",AH63-AI63)) ->  | AL64: 0 | AO64: 6 | AP64: 2025-06-30 | AQ64: 9 | AR64: 45 | AS64: 2111111.111 | AT64: 27777.77778 | AU64: 19351.85185 | AW64: 0 | AY64: 47129.62963
A65: 46 | B65: 46 | C65: 2025-07-01 | D65: 2083333.333 | E65: 27777.77778 | F65: 19097.22222 | G65: 0 | J65: 0 | P65: 46875 | AD65: 6 | AE65: 2025-06-30 | AF65: 10 | AG65: 46 | AH65: =IF(AND(AG65<$E$5,AG65=Оцінка!$F$14),AH64-AI64-Оцінка!$E$14,IF(AG65>$E$5,"",AH64-AI64)) ->  | AL65: 0 | AO65: 7 | AP65: 2025-07-31 | AQ65: 10 | AR65: 46 | AS65: 2083333.333 | AT65: 27777.77778 | AU65: 19097.22222 | AW65: 0 | AY65: 46875
A66: 47 | B66: 47 | C66: 2025-08-01 | D66: 2055555.556 | E66: 27777.77778 | F66: 18842.59259 | G66: 0 | J66: 0 | P66: 46620.37037 | AD66: 7 | AE66: 2025-07-31 | AF66: 11 | AG66: 47 | AH66: =IF(AND(AG66<$E$5,AG66=Оцінка!$F$14),AH65-AI65-Оцінка!$E$14,IF(AG66>$E$5,"",AH65-AI65)) ->  | AL66: 0 | AO66: 8 | AP66: 2025-08-31 | AQ66: 11 | AR66: 47 | AS66: 2055555.556 | AT66: 27777.77778 | AU66: 18842.59259 | AW66: 0 | AY66: 46620.37037
A67: 48 | B67: 48 | C67: 2025-09-01 | D67: 2027777.778 | E67: 27777.77778 | F67: 18587.96296 | G67: 0 | J67: 0 | P67: 46365.74074 | AD67: 8 | AE67: 2025-08-31 | AF67: 12 | AG67: 48 | AH67: =IF(AND(AG67<$E$5,AG67=Оцінка!$F$14),AH66-AI66-Оцінка!$E$14,IF(AG67>$E$5,"",AH66-AI66)) ->  | AL67: 0 | AO67: 9 | AP67: 2025-09-30 | AQ67: 12 | AR67: 48 | AS67: 2027777.778 | AT67: 27777.77778 | AU67: 18587.96296 | AW67: 0 | AY67: 46365.74074
A68: 49 | B68: 49 | C68: 2025-10-01 | D68: 2000000 | E68: 27777.77778 | F68: 18333.33333 | G68: 0 | J68: 0 | P68: 46111.11111 | AD68: 9 | AE68: 2025-09-30 | AF68: 1 | AG68: 49 | AH68: =IF(AND(AG68<$E$5,AG68=Оцінка!$F$14),AH67-AI67-Оцінка!$E$14,IF(AG68>$E$5,"",AH67-AI67)) ->  | AL68: 0 | AO68: 10 | AP68: 2025-10-31 | AQ68: 1 | AR68: 49 | AS68: 2000000 | AT68: 27777.77778 | AU68: 18333.33333 | AW68: 0 | AY68: 46111.11111
A69: 50 | B69: 50 | C69: 2025-11-01 | D69: 1972222.222 | E69: 27777.77778 | F69: 18078.7037 | G69: 0 | J69: 0 | P69: 45856.48148 | AD69: 10 | AE69: 2025-10-31 | AF69: 2 | AG69: 50 | AH69: =IF(AND(AG69<$E$5,AG69=Оцінка!$F$14),AH68-AI68-Оцінка!$E$14,IF(AG69>$E$5,"",AH68-AI68)) ->  | AL69: 0 | AO69: 11 | AP69: 2025-11-30 | AQ69: 2 | AR69: 50 | AS69: 1972222.222 | AT69: 27777.77778 | AU69: 18078.7037 | AW69: 0 | AY69: 45856.48148
A70: 51 | B70: 51 | C70: 2025-12-01 | D70: 1944444.444 | E70: 27777.77778 | F70: 17824.07407 | G70: 0 | J70: 0 | P70: 45601.85185 | AD70: 11 | AE70: 2025-11-30 | AF70: 3 | AG70: 51 | AH70: =IF(AND(AG70<$E$5,AG70=Оцінка!$F$14),AH69-AI69-Оцінка!$E$14,IF(AG70>$E$5,"",AH69-AI69)) ->  | AL70: 0 | AO70: 12 | AP70: 2025-12-31 | AQ70: 3 | AR70: 51 | AS70: 1944444.444 | AT70: 27777.77778 | AU70: 17824.07407 | AW70: 0 | AY70: 45601.85185
A71: 52 | B71: 52 | C71: 2026-01-01 | D71: 1916666.667 | E71: 27777.77778 | F71: 17569.44444 | G71: 0 | J71: 0 | P71: 45347.22222 | AD71: 12 | AE71: 2025-12-31 | AF71: 4 | AG71: 52 | AH71: =IF(AND(AG71<$E$5,AG71=Оцінка!$F$14),AH70-AI70-Оцінка!$E$14,IF(AG71>$E$5,"",AH70-AI70)) ->  | AL71: 0 | AO71: 1 | AP71: 2026-01-31 | AQ71: 4 | AR71: 52 | AS71: 1916666.667 | AT71: 27777.77778 | AU71: 17569.44444 | AW71: 0 | AY71: 45347.22222
A72: 53 | B72: 53 | C72: 2026-02-01 | D72: 1888888.889 | E72: 27777.77778 | F72: 17314.81481 | G72: 0 | J72: 0 | P72: 45092.59259 | AD72: 1 | AE72: 2026-01-31 | AF72: 5 | AG72: 53 | AH72: =IF(AND(AG72<$E$5,AG72=Оцінка!$F$14),AH71-AI71-Оцінка!$E$14,IF(AG72>$E$5,"",AH71-AI71)) ->  | AL72: 0 | AO72: 2 | AP72: 2026-02-28 | AQ72: 5 | AR72: 53 | AS72: 1888888.889 | AT72: 27777.77778 | AU72: 17314.81481 | AW72: 0 | AY72: 45092.59259
A73: 54 | B73: 54 | C73: 2026-03-01 | D73: 1861111.111 | E73: 27777.77778 | F73: 17060.18519 | G73: 0 | J73: 0 | P73: 44837.96296 | AD73: 2 | AE73: 2026-02-28 | AF73: 6 | AG73: 54 | AH73: =IF(AND(AG73<$E$5,AG73=Оцінка!$F$14),AH72-AI72-Оцінка!$E$14,IF(AG73>$E$5,"",AH72-AI72)) ->  | AL73: 0 | AO73: 3 | AP73: 2026-03-31 | AQ73: 6 | AR73: 54 | AS73: 1861111.111 | AT73: 27777.77778 | AU73: 17060.18519 | AW73: 0 | AY73: 44837.96296
A74: 55 | B74: 55 | C74: 2026-04-01 | D74: 1833333.333 | E74: 27777.77778 | F74: 16805.55556 | G74: 0 | J74: 0 | P74: 44583.33333 | AD74: 3 | AE74: 2026-03-31 | AF74: 7 | AG74: 55 | AH74: =IF(AND(AG74<$E$5,AG74=Оцінка!$F$14),AH73-AI73-Оцінка!$E$14,IF(AG74>$E$5,"",AH73-AI73)) ->  | AL74: 0 | AO74: 4 | AP74: 2026-04-30 | AQ74: 7 | AR74: 55 | AS74: 1833333.333 | AT74: 27777.77778 | AU74: 16805.55556 | AW74: 0 | AY74: 44583.33333
A75: 56 | B75: 56 | C75: 2026-05-01 | D75: 1805555.556 | E75: 27777.77778 | F75: 16550.92593 | G75: 0 | J75: 0 | P75: 44328.7037 | AD75: 4 | AE75: 2026-04-30 | AF75: 8 | AG75: 56 | AH75: =IF(AND(AG75<$E$5,AG75=Оцінка!$F$14),AH74-AI74-Оцінка!$E$14,IF(AG75>$E$5,"",AH74-AI74)) ->  | AL75: 0 | AO75: 5 | AP75: 2026-05-31 | AQ75: 8 | AR75: 56 | AS75: 1805555.556 | AT75: 27777.77778 | AU75: 16550.92593 | AW75: 0 | AY75: 44328.7037
A76: 57 | B76: 57 | C76: 2026-06-01 | D76: 1777777.778 | E76: 27777.77778 | F76: 16296.2963 | G76: 0 | J76: 0 | P76: 44074.07407 | AD76: 5 | AE76: 2026-05-31 | AF76: 9 | AG76: 57 | AH76: =IF(AND(AG76<$E$5,AG76=Оцінка!$F$14),AH75-AI75-Оцінка!$E$14,IF(AG76>$E$5,"",AH75-AI75)) ->  | AL76: 0 | AO76: 6 | AP76: 2026-06-30 | AQ76: 9 | AR76: 57 | AS76: 1777777.778 | AT76: 27777.77778 | AU76: 16296.2963 | AW76: 0 | AY76: 44074.07407
A77: 58 | B77: 58 | C77: 2026-07-01 | D77: 1750000 | E77: 27777.77778 | F77: 16041.66667 | G77: 0 | J77: 0 | P77: 43819.44444 | AD77: 6 | AE77: 2026-06-30 | AF77: 10 | AG77: 58 | AH77: =IF(AND(AG77<$E$5,AG77=Оцінка!$F$14),AH76-AI76-Оцінка!$E$14,IF(AG77>$E$5,"",AH76-AI76)) ->  | AL77: 0 | AO77: 7 | AP77: 2026-07-31 | AQ77: 10 | AR77: 58 | AS77: 1750000 | AT77: 27777.77778 | AU77: 16041.66667 | AW77: 0 | AY77: 43819.44444
A78: 59 | B78: 59 | C78: 2026-08-01 | D78: 1722222.222 | E78: 27777.77778 | F78: 15787.03704 | G78: 0 | J78: 0 | P78: 43564.81481 | AD78: 7 | AE78: 2026-07-31 | AF78: 11 | AG78: =IF(AG77<$E$5,AG77+1,"") -> 59 | AH78: =IF(AND(AG78<$E$5,AG78=Оцінка!$F$14),AH77-AI77-Оцінка!$E$14,IF(AG78>$E$5,"",AH77-AI77)) ->  | AL78: 0 | AO78: 8 | AP78: 2026-08-31 | AQ78: 11 | AR78: =IF(AR77<$E$5,AR77+1,"") -> 59 | AS78: 1722222.222 | AT78: 27777.77778 | AU78: 15787.03704 | AW78: 0 | AY78: 43564.81481
A79: 60 | B79: 60 | C79: 2026-09-01 | D79: 1694444.444 | E79: 27777.77778 | F79: 15532.40741 | G79: 0 | J79: 0 | P79: 43310.18519 | AD79: 8 | AE79: 2026-08-31 | AF79: 12 | AG79: =AG78+1 -> 60 | AH79: =IF(AND(AG79<$E$5,AG79=Оцінка!$F$14),AH78-AI78-Оцінка!$E$14,IF(AG79>$E$5,"",AH78-AI78)) ->  | AL79: 0 | AO79: 9 | AP79: 2026-09-30 | AQ79: 12 | AR79: =IF(AR78<$E$5,AR78+1,"") -> 60 | AS79: 1694444.444 | AT79: 27777.77778 | AU79: 15532.40741 | AW79: 0 | AY79: 43310.18519
A80: 61 | B80: 61 | C80: 2026-10-01 | D80: 1666666.667 | E80: 27777.77778 | F80: 15277.77778 | G80: 0 | J80: 0 | P80: 43055.55556 | AD80: =IF(AE80="","",MONTH(AE80)) -> 9 | AE80: 2026-09-30 | AF80: 1 | AG80: =AG79+1 -> 61 | AH80: =IF(AND(AG80<$E$5,AG80=Оцінка!$F$14),AH79-AI79-Оцінка!$E$14,IF(AG80>$E$5,"",AH79-AI79)) ->  | AI80: =IF(OR(AG80>$E$5,HLOOKUP(AD80,$AE$7:$AP$8,2,0)=1),0,$E$4/((12-$E$7)*($E$5/12))) ->  | AL80: 0 | AO80: 10 | AP80: 2026-10-31 | AQ80: 1 | AR80: =IF(AR79<$E$5,AR79+1,"") -> 61 | AS80: 1666666.667 | AT80: 27777.77778 | AU80: 15277.77778 | AW80: 0 | AY80: 43055.55556
A81: 62 | B81: 62 | C81: 2026-11-01 | D81: 1638888.889 | E81: 27777.77778 | F81: 15023.14815 | G81: 0 | J81: 0 | P81: 42800.92593 | AD81: =IF(AE81="","",MONTH(AE81)) -> 10 | AE81: 2026-10-31 | AF81: 2 | AG81: 62 | AH81: =IF(AND(AG81<$E$5,AG81=Оцінка!$F$14),AH80-AI80-Оцінка!$E$14,IF(AG81>$E$5,"",AH80-AI80)) ->  | AL81: 0 | AO81: 11 | AP81: 2026-11-30 | AQ81: 2 | AR81: 62 | AS81: 1638888.889 | AT81: 27777.77778 | AU81: 15023.14815 | AW81: 0 | AY81: 42800.92593
A82: 63 | B82: 63 | C82: 2026-12-01 | D82: 1611111.111 | E82: 27777.77778 | F82: 14768.51852 | G82: 0 | J82: 0 | P82: 42546.2963 | AD82: =IF(AE82="","",MONTH(AE82)) -> 11 | AE82: 2026-11-30 | AF82: 3 | AG82: 63 | AH82: =IF(AND(AG82<$E$5,AG82=Оцінка!$F$14),AH81-AI81-Оцінка!$E$14,IF(AG82>$E$5,"",AH81-AI81)) ->  | AL82: 0 | AO82: 12 | AP82: 2026-12-31 | AQ82: 3 | AR82: 63 | AS82: 1611111.111 | AT82: 27777.77778 | AU82: 14768.51852 | AW82: 0 | AY82: 42546.2963
A83: 64 | B83: 64 | C83: 2027-01-01 | D83: 1583333.333 | E83: 27777.77778 | F83: 14513.88889 | G83: 0 | J83: 0 | P83: 42291.66667 | AD83: 12 | AE83: 2026-12-31 | AF83: 4 | AG83: 64 | AH83: =IF(AND(AG83<$E$5,AG83=Оцінка!$F$14),AH82-AI82-Оцінка!$E$14,IF(AG83>$E$5,"",AH82-AI82)) ->  | AL83: 0 | AO83: 1 | AP83: 2027-01-31 | AQ83: 4 | AR83: 64 | AS83: 1583333.333 | AT83: 27777.77778 | AU83: 14513.88889 | AW83: 0 | AY83: 42291.66667
A84: 65 | B84: 65 | C84: 2027-02-01 | D84: 1555555.556 | E84: 27777.77778 | F84: 14259.25926 | G84: 0 | J84: =IF(B84>$E$5,"",$E$4*$E$11) -> 0 | P84: 42037.03704 | AD84: 1 | AE84: 2027-01-31 | AF84: 5 | AG84: 65 | AH84: =IF(AND(AG84<$E$5,AG84=Оцінка!$F$14),AH83-AI83-Оцінка!$E$14,IF(AG84>$E$5,"",AH83-AI83)) ->  | AJ84: =IF(AG84>$E$5,"",AH84*$E$8/12) ->  | AL84: 0 | AO84: 2 | AP84: 2027-02-28 | AQ84: 5 | AR84: 65 | AS84: 1555555.556 | AT84: 27777.77778 | AU84: =IF(AR84>$E$5,"",AS84*$E$8/12) -> 14259.25926 | AW84: 0 | AY84: 42037.03704
A85: =B85 -> 66 | B85: =IF(B84<$E$5,B84+1,"") -> 66 | C85: 2027-03-01 | D85: 1527777.778 | E85: 27777.77778 | F85: 14004.62963 | G85: =IF(B85<=$Q$10,$E$4*$E$10/$Q$10,0) -> 0 | J85: 0 | P85: =IF(B85>$E$5,"",SUM(E85:O85)) -> 41782.40741 | AD85: 2 | AE85: 2027-02-28 | AF85: 6 | AG85: 66 | AH85: =IF(AND(AG85<$E$5,AG85=Оцінка!$F$14),AH84-AI84-Оцінка!$E$14,IF(AG85>$E$5,"",AH84-AI84)) ->  | AI85: =IF(OR(AG85>$E$5,HLOOKUP(AD85,$AE$7:$AP$8,2,0)=1),0,$E$4/((12-$E$7)*($E$5/12))) ->  | AL85: =IF(AG85>$E$5,"",$E$4*$E$11) -> 0 | AO85: =MONTH(AP85) -> 3 | AP85: 2027-03-31 | AQ85: 6 | AR85: 66 | AS85: 1527777.778 | AT85: 27777.77778 | AU85: 14004.62963 | AW85: =IF(AR85>$E$5,"",$E$4*$E$11) -> 0 | AY85: 41782.40741
A86: 67 | B86: 67 | C86: =IF(B86>$E$5,"",EDATE(C85,1)) -> 2027-04-01 | D86: =IF(B86>$E$5,"",D85-E85) -> 1500000 | E86: 27777.77778 | F86: 13750 | G86: 0 | J86: 0 | P86: 41527.77778 | AD86: 3 | AE86: =EOMONTH(AE85,1) -> 2027-03-31 | AF86: 7 | AG86: 67 | AH86: =IF(AND(AG86<$E$5,AG86=Оцінка!$F$14),AH85-AI85-Оцінка!$E$14,IF(AG86>$E$5,"",AH85-AI85)) ->  | AL86: 0 | AO86: 4 | AP86: =IF(B86>$E$5,"",EOMONTH(C85,1)) -> 2027-04-30 | AQ86: 7 | AR86: 67 | AS86: =IF(AR86>$E$5,"",AS85-AT85) -> 1500000 | AT86: =IF(OR(AR86<=$E$7,AR86=""),0,$E$4/(($E$5)-$E$7)) -> 27777.77778 | AU86: 13750 | AW86: 0 | AY86: 41527.77778
A87: 68 | B87: 68 | C87: 2027-05-01 | D87: 1472222.222 | E87: =IF((B87>$E$5),0,IF($E$6="щорічне",AI87,AT87)) -> 27777.77778 | F87: 13495.37037 | G87: 0 | J87: 0 | P87: 41273.14815 | AD87: 4 | AE87: 2027-04-30 | AF87: 8 | AG87: 68 | AH87: =IF(AND(AG87<$E$5,AG87=Оцінка!$F$14),AH86-AI86-Оцінка!$E$14,IF(AG87>$E$5,"",AH86-AI86)) ->  | AL87: 0 | AO87: 5 | AP87: 2027-05-31 | AQ87: 8 | AR87: 68 | AS87: 1472222.222 | AT87: 27777.77778 | AU87: 13495.37037 | AW87: 0 | AY87: 41273.14815
A88: 69 | B88: 69 | C88: 2027-06-01 | D88: 1444444.444 | E88: 27777.77778 | F88: 13240.74074 | G88: 0 | J88: 0 | P88: 41018.51852 | AD88: 5 | AE88: 2027-05-31 | AF88: 9 | AG88: 69 | AH88: =IF(AND(AG88<$E$5,AG88=Оцінка!$F$14),AH87-AI87-Оцінка!$E$14,IF(AG88>$E$5,"",AH87-AI87)) ->  | AL88: 0 | AO88: 6 | AP88: 2027-06-30 | AQ88: 9 | AR88: 69 | AS88: 1444444.444 | AT88: 27777.77778 | AU88: 13240.74074 | AW88: 0 | AY88: 41018.51852
A89: 70 | B89: 70 | C89: 2027-07-01 | D89: 1416666.667 | E89: 27777.77778 | F89: 12986.11111 | G89: 0 | J89: 0 | P89: 40763.88889 | AD89: 6 | AE89: 2027-06-30 | AF89: 10 | AG89: 70 | AH89: =IF(AND(AG89<$E$5,AG89=Оцінка!$F$14),AH88-AI88-Оцінка!$E$14,IF(AG89>$E$5,"",AH88-AI88)) ->  | AL89: 0 | AO89: 7 | AP89: 2027-07-31 | AQ89: 10 | AR89: 70 | AS89: 1416666.667 | AT89: 27777.77778 | AU89: 12986.11111 | AW89: 0 | AY89: 40763.88889
A90: 71 | B90: 71 | C90: 2027-08-01 | D90: 1388888.889 | E90: 27777.77778 | F90: 12731.48148 | G90: 0 | J90: 0 | P90: 40509.25926 | AD90: 7 | AE90: 2027-07-31 | AF90: 11 | AG90: 71 | AH90: =IF(AND(AG90<$E$5,AG90=Оцінка!$F$14),AH89-AI89-Оцінка!$E$14,IF(AG90>$E$5,"",AH89-AI89)) ->  | AL90: 0 | AO90: 8 | AP90: 2027-08-31 | AQ90: 11 | AR90: 71 | AS90: 1388888.889 | AT90: 27777.77778 | AU90: 12731.48148 | AW90: 0 | AY90: 40509.25926
A91: 72 | B91: 72 | C91: 2027-09-01 | D91: 1361111.111 | E91: 27777.77778 | F91: 12476.85185 | G91: 0 | J91: 0 | P91: 40254.62963 | AD91: 8 | AE91: 2027-08-31 | AF91: 12 | AG91: 72 | AH91: =IF(AND(AG91<$E$5,AG91=Оцінка!$F$14),AH90-AI90-Оцінка!$E$14,IF(AG91>$E$5,"",AH90-AI90)) ->  | AL91: 0 | AO91: 9 | AP91: 2027-09-30 | AQ91: 12 | AR91: 72 | AS91: 1361111.111 | AT91: 27777.77778 | AU91: 12476.85185 | AW91: 0 | AY91: 40254.62963
A92: 73 | B92: 73 | C92: 2027-10-01 | D92: 1333333.333 | E92: 27777.77778 | F92: 12222.22222 | G92: 0 | J92: 0 | P92: 40000 | AD92: 9 | AE92: 2027-09-30 | AF92: 1 | AG92: 73 | AH92: =IF(AND(AG92<$E$5,AG92=Оцінка!$F$14),AH91-AI91-Оцінка!$E$14,IF(AG92>$E$5,"",AH91-AI91)) ->  | AL92: 0 | AO92: 10 | AP92: 2027-10-31 | AQ92: 1 | AR92: 73 | AS92: 1333333.333 | AT92: 27777.77778 | AU92: 12222.22222 | AW92: 0 | AY92: 40000
A93: 74 | B93: 74 | C93: 2027-11-01 | D93: 1305555.556 | E93: 27777.77778 | F93: 11967.59259 | G93: 0 | J93: 0 | P93: 39745.37037 | AD93: 10 | AE93: 2027-10-31 | AF93: 2 | AG93: 74 | AH93: =IF(AND(AG93<$E$5,AG93=Оцінка!$F$14),AH92-AI92-Оцінка!$E$14,IF(AG93>$E$5,"",AH92-AI92)) ->  | AL93: 0 | AO93: 11 | AP93: 2027-11-30 | AQ93: 2 | AR93: 74 | AS93: 1305555.556 | AT93: 27777.77778 | AU93: 11967.59259 | AW93: 0 | AY93: 39745.37037
A94: 75 | B94: 75 | C94: 2027-12-01 | D94: 1277777.778 | E94: 27777.77778 | F94: 11712.96296 | G94: 0 | J94: 0 | P94: 39490.74074 | AD94: 11 | AE94: 2027-11-30 | AF94: 3 | AG94: 75 | AH94: =IF(AND(AG94<$E$5,AG94=Оцінка!$F$14),AH93-AI93-Оцінка!$E$14,IF(AG94>$E$5,"",AH93-AI93)) ->  | AL94: 0 | AO94: 12 | AP94: 2027-12-31 | AQ94: 3 | AR94: 75 | AS94: 1277777.778 | AT94: 27777.77778 | AU94: 11712.96296 | AW94: 0 | AY94: 39490.74074
A95: 76 | B95: 76 | C95: 2028-01-01 | D95: 1250000 | E95: 27777.77778 | F95: 11458.33333 | G95: 0 | J95: 0 | P95: 39236.11111 | AD95: 12 | AE95: 2027-12-31 | AF95: 4 | AG95: 76 | AH95: =IF(AND(AG95<$E$5,AG95=Оцінка!$F$14),AH94-AI94-Оцінка!$E$14,IF(AG95>$E$5,"",AH94-AI94)) ->  | AL95: 0 | AO95: 1 | AP95: 2028-01-31 | AQ95: 4 | AR95: 76 | AS95: 1250000 | AT95: 27777.77778 | AU95: 11458.33333 | AW95: 0 | AY95: 39236.11111
A96: 77 | B96: 77 | C96: 2028-02-01 | D96: 1222222.222 | E96: 27777.77778 | F96: =IF(B96>$E$5,"",D96*$E$8/12) -> 11203.7037 | G96: 0 | J96: 0 | P96: 38981.48148 | AD96: 1 | AE96: 2028-01-31 | AF96: 5 | AG96: 77 | AH96: =IF(AND(AG96<$E$5,AG96=Оцінка!$F$14),AH95-AI95-Оцінка!$E$14,IF(AG96>$E$5,"",AH95-AI95)) ->  | AL96: 0 | AO96: 2 | AP96: 2028-02-29 | AQ96: 5 | AR96: 77 | AS96: 1222222.222 | AT96: 27777.77778 | AU96: 11203.7037 | AW96: 0 | AY96: 38981.48148
A97: 78 | B97: 78 | C97: 2028-03-01 | D97: 1194444.444 | E97: 27777.77778 | F97: 10949.07407 | G97: 0 | J97: 0 | P97: 38726.85185 | AD97: 2 | AE97: 2028-02-29 | AF97: 6 | AG97: 78 | AH97: =IF(AND(AG97<$E$5,AG97=Оцінка!$F$14),AH96-AI96-Оцінка!$E$14,IF(AG97>$E$5,"",AH96-AI96)) ->  | AL97: 0 | AO97: 3 | AP97: 2028-03-31 | AQ97: 6 | AR97: 78 | AS97: 1194444.444 | AT97: 27777.77778 | AU97: 10949.07407 | AW97: 0 | AY97: 38726.85185
A98: 79 | B98: 79 | C98: 2028-04-01 | D98: 1166666.667 | E98: 27777.77778 | F98: 10694.44444 | G98: 0 | J98: 0 | P98: 38472.22222 | AD98: 3 | AE98: 2028-03-31 | AF98: 7 | AG98: 79 | AH98: =IF(AND(AG98<$E$5,AG98=Оцінка!$F$14),AH97-AI97-Оцінка!$E$14,IF(AG98>$E$5,"",AH97-AI97)) ->  | AL98: 0 | AO98: 4 | AP98: 2028-04-30 | AQ98: 7 | AR98: 79 | AS98: 1166666.667 | AT98: 27777.77778 | AU98: 10694.44444 | AW98: 0 | AY98: 38472.22222
A99: 80 | B99: 80 | C99: 2028-05-01 | D99: 1138888.889 | E99: 27777.77778 | F99: 10439.81481 | G99: 0 | J99: 0 | P99: 38217.59259 | AD99: 4 | AE99: 2028-04-30 | AF99: 8 | AG99: 80 | AH99: =IF(AND(AG99<$E$5,AG99=Оцінка!$F$14),AH98-AI98-Оцінка!$E$14,IF(AG99>$E$5,"",AH98-AI98)) ->  | AL99: 0 | AO99: 5 | AP99: 2028-05-31 | AQ99: 8 | AR99: 80 | AS99: 1138888.889 | AT99: 27777.77778 | AU99: 10439.81481 | AW99: 0 | AY99: 38217.59259
A100: 81 | B100: 81 | C100: 2028-06-01 | D100: 1111111.111 | E100: 27777.77778 | F100: 10185.18519 | G100: 0 | J100: 0 | P100: 37962.96296 | AD100: 5 | AE100: 2028-05-31 | AF100: 9 | AG100: 81 | AH100: =IF(AND(AG100<$E$5,AG100=Оцінка!$F$14),AH99-AI99-Оцінка!$E$14,IF(AG100>$E$5,"",AH99-AI99)) ->  | AL100: 0 | AO100: 6 | AP100: 2028-06-30 | AQ100: 9 | AR100: 81 | AS100: 1111111.111 | AT100: 27777.77778 | AU100: 10185.18519 | AW100: 0 | AY100: 37962.96296
A101: 82 | B101: 82 | C101: 2028-07-01 | D101: 1083333.333 | E101: 27777.77778 | F101: 9930.555556 | G101: 0 | J101: 0 | P101: 37708.33333 | AD101: 6 | AE101: 2028-06-30 | AF101: 10 | AG101: 82 | AH101: =IF(AND(AG101<$E$5,AG101=Оцінка!$F$14),AH100-AI100-Оцінка!$E$14,IF(AG101>$E$5,"",AH100-AI100)) ->  | AL101: 0 | AO101: 7 | AP101: 2028-07-31 | AQ101: 10 | AR101: 82 | AS101: 1083333.333 | AT101: 27777.77778 | AU101: 9930.555556 | AW101: 0 | AY101: 37708.33333
A102: 83 | B102: 83 | C102: 2028-08-01 | D102: 1055555.556 | E102: 27777.77778 | F102: 9675.925926 | G102: 0 | J102: 0 | P102: 37453.7037 | AD102: 7 | AE102: 2028-07-31 | AF102: 11 | AG102: 83 | AH102: =IF(AND(AG102<$E$5,AG102=Оцінка!$F$14),AH101-AI101-Оцінка!$E$14,IF(AG102>$E$5,"",AH101-AI101)) ->  | AL102: 0 | AO102: 8 | AP102: 2028-08-31 | AQ102: 11 | AR102: 83 | AS102: 1055555.556 | AT102: 27777.77778 | AU102: 9675.925926 | AW102: 0 | AY102: 37453.7037
A103: 84 | B103: 84 | C103: 2028-09-01 | D103: 1027777.778 | E103: 27777.77778 | F103: 9421.296296 | G103: 0 | J103: 0 | P103: 37199.07407 | AD103: 8 | AE103: 2028-08-31 | AF103: 12 | AG103: 84 | AH103: =IF(AND(AG103<$E$5,AG103=Оцінка!$F$14),AH102-AI102-Оцінка!$E$14,IF(AG103>$E$5,"",AH102-AI102)) ->  | AL103: 0 | AO103: 9 | AP103: 2028-09-30 | AQ103: 12 | AR103: 84 | AS103: 1027777.778 | AT103: 27777.77778 | AU103: 9421.296296 | AW103: 0 | AY103: 37199.07407
A104: 85 | B104: 85 | C104: 2028-10-01 | D104: 1000000 | E104: 27777.77778 | F104: 9166.666667 | G104: 0 | J104: 0 | P104: 36944.44444 | AD104: 9 | AE104: 2028-09-30 | AF104: 1 | AG104: 85 | AH104: =IF(AND(AG104<$E$5,AG104=Оцінка!$F$14),AH103-AI103-Оцінка!$E$14,IF(AG104>$E$5,"",AH103-AI103)) ->  | AL104: 0 | AO104: 10 | AP104: 2028-10-31 | AQ104: 1 | AR104: 85 | AS104: 1000000 | AT104: 27777.77778 | AU104: 9166.666667 | AW104: 0 | AY104: 36944.44444
A105: 86 | B105: 86 | C105: 2028-11-01 | D105: 972222.2222 | E105: 27777.77778 | F105: 8912.037037 | G105: 0 | J105: 0 | P105: 36689.81481 | AD105: 10 | AE105: 2028-10-31 | AF105: 2 | AG105: 86 | AH105: =IF(AND(AG105<$E$5,AG105=Оцінка!$F$14),AH104-AI104-Оцінка!$E$14,IF(AG105>$E$5,"",AH104-AI104)) ->  | AL105: 0 | AO105: 11 | AP105: 2028-11-30 | AQ105: 2 | AR105: 86 | AS105: 972222.2222 | AT105: 27777.77778 | AU105: 8912.037037 | AW105: 0 | AY105: 36689.81481
A106: 87 | B106: 87 | C106: 2028-12-01 | D106: 944444.4444 | E106: 27777.77778 | F106: 8657.407407 | G106: 0 | J106: 0 | P106: 36435.18519 | AD106: 11 | AE106: 2028-11-30 | AF106: 3 | AG106: 87 | AH106: =IF(AND(AG106<$E$5,AG106=Оцінка!$F$14),AH105-AI105-Оцінка!$E$14,IF(AG106>$E$5,"",AH105-AI105)) ->  | AL106: 0 | AO106: 12 | AP106: 2028-12-31 | AQ106: 3 | AR106: 87 | AS106: 944444.4444 | AT106: 27777.77778 | AU106: 8657.407407 | AW106: 0 | AY106: 36435.18519
A107: 88 | B107: 88 | C107: 2029-01-01 | D107: 916666.6667 | E107: 27777.77778 | F107: 8402.777778 | G107: 0 | J107: 0 | P107: 36180.55556 | AD107: 12 | AE107: 2028-12-31 | AF107: 4 | AG107: 88 | AH107: =IF(AND(AG107<$E$5,AG107=Оцінка!$F$14),AH106-AI106-Оцінка!$E$14,IF(AG107>$E$5,"",AH106-AI106)) ->  | AL107: 0 | AO107: 1 | AP107: 2029-01-31 | AQ107: 4 | AR107: 88 | AS107: 916666.6667 | AT107: 27777.77778 | AU107: 8402.777778 | AW107: 0 | AY107: 36180.55556
A108: 89 | B108: 89 | C108: 2029-02-01 | D108: 888888.8889 | E108: 27777.77778 | F108: 8148.148148 | G108: 0 | J108: 0 | P108: 35925.92593 | AD108: 1 | AE108: 2029-01-31 | AF108: 5 | AG108: 89 | AH108: =IF(AND(AG108<$E$5,AG108=Оцінка!$F$14),AH107-AI107-Оцінка!$E$14,IF(AG108>$E$5,"",AH107-AI107)) ->  | AL108: 0 | AO108: 2 | AP108: 2029-02-28 | AQ108: 5 | AR108: 89 | AS108: 888888.8889 | AT108: 27777.77778 | AU108: 8148.148148 | AW108: 0 | AY108: 35925.92593
A109: 90 | B109: 90 | C109: 2029-03-01 | D109: 861111.1111 | E109: 27777.77778 | F109: 7893.518519 | G109: 0 | J109: 0 | P109: 35671.2963 | AD109: 2 | AE109: 2029-02-28 | AF109: 6 | AG109: 90 | AH109: =IF(AND(AG109<$E$5,AG109=Оцінка!$F$14),AH108-AI108-Оцінка!$E$14,IF(AG109>$E$5,"",AH108-AI108)) ->  | AL109: 0 | AO109: 3 | AP109: 2029-03-31 | AQ109: 6 | AR109: 90 | AS109: 861111.1111 | AT109: 27777.77778 | AU109: 7893.518519 | AW109: 0 | AY109: 35671.2963
A110: 91 | B110: 91 | C110: 2029-04-01 | D110: 833333.3333 | E110: 27777.77778 | F110: 7638.888889 | G110: 0 | J110: 0 | P110: 35416.66667 | AD110: 3 | AE110: 2029-03-31 | AF110: 7 | AG110: 91 | AH110: =IF(AND(AG110<$E$5,AG110=Оцінка!$F$14),AH109-AI109-Оцінка!$E$14,IF(AG110>$E$5,"",AH109-AI109)) ->  | AL110: 0 | AO110: 4 | AP110: 2029-04-30 | AQ110: 7 | AR110: 91 | AS110: 833333.3333 | AT110: 27777.77778 | AU110: 7638.888889 | AW110: 0 | AY110: 35416.66667
A111: 92 | B111: 92 | C111: 2029-05-01 | D111: 805555.5556 | E111: 27777.77778 | F111: 7384.259259 | G111: 0 | J111: 0 | P111: 35162.03704 | AD111: 4 | AE111: 2029-04-30 | AF111: 8 | AG111: 92 | AH111: =IF(AND(AG111<$E$5,AG111=Оцінка!$F$14),AH110-AI110-Оцінка!$E$14,IF(AG111>$E$5,"",AH110-AI110)) ->  | AL111: 0 | AO111: 5 | AP111: 2029-05-31 | AQ111: 8 | AR111: 92 | AS111: 805555.5556 | AT111: 27777.77778 | AU111: 7384.259259 | AW111: 0 | AY111: 35162.03704
A112: 93 | B112: 93 | C112: 2029-06-01 | D112: 777777.7778 | E112: 27777.77778 | F112: 7129.62963 | G112: 0 | J112: 0 | P112: 34907.40741 | AD112: 5 | AE112: 2029-05-31 | AF112: 9 | AG112: 93 | AH112: =IF(AND(AG112<$E$5,AG112=Оцінка!$F$14),AH111-AI111-Оцінка!$E$14,IF(AG112>$E$5,"",AH111-AI111)) ->  | AL112: 0 | AO112: 6 | AP112: 2029-06-30 | AQ112: 9 | AR112: 93 | AS112: 777777.7778 | AT112: 27777.77778 | AU112: 7129.62963 | AW112: 0 | AY112: 34907.40741
A113: 94 | B113: 94 | C113: 2029-07-01 | D113: 750000 | E113: 27777.77778 | F113: 6875 | G113: 0 | J113: 0 | P113: 34652.77778 | AD113: 6 | AE113: 2029-06-30 | AF113: 10 | AG113: 94 | AH113: =IF(AND(AG113<$E$5,AG113=Оцінка!$F$14),AH112-AI112-Оцінка!$E$14,IF(AG113>$E$5,"",AH112-AI112)) ->  | AL113: 0 | AO113: 7 | AP113: 2029-07-31 | AQ113: 10 | AR113: 94 | AS113: 750000 | AT113: 27777.77778 | AU113: 6875 | AW113: 0 | AY113: 34652.77778
A114: 95 | B114: 95 | C114: 2029-08-01 | D114: 722222.2222 | E114: 27777.77778 | F114: 6620.37037 | G114: 0 | J114: 0 | P114: 34398.14815 | AD114: 7 | AE114: 2029-07-31 | AF114: 11 | AG114: 95 | AH114: =IF(AND(AG114<$E$5,AG114=Оцінка!$F$14),AH113-AI113-Оцінка!$E$14,IF(AG114>$E$5,"",AH113-AI113)) ->  | AL114: 0 | AO114: 8 | AP114: 2029-08-31 | AQ114: 11 | AR114: 95 | AS114: 722222.2222 | AT114: 27777.77778 | AU114: 6620.37037 | AW114: 0 | AY114: 34398.14815
A115: 96 | B115: 96 | C115: 2029-09-01 | D115: 694444.4444 | E115: 27777.77778 | F115: 6365.740741 | G115: 0 | J115: 0 | P115: 34143.51852 | AD115: 8 | AE115: 2029-08-31 | AF115: 12 | AG115: 96 | AH115: =IF(AND(AG115<$E$5,AG115=Оцінка!$F$14),AH114-AI114-Оцінка!$E$14,IF(AG115>$E$5,"",AH114-AI114)) ->  | AL115: 0 | AO115: 9 | AP115: 2029-09-30 | AQ115: 12 | AR115: 96 | AS115: 694444.4444 | AT115: 27777.77778 | AU115: 6365.740741 | AW115: 0 | AY115: 34143.51852
A116: 97 | B116: 97 | C116: 2029-10-01 | D116: 666666.6667 | E116: 27777.77778 | F116: 6111.111111 | G116: 0 | J116: 0 | P116: 33888.88889 | AD116: 9 | AE116: 2029-09-30 | AF116: 1 | AG116: 97 | AH116: =IF(AND(AG116<$E$5,AG116=Оцінка!$F$14),AH115-AI115-Оцінка!$E$14,IF(AG116>$E$5,"",AH115-AI115)) ->  | AL116: 0 | AN116: =IF(AG116>$E$5,"",SUM(AI116:AM116)) ->  | AO116: 10 | AP116: 2029-10-31 | AQ116: 1 | AR116: 97 | AS116: 666666.6667 | AT116: 27777.77778 | AU116: 6111.111111 | AW116: 0 | AY116: =IF(AR116>$E$5,"",SUM(AT116:AX116)) -> 33888.88889
A117: 98 | B117: 98 | C117: 2029-11-01 | D117: 638888.8889 | E117: 27777.77778 | F117: 5856.481481 | G117: 0 | J117: 0 | P117: 33634.25926 | AD117: 10 | AE117: 2029-10-31 | AF117: 2 | AG117: 98 | AH117: =IF(AND(AG117<$E$5,AG117=Оцінка!$F$14),AH116-AI116-Оцінка!$E$14,IF(AG117>$E$5,"",AH116-AI116)) ->  | AL117: 0 | AO117: 11 | AP117: 2029-11-30 | AQ117: 2 | AR117: 98 | AS117: 638888.8889 | AT117: 27777.77778 | AU117: 5856.481481 | AW117: 0 | AY117: 33634.25926
A118: 99 | B118: 99 | C118: 2029-12-01 | D118: 611111.1111 | E118: 27777.77778 | F118: 5601.851852 | G118: 0 | J118: 0 | P118: 33379.62963 | AD118: 11 | AE118: 2029-11-30 | AF118: 3 | AG118: 99 | AH118: =IF(AND(AG118<$E$5,AG118=Оцінка!$F$14),AH117-AI117-Оцінка!$E$14,IF(AG118>$E$5,"",AH117-AI117)) ->  | AL118: 0 | AO118: 12 | AP118: 2029-12-31 | AQ118: 3 | AR118: 99 | AS118: 611111.1111 | AT118: 27777.77778 | AU118: 5601.851852 | AW118: 0 | AY118: 33379.62963
A119: 100 | B119: 100 | C119: 2030-01-01 | D119: 583333.3333 | E119: 27777.77778 | F119: 5347.222222 | G119: 0 | J119: 0 | P119: 33125 | AD119: 12 | AE119: 2029-12-31 | AF119: 4 | AG119: 100 | AH119: =IF(AND(AG119<$E$5,AG119=Оцінка!$F$14),AH118-AI118-Оцінка!$E$14,IF(AG119>$E$5,"",AH118-AI118)) ->  | AL119: 0 | AO119: 1 | AP119: 2030-01-31 | AQ119: 4 | AR119: 100 | AS119: 583333.3333 | AT119: 27777.77778 | AU119: 5347.222222 | AW119: 0 | AY119: 33125
A120: 101 | B120: 101 | C120: 2030-02-01 | D120: 555555.5556 | E120: 27777.77778 | F120: 5092.592593 | G120: 0 | J120: 0 | P120: 32870.37037 | AD120: 1 | AE120: 2030-01-31 | AF120: 5 | AG120: 101 | AH120: =IF(AND(AG120<$E$5,AG120=Оцінка!$F$14),AH119-AI119-Оцінка!$E$14,IF(AG120>$E$5,"",AH119-AI119)) ->  | AL120: 0 | AO120: 2 | AP120: 2030-02-28 | AQ120: 5 | AR120: 101 | AS120: 555555.5556 | AT120: 27777.77778 | AU120: 5092.592593 | AW120: 0 | AY120: 32870.37037
A121: 102 | B121: 102 | C121: 2030-03-01 | D121: 527777.7778 | E121: 27777.77778 | F121: 4837.962963 | G121: 0 | J121: 0 | P121: 32615.74074 | AD121: 2 | AE121: 2030-02-28 | AF121: 6 | AG121: 102 | AH121: =IF(AND(AG121<$E$5,AG121=Оцінка!$F$14),AH120-AI120-Оцінка!$E$14,IF(AG121>$E$5,"",AH120-AI120)) ->  | AL121: 0 | AO121: 3 | AP121: 2030-03-31 | AQ121: 6 | AR121: 102 | AS121: 527777.7778 | AT121: 27777.77778 | AU121: 4837.962963 | AW121: 0 | AY121: 32615.74074
A122: 103 | B122: 103 | C122: 2030-04-01 | D122: 500000 | E122: 27777.77778 | F122: 4583.333333 | G122: 0 | J122: 0 | P122: 32361.11111 | AD122: 3 | AE122: 2030-03-31 | AF122: 7 | AG122: 103 | AH122: =IF(AND(AG122<$E$5,AG122=Оцінка!$F$14),AH121-AI121-Оцінка!$E$14,IF(AG122>$E$5,"",AH121-AI121)) ->  | AL122: 0 | AO122: 4 | AP122: 2030-04-30 | AQ122: 7 | AR122: 103 | AS122: 500000 | AT122: 27777.77778 | AU122: 4583.333333 | AW122: 0 | AY122: 32361.11111
A123: 104 | B123: 104 | C123: 2030-05-01 | D123: 472222.2222 | E123: 27777.77778 | F123: 4328.703704 | G123: 0 | J123: 0 | P123: 32106.48148 | AD123: 4 | AE123: 2030-04-30 | AF123: 8 | AG123: 104 | AH123: =IF(AND(AG123<$E$5,AG123=Оцінка!$F$14),AH122-AI122-Оцінка!$E$14,IF(AG123>$E$5,"",AH122-AI122)) ->  | AL123: 0 | AO123: 5 | AP123: 2030-05-31 | AQ123: 8 | AR123: 104 | AS123: 472222.2222 | AT123: 27777.77778 | AU123: 4328.703704 | AW123: 0 | AY123: 32106.48148
A124: 105 | B124: 105 | C124: 2030-06-01 | D124: 444444.4444 | E124: 27777.77778 | F124: 4074.074074 | G124: 0 | J124: 0 | P124: 31851.85185 | AD124: 5 | AE124: 2030-05-31 | AF124: 9 | AG124: 105 | AH124: =IF(AND(AG124<$E$5,AG124=Оцінка!$F$14),AH123-AI123-Оцінка!$E$14,IF(AG124>$E$5,"",AH123-AI123)) ->  | AL124: 0 | AO124: 6 | AP124: 2030-06-30 | AQ124: 9 | AR124: 105 | AS124: 444444.4444 | AT124: 27777.77778 | AU124: 4074.074074 | AW124: 0 | AY124: 31851.85185
A125: 106 | B125: 106 | C125: 2030-07-01 | D125: 416666.6667 | E125: 27777.77778 | F125: 3819.444444 | G125: 0 | J125: 0 | P125: 31597.22222 | AD125: 6 | AE125: 2030-06-30 | AF125: 10 | AG125: 106 | AH125: =IF(AND(AG125<$E$5,AG125=Оцінка!$F$14),AH124-AI124-Оцінка!$E$14,IF(AG125>$E$5,"",AH124-AI124)) ->  | AL125: 0 | AO125: 7 | AP125: 2030-07-31 | AQ125: 10 | AR125: 106 | AS125: 416666.6667 | AT125: 27777.77778 | AU125: 3819.444444 | AW125: 0 | AY125: 31597.22222
A126: 107 | B126: 107 | C126: 2030-08-01 | D126: 388888.8889 | E126: 27777.77778 | F126: 3564.814815 | G126: 0 | J126: 0 | P126: 31342.59259 | AD126: 7 | AE126: 2030-07-31 | AF126: 11 | AG126: 107 | AH126: =IF(AND(AG126<$E$5,AG126=Оцінка!$F$14),AH125-AI125-Оцінка!$E$14,IF(AG126>$E$5,"",AH125-AI125)) ->  | AL126: 0 | AO126: 8 | AP126: 2030-08-31 | AQ126: 11 | AR126: 107 | AS126: 388888.8889 | AT126: 27777.77778 | AU126: 3564.814815 | AW126: 0 | AY126: 31342.59259
A127: 108 | B127: 108 | C127: 2030-09-01 | D127: 361111.1111 | E127: 27777.77778 | F127: 3310.185185 | G127: 0 | J127: 0 | P127: 31087.96296 | AD127: 8 | AE127: 2030-08-31 | AF127: 12 | AG127: 108 | AH127: =IF(AND(AG127<$E$5,AG127=Оцінка!$F$14),AH126-AI126-Оцінка!$E$14,IF(AG127>$E$5,"",AH126-AI126)) ->  | AL127: 0 | AO127: 9 | AP127: 2030-09-30 | AQ127: 12 | AR127: 108 | AS127: 361111.1111 | AT127: 27777.77778 | AU127: 3310.185185 | AW127: 0 | AY127: 31087.96296
A128: 109 | B128: 109 | C128: 2030-10-01 | D128: 333333.3333 | E128: 27777.77778 | F128: 3055.555556 | G128: 0 | J128: 0 | P128: 30833.33333 | AD128: 9 | AE128: 2030-09-30 | AF128: 1 | AG128: 109 | AH128: =IF(AND(AG128<$E$5,AG128=Оцінка!$F$14),AH127-AI127-Оцінка!$E$14,IF(AG128>$E$5,"",AH127-AI127)) ->  | AL128: 0 | AO128: 10 | AP128: 2030-10-31 | AQ128: 1 | AR128: 109 | AS128: 333333.3333 | AT128: 27777.77778 | AU128: 3055.555556 | AW128: 0 | AY128: 30833.33333
A129: 110 | B129: 110 | C129: 2030-11-01 | D129: 305555.5556 | E129: 27777.77778 | F129: 2800.925926 | G129: 0 | J129: 0 | P129: 30578.7037 | AD129: 10 | AE129: 2030-10-31 | AF129: 2 | AG129: 110 | AH129: =IF(AND(AG129<$E$5,AG129=Оцінка!$F$14),AH128-AI128-Оцінка!$E$14,IF(AG129>$E$5,"",AH128-AI128)) ->  | AL129: 0 | AO129: 11 | AP129: 2030-11-30 | AQ129: 2 | AR129: 110 | AS129: 305555.5556 | AT129: 27777.77778 | AU129: 2800.925926 | AW129: 0 | AY129: 30578.7037
A130: 111 | B130: 111 | C130: 2030-12-01 | D130: 277777.7778 | E130: 27777.77778 | F130: 2546.296296 | G130: 0 | J130: 0 | P130: 30324.07407 | AD130: 11 | AE130: 2030-11-30 | AF130: 3 | AG130: 111 | AH130: =IF(AND(AG130<$E$5,AG130=Оцінка!$F$14),AH129-AI129-Оцінка!$E$14,IF(AG130>$E$5,"",AH129-AI129)) ->  | AL130: 0 | AO130: 12 | AP130: 2030-12-31 | AQ130: 3 | AR130: 111 | AS130: 277777.7778 | AT130: 27777.77778 | AU130: 2546.296296 | AW130: 0 | AY130: 30324.07407
A131: 112 | B131: 112 | C131: 2031-01-01 | D131: 250000 | E131: 27777.77778 | F131: 2291.666667 | G131: 0 | J131: 0 | P131: 30069.44444 | AD131: 12 | AE131: 2030-12-31 | AF131: 4 | AG131: 112 | AH131: =IF(AND(AG131<$E$5,AG131=Оцінка!$F$14),AH130-AI130-Оцінка!$E$14,IF(AG131>$E$5,"",AH130-AI130)) ->  | AL131: 0 | AO131: 1 | AP131: 2031-01-31 | AQ131: 4 | AR131: 112 | AS131: 250000 | AT131: 27777.77778 | AU131: 2291.666667 | AW131: 0 | AY131: 30069.44444
A132: 113 | B132: 113 | C132: 2031-02-01 | D132: 222222.2222 | E132: 27777.77778 | F132: 2037.037037 | G132: 0 | J132: 0 | P132: 29814.81481 | AD132: 1 | AE132: 2031-01-31 | AF132: 5 | AG132: 113 | AH132: =IF(AND(AG132<$E$5,AG132=Оцінка!$F$14),AH131-AI131-Оцінка!$E$14,IF(AG132>$E$5,"",AH131-AI131)) ->  | AL132: 0 | AO132: 2 | AP132: 2031-02-28 | AQ132: 5 | AR132: 113 | AS132: 222222.2222 | AT132: 27777.77778 | AU132: 2037.037037 | AW132: 0 | AY132: 29814.81481
A133: 114 | B133: 114 | C133: 2031-03-01 | D133: 194444.4444 | E133: 27777.77778 | F133: 1782.407407 | G133: 0 | J133: 0 | P133: 29560.18519 | AD133: 2 | AE133: 2031-02-28 | AF133: 6 | AG133: 114 | AH133: =IF(AND(AG133<$E$5,AG133=Оцінка!$F$14),AH132-AI132-Оцінка!$E$14,IF(AG133>$E$5,"",AH132-AI132)) ->  | AL133: 0 | AO133: 3 | AP133: 2031-03-31 | AQ133: 6 | AR133: 114 | AS133: 194444.4444 | AT133: 27777.77778 | AU133: 1782.407407 | AW133: 0 | AY133: 29560.18519
A134: 115 | B134: 115 | C134: 2031-04-01 | D134: 166666.6667 | E134: 27777.77778 | F134: 1527.777778 | G134: 0 | J134: 0 | P134: 29305.55556 | AD134: 3 | AE134: 2031-03-31 | AF134: 7 | AG134: 115 | AH134: =IF(AND(AG134<$E$5,AG134=Оцінка!$F$14),AH133-AI133-Оцінка!$E$14,IF(AG134>$E$5,"",AH133-AI133)) ->  | AL134: 0 | AO134: 4 | AP134: 2031-04-30 | AQ134: 7 | AR134: 115 | AS134: 166666.6667 | AT134: 27777.77778 | AU134: 1527.777778 | AW134: 0 | AY134: 29305.55556
A135: 116 | B135: 116 | C135: 2031-05-01 | D135: 138888.8889 | E135: 27777.77778 | F135: 1273.148148 | G135: 0 | J135: 0 | P135: 29050.92593 | AD135: 4 | AE135: 2031-04-30 | AF135: 8 | AG135: 116 | AH135: =IF(AND(AG135<$E$5,AG135=Оцінка!$F$14),AH134-AI134-Оцінка!$E$14,IF(AG135>$E$5,"",AH134-AI134)) ->  | AL135: 0 | AO135: 5 | AP135: 2031-05-31 | AQ135: 8 | AR135: 116 | AS135: 138888.8889 | AT135: 27777.77778 | AU135: 1273.148148 | AW135: 0 | AY135: 29050.92593
A136: 117 | B136: 117 | C136: 2031-06-01 | D136: 111111.1111 | E136: 27777.77778 | F136: 1018.518519 | G136: 0 | J136: 0 | P136: 28796.2963 | AD136: 5 | AE136: 2031-05-31 | AF136: 9 | AG136: 117 | AH136: =IF(AND(AG136<$E$5,AG136=Оцінка!$F$14),AH135-AI135-Оцінка!$E$14,IF(AG136>$E$5,"",AH135-AI135)) ->  | AL136: 0 | AO136: 6 | AP136: 2031-06-30 | AQ136: 9 | AR136: 117 | AS136: 111111.1111 | AT136: 27777.77778 | AU136: 1018.518519 | AW136: 0 | AY136: 28796.2963
A137: 118 | B137: 118 | C137: 2031-07-01 | D137: 83333.33333 | E137: 27777.77778 | F137: 763.8888889 | G137: 0 | J137: 0 | P137: 28541.66667 | AD137: 6 | AE137: 2031-06-30 | AF137: 10 | AG137: 118 | AH137: =IF(AND(AG137<$E$5,AG137=Оцінка!$F$14),AH136-AI136-Оцінка!$E$14,IF(AG137>$E$5,"",AH136-AI136)) ->  | AL137: 0 | AO137: 7 | AP137: 2031-07-31 | AQ137: 10 | AR137: 118 | AS137: 83333.33333 | AT137: 27777.77778 | AU137: 763.8888889 | AW137: 0 | AY137: 28541.66667
A138: 119 | B138: 119 | C138: 2031-08-01 | D138: 55555.55556 | E138: 27777.77778 | F138: 509.2592593 | G138: 0 | J138: 0 | P138: 28287.03704 | AD138: 7 | AE138: 2031-07-31 | AF138: 11 | AG138: 119 | AH138: =IF(AND(AG138<$E$5,AG138=Оцінка!$F$14),AH137-AI137-Оцінка!$E$14,IF(AG138>$E$5,"",AH137-AI137)) ->  | AL138: 0 | AO138: 8 | AP138: 2031-08-31 | AQ138: 11 | AR138: 119 | AS138: 55555.55556 | AT138: 27777.77778 | AU138: 509.2592593 | AW138: 0 | AY138: 28287.03704
A139: 120 | B139: 120 | C139: 2031-09-01 | D139: 27777.77778 | E139: 27777.77778 | F139: 254.6296296 | G139: 0 | J139: 0 | P139: 28032.40741 | AD139: 8 | AE139: 2031-08-31 | AF139: 12 | AG139: 120 | AH139: =IF(AND(AG139<$E$5,AG139=Оцінка!$F$14),AH138-AI138-Оцінка!$E$14,IF(AG139>$E$5,"",AH138-AI138)) ->  | AL139: 0 | AO139: 9 | AP139: 2031-09-30 | AQ139: 12 | AR139: 120 | AS139: 27777.77778 | AT139: 27777.77778 | AU139: 254.6296296 | AW139: 0 | AY139: 28032.40741
E140: 0 | AD140: 9 | AE140: 2031-09-30 | AF140: 1 | AG140: 121 | AH140: =IF(AND(AG140<$E$5,AG140=Оцінка!$F$14),AH139-AI139-Оцінка!$E$14,IF(AG140>$E$5,"",AH139-AI139)) ->  | AI140: 0 | AQ140: 1 | AT140: 0
E141: 0 | AD141: 10 | AE141: 2031-10-31 | AF141: 2 | AG141: 122 | AH141: =IF(AND(AG141<$E$5,AG141=Оцінка!$F$14),AH140-AI140-Оцінка!$E$14,IF(AG141>$E$5,"",AH140-AI140)) ->  | AI141: 0 | AQ141: 2 | AT141: 0
E142: 0 | AD142: 11 | AE142: 2031-11-30 | AF142: 3 | AG142: 123 | AH142: =IF(AND(AG142<$E$5,AG142=Оцінка!$F$14),AH141-AI141-Оцінка!$E$14,IF(AG142>$E$5,"",AH141-AI141)) ->  | AI142: 0 | AQ142: 3 | AT142: 0
E143: 0 | AD143: 12 | AE143: 2031-12-31 | AF143: 4 | AG143: 124 | AH143: =IF(AND(AG143<$E$5,AG143=Оцінка!$F$14),AH142-AI142-Оцінка!$E$14,IF(AG143>$E$5,"",AH142-AI142)) ->  | AI143: 0 | AQ143: 4 | AT143: 0
E144: 0 | AD144: 1 | AE144: 2032-01-31 | AF144: 5 | AG144: =AG143+1 -> 125 | AH144: =IF(AND(AG144<$E$5,AG144=Оцінка!$F$14),AH143-AI143-Оцінка!$E$14,IF(AG144>$E$5,"",AH143-AI143)) ->  | AI144: 0 | AQ144: 5 | AR144: =IF(AR143<$E$5,AR143+1,"") ->  | AT144: 0
E145: 0 | AD145: 2 | AE145: 2032-02-29 | AF145: 6 | AG145: 126 | AH145: =IF(AND(AG145<$E$5,AG145=Оцінка!$F$14),AH144-AI144-Оцінка!$E$14,IF(AG145>$E$5,"",AH144-AI144)) ->  | AI145: 0 | AQ145: 6 | AT145: 0
E146: 0 | AD146: =IF(AE146="","",MONTH(AE146)) -> 3 | AE146: 2032-03-31 | AF146: 7 | AG146: 127 | AH146: =IF(AND(AG146<$E$5,AG146=Оцінка!$F$14),AH145-AI145-Оцінка!$E$14,IF(AG146>$E$5,"",AH145-AI145)) ->  | AI146: 0 | AQ146: 7 | AT146: 0
E147: 0 | AD147: 4 | AE147: 2032-04-30 | AF147: 8 | AG147: 128 | AH147: =IF(AND(AG147<$E$5,AG147=Оцінка!$F$14),AH146-AI146-Оцінка!$E$14,IF(AG147>$E$5,"",AH146-AI146)) ->  | AI147: 0 | AQ147: 8 | AT147: 0
E148: 0 | J148: =IF(B148>$E$5,"",$E$4*$E$11) ->  | AD148: 5 | AE148: 2032-05-31 | AF148: 9 | AG148: 129 | AH148: =IF(AND(AG148<$E$5,AG148=Оцінка!$F$14),AH147-AI147-Оцінка!$E$14,IF(AG148>$E$5,"",AH147-AI147)) ->  | AI148: 0 | AJ148: =IF(AG148>$E$5,"",AH148*$E$8/12) ->  | AQ148: 9 | AT148: 0 | AU148: =IF(AR148>$E$5,"",AS148*$E$8/12) -> 
A149: =B149 ->  | B149: =IF(B148<$E$5,B148+1,"") ->  | E149: 0 | P149: =IF(B149>$E$5,"",SUM(E149:O149)) ->  | AD149: 6 | AE149: 2032-06-30 | AF149: 10 | AG149: 130 | AH149: =IF(AND(AG149<$E$5,AG149=Оцінка!$F$14),AH148-AI148-Оцінка!$E$14,IF(AG149>$E$5,"",AH148-AI148)) ->  | AI149: =IF(OR(AG149>$E$5,HLOOKUP(AD149,$AE$7:$AP$8,2,0)=1),0,$E$4/((12-$E$7)*($E$5/12))) -> 0 | AL149: =IF(AG149>$E$5,"",$E$4*$E$11) ->  | AO149: =MONTH(AP149) ->  | AQ149: 10 | AT149: 0 | AW149: =IF(AR149>$E$5,"",$E$4*$E$11) -> 
C150: =IF(B150>$E$5,"",EDATE(C149,1)) ->  | D150: =IF(B150>$E$5,"",D149-E149) ->  | E150: 0 | AD150: 7 | AE150: =EOMONTH(AE149,1) -> 2032-07-31 | AF150: 11 | AG150: 131 | AH150: =IF(AND(AG150<$E$5,AG150=Оцінка!$F$14),AH149-AI149-Оцінка!$E$14,IF(AG150>$E$5,"",AH149-AI149)) ->  | AI150: 0 | AP150: =IF(B150>$E$5,"",EOMONTH(C149,1)) ->  | AQ150: 11 | AS150: =IF(AR150>$E$5,"",AS149-AT149) ->  | AT150: =IF(OR(AR150<=$E$7,AR150=""),0,$E$4/(($E$5)-$E$7)) -> 0
E151: =IF((B151>$E$5),0,IF($E$6="щорічне",AI151,AT151)) -> 0 | AD151: 8 | AE151: 2032-08-31 | AF151: 12 | AG151: 132 | AH151: =IF(AND(AG151<$E$5,AG151=Оцінка!$F$14),AH150-AI150-Оцінка!$E$14,IF(AG151>$E$5,"",AH150-AI150)) ->  | AI151: 0 | AQ151: 12 | AT151: 0
E152: 0 | AD152: 9 | AE152: 2032-09-30 | AF152: 1 | AG152: 133 | AH152: =IF(AND(AG152<$E$5,AG152=Оцінка!$F$14),AH151-AI151-Оцінка!$E$14,IF(AG152>$E$5,"",AH151-AI151)) ->  | AI152: 0 | AQ152: 1 | AT152: 0
E153: 0 | AD153: 10 | AE153: 2032-10-31 | AF153: 2 | AG153: 134 | AH153: =IF(AND(AG153<$E$5,AG153=Оцінка!$F$14),AH152-AI152-Оцінка!$E$14,IF(AG153>$E$5,"",AH152-AI152)) ->  | AI153: 0 | AQ153: 2 | AT153: 0
E154: 0 | AD154: 11 | AE154: 2032-11-30 | AF154: 3 | AG154: 135 | AH154: =IF(AND(AG154<$E$5,AG154=Оцінка!$F$14),AH153-AI153-Оцінка!$E$14,IF(AG154>$E$5,"",AH153-AI153)) ->  | AI154: 0 | AQ154: 3 | AT154: 0
E155: 0 | AD155: 12 | AE155: 2032-12-31 | AF155: 4 | AG155: 136 | AH155: =IF(AND(AG155<$E$5,AG155=Оцінка!$F$14),AH154-AI154-Оцінка!$E$14,IF(AG155>$E$5,"",AH154-AI154)) ->  | AI155: 0 | AQ155: 4 | AT155: 0
E156: 0 | AD156: 1 | AE156: 2033-01-31 | AF156: 5 | AG156: 137 | AH156: =IF(AND(AG156<$E$5,AG156=Оцінка!$F$14),AH155-AI155-Оцінка!$E$14,IF(AG156>$E$5,"",AH155-AI155)) ->  | AI156: 0 | AQ156: 5 | AT156: 0
E157: 0 | AD157: 2 | AE157: 2033-02-28 | AF157: 6 | AG157: 138 | AH157: =IF(AND(AG157<$E$5,AG157=Оцінка!$F$14),AH156-AI156-Оцінка!$E$14,IF(AG157>$E$5,"",AH156-AI156)) ->  | AI157: 0 | AQ157: 6 | AT157: 0
E158: 0 | AD158: 3 | AE158: 2033-03-31 | AF158: 7 | AG158: 139 | AH158: =IF(AND(AG158<$E$5,AG158=Оцінка!$F$14),AH157-AI157-Оцінка!$E$14,IF(AG158>$E$5,"",AH157-AI157)) ->  | AI158: 0 | AQ158: 7 | AT158: 0
E159: 0 | AD159: 4 | AE159: 2033-04-30 | AF159: 8 | AG159: 140 | AH159: =IF(AND(AG159<$E$5,AG159=Оцінка!$F$14),AH158-AI158-Оцінка!$E$14,IF(AG159>$E$5,"",AH158-AI158)) ->  | AI159: 0 | AQ159: 8 | AT159: 0
E160: 0 | F160: =IF(B160>$E$5,"",D160*$E$8/12) ->  | AD160: 5 | AE160: 2033-05-31 | AF160: 9 | AG160: 141 | AH160: =IF(AND(AG160<$E$5,AG160=Оцінка!$F$14),AH159-AI159-Оцінка!$E$14,IF(AG160>$E$5,"",AH159-AI159)) ->  | AI160: 0 | AQ160: 9 | AT160: 0
E161: 0 | AD161: 6 | AE161: 2033-06-30 | AF161: 10 | AG161: 142 | AH161: =IF(AND(AG161<$E$5,AG161=Оцінка!$F$14),AH160-AI160-Оцінка!$E$14,IF(AG161>$E$5,"",AH160-AI160)) ->  | AI161: 0 | AQ161: 10 | AT161: 0
E162: 0 | AD162: 7 | AE162: 2033-07-31 | AF162: 11 | AG162: 143 | AH162: =IF(AND(AG162<$E$5,AG162=Оцінка!$F$14),AH161-AI161-Оцінка!$E$14,IF(AG162>$E$5,"",AH161-AI161)) ->  | AI162: 0 | AQ162: 11 | AT162: 0
E163: 0 | AD163: 8 | AE163: 2033-08-31 | AF163: 12 | AG163: 144 | AH163: =IF(AND(AG163<$E$5,AG163=Оцінка!$F$14),AH162-AI162-Оцінка!$E$14,IF(AG163>$E$5,"",AH162-AI162)) ->  | AI163: 0 | AQ163: 12 | AT163: 0
E164: 0 | AD164: 9 | AE164: 2033-09-30 | AF164: 1 | AG164: 145 | AH164: =IF(AND(AG164<$E$5,AG164=Оцінка!$F$14),AH163-AI163-Оцінка!$E$14,IF(AG164>$E$5,"",AH163-AI163)) ->  | AI164: 0 | AQ164: 1 | AT164: 0
E165: 0 | AD165: 10 | AE165: 2033-10-31 | AF165: 2 | AG165: 146 | AH165: =IF(AND(AG165<$E$5,AG165=Оцінка!$F$14),AH164-AI164-Оцінка!$E$14,IF(AG165>$E$5,"",AH164-AI164)) ->  | AI165: 0 | AQ165: 2 | AT165: 0
E166: 0 | AD166: 11 | AE166: 2033-11-30 | AF166: 3 | AG166: 147 | AH166: =IF(AND(AG166<$E$5,AG166=Оцінка!$F$14),AH165-AI165-Оцінка!$E$14,IF(AG166>$E$5,"",AH165-AI165)) ->  | AI166: 0 | AQ166: 3 | AT166: 0
E167: 0 | AD167: 12 | AE167: 2033-12-31 | AF167: 4 | AG167: 148 | AH167: =IF(AND(AG167<$E$5,AG167=Оцінка!$F$14),AH166-AI166-Оцінка!$E$14,IF(AG167>$E$5,"",AH166-AI166)) ->  | AI167: 0 | AQ167: 4 | AT167: 0
E168: 0 | AD168: 1 | AE168: 2034-01-31 | AF168: 5 | AG168: 149 | AH168: =IF(AND(AG168<$E$5,AG168=Оцінка!$F$14),AH167-AI167-Оцінка!$E$14,IF(AG168>$E$5,"",AH167-AI167)) ->  | AI168: 0 | AQ168: 5 | AT168: 0
E169: 0 | AD169: 2 | AE169: 2034-02-28 | AF169: 6 | AG169: 150 | AH169: =IF(AND(AG169<$E$5,AG169=Оцінка!$F$14),AH168-AI168-Оцінка!$E$14,IF(AG169>$E$5,"",AH168-AI168)) ->  | AI169: 0 | AQ169: 6 | AT169: 0
E170: 0 | AD170: 3 | AE170: 2034-03-31 | AF170: 7 | AG170: 151 | AH170: =IF(AND(AG170<$E$5,AG170=Оцінка!$F$14),AH169-AI169-Оцінка!$E$14,IF(AG170>$E$5,"",AH169-AI169)) ->  | AI170: 0 | AQ170: 7 | AT170: 0
E171: 0 | AD171: 4 | AE171: 2034-04-30 | AF171: 8 | AG171: 152 | AH171: =IF(AND(AG171<$E$5,AG171=Оцінка!$F$14),AH170-AI170-Оцінка!$E$14,IF(AG171>$E$5,"",AH170-AI170)) ->  | AI171: 0 | AQ171: 8 | AT171: 0
E172: 0 | AD172: 5 | AE172: 2034-05-31 | AF172: 9 | AG172: 153 | AH172: =IF(AND(AG172<$E$5,AG172=Оцінка!$F$14),AH171-AI171-Оцінка!$E$14,IF(AG172>$E$5,"",AH171-AI171)) ->  | AI172: 0 | AQ172: 9 | AT172: 0
E173: 0 | AD173: 6 | AE173: 2034-06-30 | AF173: 10 | AG173: 154 | AH173: =IF(AND(AG173<$E$5,AG173=Оцінка!$F$14),AH172-AI172-Оцінка!$E$14,IF(AG173>$E$5,"",AH172-AI172)) ->  | AI173: 0 | AQ173: 10 | AT173: 0
E174: 0 | AD174: 7 | AE174: 2034-07-31 | AF174: 11 | AG174: 155 | AH174: =IF(AND(AG174<$E$5,AG174=Оцінка!$F$14),AH173-AI173-Оцінка!$E$14,IF(AG174>$E$5,"",AH173-AI173)) ->  | AI174: 0 | AQ174: 11 | AT174: 0
E175: 0 | AD175: 8 | AE175: 2034-08-31 | AF175: 12 | AG175: 156 | AH175: =IF(AND(AG175<$E$5,AG175=Оцінка!$F$14),AH174-AI174-Оцінка!$E$14,IF(AG175>$E$5,"",AH174-AI174)) ->  | AI175: 0 | AQ175: 12 | AT175: 0
E176: 0 | AD176: 9 | AE176: 2034-09-30 | AF176: 1 | AG176: 157 | AH176: =IF(AND(AG176<$E$5,AG176=Оцінка!$F$14),AH175-AI175-Оцінка!$E$14,IF(AG176>$E$5,"",AH175-AI175)) ->  | AI176: 0 | AQ176: 1 | AT176: 0
E177: 0 | AD177: 10 | AE177: 2034-10-31 | AF177: 2 | AG177: 158 | AH177: =IF(AND(AG177<$E$5,AG177=Оцінка!$F$14),AH176-AI176-Оцінка!$E$14,IF(AG177>$E$5,"",AH176-AI176)) ->  | AI177: 0 | AQ177: 2 | AT177: 0
E178: 0 | AD178: 11 | AE178: 2034-11-30 | AF178: 3 | AG178: 159 | AH178: =IF(AND(AG178<$E$5,AG178=Оцінка!$F$14),AH177-AI177-Оцінка!$E$14,IF(AG178>$E$5,"",AH177-AI177)) ->  | AI178: 0 | AQ178: 3 | AT178: 0
E179: 0 | AD179: 12 | AE179: 2034-12-31 | AF179: 4 | AG179: 160 | AH179: =IF(AND(AG179<$E$5,AG179=Оцінка!$F$14),AH178-AI178-Оцінка!$E$14,IF(AG179>$E$5,"",AH178-AI178)) ->  | AI179: 0 | AQ179: 4 | AT179: 0
E180: 0 | AD180: 1 | AE180: 2035-01-31 | AF180: 5 | AG180: 161 | AH180: =IF(AND(AG180<$E$5,AG180=Оцінка!$F$14),AH179-AI179-Оцінка!$E$14,IF(AG180>$E$5,"",AH179-AI179)) ->  | AI180: 0 | AN180: =IF(AG180>$E$5,"",SUM(AI180:AM180)) ->  | AQ180: 5 | AT180: 0 | AY180: =IF(AR180>$E$5,"",SUM(AT180:AX180)) -> 
E181: 0 | AD181: 2 | AE181: 2035-02-28 | AF181: 6 | AG181: 162 | AH181: =IF(AND(AG181<$E$5,AG181=Оцінка!$F$14),AH180-AI180-Оцінка!$E$14,IF(AG181>$E$5,"",AH180-AI180)) ->  | AI181: 0 | AQ181: 6 | AT181: 0
E182: 0 | AD182: 3 | AE182: 2035-03-31 | AF182: 7 | AG182: 163 | AH182: =IF(AND(AG182<$E$5,AG182=Оцінка!$F$14),AH181-AI181-Оцінка!$E$14,IF(AG182>$E$5,"",AH181-AI181)) ->  | AI182: 0 | AQ182: 7 | AT182: 0
E183: 0 | AD183: 4 | AE183: 2035-04-30 | AF183: 8 | AG183: 164 | AH183: =IF(AND(AG183<$E$5,AG183=Оцінка!$F$14),AH182-AI182-Оцінка!$E$14,IF(AG183>$E$5,"",AH182-AI182)) ->  | AI183: 0 | AQ183: 8 | AT183: 0
E184: 0 | AD184: 5 | AE184: 2035-05-31 | AF184: 9 | AG184: 165 | AH184: =IF(AND(AG184<$E$5,AG184=Оцінка!$F$14),AH183-AI183-Оцінка!$E$14,IF(AG184>$E$5,"",AH183-AI183)) ->  | AI184: 0 | AQ184: 9 | AT184: 0
E185: 0 | AD185: 6 | AE185: 2035-06-30 | AF185: 10 | AG185: 166 | AH185: =IF(AND(AG185<$E$5,AG185=Оцінка!$F$14),AH184-AI184-Оцінка!$E$14,IF(AG185>$E$5,"",AH184-AI184)) ->  | AI185: 0 | AQ185: 10 | AT185: 0
E186: 0 | AD186: 7 | AE186: 2035-07-31 | AF186: 11 | AG186: 167 | AH186: =IF(AND(AG186<$E$5,AG186=Оцінка!$F$14),AH185-AI185-Оцінка!$E$14,IF(AG186>$E$5,"",AH185-AI185)) ->  | AI186: 0 | AQ186: 11 | AT186: 0
E187: 0 | AD187: 8 | AE187: 2035-08-31 | AF187: 12 | AG187: 168 | AH187: =IF(AND(AG187<$E$5,AG187=Оцінка!$F$14),AH186-AI186-Оцінка!$E$14,IF(AG187>$E$5,"",AH186-AI186)) ->  | AI187: 0 | AQ187: 12 | AT187: 0
E188: 0 | AD188: 9 | AE188: 2035-09-30 | AF188: 1 | AG188: 169 | AH188: =IF(AND(AG188<$E$5,AG188=Оцінка!$F$14),AH187-AI187-Оцінка!$E$14,IF(AG188>$E$5,"",AH187-AI187)) ->  | AI188: 0 | AQ188: 1 | AT188: 0
E189: 0 | AD189: 10 | AE189: 2035-10-31 | AF189: 2 | AG189: 170 | AH189: =IF(AND(AG189<$E$5,AG189=Оцінка!$F$14),AH188-AI188-Оцінка!$E$14,IF(AG189>$E$5,"",AH188-AI188)) ->  | AI189: 0 | AQ189: 2 | AT189: 0
E190: 0 | AD190: 11 | AE190: 2035-11-30 | AF190: 3 | AG190: 171 | AH190: =IF(AND(AG190<$E$5,AG190=Оцінка!$F$14),AH189-AI189-Оцінка!$E$14,IF(AG190>$E$5,"",AH189-AI189)) ->  | AI190: 0 | AQ190: 3 | AT190: 0
E191: 0 | AD191: 12 | AE191: 2035-12-31 | AF191: 4 | AG191: 172 | AH191: =IF(AND(AG191<$E$5,AG191=Оцінка!$F$14),AH190-AI190-Оцінка!$E$14,IF(AG191>$E$5,"",AH190-AI190)) ->  | AI191: 0 | AQ191: 4 | AT191: 0
E192: 0 | AD192: 1 | AE192: 2036-01-31 | AF192: 5 | AG192: 173 | AH192: =IF(AND(AG192<$E$5,AG192=Оцінка!$F$14),AH191-AI191-Оцінка!$E$14,IF(AG192>$E$5,"",AH191-AI191)) ->  | AI192: 0 | AQ192: 5 | AT192: 0
E193: 0 | AD193: 2 | AE193: 2036-02-29 | AF193: 6 | AG193: 174 | AH193: =IF(AND(AG193<$E$5,AG193=Оцінка!$F$14),AH192-AI192-Оцінка!$E$14,IF(AG193>$E$5,"",AH192-AI192)) ->  | AI193: 0 | AQ193: 6 | AT193: 0
E194: 0 | AD194: 3 | AE194: 2036-03-31 | AF194: 7 | AG194: 175 | AH194: =IF(AND(AG194<$E$5,AG194=Оцінка!$F$14),AH193-AI193-Оцінка!$E$14,IF(AG194>$E$5,"",AH193-AI193)) ->  | AI194: 0 | AQ194: 7 | AT194: 0
E195: 0 | AD195: 4 | AE195: 2036-04-30 | AF195: 8 | AG195: 176 | AH195: =IF(AND(AG195<$E$5,AG195=Оцінка!$F$14),AH194-AI194-Оцінка!$E$14,IF(AG195>$E$5,"",AH194-AI194)) ->  | AI195: 0 | AQ195: 8 | AT195: 0
E196: 0 | AD196: 5 | AE196: 2036-05-31 | AF196: 9 | AG196: 177 | AH196: =IF(AND(AG196<$E$5,AG196=Оцінка!$F$14),AH195-AI195-Оцінка!$E$14,IF(AG196>$E$5,"",AH195-AI195)) ->  | AI196: 0 | AQ196: 9 | AT196: 0
E197: 0 | AD197: 6 | AE197: 2036-06-30 | AF197: 10 | AG197: 178 | AH197: =IF(AND(AG197<$E$5,AG197=Оцінка!$F$14),AH196-AI196-Оцінка!$E$14,IF(AG197>$E$5,"",AH196-AI196)) ->  | AI197: 0 | AQ197: 10 | AT197: 0
E198: 0 | AD198: 7 | AE198: 2036-07-31 | AF198: 11 | AG198: 179 | AH198: =IF(AND(AG198<$E$5,AG198=Оцінка!$F$14),AH197-AI197-Оцінка!$E$14,IF(AG198>$E$5,"",AH197-AI197)) ->  | AI198: 0 | AQ198: 11 | AT198: 0
E199: 0 | AD199: 8 | AE199: 2036-08-31 | AF199: 12 | AG199: 180 | AH199: =IF(AND(AG199<$E$5,AG199=Оцінка!$F$14),AH198-AI198-Оцінка!$E$14,IF(AG199>$E$5,"",AH198-AI198)) ->  | AI199: 0 | AQ199: 12 | AT199: 0
E200: 0 | AD200: 9 | AE200: 2036-09-30 | AF200: 1 | AG200: 181 | AH200: =IF(AND(AG200<$E$5,AG200=Оцінка!$F$14),AH199-AI199-Оцінка!$E$14,IF(AG200>$E$5,"",AH199-AI199)) ->  | AI200: 0 | AQ200: 1 | AT200: 0
E201: 0 | AD201: 10 | AE201: 2036-10-31 | AF201: 2 | AG201: 182 | AH201: =IF(AND(AG201<$E$5,AG201=Оцінка!$F$14),AH200-AI200-Оцінка!$E$14,IF(AG201>$E$5,"",AH200-AI200)) ->  | AI201: 0 | AQ201: 2 | AT201: 0
E202: 0 | AD202: 11 | AE202: 2036-11-30 | AF202: 3 | AG202: 183 | AH202: =IF(AND(AG202<$E$5,AG202=Оцінка!$F$14),AH201-AI201-Оцінка!$E$14,IF(AG202>$E$5,"",AH201-AI201)) ->  | AI202: 0 | AQ202: 3 | AT202: 0
E203: 0 | AD203: 12 | AE203: 2036-12-31 | AF203: 4 | AG203: 184 | AH203: =IF(AND(AG203<$E$5,AG203=Оцінка!$F$14),AH202-AI202-Оцінка!$E$14,IF(AG203>$E$5,"",AH202-AI202)) ->  | AI203: 0 | AQ203: 4 | AT203: 0
... 176 more rows

Sheet Класична (після компенсації)
AJ1: щорічне | AL1: =TODAY() -> 2021-08-09
AJ2: в перший рік кредитування | AS2: 1
AS3: 0
A4: Сума кредиту | E4: =Оцінка!E11 -> 3000000 | AL4: відсутнє
A5: Термін (місяці) | E5: =Оцінка!E12 -> 120
A6: Відтермінування | E6: в перший рік кредитування | G6: місяці відтермінування
A7: Термін відтермінування | E7: =Оцінка!E13 -> 12 | G7: 1900-01-01 | H7: 1900-02-01 | I7: 1900-03-01 | J7: 1900-04-01 | K7: 1900-05-01 | L7: 1900-06-01 | M7: 1900-07-01 | N7: 1900-08-01 | O7: 1900-09-01 | P7: 1900-10-01 | Q7: 1900-11-01 | R7: 1900-12-01 | AE7: =MONTH(G7) -> 1 | AF7: =MONTH(H7) -> 2 | AG7: 3 | AH7: 4 | AI7: 5 | AJ7: 6 | AK7: 7 | AL7: 8 | AM7: =MONTH(O7) -> 9 | AN7: =MONTH(P7) -> 10 | AO7: =MONTH(Q7) -> 11 | AP7: =MONTH(R7) -> 12
A8: % ставка | E8: =Оцінка!E14 -> 0.11 | AE8: =G8 -> 0 | AF8: =H8 -> 0 | AG8: 0 | AH8: 0 | AI8: 0 | AJ8: 0 | AK8: 0 | AL8: 0 | AM8: 0 | AN8: 0 | AO8: 0 | AP8: 0
A9: Комісії:
A10: - разова (за видачу) | E10: 0.01 | H10: Кількісь місяців протягом яких сплачується комісія | Q10: 0
A11: - за управління | E11: 0
A12: - розгляд заявки
A13: Дата видачі кредиту | E13: =Оцінка!E2 -> 2021-09-01
F17: Всього сплачених відсотків | G17: Всього сплачені комісії | P17: Всього
F18: =SUM(F20:F379) -> 1833333.333 | G18: =SUM(G20:I139) -> 0 | J18: =SUM(L20:L379) -> 0 | M18: =M20 -> 0 | P18: =SUM(F18:N18) -> 1833333.333 | AJ18: Погашення з щорічним відтермінуванням | AU18: Погашення з відтермінуванням в перший рік
B19: Місяць | D19: Залишок на початок місяця | E19: Погашення тіла кредиту | F19: Погашення %-ів за кредит | G19: Разова комісія (за видачу) | J19: Комісія за управління кредитом | M19: Комісія за розгляд заявки | P19: Всього платіж в місяць | AG19: Місяць | AH19: Залишок на початок місяця | AI19: Погашення тіла кредиту | AJ19: Погашення %-ів за кредит | AK19: Разова комісія (за видачу) | AL19: Комісія за управління кредитом | AM19: Комісія за розгляд заявки | AN19: Всього платіж в місяць | AR19: Місяць | AS19: Залишок на початок місяця | AT19: Погашення тіла кредиту | AU19: Погашення %-ів за кредит | AV19: Разова комісія (за видачу) | AW19: Комісія за управління кредитом | AX19: Комісія за розгляд заявки | AY19: Всього платіж в місяць
A20: =B20 -> 1 | B20: 1 | C20: =EDATE(E13,1) -> 2021-10-01 | D20: =E4 -> 3000000 | E20: =IF((B20>$E$5),0,IF($E$6="щорічне",AI20,AT20)) -> 0 | F20: =IF(B20>$E$5,"",D20*$E$8/360*(C20-E13)) -> 27500 | G20: =IF(B20<=$Q$10,$E$4*$E$10/$Q$10,0) -> 0 | J20: =IF(B20>$E$5,"",$E$4*$E$11) -> 0 | M20: =E12*E4 -> 0 | P20: =IF(B20>$E$5,"",SUM(E20:N20)) -> 27500 | AA20: =HLOOKUP(AD20,$AE$7:$AP$8,2,0) -> 0 | AD20: =IF(AE20="","",MONTH(AE20)) -> 9 | AE20: =DATE(YEAR(E13),MONTH(EOMONTH(E13,0)),DAY(30)) -> 2021-09-30 | AF20: 1 | AG20: 1 | AH20: =E4 -> 3000000 | AI20: =IF(OR(AG20>$E$5,HLOOKUP(AD20,$AE$7:$AP$8,2,0)=1),0,$E$4/((12-$E$7)*($E$5/12))) ->  | AJ20: =IF(AG20>$E$5,"",AH20*$E$8/12) -> 27500 | AK20: =AI4*AI10 -> 0 | AL20: =IF(AG20>$E$5,"",$E$4*$E$11) -> 0 | AM20: =AI12*AI4 -> 0 | AN20: =IF(AG20>$E$5,"",SUM(AI20:AM20)) ->  | AO20: =MONTH(AP20) -> 9 | AP20: =DATE(YEAR(E13),MONTH(EOMONTH(E13,0)),DAY(30)) -> 2021-09-30 | AQ20: 1 | AR20: 1 | AS20: =E4 -> 3000000 | AT20: =IF(OR(AR20<=$E$7,AR20=""),0,IF(OR(AR20=Оцінка!$E$23,AR20>Оцінка!$E$23),(AS20)/(($E$5)-$E$7-Оцінка!$E$23),$E$4/(($E$5)-$E$7))) -> 0 | AU20: =IF(AR20>$E$5,"",AS20*$E$8/12) -> 27500 | AV20: =AT4*AT10 -> 0 | AW20: =IF(AR20>$E$5,"",$E$4*$E$11) -> 0 | AX20: =AT12*AT4 -> 0 | AY20: =IF(AR20>$E$5,"",SUM(AT20:AX20)) -> 27500
A21: =B21 -> 2 | B21: =IF(B20<$E$5,B20+1,"") -> 2 | C21: =IF(B21>$E$5,"",EDATE(C20,1)) -> 2021-11-01 | D21: =IF(AND(B21<$E$5,B21=Оцінка!$E$23),D20-E20-Оцінка!$E$22,IF(B21>$E$5,"",D20-E20)) -> 3000000 | E21: =IF((B21>$E$5),0,IF($E$6="щорічне",AI21,AT21)) -> 0 | F21: =IF(B21>$E$5,"",D21*$E$8/360*(C21-C20)) -> 28416.66667 | G21: =IF(B21<=$Q$10,$E$4*$E$10/$Q$10,0) -> 0 | J21: 0 | P21: =IF(B21>$E$5,"",SUM(E21:O21)) -> 28416.66667 | AA21: =HLOOKUP(AD21,$AE$7:$AP$8,2,0) -> 0 | AD21: =IF(AE21="","",MONTH(AE21)) -> 10 | AE21: =EOMONTH(AE20,1) -> 2021-10-31 | AF21: 2 | AG21: =IF(AG20<$E$5,AG20+1,"") -> 2 | AH21: =IF(AND(AG21<$E$5,AG21=Оцінка!$F$14),AH20-AI20-Оцінка!$E$14,IF(AG21>$E$5,"",AH20-AI20)) ->  | AI21: =IF(OR(AG21>$E$5,HLOOKUP(AD21,$AE$7:$AP$8,2,0)=1),0,$E$4/((12-$E$7)*($E$5/12))) ->  | AL21: =IF(AG21>$E$5,"",$E$4*$E$11) -> 0 | AO21: =MONTH(AP21) -> 11 | AP21: =IF(B21>$E$5,"",EOMONTH(C20,1)) -> 2021-11-30 | AQ21: 2 | AR21: =IF(AR20<$E$5,AR20+1,"") -> 2 | AS21: =IF(AND(AR21<$E$5,B21=Оцінка!$E$23),AS20-AT20-Оцінка!$E$22,IF(AR21>$E$5,"",AS20-AT20)) -> 3000000 | AT21: =IF(OR(AR21<=$E$7,AR21=""),0,IF(AND(AR21>=Оцінка!$E$23,Оцінка!$E$23<>0),($E$4-Оцінка!$E$22-IF(Оцінка!$E$13<Оцінка!$E$23,($E$4*(Оцінка!$E$23-1-$E$7)/(($E$5)-$E$7)),0))/IF(Оцінка!$E$13<Оцінка!$E$23,$E$5+1-Оцінка!$E$23,$E$5-Оцінка!$E$13),$E$4/(($E$5)-$E$7))) -> 0 | AU21: 27500 | AW21: =IF(AR21>$E$5,"",$E$4*$E$11) -> 0 | AY21: 27500
A22: 3 | B22: 3 | C22: =IF(B22>$E$5,"",EDATE(C21,1)) -> 2021-12-01 | D22: =IF(AND(B22<$E$5,B22=Оцінка!$E$23),D21-E21-Оцінка!$E$22,IF(B22>$E$5,"",D21-E21)) -> 3000000 | E22: =IF((B22>$E$5),0,IF($E$6="щорічне",AI22,AT22)) -> 0 | F22: =IF(B22>$E$5,"",D22*$E$8/360*(C22-C21)) -> 27500 | G22: 0 | J22: 0 | P22: 27500 | AA22: 0 | AD22: 11 | AE22: =EOMONTH(AE21,1) -> 2021-11-30 | AF22: 3 | AG22: =IF(AG21<$E$5,AG21+1,"") -> 3 | AH22: =IF(AND(AG22<$E$5,AG22=Оцінка!$F$14),AH21-AI21-Оцінка!$E$14,IF(AG22>$E$5,"",AH21-AI21)) ->  | AL22: 0 | AO22: 12 | AP22: =IF(B22>$E$5,"",EOMONTH(C21,1)) -> 2021-12-31 | AQ22: 3 | AR22: =IF(AR21<$E$5,AR21+1,"") -> 3 | AS22: =IF(AND(AR22<$E$5,B22=Оцінка!$E$23),AS21-AT21-Оцінка!$E$22,IF(AR22>$E$5,"",AS21-AT21)) -> 3000000 | AT22: =IF(OR(AR22<=$E$7,AR22=""),0,IF(AND(AR22>=Оцінка!$E$23,Оцінка!$E$23<>0),($E$4-Оцінка!$E$22-IF(Оцінка!$E$13<Оцінка!$E$23,($E$4*(Оцінка!$E$23-1-$E$7)/(($E$5)-$E$7)),0))/IF(Оцінка!$E$13<Оцінка!$E$23,$E$5+1-Оцінка!$E$23,$E$5-Оцінка!$E$13),$E$4/(($E$5)-$E$7))) -> 0 | AU22: 27500 | AW22: 0 | AY22: 27500
A23: 4 | B23: 4 | C23: 2022-01-01 | D23: =IF(AND(B23<$E$5,B23=Оцінка!$E$23),D22-E22-Оцінка!$E$22,IF(B23>$E$5,"",D22-E22)) -> 3000000 | E23: =IF((B23>$E$5),0,IF($E$6="щорічне",AI23,AT23)) -> 0 | F23: 28416.66667 | G23: =IF(B23<=$Q$10,$E$4*$E$10/$Q$10,0) -> 0 | J23: 0 | P23: 28416.66667 | AA23: 0 | AD23: 12 | AE23: 2021-12-31 | AF23: 4 | AG23: =IF(AG22<$E$5,AG22+1,"") -> 4 | AH23: =IF(AND(AG23<$E$5,AG23=Оцінка!$F$14),AH22-AI22-Оцінка!$E$14,IF(AG23>$E$5,"",AH22-AI22)) ->  | AL23: 0 | AO23: 1 | AP23: 2022-01-31 | AQ23: 4 | AR23: =IF(AR22<$E$5,AR22+1,"") -> 4 | AS23: =IF(AND(AR23<$E$5,B23=Оцінка!$E$23),AS22-AT22-Оцінка!$E$22,IF(AR23>$E$5,"",AS22-AT22)) -> 3000000 | AT23: =IF(OR(AR23<=$E$7,AR23=""),0,IF(AND(AR23>=Оцінка!$E$23,Оцінка!$E$23<>0),($E$4-Оцінка!$E$22-IF(Оцінка!$E$13<Оцінка!$E$23,($E$4*(Оцінка!$E$23-1-$E$7)/(($E$5)-$E$7)),0))/IF(Оцінка!$E$13<Оцінка!$E$23,$E$5+1-Оцінка!$E$23,$E$5-Оцінка!$E$13),$E$4/(($E$5)-$E$7))) -> 0 | AU23: 27500 | AW23: 0 | AY23: 27500
A24: 5 | B24: 5 | C24: 2022-02-01 | D24: =IF(AND(B24<$E$5,B24=Оцінка!$E$23),D23-E23-Оцінка!$E$22,IF(B24>$E$5,"",D23-E23)) -> 3000000 | E24: 0 | F24: =IF(B24>$E$5,"",D24*$E$8/360*(C24-C23)) -> 28416.66667 | G24: 0 | J24: 0 | P24: 28416.66667 | AA24: 0 | AD24: 1 | AE24: 2022-01-31 | AF24: 5 | AG24: 5 | AH24: =IF(AND(AG24<$E$5,AG24=Оцінка!$F$14),AH23-AI23-Оцінка!$E$14,IF(AG24>$E$5,"",AH23-AI23)) ->  | AL24: 0 | AO24: 2 | AP24: 2022-02-28 | AQ24: 5 | AR24: 5 | AS24: =IF(AND(AR24<$E$5,B24=Оцінка!$E$23),AS23-AT23-Оцінка!$E$22,IF(AR24>$E$5,"",AS23-AT23)) -> 3000000 | AT24: =IF(OR(AR24<=$E$7,AR24=""),0,IF(AND(AR24>=Оцінка!$E$23,Оцінка!$E$23<>0),($E$4-Оцінка!$E$22-IF(Оцінка!$E$13<Оцінка!$E$23,($E$4*(Оцінка!$E$23-1-$E$7)/(($E$5)-$E$7)),0))/IF(Оцінка!$E$13<Оцінка!$E$23,$E$5+1-Оцінка!$E$23,$E$5-Оцінка!$E$13),$E$4/(($E$5)-$E$7))) -> 0 | AU24: 27500 | AW24: 0 | AY24: 27500
A25: 6 | B25: 6 | C25: 2022-03-01 | D25: =IF(AND(B25<$E$5,B25=Оцінка!$E$23),D24-E24-Оцінка!$E$22,IF(B25>$E$5,"",D24-E24)) -> 3000000 | E25: 0 | F25: 25666.66667 | G25: 0 | J25: 0 | P25: 25666.66667 | AA25: 0 | AD25: 2 | AE25: 2022-02-28 | AF25: 6 | AG25: 6 | AH25: =IF(AND(AG25<$E$5,AG25=Оцінка!$F$14),AH24-AI24-Оцінка!$E$14,IF(AG25>$E$5,"",AH24-AI24)) ->  | AL25: 0 | AO25: 3 | AP25: 2022-03-31 | AQ25: 6 | AR25: 6 | AS25: =IF(AND(AR25<$E$5,B25=Оцінка!$E$23),AS24-AT24-Оцінка!$E$22,IF(AR25>$E$5,"",AS24-AT24)) -> 3000000 | AT25: =IF(OR(AR25<=$E$7,AR25=""),0,IF(AND(AR25>=Оцінка!$E$23,Оцінка!$E$23<>0),($E$4-Оцінка!$E$22-IF(Оцінка!$E$13<Оцінка!$E$23,($E$4*(Оцінка!$E$23-1-$E$7)/(($E$5)-$E$7)),0))/IF(Оцінка!$E$13<Оцінка!$E$23,$E$5+1-Оцінка!$E$23,$E$5-Оцінка!$E$13),$E$4/(($E$5)-$E$7))) -> 0 | AU25: 27500 | AW25: 0 | AY25: 27500
A26: 7 | B26: 7 | C26: 2022-04-01 | D26: =IF(AND(B26<$E$5,B26=Оцінка!$E$23),D25-E25-Оцінка!$E$22,IF(B26>$E$5,"",D25-E25)) -> 3000000 | E26: =IF((B26>$E$5),0,IF($E$6="щорічне",AI26,AT26)) -> 0 | F26: 28416.66667 | G26: 0 | J26: 0 | P26: 28416.66667 | AA26: 0 | AD26: 3 | AE26: 2022-03-31 | AF26: 7 | AG26: 7 | AH26: =IF(AND(AG26<$E$5,AG26=Оцінка!$F$14),AH25-AI25-Оцінка!$E$14,IF(AG26>$E$5,"",AH25-AI25)) ->  | AL26: 0 | AO26: 4 | AP26: 2022-04-30 | AQ26: 7 | AR26: 7 | AS26: =IF(AND(AR26<$E$5,B26=Оцінка!$E$23),AS25-AT25-Оцінка!$E$22,IF(AR26>$E$5,"",AS25-AT25)) -> 3000000 | AT26: =IF(OR(AR26<=$E$7,AR26=""),0,IF(AND(AR26>=Оцінка!$E$23,Оцінка!$E$23<>0),($E$4-Оцінка!$E$22-IF(Оцінка!$E$13<Оцінка!$E$23,($E$4*(Оцінка!$E$23-1-$E$7)/(($E$5)-$E$7)),0))/IF(Оцінка!$E$13<Оцінка!$E$23,$E$5+1-Оцінка!$E$23,$E$5-Оцінка!$E$13),$E$4/(($E$5)-$E$7))) -> 0 | AU26: 27500 | AW26: 0 | AY26: 27500
A27: 8 | B27: 8 | C27: 2022-05-01 | D27: =IF(AND(B27<$E$5,B27=Оцінка!$E$23),D26-E26-Оцінка!$E$22,IF(B27>$E$5,"",D26-E26)) -> 3000000 | E27: 0 | F27: =IF(B27>$E$5,"",D27*$E$8/360*(C27-C26)) -> 27500 | G27: 0 | J27: 0 | P27: 27500 | AA27: 0 | AD27: 4 | AE27: 2022-04-30 | AF27: 8 | AG27: 8 | AH27: =IF(AND(AG27<$E$5,AG27=Оцінка!$F$14),AH26-AI26-Оцінка!$E$14,IF(AG27>$E$5,"",AH26-AI26)) ->  | AL27: 0 | AO27: 5 | AP27: 2022-05-31 | AQ27: 8 | AR27: 8 | AS27: =IF(AND(AR27<$E$5,B27=Оцінка!$E$23),AS26-AT26-Оцінка!$E$22,IF(AR27>$E$5,"",AS26-AT26)) -> 3000000 | AT27: =IF(OR(AR27<=$E$7,AR27=""),0,IF(AND(AR27>=Оцінка!$E$23,Оцінка!$E$23<>0),($E$4-Оцінка!$E$22-IF(Оцінка!$E$13<Оцінка!$E$23,($E$4*(Оцінка!$E$23-1-$E$7)/(($E$5)-$E$7)),0))/IF(Оцінка!$E$13<Оцінка!$E$23,$E$5+1-Оцінка!$E$23,$E$5-Оцінка!$E$13),$E$4/(($E$5)-$E$7))) -> 0 | AU27: 27500 | AW27: 0 | AY27: 27500
A28: 9 | B28: 9 | C28: 2022-06-01 | D28: =IF(AND(B28<$E$5,B28=Оцінка!$E$23),D27-E27-Оцінка!$E$22,IF(B28>$E$5,"",D27-E27)) -> 3000000 | E28: =IF((B28>$E$5),0,IF($E$6="щорічне",AI28,AT28)) -> 0 | F28: 28416.66667 | G28: 0 | J28: 0 | P28: 28416.66667 | AA28: 0 | AD28: 5 | AE28: 2022-05-31 | AF28: 9 | AG28: 9 | AH28: =IF(AND(AG28<$E$5,AG28=Оцінка!$F$14),AH27-AI27-Оцінка!$E$14,IF(AG28>$E$5,"",AH27-AI27)) ->  | AL28: 0 | AO28: 6 | AP28: 2022-06-30 | AQ28: 9 | AR28: 9 | AS28: =IF(AND(AR28<$E$5,B28=Оцінка!$E$23),AS27-AT27-Оцінка!$E$22,IF(AR28>$E$5,"",AS27-AT27)) -> 3000000 | AT28: =IF(OR(AR28<=$E$7,AR28=""),0,IF(AND(AR28>=Оцінка!$E$23,Оцінка!$E$23<>0),($E$4-Оцінка!$E$22-IF(Оцінка!$E$13<Оцінка!$E$23,($E$4*(Оцінка!$E$23-1-$E$7)/(($E$5)-$E$7)),0))/IF(Оцінка!$E$13<Оцінка!$E$23,$E$5+1-Оцінка!$E$23,$E$5-Оцінка!$E$13),$E$4/(($E$5)-$E$7))) -> 0 | AU28: 27500 | AW28: 0 | AY28: 27500
A29: 10 | B29: 10 | C29: 2022-07-01 | D29: =IF(AND(B29<$E$5,B29=Оцінка!$E$23),D28-E28-Оцінка!$E$22,IF(B29>$E$5,"",D28-E28)) -> 3000000 | E29: 0 | F29: 27500 | G29: 0 | J29: 0 | P29: 27500 | AA29: 0 | AD29: 6 | AE29: 2022-06-30 | AF29: 10 | AG29: 10 | AH29: =IF(AND(AG29<$E$5,AG29=Оцінка!$F$14),AH28-AI28-Оцінка!$E$14,IF(AG29>$E$5,"",AH28-AI28)) ->  | AL29: 0 | AO29: 7 | AP29: 2022-07-31 | AQ29: 10 | AR29: 10 | AS29: =IF(AND(AR29<$E$5,B29=Оцінка!$E$23),AS28-AT28-Оцінка!$E$22,IF(AR29>$E$5,"",AS28-AT28)) -> 3000000 | AT29: =IF(OR(AR29<=$E$7,AR29=""),0,IF(AND(AR29>=Оцінка!$E$23,Оцінка!$E$23<>0),($E$4-Оцінка!$E$22-IF(Оцінка!$E$13<Оцінка!$E$23,($E$4*(Оцінка!$E$23-1-$E$7)/(($E$5)-$E$7)),0))/IF(Оцінка!$E$13<Оцінка!$E$23,$E$5+1-Оцінка!$E$23,$E$5-Оцінка!$E$13),$E$4/(($E$5)-$E$7))) -> 0 | AU29: 27500 | AW29: 0 | AY29: 27500
A30: 11 | B30: 11 | C30: 2022-08-01 | D30: =IF(AND(B30<$E$5,B30=Оцінка!$E$23),D29-E29-Оцінка!$E$22,IF(B30>$E$5,"",D29-E29)) -> 3000000 | E30: 0 | F30: 28416.66667 | G30: 0 | J30: 0 | P30: 28416.66667 | AA30: 0 | AD30: 7 | AE30: 2022-07-31 | AF30: 11 | AG30: 11 | AH30: =IF(AND(AG30<$E$5,AG30=Оцінка!$F$14),AH29-AI29-Оцінка!$E$14,IF(AG30>$E$5,"",AH29-AI29)) ->  | AL30: 0 | AO30: 8 | AP30: 2022-08-31 | AQ30: 11 | AR30: 11 | AS30: =IF(AND(AR30<$E$5,B30=Оцінка!$E$23),AS29-AT29-Оцінка!$E$22,IF(AR30>$E$5,"",AS29-AT29)) -> 3000000 | AT30: =IF(OR(AR30<=$E$7,AR30=""),0,IF(AND(AR30>=Оцінка!$E$23,Оцінка!$E$23<>0),($E$4-Оцінка!$E$22-IF(Оцінка!$E$13<Оцінка!$E$23,($E$4*(Оцінка!$E$23-1-$E$7)/(($E$5)-$E$7)),0))/IF(Оцінка!$E$13<Оцінка!$E$23,$E$5+1-Оцінка!$E$23,$E$5-Оцінка!$E$13),$E$4/(($E$5)-$E$7))) -> 0 | AU30: 27500 | AW30: 0 | AY30: 27500
A31: 12 | B31: 12 | C31: 2022-09-01 | D31: =IF(AND(B31<$E$5,B31=Оцінка!$E$23),D30-E30-Оцінка!$E$22,IF(B31>$E$5,"",D30-E30)) -> 3000000 | E31: 0 | F31: 28416.66667 | G31: 0 | J31: 0 | P31: 28416.66667 | AA31: 0 | AD31: 8 | AE31: 2022-08-31 | AF31: 12 | AG31: 12 | AH31: =IF(AND(AG31<$E$5,AG31=Оцінка!$F$14),AH30-AI30-Оцінка!$E$14,IF(AG31>$E$5,"",AH30-AI30)) ->  | AL31: 0 | AO31: 9 | AP31: 2022-09-30 | AQ31: 12 | AR31: 12 | AS31: =IF(AND(AR31<$E$5,B31=Оцінка!$E$23),AS30-AT30-Оцінка!$E$22,IF(AR31>$E$5,"",AS30-AT30)) -> 3000000 | AT31: =IF(OR(AR31<=$E$7,AR31=""),0,IF(AND(AR31>=Оцінка!$E$23,Оцінка!$E$23<>0),($E$4-Оцінка!$E$22-IF(Оцінка!$E$13<Оцінка!$E$23,($E$4*(Оцінка!$E$23-1-$E$7)/(($E$5)-$E$7)),0))/IF(Оцінка!$E$13<Оцінка!$E$23,$E$5+1-Оцінка!$E$23,$E$5-Оцінка!$E$13),$E$4/(($E$5)-$E$7))) -> 0 | AU31: 27500 | AW31: 0 | AY31: 27500
A32: 13 | B32: 13 | C32: 2022-10-01 | D32: =IF(AND(B32<$E$5,B32=Оцінка!$E$23),D31-E31-Оцінка!$E$22,IF(B32>$E$5,"",D31-E31)) -> 3000000 | E32: 27777.77778 | F32: =IF(B32>$E$5,"",D32*$E$8/12) -> 27500 | G32: 0 | J32: 0 | P32: 55277.77778 | AD32: 9 | AE32: 2022-09-30 | AF32: 1 | AG32: 13 | AH32: =IF(AND(AG32<$E$5,AG32=Оцінка!$F$14),AH31-AI31-Оцінка!$E$14,IF(AG32>$E$5,"",AH31-AI31)) ->  | AL32: 0 | AO32: 10 | AP32: 2022-10-31 | AQ32: 1 | AR32: 13 | AS32: =IF(AND(AR32<$E$5,B32=Оцінка!$E$23),AS31-AT31-Оцінка!$E$22,IF(AR32>$E$5,"",AS31-AT31)) -> 3000000 | AT32: =IF(OR(AR32<=$E$7,AR32=""),0,IF(AND(AR32>=Оцінка!$E$23,Оцінка!$E$23<>0),($E$4-Оцінка!$E$22-IF(Оцінка!$E$13<Оцінка!$E$23,($E$4*(Оцінка!$E$23-1-$E$7)/(($E$5)-$E$7)),0))/IF(Оцінка!$E$13<Оцінка!$E$23,$E$5+1-Оцінка!$E$23,$E$5-Оцінка!$E$13),$E$4/(($E$5)-$E$7))) -> 27777.77778 | AU32: 27500 | AW32: 0 | AY32: 55277.77778
A33: 14 | B33: 14 | C33: 2022-11-01 | D33: =IF(AND(B33<$E$5,B33=Оцінка!$E$23),D32-E32-Оцінка!$E$22,IF(B33>$E$5,"",D32-E32)) -> 2972222.222 | E33: 27777.77778 | F33: 27245.37037 | G33: 0 | J33: 0 | P33: 55023.14815 | AD33: 10 | AE33: 2022-10-31 | AF33: 2 | AG33: 14 | AH33: =IF(AND(AG33<$E$5,AG33=Оцінка!$F$14),AH32-AI32-Оцінка!$E$14,IF(AG33>$E$5,"",AH32-AI32)) ->  | AL33: 0 | AO33: 11 | AP33: 2022-11-30 | AQ33: 2 | AR33: 14 | AS33: =IF(AND(AR33<$E$5,B33=Оцінка!$E$23),AS32-AT32-Оцінка!$E$22,IF(AR33>$E$5,"",AS32-AT32)) -> 2972222.222 | AT33: =IF(OR(AR33<=$E$7,AR33=""),0,IF(AND(AR33>=Оцінка!$E$23,Оцінка!$E$23<>0),($E$4-Оцінка!$E$22-IF(Оцінка!$E$13<Оцінка!$E$23,($E$4*(Оцінка!$E$23-1-$E$7)/(($E$5)-$E$7)),0))/IF(Оцінка!$E$13<Оцінка!$E$23,$E$5+1-Оцінка!$E$23,$E$5-Оцінка!$E$13),$E$4/(($E$5)-$E$7))) -> 27777.77778 | AU33: 27245.37037 | AW33: 0 | AY33: 55023.14815
A34: 15 | B34: 15 | C34: 2022-12-01 | D34: =IF(AND(B34<$E$5,B34=Оцінка!$E$23),D33-E33-Оцінка!$E$22,IF(B34>$E$5,"",D33-E33)) -> 2944444.444 | E34: 27777.77778 | F34: 26990.74074 | G34: 0 | J34: 0 | P34: 54768.51852 | AD34: 11 | AE34: 2022-11-30 | AF34: 3 | AG34: 15 | AH34: =IF(AND(AG34<$E$5,AG34=Оцінка!$F$14),AH33-AI33-Оцінка!$E$14,IF(AG34>$E$5,"",AH33-AI33)) ->  | AL34: 0 | AO34: 12 | AP34: 2022-12-31 | AQ34: 3 | AR34: 15 | AS34: =IF(AND(AR34<$E$5,B34=Оцінка!$E$23),AS33-AT33-Оцінка!$E$22,IF(AR34>$E$5,"",AS33-AT33)) -> 2944444.444 | AT34: =IF(OR(AR34<=$E$7,AR34=""),0,IF(AND(AR34>=Оцінка!$E$23,Оцінка!$E$23<>0),($E$4-Оцінка!$E$22-IF(Оцінка!$E$13<Оцінка!$E$23,($E$4*(Оцінка!$E$23-1-$E$7)/(($E$5)-$E$7)),0))/IF(Оцінка!$E$13<Оцінка!$E$23,$E$5+1-Оцінка!$E$23,$E$5-Оцінка!$E$13),$E$4/(($E$5)-$E$7))) -> 27777.77778 | AU34: 26990.74074 | AW34: 0 | AY34: 54768.51852
A35: 16 | B35: 16 | C35: 2023-01-01 | D35: =IF(AND(B35<$E$5,B35=Оцінка!$E$23),D34-E34-Оцінка!$E$22,IF(B35>$E$5,"",D34-E34)) -> 2916666.667 | E35: 27777.77778 | F35: 26736.11111 | G35: 0 | J35: 0 | P35: 54513.88889 | AD35: 12 | AE35: 2022-12-31 | AF35: 4 | AG35: 16 | AH35: =IF(AND(AG35<$E$5,AG35=Оцінка!$F$14),AH34-AI34-Оцінка!$E$14,IF(AG35>$E$5,"",AH34-AI34)) ->  | AL35: 0 | AO35: 1 | AP35: 2023-01-31 | AQ35: 4 | AR35: 16 | AS35: =IF(AND(AR35<$E$5,B35=Оцінка!$E$23),AS34-AT34-Оцінка!$E$22,IF(AR35>$E$5,"",AS34-AT34)) -> 2916666.667 | AT35: =IF(OR(AR35<=$E$7,AR35=""),0,IF(AND(AR35>=Оцінка!$E$23,Оцінка!$E$23<>0),($E$4-Оцінка!$E$22-IF(Оцінка!$E$13<Оцінка!$E$23,($E$4*(Оцінка!$E$23-1-$E$7)/(($E$5)-$E$7)),0))/IF(Оцінка!$E$13<Оцінка!$E$23,$E$5+1-Оцінка!$E$23,$E$5-Оцінка!$E$13),$E$4/(($E$5)-$E$7))) -> 27777.77778 | AU35: 26736.11111 | AW35: 0 | AY35: 54513.88889
A36: 17 | B36: 17 | C36: 2023-02-01 | D36: =IF(AND(B36<$E$5,B36=Оцінка!$E$23),D35-E35-Оцінка!$E$22,IF(B36>$E$5,"",D35-E35)) -> 2888888.889 | E36: 27777.77778 | F36: 26481.48148 | G36: 0 | J36: 0 | P36: 54259.25926 | AD36: 1 | AE36: 2023-01-31 | AF36: 5 | AG36: 17 | AH36: =IF(AND(AG36<$E$5,AG36=Оцінка!$F$14),AH35-AI35-Оцінка!$E$14,IF(AG36>$E$5,"",AH35-AI35)) ->  | AL36: 0 | AO36: 2 | AP36: 2023-02-28 | AQ36: 5 | AR36: 17 | AS36: =IF(AND(AR36<$E$5,B36=Оцінка!$E$23),AS35-AT35-Оцінка!$E$22,IF(AR36>$E$5,"",AS35-AT35)) -> 2888888.889 | AT36: =IF(OR(AR36<=$E$7,AR36=""),0,IF(AND(AR36>=Оцінка!$E$23,Оцінка!$E$23<>0),($E$4-Оцінка!$E$22-IF(Оцінка!$E$13<Оцінка!$E$23,($E$4*(Оцінка!$E$23-1-$E$7)/(($E$5)-$E$7)),0))/IF(Оцінка!$E$13<Оцінка!$E$23,$E$5+1-Оцінка!$E$23,$E$5-Оцінка!$E$13),$E$4/(($E$5)-$E$7))) -> 27777.77778 | AU36: 26481.48148 | AW36: 0 | AY36: 54259.25926
A37: 18 | B37: 18 | C37: 2023-03-01 | D37: =IF(AND(B37<$E$5,B37=Оцінка!$E$23),D36-E36-Оцінка!$E$22,IF(B37>$E$5,"",D36-E36)) -> 2861111.111 | E37: 27777.77778 | F37: 26226.85185 | G37: 0 | J37: 0 | P37: 54004.62963 | AD37: 2 | AE37: 2023-02-28 | AF37: 6 | AG37: 18 | AH37: =IF(AND(AG37<$E$5,AG37=Оцінка!$F$14),AH36-AI36-Оцінка!$E$14,IF(AG37>$E$5,"",AH36-AI36)) ->  | AL37: 0 | AO37: 3 | AP37: 2023-03-31 | AQ37: 6 | AR37: 18 | AS37: =IF(AND(AR37<$E$5,B37=Оцінка!$E$23),AS36-AT36-Оцінка!$E$22,IF(AR37>$E$5,"",AS36-AT36)) -> 2861111.111 | AT37: =IF(OR(AR37<=$E$7,AR37=""),0,IF(AND(AR37>=Оцінка!$E$23,Оцінка!$E$23<>0),($E$4-Оцінка!$E$22-IF(Оцінка!$E$13<Оцінка!$E$23,($E$4*(Оцінка!$E$23-1-$E$7)/(($E$5)-$E$7)),0))/IF(Оцінка!$E$13<Оцінка!$E$23,$E$5+1-Оцінка!$E$23,$E$5-Оцінка!$E$13),$E$4/(($E$5)-$E$7))) -> 27777.77778 | AU37: 26226.85185 | AW37: 0 | AY37: 54004.62963
A38: 19 | B38: 19 | C38: 2023-04-01 | D38: =IF(AND(B38<$E$5,B38=Оцінка!$E$23),D37-E37-Оцінка!$E$22,IF(B38>$E$5,"",D37-E37)) -> 2833333.333 | E38: 27777.77778 | F38: 25972.22222 | G38: 0 | J38: 0 | P38: 53750 | AD38: 3 | AE38: 2023-03-31 | AF38: 7 | AG38: 19 | AH38: =IF(AND(AG38<$E$5,AG38=Оцінка!$F$14),AH37-AI37-Оцінка!$E$14,IF(AG38>$E$5,"",AH37-AI37)) ->  | AL38: 0 | AO38: 4 | AP38: 2023-04-30 | AQ38: 7 | AR38: 19 | AS38: =IF(AND(AR38<$E$5,B38=Оцінка!$E$23),AS37-AT37-Оцінка!$E$22,IF(AR38>$E$5,"",AS37-AT37)) -> 2833333.333 | AT38: =IF(OR(AR38<=$E$7,AR38=""),0,IF(AND(AR38>=Оцінка!$E$23,Оцінка!$E$23<>0),($E$4-Оцінка!$E$22-IF(Оцінка!$E$13<Оцінка!$E$23,($E$4*(Оцінка!$E$23-1-$E$7)/(($E$5)-$E$7)),0))/IF(Оцінка!$E$13<Оцінка!$E$23,$E$5+1-Оцінка!$E$23,$E$5-Оцінка!$E$13),$E$4/(($E$5)-$E$7))) -> 27777.77778 | AU38: 25972.22222 | AW38: 0 | AY38: 53750
A39: 20 | B39: 20 | C39: 2023-05-01 | D39: =IF(AND(B39<$E$5,B39=Оцінка!$E$23),D38-E38-Оцінка!$E$22,IF(B39>$E$5,"",D38-E38)) -> 2805555.556 | E39: 27777.77778 | F39: 25717.59259 | G39: 0 | J39: 0 | P39: 53495.37037 | AD39: 4 | AE39: 2023-04-30 | AF39: 8 | AG39: 20 | AH39: =IF(AND(AG39<$E$5,AG39=Оцінка!$F$14),AH38-AI38-Оцінка!$E$14,IF(AG39>$E$5,"",AH38-AI38)) ->  | AL39: 0 | AO39: 5 | AP39: 2023-05-31 | AQ39: 8 | AR39: 20 | AS39: =IF(AND(AR39<$E$5,B39=Оцінка!$E$23),AS38-AT38-Оцінка!$E$22,IF(AR39>$E$5,"",AS38-AT38)) -> 2805555.556 | AT39: =IF(OR(AR39<=$E$7,AR39=""),0,IF(AND(AR39>=Оцінка!$E$23,Оцінка!$E$23<>0),($E$4-Оцінка!$E$22-IF(Оцінка!$E$13<Оцінка!$E$23,($E$4*(Оцінка!$E$23-1-$E$7)/(($E$5)-$E$7)),0))/IF(Оцінка!$E$13<Оцінка!$E$23,$E$5+1-Оцінка!$E$23,$E$5-Оцінка!$E$13),$E$4/(($E$5)-$E$7))) -> 27777.77778 | AU39: 25717.59259 | AW39: 0 | AY39: 53495.37037
A40: 21 | B40: 21 | C40: 2023-06-01 | D40: =IF(AND(B40<$E$5,B40=Оцінка!$E$23),D39-E39-Оцінка!$E$22,IF(B40>$E$5,"",D39-E39)) -> 2777777.778 | E40: 27777.77778 | F40: 25462.96296 | G40: 0 | J40: 0 | P40: 53240.74074 | AD40: 5 | AE40: 2023-05-31 | AF40: 9 | AG40: 21 | AH40: =IF(AND(AG40<$E$5,AG40=Оцінка!$F$14),AH39-AI39-Оцінка!$E$14,IF(AG40>$E$5,"",AH39-AI39)) ->  | AL40: 0 | AO40: 6 | AP40: 2023-06-30 | AQ40: 9 | AR40: 21 | AS40: =IF(AND(AR40<$E$5,B40=Оцінка!$E$23),AS39-AT39-Оцінка!$E$22,IF(AR40>$E$5,"",AS39-AT39)) -> 2777777.778 | AT40: =IF(OR(AR40<=$E$7,AR40=""),0,IF(AND(AR40>=Оцінка!$E$23,Оцінка!$E$23<>0),($E$4-Оцінка!$E$22-IF(Оцінка!$E$13<Оцінка!$E$23,($E$4*(Оцінка!$E$23-1-$E$7)/(($E$5)-$E$7)),0))/IF(Оцінка!$E$13<Оцінка!$E$23,$E$5+1-Оцінка!$E$23,$E$5-Оцінка!$E$13),$E$4/(($E$5)-$E$7))) -> 27777.77778 | AU40: 25462.96296 | AW40: 0 | AY40: 53240.74074
A41: 22 | B41: 22 | C41: 2023-07-01 | D41: =IF(AND(B41<$E$5,B41=Оцінка!$E$23),D40-E40-Оцінка!$E$22,IF(B41>$E$5,"",D40-E40)) -> 2750000 | E41: 27777.77778 | F41: 25208.33333 | G41: 0 | J41: 0 | P41: 52986.11111 | AD41: 6 | AE41: 2023-06-30 | AF41: 10 | AG41: 22 | AH41: =IF(AND(AG41<$E$5,AG41=Оцінка!$F$14),AH40-AI40-Оцінка!$E$14,IF(AG41>$E$5,"",AH40-AI40)) ->  | AL41: 0 | AO41: 7 | AP41: 2023-07-31 | AQ41: 10 | AR41: 22 | AS41: =IF(AND(AR41<$E$5,B41=Оцінка!$E$23),AS40-AT40-Оцінка!$E$22,IF(AR41>$E$5,"",AS40-AT40)) -> 2750000 | AT41: =IF(OR(AR41<=$E$7,AR41=""),0,IF(AND(AR41>=Оцінка!$E$23,Оцінка!$E$23<>0),($E$4-Оцінка!$E$22-IF(Оцінка!$E$13<Оцінка!$E$23,($E$4*(Оцінка!$E$23-1-$E$7)/(($E$5)-$E$7)),0))/IF(Оцінка!$E$13<Оцінка!$E$23,$E$5+1-Оцінка!$E$23,$E$5-Оцінка!$E$13),$E$4/(($E$5)-$E$7))) -> 27777.77778 | AU41: 25208.33333 | AW41: 0 | AY41: 52986.11111
A42: 23 | B42: 23 | C42: 2023-08-01 | D42: =IF(AND(B42<$E$5,B42=Оцінка!$E$23),D41-E41-Оцінка!$E$22,IF(B42>$E$5,"",D41-E41)) -> 2722222.222 | E42: 27777.77778 | F42: 24953.7037 | G42: 0 | J42: 0 | P42: 52731.48148 | AD42: 7 | AE42: 2023-07-31 | AF42: 11 | AG42: 23 | AH42: =IF(AND(AG42<$E$5,AG42=Оцінка!$F$14),AH41-AI41-Оцінка!$E$14,IF(AG42>$E$5,"",AH41-AI41)) ->  | AL42: 0 | AO42: 8 | AP42: 2023-08-31 | AQ42: 11 | AR42: 23 | AS42: =IF(AND(AR42<$E$5,B42=Оцінка!$E$23),AS41-AT41-Оцінка!$E$22,IF(AR42>$E$5,"",AS41-AT41)) -> 2722222.222 | AT42: =IF(OR(AR42<=$E$7,AR42=""),0,IF(AND(AR42>=Оцінка!$E$23,Оцінка!$E$23<>0),($E$4-Оцінка!$E$22-IF(Оцінка!$E$13<Оцінка!$E$23,($E$4*(Оцінка!$E$23-1-$E$7)/(($E$5)-$E$7)),0))/IF(Оцінка!$E$13<Оцінка!$E$23,$E$5+1-Оцінка!$E$23,$E$5-Оцінка!$E$13),$E$4/(($E$5)-$E$7))) -> 27777.77778 | AU42: 24953.7037 | AW42: 0 | AY42: 52731.48148
A43: 24 | B43: 24 | C43: 2023-09-01 | D43: =IF(AND(B43<$E$5,B43=Оцінка!$E$23),D42-E42-Оцінка!$E$22,IF(B43>$E$5,"",D42-E42)) -> 2694444.444 | E43: 27777.77778 | F43: 24699.07407 | G43: 0 | J43: 0 | P43: 52476.85185 | AD43: 8 | AE43: 2023-08-31 | AF43: 12 | AG43: 24 | AH43: =IF(AND(AG43<$E$5,AG43=Оцінка!$F$14),AH42-AI42-Оцінка!$E$14,IF(AG43>$E$5,"",AH42-AI42)) ->  | AL43: 0 | AO43: 9 | AP43: 2023-09-30 | AQ43: 12 | AR43: 24 | AS43: =IF(AND(AR43<$E$5,B43=Оцінка!$E$23),AS42-AT42-Оцінка!$E$22,IF(AR43>$E$5,"",AS42-AT42)) -> 2694444.444 | AT43: =IF(OR(AR43<=$E$7,AR43=""),0,IF(AND(AR43>=Оцінка!$E$23,Оцінка!$E$23<>0),($E$4-Оцінка!$E$22-IF(Оцінка!$E$13<Оцінка!$E$23,($E$4*(Оцінка!$E$23-1-$E$7)/(($E$5)-$E$7)),0))/IF(Оцінка!$E$13<Оцінка!$E$23,$E$5+1-Оцінка!$E$23,$E$5-Оцінка!$E$13),$E$4/(($E$5)-$E$7))) -> 27777.77778 | AU43: 24699.07407 | AW43: 0 | AY43: 52476.85185
A44: 25 | B44: 25 | C44: 2023-10-01 | D44: =IF(AND(B44<$E$5,B44=Оцінка!$E$23),D43-E43-Оцінка!$E$22,IF(B44>$E$5,"",D43-E43)) -> 2666666.667 | E44: 27777.77778 | F44: 24444.44444 | G44: 0 | J44: 0 | P44: 52222.22222 | AD44: 9 | AE44: 2023-09-30 | AF44: 1 | AG44: 25 | AH44: =IF(AND(AG44<$E$5,AG44=Оцінка!$F$14),AH43-AI43-Оцінка!$E$14,IF(AG44>$E$5,"",AH43-AI43)) ->  | AL44: 0 | AO44: 10 | AP44: 2023-10-31 | AQ44: 1 | AR44: 25 | AS44: =IF(AND(AR44<$E$5,B44=Оцінка!$E$23),AS43-AT43-Оцінка!$E$22,IF(AR44>$E$5,"",AS43-AT43)) -> 2666666.667 | AT44: =IF(OR(AR44<=$E$7,AR44=""),0,IF(AND(AR44>=Оцінка!$E$23,Оцінка!$E$23<>0),($E$4-Оцінка!$E$22-IF(Оцінка!$E$13<Оцінка!$E$23,($E$4*(Оцінка!$E$23-1-$E$7)/(($E$5)-$E$7)),0))/IF(Оцінка!$E$13<Оцінка!$E$23,$E$5+1-Оцінка!$E$23,$E$5-Оцінка!$E$13),$E$4/(($E$5)-$E$7))) -> 27777.77778 | AU44: 24444.44444 | AW44: 0 | AY44: 52222.22222
A45: 26 | B45: 26 | C45: 2023-11-01 | D45: =IF(AND(B45<$E$5,B45=Оцінка!$E$23),D44-E44-Оцінка!$E$22,IF(B45>$E$5,"",D44-E44)) -> 2638888.889 | E45: 27777.77778 | F45: 24189.81481 | G45: 0 | J45: 0 | P45: 51967.59259 | AD45: 10 | AE45: 2023-10-31 | AF45: 2 | AG45: 26 | AH45: =IF(AND(AG45<$E$5,AG45=Оцінка!$F$14),AH44-AI44-Оцінка!$E$14,IF(AG45>$E$5,"",AH44-AI44)) ->  | AL45: 0 | AO45: 11 | AP45: 2023-11-30 | AQ45: 2 | AR45: 26 | AS45: =IF(AND(AR45<$E$5,B45=Оцінка!$E$23),AS44-AT44-Оцінка!$E$22,IF(AR45>$E$5,"",AS44-AT44)) -> 2638888.889 | AT45: =IF(OR(AR45<=$E$7,AR45=""),0,IF(AND(AR45>=Оцінка!$E$23,Оцінка!$E$23<>0),($E$4-Оцінка!$E$22-IF(Оцінка!$E$13<Оцінка!$E$23,($E$4*(Оцінка!$E$23-1-$E$7)/(($E$5)-$E$7)),0))/IF(Оцінка!$E$13<Оцінка!$E$23,$E$5+1-Оцінка!$E$23,$E$5-Оцінка!$E$13),$E$4/(($E$5)-$E$7))) -> 27777.77778 | AU45: 24189.81481 | AW45: 0 | AY45: 51967.59259
A46: 27 | B46: 27 | C46: 2023-12-01 | D46: =IF(AND(B46<$E$5,B46=Оцінка!$E$23),D45-E45-Оцінка!$E$22,IF(B46>$E$5,"",D45-E45)) -> 2611111.111 | E46: 27777.77778 | F46: 23935.18519 | G46: 0 | J46: 0 | P46: 51712.96296 | AD46: 11 | AE46: 2023-11-30 | AF46: 3 | AG46: 27 | AH46: =IF(AND(AG46<$E$5,AG46=Оцінка!$F$14),AH45-AI45-Оцінка!$E$14,IF(AG46>$E$5,"",AH45-AI45)) ->  | AL46: 0 | AO46: 12 | AP46: 2023-12-31 | AQ46: 3 | AR46: 27 | AS46: =IF(AND(AR46<$E$5,B46=Оцінка!$E$23),AS45-AT45-Оцінка!$E$22,IF(AR46>$E$5,"",AS45-AT45)) -> 2611111.111 | AT46: =IF(OR(AR46<=$E$7,AR46=""),0,IF(AND(AR46>=Оцінка!$E$23,Оцінка!$E$23<>0),($E$4-Оцінка!$E$22-IF(Оцінка!$E$13<Оцінка!$E$23,($E$4*(Оцінка!$E$23-1-$E$7)/(($E$5)-$E$7)),0))/IF(Оцінка!$E$13<Оцінка!$E$23,$E$5+1-Оцінка!$E$23,$E$5-Оцінка!$E$13),$E$4/(($E$5)-$E$7))) -> 27777.77778 | AU46: 23935.18519 | AW46: 0 | AY46: 51712.96296
A47: 28 | B47: 28 | C47: 2024-01-01 | D47: =IF(AND(B47<$E$5,B47=Оцінка!$E$23),D46-E46-Оцінка!$E$22,IF(B47>$E$5,"",D46-E46)) -> 2583333.333 | E47: 27777.77778 | F47: 23680.55556 | G47: 0 | J47: 0 | P47: 51458.33333 | AD47: 12 | AE47: 2023-12-31 | AF47: 4 | AG47: 28 | AH47: =IF(AND(AG47<$E$5,AG47=Оцінка!$F$14),AH46-AI46-Оцінка!$E$14,IF(AG47>$E$5,"",AH46-AI46)) ->  | AL47: 0 | AO47: 1 | AP47: 2024-01-31 | AQ47: 4 | AR47: 28 | AS47: =IF(AND(AR47<$E$5,B47=Оцінка!$E$23),AS46-AT46-Оцінка!$E$22,IF(AR47>$E$5,"",AS46-AT46)) -> 2583333.333 | AT47: =IF(OR(AR47<=$E$7,AR47=""),0,IF(AND(AR47>=Оцінка!$E$23,Оцінка!$E$23<>0),($E$4-Оцінка!$E$22-IF(Оцінка!$E$13<Оцінка!$E$23,($E$4*(Оцінка!$E$23-1-$E$7)/(($E$5)-$E$7)),0))/IF(Оцінка!$E$13<Оцінка!$E$23,$E$5+1-Оцінка!$E$23,$E$5-Оцінка!$E$13),$E$4/(($E$5)-$E$7))) -> 27777.77778 | AU47: 23680.55556 | AW47: 0 | AY47: 51458.33333
A48: 29 | B48: 29 | C48: 2024-02-01 | D48: =IF(AND(B48<$E$5,B48=Оцінка!$E$23),D47-E47-Оцінка!$E$22,IF(B48>$E$5,"",D47-E47)) -> 2555555.556 | E48: 27777.77778 | F48: 23425.92593 | G48: 0 | J48: 0 | P48: 51203.7037 | AD48: 1 | AE48: 2024-01-31 | AF48: 5 | AG48: 29 | AH48: =IF(AND(AG48<$E$5,AG48=Оцінка!$F$14),AH47-AI47-Оцінка!$E$14,IF(AG48>$E$5,"",AH47-AI47)) ->  | AL48: 0 | AO48: 2 | AP48: 2024-02-29 | AQ48: 5 | AR48: 29 | AS48: =IF(AND(AR48<$E$5,B48=Оцінка!$E$23),AS47-AT47-Оцінка!$E$22,IF(AR48>$E$5,"",AS47-AT47)) -> 2555555.556 | AT48: =IF(OR(AR48<=$E$7,AR48=""),0,IF(AND(AR48>=Оцінка!$E$23,Оцінка!$E$23<>0),($E$4-Оцінка!$E$22-IF(Оцінка!$E$13<Оцінка!$E$23,($E$4*(Оцінка!$E$23-1-$E$7)/(($E$5)-$E$7)),0))/IF(Оцінка!$E$13<Оцінка!$E$23,$E$5+1-Оцінка!$E$23,$E$5-Оцінка!$E$13),$E$4/(($E$5)-$E$7))) -> 27777.77778 | AU48: 23425.92593 | AW48: 0 | AY48: 51203.7037
A49: 30 | B49: 30 | C49: 2024-03-01 | D49: =IF(AND(B49<$E$5,B49=Оцінка!$E$23),D48-E48-Оцінка!$E$22,IF(B49>$E$5,"",D48-E48)) -> 2527777.778 | E49: 27777.77778 | F49: 23171.2963 | G49: 0 | J49: 0 | P49: 50949.07407 | AD49: 2 | AE49: 2024-02-29 | AF49: 6 | AG49: 30 | AH49: =IF(AND(AG49<$E$5,AG49=Оцінка!$F$14),AH48-AI48-Оцінка!$E$14,IF(AG49>$E$5,"",AH48-AI48)) ->  | AL49: 0 | AO49: 3 | AP49: 2024-03-31 | AQ49: 6 | AR49: 30 | AS49: =IF(AND(AR49<$E$5,B49=Оцінка!$E$23),AS48-AT48-Оцінка!$E$22,IF(AR49>$E$5,"",AS48-AT48)) -> 2527777.778 | AT49: =IF(OR(AR49<=$E$7,AR49=""),0,IF(AND(AR49>=Оцінка!$E$23,Оцінка!$E$23<>0),($E$4-Оцінка!$E$22-IF(Оцінка!$E$13<Оцінка!$E$23,($E$4*(Оцінка!$E$23-1-$E$7)/(($E$5)-$E$7)),0))/IF(Оцінка!$E$13<Оцінка!$E$23,$E$5+1-Оцінка!$E$23,$E$5-Оцінка!$E$13),$E$4/(($E$5)-$E$7))) -> 27777.77778 | AU49: 23171.2963 | AW49: 0 | AY49: 50949.07407
A50: 31 | B50: 31 | C50: 2024-04-01 | D50: =IF(AND(B50<$E$5,B50=Оцінка!$E$23),D49-E49-Оцінка!$E$22,IF(B50>$E$5,"",D49-E49)) -> 2500000 | E50: 27777.77778 | F50: 22916.66667 | G50: 0 | J50: 0 | P50: 50694.44444 | AD50: 3 | AE50: 2024-03-31 | AF50: 7 | AG50: 31 | AH50: =IF(AND(AG50<$E$5,AG50=Оцінка!$F$14),AH49-AI49-Оцінка!$E$14,IF(AG50>$E$5,"",AH49-AI49)) ->  | AL50: 0 | AO50: 4 | AP50: 2024-04-30 | AQ50: 7 | AR50: 31 | AS50: =IF(AND(AR50<$E$5,B50=Оцінка!$E$23),AS49-AT49-Оцінка!$E$22,IF(AR50>$E$5,"",AS49-AT49)) -> 2500000 | AT50: =IF(OR(AR50<=$E$7,AR50=""),0,IF(AND(AR50>=Оцінка!$E$23,Оцінка!$E$23<>0),($E$4-Оцінка!$E$22-IF(Оцінка!$E$13<Оцінка!$E$23,($E$4*(Оцінка!$E$23-1-$E$7)/(($E$5)-$E$7)),0))/IF(Оцінка!$E$13<Оцінка!$E$23,$E$5+1-Оцінка!$E$23,$E$5-Оцінка!$E$13),$E$4/(($E$5)-$E$7))) -> 27777.77778 | AU50: 22916.66667 | AW50: 0 | AY50: 50694.44444
A51: 32 | B51: 32 | C51: 2024-05-01 | D51: =IF(AND(B51<$E$5,B51=Оцінка!$E$23),D50-E50-Оцінка!$E$22,IF(B51>$E$5,"",D50-E50)) -> 2472222.222 | E51: 27777.77778 | F51: 22662.03704 | G51: 0 | J51: 0 | P51: 50439.81481 | AD51: 4 | AE51: 2024-04-30 | AF51: 8 | AG51: 32 | AH51: =IF(AND(AG51<$E$5,AG51=Оцінка!$F$14),AH50-AI50-Оцінка!$E$14,IF(AG51>$E$5,"",AH50-AI50)) ->  | AL51: 0 | AO51: 5 | AP51: 2024-05-31 | AQ51: 8 | AR51: 32 | AS51: =IF(AND(AR51<$E$5,B51=Оцінка!$E$23),AS50-AT50-Оцінка!$E$22,IF(AR51>$E$5,"",AS50-AT50)) -> 2472222.222 | AT51: =IF(OR(AR51<=$E$7,AR51=""),0,IF(AND(AR51>=Оцінка!$E$23,Оцінка!$E$23<>0),($E$4-Оцінка!$E$22-IF(Оцінка!$E$13<Оцінка!$E$23,($E$4*(Оцінка!$E$23-1-$E$7)/(($E$5)-$E$7)),0))/IF(Оцінка!$E$13<Оцінка!$E$23,$E$5+1-Оцінка!$E$23,$E$5-Оцінка!$E$13),$E$4/(($E$5)-$E$7))) -> 27777.77778 | AU51: 22662.03704 | AW51: 0 | AY51: 50439.81481
A52: 33 | B52: 33 | C52: 2024-06-01 | D52: =IF(AND(B52<$E$5,B52=Оцінка!$E$23),D51-E51-Оцінка!$E$22,IF(B52>$E$5,"",D51-E51)) -> 2444444.444 | E52: 27777.77778 | F52: 22407.40741 | G52: 0 | J52: 0 | P52: 50185.18519 | AD52: 5 | AE52: 2024-05-31 | AF52: 9 | AG52: 33 | AH52: =IF(AND(AG52<$E$5,AG52=Оцінка!$F$14),AH51-AI51-Оцінка!$E$14,IF(AG52>$E$5,"",AH51-AI51)) ->  | AL52: 0 | AN52: =IF(AG52>$E$5,"",SUM(AI52:AM52)) ->  | AO52: 6 | AP52: 2024-06-30 | AQ52: 9 | AR52: 33 | AS52: =IF(AND(AR52<$E$5,B52=Оцінка!$E$23),AS51-AT51-Оцінка!$E$22,IF(AR52>$E$5,"",AS51-AT51)) -> 2444444.444 | AT52: =IF(OR(AR52<=$E$7,AR52=""),0,IF(AND(AR52>=Оцінка!$E$23,Оцінка!$E$23<>0),($E$4-Оцінка!$E$22-IF(Оцінка!$E$13<Оцінка!$E$23,($E$4*(Оцінка!$E$23-1-$E$7)/(($E$5)-$E$7)),0))/IF(Оцінка!$E$13<Оцінка!$E$23,$E$5+1-Оцінка!$E$23,$E$5-Оцінка!$E$13),$E$4/(($E$5)-$E$7))) -> 27777.77778 | AU52: 22407.40741 | AW52: 0 | AY52: =IF(AR52>$E$5,"",SUM(AT52:AX52)) -> 50185.18519
A53: 34 | B53: 34 | C53: 2024-07-01 | D53: =IF(AND(B53<$E$5,B53=Оцінка!$E$23),D52-E52-Оцінка!$E$22,IF(B53>$E$5,"",D52-E52)) -> 2416666.667 | E53: 27777.77778 | F53: 22152.77778 | G53: 0 | J53: 0 | P53: 49930.55556 | AD53: 6 | AE53: 2024-06-30 | AF53: 10 | AG53: 34 | AH53: =IF(AND(AG53<$E$5,AG53=Оцінка!$F$14),AH52-AI52-Оцінка!$E$14,IF(AG53>$E$5,"",AH52-AI52)) ->  | AL53: 0 | AO53: 7 | AP53: 2024-07-31 | AQ53: 10 | AR53: 34 | AS53: =IF(AND(AR53<$E$5,B53=Оцінка!$E$23),AS52-AT52-Оцінка!$E$22,IF(AR53>$E$5,"",AS52-AT52)) -> 2416666.667 | AT53: =IF(OR(AR53<=$E$7,AR53=""),0,IF(AND(AR53>=Оцінка!$E$23,Оцінка!$E$23<>0),($E$4-Оцінка!$E$22-IF(Оцінка!$E$13<Оцінка!$E$23,($E$4*(Оцінка!$E$23-1-$E$7)/(($E$5)-$E$7)),0))/IF(Оцінка!$E$13<Оцінка!$E$23,$E$5+1-Оцінка!$E$23,$E$5-Оцінка!$E$13),$E$4/(($E$5)-$E$7))) -> 27777.77778 | AU53: 22152.77778 | AW53: 0 | AY53: 49930.55556
A54: 35 | B54: 35 | C54: 2024-08-01 | D54: =IF(AND(B54<$E$5,B54=Оцінка!$E$23),D53-E53-Оцінка!$E$22,IF(B54>$E$5,"",D53-E53)) -> 2388888.889 | E54: 27777.77778 | F54: 21898.14815 | G54: 0 | J54: 0 | P54: 49675.92593 | AD54: 7 | AE54: 2024-07-31 | AF54: 11 | AG54: 35 | AH54: =IF(AND(AG54<$E$5,AG54=Оцінка!$F$14),AH53-AI53-Оцінка!$E$14,IF(AG54>$E$5,"",AH53-AI53)) ->  | AL54: 0 | AO54: 8 | AP54: 2024-08-31 | AQ54: 11 | AR54: 35 | AS54: =IF(AND(AR54<$E$5,B54=Оцінка!$E$23),AS53-AT53-Оцінка!$E$22,IF(AR54>$E$5,"",AS53-AT53)) -> 2388888.889 | AT54: =IF(OR(AR54<=$E$7,AR54=""),0,IF(AND(AR54>=Оцінка!$E$23,Оцінка!$E$23<>0),($E$4-Оцінка!$E$22-IF(Оцінка!$E$13<Оцінка!$E$23,($E$4*(Оцінка!$E$23-1-$E$7)/(($E$5)-$E$7)),0))/IF(Оцінка!$E$13<Оцінка!$E$23,$E$5+1-Оцінка!$E$23,$E$5-Оцінка!$E$13),$E$4/(($E$5)-$E$7))) -> 27777.77778 | AU54: 21898.14815 | AW54: 0 | AY54: 49675.92593
A55: 36 | B55: 36 | C55: 2024-09-01 | D55: =IF(AND(B55<$E$5,B55=Оцінка!$E$23),D54-E54-Оцінка!$E$22,IF(B55>$E$5,"",D54-E54)) -> 2361111.111 | E55: 27777.77778 | F55: 21643.51852 | G55: 0 | J55: 0 | P55: 49421.2963 | AD55: 8 | AE55: 2024-08-31 | AF55: 12 | AG55: 36 | AH55: =IF(AND(AG55<$E$5,AG55=Оцінка!$F$14),AH54-AI54-Оцінка!$E$14,IF(AG55>$E$5,"",AH54-AI54)) ->  | AL55: 0 | AO55: 9 | AP55: 2024-09-30 | AQ55: 12 | AR55: 36 | AS55: =IF(AND(AR55<$E$5,B55=Оцінка!$E$23),AS54-AT54-Оцінка!$E$22,IF(AR55>$E$5,"",AS54-AT54)) -> 2361111.111 | AT55: =IF(OR(AR55<=$E$7,AR55=""),0,IF(AND(AR55>=Оцінка!$E$23,Оцінка!$E$23<>0),($E$4-Оцінка!$E$22-IF(Оцінка!$E$13<Оцінка!$E$23,($E$4*(Оцінка!$E$23-1-$E$7)/(($E$5)-$E$7)),0))/IF(Оцінка!$E$13<Оцінка!$E$23,$E$5+1-Оцінка!$E$23,$E$5-Оцінка!$E$13),$E$4/(($E$5)-$E$7))) -> 27777.77778 | AU55: 21643.51852 | AW55: 0 | AY55: 49421.2963
A56: 37 | B56: 37 | C56: 2024-10-01 | D56: =IF(AND(B56<$E$5,B56=Оцінка!$E$23),D55-E55-Оцінка!$E$22,IF(B56>$E$5,"",D55-E55)) -> 2333333.333 | E56: 27777.77778 | F56: 21388.88889 | G56: 0 | J56: 0 | P56: 49166.66667 | AD56: 9 | AE56: 2024-09-30 | AF56: 1 | AG56: 37 | AH56: =IF(AND(AG56<$E$5,AG56=Оцінка!$F$14),AH55-AI55-Оцінка!$E$14,IF(AG56>$E$5,"",AH55-AI55)) ->  | AL56: 0 | AO56: 10 | AP56: 2024-10-31 | AQ56: 1 | AR56: 37 | AS56: =IF(AND(AR56<$E$5,B56=Оцінка!$E$23),AS55-AT55-Оцінка!$E$22,IF(AR56>$E$5,"",AS55-AT55)) -> 2333333.333 | AT56: =IF(OR(AR56<=$E$7,AR56=""),0,IF(AND(AR56>=Оцінка!$E$23,Оцінка!$E$23<>0),($E$4-Оцінка!$E$22-IF(Оцінка!$E$13<Оцінка!$E$23,($E$4*(Оцінка!$E$23-1-$E$7)/(($E$5)-$E$7)),0))/IF(Оцінка!$E$13<Оцінка!$E$23,$E$5+1-Оцінка!$E$23,$E$5-Оцінка!$E$13),$E$4/(($E$5)-$E$7))) -> 27777.77778 | AU56: 21388.88889 | AW56: 0 | AY56: 49166.66667
A57: 38 | B57: 38 | C57: 2024-11-01 | D57: =IF(AND(B57<$E$5,B57=Оцінка!$E$23),D56-E56-Оцінка!$E$22,IF(B57>$E$5,"",D56-E56)) -> 2305555.556 | E57: 27777.77778 | F57: 21134.25926 | G57: 0 | J57: 0 | P57: 48912.03704 | AD57: 10 | AE57: 2024-10-31 | AF57: 2 | AG57: 38 | AH57: =IF(AND(AG57<$E$5,AG57=Оцінка!$F$14),AH56-AI56-Оцінка!$E$14,IF(AG57>$E$5,"",AH56-AI56)) ->  | AL57: 0 | AO57: 11 | AP57: 2024-11-30 | AQ57: 2 | AR57: 38 | AS57: =IF(AND(AR57<$E$5,B57=Оцінка!$E$23),AS56-AT56-Оцінка!$E$22,IF(AR57>$E$5,"",AS56-AT56)) -> 2305555.556 | AT57: =IF(OR(AR57<=$E$7,AR57=""),0,IF(AND(AR57>=Оцінка!$E$23,Оцінка!$E$23<>0),($E$4-Оцінка!$E$22-IF(Оцінка!$E$13<Оцінка!$E$23,($E$4*(Оцінка!$E$23-1-$E$7)/(($E$5)-$E$7)),0))/IF(Оцінка!$E$13<Оцінка!$E$23,$E$5+1-Оцінка!$E$23,$E$5-Оцінка!$E$13),$E$4/(($E$5)-$E$7))) -> 27777.77778 | AU57: 21134.25926 | AW57: 0 | AY57: 48912.03704
A58: 39 | B58: 39 | C58: 2024-12-01 | D58: =IF(AND(B58<$E$5,B58=Оцінка!$E$23),D57-E57-Оцінка!$E$22,IF(B58>$E$5,"",D57-E57)) -> 2277777.778 | E58: 27777.77778 | F58: 20879.62963 | G58: 0 | J58: 0 | P58: 48657.40741 | AD58: 11 | AE58: 2024-11-30 | AF58: 3 | AG58: 39 | AH58: =IF(AND(AG58<$E$5,AG58=Оцінка!$F$14),AH57-AI57-Оцінка!$E$14,IF(AG58>$E$5,"",AH57-AI57)) ->  | AL58: 0 | AO58: 12 | AP58: 2024-12-31 | AQ58: 3 | AR58: 39 | AS58: =IF(AND(AR58<$E$5,B58=Оцінка!$E$23),AS57-AT57-Оцінка!$E$22,IF(AR58>$E$5,"",AS57-AT57)) -> 2277777.778 | AT58: =IF(OR(AR58<=$E$7,AR58=""),0,IF(AND(AR58>=Оцінка!$E$23,Оцінка!$E$23<>0),($E$4-Оцінка!$E$22-IF(Оцінка!$E$13<Оцінка!$E$23,($E$4*(Оцінка!$E$23-1-$E$7)/(($E$5)-$E$7)),0))/IF(Оцінка!$E$13<Оцінка!$E$23,$E$5+1-Оцінка!$E$23,$E$5-Оцінка!$E$13),$E$4/(($E$5)-$E$7))) -> 27777.77778 | AU58: 20879.62963 | AW58: 0 | AY58: 48657.40741
A59: 40 | B59: 40 | C59: 2025-01-01 | D59: =IF(AND(B59<$E$5,B59=Оцінка!$E$23),D58-E58-Оцінка!$E$22,IF(B59>$E$5,"",D58-E58)) -> 2250000 | E59: 27777.77778 | F59: 20625 | G59: 0 | J59: 0 | P59: 48402.77778 | AD59: 12 | AE59: 2024-12-31 | AF59: 4 | AG59: 40 | AH59: =IF(AND(AG59<$E$5,AG59=Оцінка!$F$14),AH58-AI58-Оцінка!$E$14,IF(AG59>$E$5,"",AH58-AI58)) ->  | AL59: 0 | AO59: 1 | AP59: 2025-01-31 | AQ59: 4 | AR59: 40 | AS59: =IF(AND(AR59<$E$5,B59=Оцінка!$E$23),AS58-AT58-Оцінка!$E$22,IF(AR59>$E$5,"",AS58-AT58)) -> 2250000 | AT59: =IF(OR(AR59<=$E$7,AR59=""),0,IF(AND(AR59>=Оцінка!$E$23,Оцінка!$E$23<>0),($E$4-Оцінка!$E$22-IF(Оцінка!$E$13<Оцінка!$E$23,($E$4*(Оцінка!$E$23-1-$E$7)/(($E$5)-$E$7)),0))/IF(Оцінка!$E$13<Оцінка!$E$23,$E$5+1-Оцінка!$E$23,$E$5-Оцінка!$E$13),$E$4/(($E$5)-$E$7))) -> 27777.77778 | AU59: 20625 | AW59: 0 | AY59: 48402.77778
A60: 41 | B60: 41 | C60: 2025-02-01 | D60: =IF(AND(B60<$E$5,B60=Оцінка!$E$23),D59-E59-Оцінка!$E$22,IF(B60>$E$5,"",D59-E59)) -> 2222222.222 | E60: 27777.77778 | F60: 20370.37037 | G60: 0 | J60: 0 | P60: 48148.14815 | AD60: 1 | AE60: 2025-01-31 | AF60: 5 | AG60: 41 | AH60: =IF(AND(AG60<$E$5,AG60=Оцінка!$F$14),AH59-AI59-Оцінка!$E$14,IF(AG60>$E$5,"",AH59-AI59)) ->  | AL60: 0 | AO60: 2 | AP60: 2025-02-28 | AQ60: 5 | AR60: 41 | AS60: =IF(AND(AR60<$E$5,B60=Оцінка!$E$23),AS59-AT59-Оцінка!$E$22,IF(AR60>$E$5,"",AS59-AT59)) -> 2222222.222 | AT60: =IF(OR(AR60<=$E$7,AR60=""),0,IF(AND(AR60>=Оцінка!$E$23,Оцінка!$E$23<>0),($E$4-Оцінка!$E$22-IF(Оцінка!$E$13<Оцінка!$E$23,($E$4*(Оцінка!$E$23-1-$E$7)/(($E$5)-$E$7)),0))/IF(Оцінка!$E$13<Оцінка!$E$23,$E$5+1-Оцінка!$E$23,$E$5-Оцінка!$E$13),$E$4/(($E$5)-$E$7))) -> 27777.77778 | AU60: 20370.37037 | AW60: 0 | AY60: 48148.14815
A61: 42 | B61: 42 | C61: 2025-03-01 | D61: =IF(AND(B61<$E$5,B61=Оцінка!$E$23),D60-E60-Оцінка!$E$22,IF(B61>$E$5,"",D60-E60)) -> 2194444.444 | E61: 27777.77778 | F61: 20115.74074 | G61: 0 | J61: 0 | P61: 47893.51852 | AD61: 2 | AE61: 2025-02-28 | AF61: 6 | AG61: 42 | AH61: =IF(AND(AG61<$E$5,AG61=Оцінка!$F$14),AH60-AI60-Оцінка!$E$14,IF(AG61>$E$5,"",AH60-AI60)) ->  | AL61: 0 | AO61: 3 | AP61: 2025-03-31 | AQ61: 6 | AR61: 42 | AS61: =IF(AND(AR61<$E$5,B61=Оцінка!$E$23),AS60-AT60-Оцінка!$E$22,IF(AR61>$E$5,"",AS60-AT60)) -> 2194444.444 | AT61: =IF(OR(AR61<=$E$7,AR61=""),0,IF(AND(AR61>=Оцінка!$E$23,Оцінка!$E$23<>0),($E$4-Оцінка!$E$22-IF(Оцінка!$E$13<Оцінка!$E$23,($E$4*(Оцінка!$E$23-1-$E$7)/(($E$5)-$E$7)),0))/IF(Оцінка!$E$13<Оцінка!$E$23,$E$5+1-Оцінка!$E$23,$E$5-Оцінка!$E$13),$E$4/(($E$5)-$E$7))) -> 27777.77778 | AU61: 20115.74074 | AW61: 0 | AY61: 47893.51852
A62: 43 | B62: 43 | C62: 2025-04-01 | D62: =IF(AND(B62<$E$5,B62=Оцінка!$E$23),D61-E61-Оцінка!$E$22,IF(B62>$E$5,"",D61-E61)) -> 2166666.667 | E62: 27777.77778 | F62: 19861.11111 | G62: 0 | J62: 0 | P62: 47638.88889 | AD62: 3 | AE62: 2025-03-31 | AF62: 7 | AG62: 43 | AH62: =IF(AND(AG62<$E$5,AG62=Оцінка!$F$14),AH61-AI61-Оцінка!$E$14,IF(AG62>$E$5,"",AH61-AI61)) ->  | AL62: 0 | AO62: 4 | AP62: 2025-04-30 | AQ62: 7 | AR62: 43 | AS62: =IF(AND(AR62<$E$5,B62=Оцінка!$E$23),AS61-AT61-Оцінка!$E$22,IF(AR62>$E$5,"",AS61-AT61)) -> 2166666.667 | AT62: =IF(OR(AR62<=$E$7,AR62=""),0,IF(AND(AR62>=Оцінка!$E$23,Оцінка!$E$23<>0),($E$4-Оцінка!$E$22-IF(Оцінка!$E$13<Оцінка!$E$23,($E$4*(Оцінка!$E$23-1-$E$7)/(($E$5)-$E$7)),0))/IF(Оцінка!$E$13<Оцінка!$E$23,$E$5+1-Оцінка!$E$23,$E$5-Оцінка!$E$13),$E$4/(($E$5)-$E$7))) -> 27777.77778 | AU62: 19861.11111 | AW62: 0 | AY62: 47638.88889
A63: 44 | B63: 44 | C63: 2025-05-01 | D63: =IF(AND(B63<$E$5,B63=Оцінка!$E$23),D62-E62-Оцінка!$E$22,IF(B63>$E$5,"",D62-E62)) -> 2138888.889 | E63: 27777.77778 | F63: 19606.48148 | G63: 0 | J63: 0 | P63: 47384.25926 | AD63: 4 | AE63: 2025-04-30 | AF63: 8 | AG63: 44 | AH63: =IF(AND(AG63<$E$5,AG63=Оцінка!$F$14),AH62-AI62-Оцінка!$E$14,IF(AG63>$E$5,"",AH62-AI62)) ->  | AL63: 0 | AO63: 5 | AP63: 2025-05-31 | AQ63: 8 | AR63: 44 | AS63: =IF(AND(AR63<$E$5,B63=Оцінка!$E$23),AS62-AT62-Оцінка!$E$22,IF(AR63>$E$5,"",AS62-AT62)) -> 2138888.889 | AT63: =IF(OR(AR63<=$E$7,AR63=""),0,IF(AND(AR63>=Оцінка!$E$23,Оцінка!$E$23<>0),($E$4-Оцінка!$E$22-IF(Оцінка!$E$13<Оцінка!$E$23,($E$4*(Оцінка!$E$23-1-$E$7)/(($E$5)-$E$7)),0))/IF(Оцінка!$E$13<Оцінка!$E$23,$E$5+1-Оцінка!$E$23,$E$5-Оцінка!$E$13),$E$4/(($E$5)-$E$7))) -> 27777.77778 | AU63: 19606.48148 | AW63: 0 | AY63: 47384.25926
A64: 45 | B64: 45 | C64: 2025-06-01 | D64: =IF(AND(B64<$E$5,B64=Оцінка!$E$23),D63-E63-Оцінка!$E$22,IF(B64>$E$5,"",D63-E63)) -> 2111111.111 | E64: 27777.77778 | F64: 19351.85185 | G64: 0 | J64: 0 | P64: 47129.62963 | AD64: 5 | AE64: 2025-05-31 | AF64: 9 | AG64: 45 | AH64: =IF(AND(AG64<$E$5,AG64=Оцінка!$F$14),AH63-AI63-Оцінка!$E$14,IF(AG64>$E$5,"",AH63-AI63)) ->  | AL64: 0 | AO64: 6 | AP64: 2025-06-30 | AQ64: 9 | AR64: 45 | AS64: =IF(AND(AR64<$E$5,B64=Оцінка!$E$23),AS63-AT63-Оцінка!$E$22,IF(AR64>$E$5,"",AS63-AT63)) -> 2111111.111 | AT64: =IF(OR(AR64<=$E$7,AR64=""),0,IF(AND(AR64>=Оцінка!$E$23,Оцінка!$E$23<>0),($E$4-Оцінка!$E$22-IF(Оцінка!$E$13<Оцінка!$E$23,($E$4*(Оцінка!$E$23-1-$E$7)/(($E$5)-$E$7)),0))/IF(Оцінка!$E$13<Оцінка!$E$23,$E$5+1-Оцінка!$E$23,$E$5-Оцінка!$E$13),$E$4/(($E$5)-$E$7))) -> 27777.77778 | AU64: 19351.85185 | AW64: 0 | AY64: 47129.62963
A65: 46 | B65: 46 | C65: 2025-07-01 | D65: =IF(AND(B65<$E$5,B65=Оцінка!$E$23),D64-E64-Оцінка!$E$22,IF(B65>$E$5,"",D64-E64)) -> 2083333.333 | E65: 27777.77778 | F65: 19097.22222 | G65: 0 | J65: 0 | P65: 46875 | AD65: 6 | AE65: 2025-06-30 | AF65: 10 | AG65: 46 | AH65: =IF(AND(AG65<$E$5,AG65=Оцінка!$F$14),AH64-AI64-Оцінка!$E$14,IF(AG65>$E$5,"",AH64-AI64)) ->  | AL65: 0 | AO65: 7 | AP65: 2025-07-31 | AQ65: 10 | AR65: 46 | AS65: =IF(AND(AR65<$E$5,B65=Оцінка!$E$23),AS64-AT64-Оцінка!$E$22,IF(AR65>$E$5,"",AS64-AT64)) -> 2083333.333 | AT65: =IF(OR(AR65<=$E$7,AR65=""),0,IF(AND(AR65>=Оцінка!$E$23,Оцінка!$E$23<>0),($E$4-Оцінка!$E$22-IF(Оцінка!$E$13<Оцінка!$E$23,($E$4*(Оцінка!$E$23-1-$E$7)/(($E$5)-$E$7)),0))/IF(Оцінка!$E$13<Оцінка!$E$23,$E$5+1-Оцінка!$E$23,$E$5-Оцінка!$E$13),$E$4/(($E$5)-$E$7))) -> 27777.77778 | AU65: 19097.22222 | AW65: 0 | AY65: 46875
A66: 47 | B66: 47 | C66: 2025-08-01 | D66: =IF(AND(B66<$E$5,B66=Оцінка!$E$23),D65-E65-Оцінка!$E$22,IF(B66>$E$5,"",D65-E65)) -> 2055555.556 | E66: 27777.77778 | F66: 18842.59259 | G66: 0 | J66: 0 | P66: 46620.37037 | AD66: 7 | AE66: 2025-07-31 | AF66: 11 | AG66: 47 | AH66: =IF(AND(AG66<$E$5,AG66=Оцінка!$F$14),AH65-AI65-Оцінка!$E$14,IF(AG66>$E$5,"",AH65-AI65)) ->  | AL66: 0 | AO66: 8 | AP66: 2025-08-31 | AQ66: 11 | AR66: 47 | AS66: =IF(AND(AR66<$E$5,B66=Оцінка!$E$23),AS65-AT65-Оцінка!$E$22,IF(AR66>$E$5,"",AS65-AT65)) -> 2055555.556 | AT66: =IF(OR(AR66<=$E$7,AR66=""),0,IF(AND(AR66>=Оцінка!$E$23,Оцінка!$E$23<>0),($E$4-Оцінка!$E$22-IF(Оцінка!$E$13<Оцінка!$E$23,($E$4*(Оцінка!$E$23-1-$E$7)/(($E$5)-$E$7)),0))/IF(Оцінка!$E$13<Оцінка!$E$23,$E$5+1-Оцінка!$E$23,$E$5-Оцінка!$E$13),$E$4/(($E$5)-$E$7))) -> 27777.77778 | AU66: 18842.59259 | AW66: 0 | AY66: 46620.37037
A67: 48 | B67: 48 | C67: 2025-09-01 | D67: =IF(AND(B67<$E$5,B67=Оцінка!$E$23),D66-E66-Оцінка!$E$22,IF(B67>$E$5,"",D66-E66)) -> 2027777.778 | E67: 27777.77778 | F67: 18587.96296 | G67: 0 | J67: 0 | P67: 46365.74074 | AD67: 8 | AE67: 2025-08-31 | AF67: 12 | AG67: 48 | AH67: =IF(AND(AG67<$E$5,AG67=Оцінка!$F$14),AH66-AI66-Оцінка!$E$14,IF(AG67>$E$5,"",AH66-AI66)) ->  | AL67: 0 | AO67: 9 | AP67: 2025-09-30 | AQ67: 12 | AR67: 48 | AS67: =IF(AND(AR67<$E$5,B67=Оцінка!$E$23),AS66-AT66-Оцінка!$E$22,IF(AR67>$E$5,"",AS66-AT66)) -> 2027777.778 | AT67: =IF(OR(AR67<=$E$7,AR67=""),0,IF(AND(AR67>=Оцінка!$E$23,Оцінка!$E$23<>0),($E$4-Оцінка!$E$22-IF(Оцінка!$E$13<Оцінка!$E$23,($E$4*(Оцінка!$E$23-1-$E$7)/(($E$5)-$E$7)),0))/IF(Оцінка!$E$13<Оцінка!$E$23,$E$5+1-Оцінка!$E$23,$E$5-Оцінка!$E$13),$E$4/(($E$5)-$E$7))) -> 27777.77778 | AU67: 18587.96296 | AW67: 0 | AY67: 46365.74074
A68: 49 | B68: 49 | C68: 2025-10-01 | D68: =IF(AND(B68<$E$5,B68=Оцінка!$E$23),D67-E67-Оцінка!$E$22,IF(B68>$E$5,"",D67-E67)) -> 2000000 | E68: 27777.77778 | F68: 18333.33333 | G68: 0 | J68: 0 | P68: 46111.11111 | AD68: 9 | AE68: 2025-09-30 | AF68: 1 | AG68: 49 | AH68: =IF(AND(AG68<$E$5,AG68=Оцінка!$F$14),AH67-AI67-Оцінка!$E$14,IF(AG68>$E$5,"",AH67-AI67)) ->  | AL68: 0 | AO68: 10 | AP68: 2025-10-31 | AQ68: 1 | AR68: 49 | AS68: =IF(AND(AR68<$E$5,B68=Оцінка!$E$23),AS67-AT67-Оцінка!$E$22,IF(AR68>$E$5,"",AS67-AT67)) -> 2000000 | AT68: =IF(OR(AR68<=$E$7,AR68=""),0,IF(AND(AR68>=Оцінка!$E$23,Оцінка!$E$23<>0),($E$4-Оцінка!$E$22-IF(Оцінка!$E$13<Оцінка!$E$23,($E$4*(Оцінка!$E$23-1-$E$7)/(($E$5)-$E$7)),0))/IF(Оцінка!$E$13<Оцінка!$E$23,$E$5+1-Оцінка!$E$23,$E$5-Оцінка!$E$13),$E$4/(($E$5)-$E$7))) -> 27777.77778 | AU68: 18333.33333 | AW68: 0 | AY68: 46111.11111
A69: 50 | B69: 50 | C69: 2025-11-01 | D69: =IF(AND(B69<$E$5,B69=Оцінка!$E$23),D68-E68-Оцінка!$E$22,IF(B69>$E$5,"",D68-E68)) -> 1972222.222 | E69: 27777.77778 | F69: 18078.7037 | G69: 0 | J69: 0 | P69: 45856.48148 | AD69: 10 | AE69: 2025-10-31 | AF69: 2 | AG69: 50 | AH69: =IF(AND(AG69<$E$5,AG69=Оцінка!$F$14),AH68-AI68-Оцінка!$E$14,IF(AG69>$E$5,"",AH68-AI68)) ->  | AL69: 0 | AO69: 11 | AP69: 2025-11-30 | AQ69: 2 | AR69: 50 | AS69: =IF(AND(AR69<$E$5,B69=Оцінка!$E$23),AS68-AT68-Оцінка!$E$22,IF(AR69>$E$5,"",AS68-AT68)) -> 1972222.222 | AT69: =IF(OR(AR69<=$E$7,AR69=""),0,IF(AND(AR69>=Оцінка!$E$23,Оцінка!$E$23<>0),($E$4-Оцінка!$E$22-IF(Оцінка!$E$13<Оцінка!$E$23,($E$4*(Оцінка!$E$23-1-$E$7)/(($E$5)-$E$7)),0))/IF(Оцінка!$E$13<Оцінка!$E$23,$E$5+1-Оцінка!$E$23,$E$5-Оцінка!$E$13),$E$4/(($E$5)-$E$7))) -> 27777.77778 | AU69: 18078.7037 | AW69: 0 | AY69: 45856.48148
A70: 51 | B70: 51 | C70: 2025-12-01 | D70: =IF(AND(B70<$E$5,B70=Оцінка!$E$23),D69-E69-Оцінка!$E$22,IF(B70>$E$5,"",D69-E69)) -> 1944444.444 | E70: 27777.77778 | F70: 17824.07407 | G70: 0 | J70: 0 | P70: 45601.85185 | AD70: 11 | AE70: 2025-11-30 | AF70: 3 | AG70: 51 | AH70: =IF(AND(AG70<$E$5,AG70=Оцінка!$F$14),AH69-AI69-Оцінка!$E$14,IF(AG70>$E$5,"",AH69-AI69)) ->  | AL70: 0 | AO70: 12 | AP70: 2025-12-31 | AQ70: 3 | AR70: 51 | AS70: =IF(AND(AR70<$E$5,B70=Оцінка!$E$23),AS69-AT69-Оцінка!$E$22,IF(AR70>$E$5,"",AS69-AT69)) -> 1944444.444 | AT70: =IF(OR(AR70<=$E$7,AR70=""),0,IF(AND(AR70>=Оцінка!$E$23,Оцінка!$E$23<>0),($E$4-Оцінка!$E$22-IF(Оцінка!$E$13<Оцінка!$E$23,($E$4*(Оцінка!$E$23-1-$E$7)/(($E$5)-$E$7)),0))/IF(Оцінка!$E$13<Оцінка!$E$23,$E$5+1-Оцінка!$E$23,$E$5-Оцінка!$E$13),$E$4/(($E$5)-$E$7))) -> 27777.77778 | AU70: 17824.07407 | AW70: 0 | AY70: 45601.85185
A71: 52 | B71: 52 | C71: 2026-01-01 | D71: =IF(AND(B71<$E$5,B71=Оцінка!$E$23),D70-E70-Оцінка!$E$22,IF(B71>$E$5,"",D70-E70)) -> 1916666.667 | E71: 27777.77778 | F71: 17569.44444 | G71: 0 | J71: 0 | P71: 45347.22222 | AD71: 12 | AE71: 2025-12-31 | AF71: 4 | AG71: 52 | AH71: =IF(AND(AG71<$E$5,AG71=Оцінка!$F$14),AH70-AI70-Оцінка!$E$14,IF(AG71>$E$5,"",AH70-AI70)) ->  | AL71: 0 | AO71: 1 | AP71: 2026-01-31 | AQ71: 4 | AR71: 52 | AS71: =IF(AND(AR71<$E$5,B71=Оцінка!$E$23),AS70-AT70-Оцінка!$E$22,IF(AR71>$E$5,"",AS70-AT70)) -> 1916666.667 | AT71: =IF(OR(AR71<=$E$7,AR71=""),0,IF(AND(AR71>=Оцінка!$E$23,Оцінка!$E$23<>0),($E$4-Оцінка!$E$22-IF(Оцінка!$E$13<Оцінка!$E$23,($E$4*(Оцінка!$E$23-1-$E$7)/(($E$5)-$E$7)),0))/IF(Оцінка!$E$13<Оцінка!$E$23,$E$5+1-Оцінка!$E$23,$E$5-Оцінка!$E$13),$E$4/(($E$5)-$E$7))) -> 27777.77778 | AU71: 17569.44444 | AW71: 0 | AY71: 45347.22222
A72: 53 | B72: 53 | C72: 2026-02-01 | D72: =IF(AND(B72<$E$5,B72=Оцінка!$E$23),D71-E71-Оцінка!$E$22,IF(B72>$E$5,"",D71-E71)) -> 1888888.889 | E72: 27777.77778 | F72: 17314.81481 | G72: 0 | J72: 0 | P72: 45092.59259 | AD72: 1 | AE72: 2026-01-31 | AF72: 5 | AG72: 53 | AH72: =IF(AND(AG72<$E$5,AG72=Оцінка!$F$14),AH71-AI71-Оцінка!$E$14,IF(AG72>$E$5,"",AH71-AI71)) ->  | AL72: 0 | AO72: 2 | AP72: 2026-02-28 | AQ72: 5 | AR72: 53 | AS72: =IF(AND(AR72<$E$5,B72=Оцінка!$E$23),AS71-AT71-Оцінка!$E$22,IF(AR72>$E$5,"",AS71-AT71)) -> 1888888.889 | AT72: =IF(OR(AR72<=$E$7,AR72=""),0,IF(AND(AR72>=Оцінка!$E$23,Оцінка!$E$23<>0),($E$4-Оцінка!$E$22-IF(Оцінка!$E$13<Оцінка!$E$23,($E$4*(Оцінка!$E$23-1-$E$7)/(($E$5)-$E$7)),0))/IF(Оцінка!$E$13<Оцінка!$E$23,$E$5+1-Оцінка!$E$23,$E$5-Оцінка!$E$13),$E$4/(($E$5)-$E$7))) -> 27777.77778 | AU72: 17314.81481 | AW72: 0 | AY72: 45092.59259
A73: 54 | B73: 54 | C73: 2026-03-01 | D73: =IF(AND(B73<$E$5,B73=Оцінка!$E$23),D72-E72-Оцінка!$E$22,IF(B73>$E$5,"",D72-E72)) -> 1861111.111 | E73: 27777.77778 | F73: 17060.18519 | G73: 0 | J73: 0 | P73: 44837.96296 | AD73: 2 | AE73: 2026-02-28 | AF73: 6 | AG73: 54 | AH73: =IF(AND(AG73<$E$5,AG73=Оцінка!$F$14),AH72-AI72-Оцінка!$E$14,IF(AG73>$E$5,"",AH72-AI72)) ->  | AL73: 0 | AO73: 3 | AP73: 2026-03-31 | AQ73: 6 | AR73: 54 | AS73: =IF(AND(AR73<$E$5,B73=Оцінка!$E$23),AS72-AT72-Оцінка!$E$22,IF(AR73>$E$5,"",AS72-AT72)) -> 1861111.111 | AT73: =IF(OR(AR73<=$E$7,AR73=""),0,IF(AND(AR73>=Оцінка!$E$23,Оцінка!$E$23<>0),($E$4-Оцінка!$E$22-IF(Оцінка!$E$13<Оцінка!$E$23,($E$4*(Оцінка!$E$23-1-$E$7)/(($E$5)-$E$7)),0))/IF(Оцінка!$E$13<Оцінка!$E$23,$E$5+1-Оцінка!$E$23,$E$5-Оцінка!$E$13),$E$4/(($E$5)-$E$7))) -> 27777.77778 | AU73: 17060.18519 | AW73: 0 | AY73: 44837.96296
A74: 55 | B74: 55 | C74: 2026-04-01 | D74: =IF(AND(B74<$E$5,B74=Оцінка!$E$23),D73-E73-Оцінка!$E$22,IF(B74>$E$5,"",D73-E73)) -> 1833333.333 | E74: 27777.77778 | F74: 16805.55556 | G74: 0 | J74: 0 | P74: 44583.33333 | AD74: 3 | AE74: 2026-03-31 | AF74: 7 | AG74: 55 | AH74: =IF(AND(AG74<$E$5,AG74=Оцінка!$F$14),AH73-AI73-Оцінка!$E$14,IF(AG74>$E$5,"",AH73-AI73)) ->  | AL74: 0 | AO74: 4 | AP74: 2026-04-30 | AQ74: 7 | AR74: 55 | AS74: =IF(AND(AR74<$E$5,B74=Оцінка!$E$23),AS73-AT73-Оцінка!$E$22,IF(AR74>$E$5,"",AS73-AT73)) -> 1833333.333 | AT74: =IF(OR(AR74<=$E$7,AR74=""),0,IF(AND(AR74>=Оцінка!$E$23,Оцінка!$E$23<>0),($E$4-Оцінка!$E$22-IF(Оцінка!$E$13<Оцінка!$E$23,($E$4*(Оцінка!$E$23-1-$E$7)/(($E$5)-$E$7)),0))/IF(Оцінка!$E$13<Оцінка!$E$23,$E$5+1-Оцінка!$E$23,$E$5-Оцінка!$E$13),$E$4/(($E$5)-$E$7))) -> 27777.77778 | AU74: 16805.55556 | AW74: 0 | AY74: 44583.33333
A75: 56 | B75: 56 | C75: 2026-05-01 | D75: =IF(AND(B75<$E$5,B75=Оцінка!$E$23),D74-E74-Оцінка!$E$22,IF(B75>$E$5,"",D74-E74)) -> 1805555.556 | E75: 27777.77778 | F75: 16550.92593 | G75: 0 | J75: 0 | P75: 44328.7037 | AD75: 4 | AE75: 2026-04-30 | AF75: 8 | AG75: 56 | AH75: =IF(AND(AG75<$E$5,AG75=Оцінка!$F$14),AH74-AI74-Оцінка!$E$14,IF(AG75>$E$5,"",AH74-AI74)) ->  | AL75: 0 | AO75: 5 | AP75: 2026-05-31 | AQ75: 8 | AR75: 56 | AS75: =IF(AND(AR75<$E$5,B75=Оцінка!$E$23),AS74-AT74-Оцінка!$E$22,IF(AR75>$E$5,"",AS74-AT74)) -> 1805555.556 | AT75: =IF(OR(AR75<=$E$7,AR75=""),0,IF(AND(AR75>=Оцінка!$E$23,Оцінка!$E$23<>0),($E$4-Оцінка!$E$22-IF(Оцінка!$E$13<Оцінка!$E$23,($E$4*(Оцінка!$E$23-1-$E$7)/(($E$5)-$E$7)),0))/IF(Оцінка!$E$13<Оцінка!$E$23,$E$5+1-Оцінка!$E$23,$E$5-Оцінка!$E$13),$E$4/(($E$5)-$E$7))) -> 27777.77778 | AU75: 16550.92593 | AW75: 0 | AY75: 44328.7037
A76: 57 | B76: 57 | C76: 2026-06-01 | D76: =IF(AND(B76<$E$5,B76=Оцінка!$E$23),D75-E75-Оцінка!$E$22,IF(B76>$E$5,"",D75-E75)) -> 1777777.778 | E76: 27777.77778 | F76: 16296.2963 | G76: 0 | J76: 0 | P76: 44074.07407 | AD76: 5 | AE76: 2026-05-31 | AF76: 9 | AG76: 57 | AH76: =IF(AND(AG76<$E$5,AG76=Оцінка!$F$14),AH75-AI75-Оцінка!$E$14,IF(AG76>$E$5,"",AH75-AI75)) ->  | AL76: 0 | AO76: 6 | AP76: 2026-06-30 | AQ76: 9 | AR76: 57 | AS76: =IF(AND(AR76<$E$5,B76=Оцінка!$E$23),AS75-AT75-Оцінка!$E$22,IF(AR76>$E$5,"",AS75-AT75)) -> 1777777.778 | AT76: =IF(OR(AR76<=$E$7,AR76=""),0,IF(AND(AR76>=Оцінка!$E$23,Оцінка!$E$23<>0),($E$4-Оцінка!$E$22-IF(Оцінка!$E$13<Оцінка!$E$23,($E$4*(Оцінка!$E$23-1-$E$7)/(($E$5)-$E$7)),0))/IF(Оцінка!$E$13<Оцінка!$E$23,$E$5+1-Оцінка!$E$23,$E$5-Оцінка!$E$13),$E$4/(($E$5)-$E$7))) -> 27777.77778 | AU76: 16296.2963 | AW76: 0 | AY76: 44074.07407
A77: 58 | B77: 58 | C77: 2026-07-01 | D77: =IF(AND(B77<$E$5,B77=Оцінка!$E$23),D76-E76-Оцінка!$E$22,IF(B77>$E$5,"",D76-E76)) -> 1750000 | E77: 27777.77778 | F77: 16041.66667 | G77: 0 | J77: 0 | P77: 43819.44444 | AD77: 6 | AE77: 2026-06-30 | AF77: 10 | AG77: 58 | AH77: =IF(AND(AG77<$E$5,AG77=Оцінка!$F$14),AH76-AI76-Оцінка!$E$14,IF(AG77>$E$5,"",AH76-AI76)) ->  | AL77: 0 | AO77: 7 | AP77: 2026-07-31 | AQ77: 10 | AR77: 58 | AS77: =IF(AND(AR77<$E$5,B77=Оцінка!$E$23),AS76-AT76-Оцінка!$E$22,IF(AR77>$E$5,"",AS76-AT76)) -> 1750000 | AT77: =IF(OR(AR77<=$E$7,AR77=""),0,IF(AND(AR77>=Оцінка!$E$23,Оцінка!$E$23<>0),($E$4-Оцінка!$E$22-IF(Оцінка!$E$13<Оцінка!$E$23,($E$4*(Оцінка!$E$23-1-$E$7)/(($E$5)-$E$7)),0))/IF(Оцінка!$E$13<Оцінка!$E$23,$E$5+1-Оцінка!$E$23,$E$5-Оцінка!$E$13),$E$4/(($E$5)-$E$7))) -> 27777.77778 | AU77: 16041.66667 | AW77: 0 | AY77: 43819.44444
A78: 59 | B78: 59 | C78: 2026-08-01 | D78: =IF(AND(B78<$E$5,B78=Оцінка!$E$23),D77-E77-Оцінка!$E$22,IF(B78>$E$5,"",D77-E77)) -> 1722222.222 | E78: 27777.77778 | F78: 15787.03704 | G78: 0 | J78: 0 | P78: 43564.81481 | AD78: 7 | AE78: 2026-07-31 | AF78: 11 | AG78: =IF(AG77<$E$5,AG77+1,"") -> 59 | AH78: =IF(AND(AG78<$E$5,AG78=Оцінка!$F$14),AH77-AI77-Оцінка!$E$14,IF(AG78>$E$5,"",AH77-AI77)) ->  | AL78: 0 | AO78: 8 | AP78: 2026-08-31 | AQ78: 11 | AR78: =IF(AR77<$E$5,AR77+1,"") -> 59 | AS78: =IF(AND(AR78<$E$5,B78=Оцінка!$E$23),AS77-AT77-Оцінка!$E$22,IF(AR78>$E$5,"",AS77-AT77)) -> 1722222.222 | AT78: =IF(OR(AR78<=$E$7,AR78=""),0,IF(AND(AR78>=Оцінка!$E$23,Оцінка!$E$23<>0),($E$4-Оцінка!$E$22-IF(Оцінка!$E$13<Оцінка!$E$23,($E$4*(Оцінка!$E$23-1-$E$7)/(($E$5)-$E$7)),0))/IF(Оцінка!$E$13<Оцінка!$E$23,$E$5+1-Оцінка!$E$23,$E$5-Оцінка!$E$13),$E$4/(($E$5)-$E$7))) -> 27777.77778 | AU78: 15787.03704 | AW78: 0 | AY78: 43564.81481
A79: 60 | B79: 60 | C79: 2026-09-01 | D79: =IF(AND(B79<$E$5,B79=Оцінка!$E$23),D78-E78-Оцінка!$E$22,IF(B79>$E$5,"",D78-E78)) -> 1694444.444 | E79: 27777.77778 | F79: 15532.40741 | G79: 0 | J79: 0 | P79: 43310.18519 | AD79: 8 | AE79: 2026-08-31 | AF79: 12 | AG79: =AG78+1 -> 60 | AH79: =IF(AND(AG79<$E$5,AG79=Оцінка!$F$14),AH78-AI78-Оцінка!$E$14,IF(AG79>$E$5,"",AH78-AI78)) ->  | AL79: 0 | AO79: 9 | AP79: 2026-09-30 | AQ79: 12 | AR79: =IF(AR78<$E$5,AR78+1,"") -> 60 | AS79: =IF(AND(AR79<$E$5,B79=Оцінка!$E$23),AS78-AT78-Оцінка!$E$22,IF(AR79>$E$5,"",AS78-AT78)) -> 1694444.444 | AT79: =IF(OR(AR79<=$E$7,AR79=""),0,IF(AND(AR79>=Оцінка!$E$23,Оцінка!$E$23<>0),($E$4-Оцінка!$E$22-IF(Оцінка!$E$13<Оцінка!$E$23,($E$4*(Оцінка!$E$23-1-$E$7)/(($E$5)-$E$7)),0))/IF(Оцінка!$E$13<Оцінка!$E$23,$E$5+1-Оцінка!$E$23,$E$5-Оцінка!$E$13),$E$4/(($E$5)-$E$7))) -> 27777.77778 | AU79: 15532.40741 | AW79: 0 | AY79: 43310.18519
A80: 61 | B80: 61 | C80: 2026-10-01 | D80: =IF(AND(B80<$E$5,B80=Оцінка!$E$23),D79-E79-Оцінка!$E$22,IF(B80>$E$5,"",D79-E79)) -> 1666666.667 | E80: 27777.77778 | F80: 15277.77778 | G80: 0 | J80: 0 | P80: 43055.55556 | AD80: =IF(AE80="","",MONTH(AE80)) -> 9 | AE80: 2026-09-30 | AF80: 1 | AG80: =AG79+1 -> 61 | AH80: =IF(AND(AG80<$E$5,AG80=Оцінка!$F$14),AH79-AI79-Оцінка!$E$14,IF(AG80>$E$5,"",AH79-AI79)) ->  | AI80: =IF(OR(AG80>$E$5,HLOOKUP(AD80,$AE$7:$AP$8,2,0)=1),0,$E$4/((12-$E$7)*($E$5/12))) ->  | AL80: 0 | AO80: 10 | AP80: 2026-10-31 | AQ80: 1 | AR80: =IF(AR79<$E$5,AR79+1,"") -> 61 | AS80: =IF(AND(AR80<$E$5,B80=Оцінка!$E$23),AS79-AT79-Оцінка!$E$22,IF(AR80>$E$5,"",AS79-AT79)) -> 1666666.667 | AT80: =IF(OR(AR80<=$E$7,AR80=""),0,IF(AND(AR80>=Оцінка!$E$23,Оцінка!$E$23<>0),($E$4-Оцінка!$E$22-IF(Оцінка!$E$13<Оцінка!$E$23,($E$4*(Оцінка!$E$23-1-$E$7)/(($E$5)-$E$7)),0))/IF(Оцінка!$E$13<Оцінка!$E$23,$E$5+1-Оцінка!$E$23,$E$5-Оцінка!$E$13),$E$4/(($E$5)-$E$7))) -> 27777.77778 | AU80: 15277.77778 | AW80: 0 | AY80: 43055.55556
A81: 62 | B81: 62 | C81: 2026-11-01 | D81: =IF(AND(B81<$E$5,B81=Оцінка!$E$23),D80-E80-Оцінка!$E$22,IF(B81>$E$5,"",D80-E80)) -> 1638888.889 | E81: 27777.77778 | F81: 15023.14815 | G81: 0 | J81: 0 | P81: 42800.92593 | AD81: =IF(AE81="","",MONTH(AE81)) -> 10 | AE81: 2026-10-31 | AF81: 2 | AG81: 62 | AH81: =IF(AND(AG81<$E$5,AG81=Оцінка!$F$14),AH80-AI80-Оцінка!$E$14,IF(AG81>$E$5,"",AH80-AI80)) ->  | AL81: 0 | AO81: 11 | AP81: 2026-11-30 | AQ81: 2 | AR81: 62 | AS81: =IF(AND(AR81<$E$5,B81=Оцінка!$E$23),AS80-AT80-Оцінка!$E$22,IF(AR81>$E$5,"",AS80-AT80)) -> 1638888.889 | AT81: =IF(OR(AR81<=$E$7,AR81=""),0,IF(AND(AR81>=Оцінка!$E$23,Оцінка!$E$23<>0),($E$4-Оцінка!$E$22-IF(Оцінка!$E$13<Оцінка!$E$23,($E$4*(Оцінка!$E$23-1-$E$7)/(($E$5)-$E$7)),0))/IF(Оцінка!$E$13<Оцінка!$E$23,$E$5+1-Оцінка!$E$23,$E$5-Оцінка!$E$13),$E$4/(($E$5)-$E$7))) -> 27777.77778 | AU81: 15023.14815 | AW81: 0 | AY81: 42800.92593
A82: 63 | B82: 63 | C82: 2026-12-01 | D82: =IF(AND(B82<$E$5,B82=Оцінка!$E$23),D81-E81-Оцінка!$E$22,IF(B82>$E$5,"",D81-E81)) -> 1611111.111 | E82: 27777.77778 | F82: 14768.51852 | G82: 0 | J82: 0 | P82: 42546.2963 | AD82: =IF(AE82="","",MONTH(AE82)) -> 11 | AE82: 2026-11-30 | AF82: 3 | AG82: 63 | AH82: =IF(AND(AG82<$E$5,AG82=Оцінка!$F$14),AH81-AI81-Оцінка!$E$14,IF(AG82>$E$5,"",AH81-AI81)) ->  | AL82: 0 | AO82: 12 | AP82: 2026-12-31 | AQ82: 3 | AR82: 63 | AS82: =IF(AND(AR82<$E$5,B82=Оцінка!$E$23),AS81-AT81-Оцінка!$E$22,IF(AR82>$E$5,"",AS81-AT81)) -> 1611111.111 | AT82: =IF(OR(AR82<=$E$7,AR82=""),0,IF(AND(AR82>=Оцінка!$E$23,Оцінка!$E$23<>0),($E$4-Оцінка!$E$22-IF(Оцінка!$E$13<Оцінка!$E$23,($E$4*(Оцінка!$E$23-1-$E$7)/(($E$5)-$E$7)),0))/IF(Оцінка!$E$13<Оцінка!$E$23,$E$5+1-Оцінка!$E$23,$E$5-Оцінка!$E$13),$E$4/(($E$5)-$E$7))) -> 27777.77778 | AU82: 14768.51852 | AW82: 0 | AY82: 42546.2963
A83: 64 | B83: 64 | C83: 2027-01-01 | D83: =IF(AND(B83<$E$5,B83=Оцінка!$E$23),D82-E82-Оцінка!$E$22,IF(B83>$E$5,"",D82-E82)) -> 1583333.333 | E83: 27777.77778 | F83: 14513.88889 | G83: 0 | J83: 0 | P83: 42291.66667 | AD83: 12 | AE83: 2026-12-31 | AF83: 4 | AG83: 64 | AH83: =IF(AND(AG83<$E$5,AG83=Оцінка!$F$14),AH82-AI82-Оцінка!$E$14,IF(AG83>$E$5,"",AH82-AI82)) ->  | AL83: 0 | AO83: 1 | AP83: 2027-01-31 | AQ83: 4 | AR83: 64 | AS83: =IF(AND(AR83<$E$5,B83=Оцінка!$E$23),AS82-AT82-Оцінка!$E$22,IF(AR83>$E$5,"",AS82-AT82)) -> 1583333.333 | AT83: =IF(OR(AR83<=$E$7,AR83=""),0,IF(AND(AR83>=Оцінка!$E$23,Оцінка!$E$23<>0),($E$4-Оцінка!$E$22-IF(Оцінка!$E$13<Оцінка!$E$23,($E$4*(Оцінка!$E$23-1-$E$7)/(($E$5)-$E$7)),0))/IF(Оцінка!$E$13<Оцінка!$E$23,$E$5+1-Оцінка!$E$23,$E$5-Оцінка!$E$13),$E$4/(($E$5)-$E$7))) -> 27777.77778 | AU83: 14513.88889 | AW83: 0 | AY83: 42291.66667
A84: 65 | B84: 65 | C84: 2027-02-01 | D84: =IF(AND(B84<$E$5,B84=Оцінка!$E$23),D83-E83-Оцінка!$E$22,IF(B84>$E$5,"",D83-E83)) -> 1555555.556 | E84: 27777.77778 | F84: 14259.25926 | G84: 0 | J84: =IF(B84>$E$5,"",$E$4*$E$11) -> 0 | P84: 42037.03704 | AD84: 1 | AE84: 2027-01-31 | AF84: 5 | AG84: 65 | AH84: =IF(AND(AG84<$E$5,AG84=Оцінка!$F$14),AH83-AI83-Оцінка!$E$14,IF(AG84>$E$5,"",AH83-AI83)) ->  | AJ84: =IF(AG84>$E$5,"",AH84*$E$8/12) ->  | AL84: 0 | AO84: 2 | AP84: 2027-02-28 | AQ84: 5 | AR84: 65 | AS84: =IF(AND(AR84<$E$5,B84=Оцінка!$E$23),AS83-AT83-Оцінка!$E$22,IF(AR84>$E$5,"",AS83-AT83)) -> 1555555.556 | AT84: =IF(OR(AR84<=$E$7,AR84=""),0,IF(AND(AR84>=Оцінка!$E$23,Оцінка!$E$23<>0),($E$4-Оцінка!$E$22-IF(Оцінка!$E$13<Оцінка!$E$23,($E$4*(Оцінка!$E$23-1-$E$7)/(($E$5)-$E$7)),0))/IF(Оцінка!$E$13<Оцінка!$E$23,$E$5+1-Оцінка!$E$23,$E$5-Оцінка!$E$13),$E$4/(($E$5)-$E$7))) -> 27777.77778 | AU84: =IF(AR84>$E$5,"",AS84*$E$8/12) -> 14259.25926 | AW84: 0 | AY84: 42037.03704
A85: =B85 -> 66 | B85: =IF(B84<$E$5,B84+1,"") -> 66 | C85: 2027-03-01 | D85: =IF(AND(B85<$E$5,B85=Оцінка!$E$23),D84-E84-Оцінка!$E$22,IF(B85>$E$5,"",D84-E84)) -> 1527777.778 | E85: 27777.77778 | F85: 14004.62963 | G85: 0 | J85: 0 | P85: =IF(B85>$E$5,"",SUM(E85:O85)) -> 41782.40741 | AD85: 2 | AE85: 2027-02-28 | AF85: 6 | AG85: 66 | AH85: =IF(AND(AG85<$E$5,AG85=Оцінка!$F$14),AH84-AI84-Оцінка!$E$14,IF(AG85>$E$5,"",AH84-AI84)) ->  | AI85: =IF(OR(AG85>$E$5,HLOOKUP(AD85,$AE$7:$AP$8,2,0)=1),0,$E$4/((12-$E$7)*($E$5/12))) ->  | AL85: =IF(AG85>$E$5,"",$E$4*$E$11) -> 0 | AO85: =MONTH(AP85) -> 3 | AP85: 2027-03-31 | AQ85: 6 | AR85: 66 | AS85: =IF(AND(AR85<$E$5,B85=Оцінка!$E$23),AS84-AT84-Оцінка!$E$22,IF(AR85>$E$5,"",AS84-AT84)) -> 1527777.778 | AT85: =IF(OR(AR85<=$E$7,AR85=""),0,IF(AND(AR85>=Оцінка!$E$23,Оцінка!$E$23<>0),($E$4-Оцінка!$E$22-IF(Оцінка!$E$13<Оцінка!$E$23,($E$4*(Оцінка!$E$23-1-$E$7)/(($E$5)-$E$7)),0))/IF(Оцінка!$E$13<Оцінка!$E$23,$E$5+1-Оцінка!$E$23,$E$5-Оцінка!$E$13),$E$4/(($E$5)-$E$7))) -> 27777.77778 | AU85: 14004.62963 | AW85: =IF(AR85>$E$5,"",$E$4*$E$11) -> 0 | AY85: 41782.40741
A86: 67 | B86: 67 | C86: =IF(B86>$E$5,"",EDATE(C85,1)) -> 2027-04-01 | D86: =IF(AND(B86<$E$5,B86=Оцінка!$E$23),D85-E85-Оцінка!$E$22,IF(B86>$E$5,"",D85-E85)) -> 1500000 | E86: 27777.77778 | F86: 13750 | G86: 0 | J86: 0 | P86: 41527.77778 | AD86: 3 | AE86: =EOMONTH(AE85,1) -> 2027-03-31 | AF86: 7 | AG86: 67 | AH86: =IF(AND(AG86<$E$5,AG86=Оцінка!$F$14),AH85-AI85-Оцінка!$E$14,IF(AG86>$E$5,"",AH85-AI85)) ->  | AL86: 0 | AO86: 4 | AP86: =IF(B86>$E$5,"",EOMONTH(C85,1)) -> 2027-04-30 | AQ86: 7 | AR86: 67 | AS86: =IF(AND(AR86<$E$5,B86=Оцінка!$E$23),AS85-AT85-Оцінка!$E$22,IF(AR86>$E$5,"",AS85-AT85)) -> 1500000 | AT86: =IF(OR(AR86<=$E$7,AR86=""),0,IF(AND(AR86>=Оцінка!$E$23,Оцінка!$E$23<>0),($E$4-Оцінка!$E$22-IF(Оцінка!$E$13<Оцінка!$E$23,($E$4*(Оцінка!$E$23-1-$E$7)/(($E$5)-$E$7)),0))/IF(Оцінка!$E$13<Оцінка!$E$23,$E$5+1-Оцінка!$E$23,$E$5-Оцінка!$E$13),$E$4/(($E$5)-$E$7))) -> 27777.77778 | AU86: 13750 | AW86: 0 | AY86: 41527.77778
A87: 68 | B87: 68 | C87: 2027-05-01 | D87: =IF(AND(B87<$E$5,B87=Оцінка!$E$23),D86-E86-Оцінка!$E$22,IF(B87>$E$5,"",D86-E86)) -> 1472222.222 | E87: =IF((B87>$E$5),0,IF($E$6="щорічне",AI87,AT87)) -> 27777.77778 | F87: 13495.37037 | G87: =IF(B87<=$Q$10,$E$4*$E$10/$Q$10,0) -> 0 | J87: 0 | P87: 41273.14815 | AD87: 4 | AE87: 2027-04-30 | AF87: 8 | AG87: 68 | AH87: =IF(AND(AG87<$E$5,AG87=Оцінка!$F$14),AH86-AI86-Оцінка!$E$14,IF(AG87>$E$5,"",AH86-AI86)) ->  | AL87: 0 | AO87: 5 | AP87: 2027-05-31 | AQ87: 8 | AR87: 68 | AS87: =IF(AND(AR87<$E$5,B87=Оцінка!$E$23),AS86-AT86-Оцінка!$E$22,IF(AR87>$E$5,"",AS86-AT86)) -> 1472222.222 | AT87: =IF(OR(AR87<=$E$7,AR87=""),0,IF(AND(AR87>=Оцінка!$E$23,Оцінка!$E$23<>0),($E$4-Оцінка!$E$22-IF(Оцінка!$E$13<Оцінка!$E$23,($E$4*(Оцінка!$E$23-1-$E$7)/(($E$5)-$E$7)),0))/IF(Оцінка!$E$13<Оцінка!$E$23,$E$5+1-Оцінка!$E$23,$E$5-Оцінка!$E$13),$E$4/(($E$5)-$E$7))) -> 27777.77778 | AU87: 13495.37037 | AW87: 0 | AY87: 41273.14815
A88: 69 | B88: 69 | C88: 2027-06-01 | D88: =IF(AND(B88<$E$5,B88=Оцінка!$E$23),D87-E87-Оцінка!$E$22,IF(B88>$E$5,"",D87-E87)) -> 1444444.444 | E88: 27777.77778 | F88: 13240.74074 | G88: 0 | J88: 0 | P88: 41018.51852 | AD88: 5 | AE88: 2027-05-31 | AF88: 9 | AG88: 69 | AH88: =IF(AND(AG88<$E$5,AG88=Оцінка!$F$14),AH87-AI87-Оцінка!$E$14,IF(AG88>$E$5,"",AH87-AI87)) ->  | AL88: 0 | AO88: 6 | AP88: 2027-06-30 | AQ88: 9 | AR88: 69 | AS88: =IF(AND(AR88<$E$5,B88=Оцінка!$E$23),AS87-AT87-Оцінка!$E$22,IF(AR88>$E$5,"",AS87-AT87)) -> 1444444.444 | AT88: =IF(OR(AR88<=$E$7,AR88=""),0,IF(AND(AR88>=Оцінка!$E$23,Оцінка!$E$23<>0),($E$4-Оцінка!$E$22-IF(Оцінка!$E$13<Оцінка!$E$23,($E$4*(Оцінка!$E$23-1-$E$7)/(($E$5)-$E$7)),0))/IF(Оцінка!$E$13<Оцінка!$E$23,$E$5+1-Оцінка!$E$23,$E$5-Оцінка!$E$13),$E$4/(($E$5)-$E$7))) -> 27777.77778 | AU88: 13240.74074 | AW88: 0 | AY88: 41018.51852
A89: 70 | B89: 70 | C89: 2027-07-01 | D89: =IF(AND(B89<$E$5,B89=Оцінка!$E$23),D88-E88-Оцінка!$E$22,IF(B89>$E$5,"",D88-E88)) -> 1416666.667 | E89: 27777.77778 | F89: 12986.11111 | G89: 0 | J89: 0 | P89: 40763.88889 | AD89: 6 | AE89: 2027-06-30 | AF89: 10 | AG89: 70 | AH89: =IF(AND(AG89<$E$5,AG89=Оцінка!$F$14),AH88-AI88-Оцінка!$E$14,IF(AG89>$E$5,"",AH88-AI88)) ->  | AL89: 0 | AO89: 7 | AP89: 2027-07-31 | AQ89: 10 | AR89: 70 | AS89: =IF(AND(AR89<$E$5,B89=Оцінка!$E$23),AS88-AT88-Оцінка!$E$22,IF(AR89>$E$5,"",AS88-AT88)) -> 1416666.667 | AT89: =IF(OR(AR89<=$E$7,AR89=""),0,IF(AND(AR89>=Оцінка!$E$23,Оцінка!$E$23<>0),($E$4-Оцінка!$E$22-IF(Оцінка!$E$13<Оцінка!$E$23,($E$4*(Оцінка!$E$23-1-$E$7)/(($E$5)-$E$7)),0))/IF(Оцінка!$E$13<Оцінка!$E$23,$E$5+1-Оцінка!$E$23,$E$5-Оцінка!$E$13),$E$4/(($E$5)-$E$7))) -> 27777.77778 | AU89: 12986.11111 | AW89: 0 | AY89: 40763.88889
A90: 71 | B90: 71 | C90: 2027-08-01 | D90: =IF(AND(B90<$E$5,B90=Оцінка!$E$23),D89-E89-Оцінка!$E$22,IF(B90>$E$5,"",D89-E89)) -> 1388888.889 | E90: 27777.77778 | F90: 12731.48148 | G90: 0 | J90: 0 | P90: 40509.25926 | AD90: 7 | AE90: 2027-07-31 | AF90: 11 | AG90: 71 | AH90: =IF(AND(AG90<$E$5,AG90=Оцінка!$F$14),AH89-AI89-Оцінка!$E$14,IF(AG90>$E$5,"",AH89-AI89)) ->  | AL90: 0 | AO90: 8 | AP90: 2027-08-31 | AQ90: 11 | AR90: 71 | AS90: =IF(AND(AR90<$E$5,B90=Оцінка!$E$23),AS89-AT89-Оцінка!$E$22,IF(AR90>$E$5,"",AS89-AT89)) -> 1388888.889 | AT90: =IF(OR(AR90<=$E$7,AR90=""),0,IF(AND(AR90>=Оцінка!$E$23,Оцінка!$E$23<>0),($E$4-Оцінка!$E$22-IF(Оцінка!$E$13<Оцінка!$E$23,($E$4*(Оцінка!$E$23-1-$E$7)/(($E$5)-$E$7)),0))/IF(Оцінка!$E$13<Оцінка!$E$23,$E$5+1-Оцінка!$E$23,$E$5-Оцінка!$E$13),$E$4/(($E$5)-$E$7))) -> 27777.77778 | AU90: 12731.48148 | AW90: 0 | AY90: 40509.25926
A91: 72 | B91: 72 | C91: 2027-09-01 | D91: =IF(AND(B91<$E$5,B91=Оцінка!$E$23),D90-E90-Оцінка!$E$22,IF(B91>$E$5,"",D90-E90)) -> 1361111.111 | E91: 27777.77778 | F91: 12476.85185 | G91: 0 | J91: 0 | P91: 40254.62963 | AD91: 8 | AE91: 2027-08-31 | AF91: 12 | AG91: 72 | AH91: =IF(AND(AG91<$E$5,AG91=Оцінка!$F$14),AH90-AI90-Оцінка!$E$14,IF(AG91>$E$5,"",AH90-AI90)) ->  | AL91: 0 | AO91: 9 | AP91: 2027-09-30 | AQ91: 12 | AR91: 72 | AS91: =IF(AND(AR91<$E$5,B91=Оцінка!$E$23),AS90-AT90-Оцінка!$E$22,IF(AR91>$E$5,"",AS90-AT90)) -> 1361111.111 | AT91: =IF(OR(AR91<=$E$7,AR91=""),0,IF(AND(AR91>=Оцінка!$E$23,Оцінка!$E$23<>0),($E$4-Оцінка!$E$22-IF(Оцінка!$E$13<Оцінка!$E$23,($E$4*(Оцінка!$E$23-1-$E$7)/(($E$5)-$E$7)),0))/IF(Оцінка!$E$13<Оцінка!$E$23,$E$5+1-Оцінка!$E$23,$E$5-Оцінка!$E$13),$E$4/(($E$5)-$E$7))) -> 27777.77778 | AU91: 12476.85185 | AW91: 0 | AY91: 40254.62963
A92: 73 | B92: 73 | C92: 2027-10-01 | D92: =IF(AND(B92<$E$5,B92=Оцінка!$E$23),D91-E91-Оцінка!$E$22,IF(B92>$E$5,"",D91-E91)) -> 1333333.333 | E92: 27777.77778 | F92: 12222.22222 | G92: 0 | J92: 0 | P92: 40000 | AD92: 9 | AE92: 2027-09-30 | AF92: 1 | AG92: 73 | AH92: =IF(AND(AG92<$E$5,AG92=Оцінка!$F$14),AH91-AI91-Оцінка!$E$14,IF(AG92>$E$5,"",AH91-AI91)) ->  | AL92: 0 | AO92: 10 | AP92: 2027-10-31 | AQ92: 1 | AR92: 73 | AS92: =IF(AND(AR92<$E$5,B92=Оцінка!$E$23),AS91-AT91-Оцінка!$E$22,IF(AR92>$E$5,"",AS91-AT91)) -> 1333333.333 | AT92: =IF(OR(AR92<=$E$7,AR92=""),0,IF(AND(AR92>=Оцінка!$E$23,Оцінка!$E$23<>0),($E$4-Оцінка!$E$22-IF(Оцінка!$E$13<Оцінка!$E$23,($E$4*(Оцінка!$E$23-1-$E$7)/(($E$5)-$E$7)),0))/IF(Оцінка!$E$13<Оцінка!$E$23,$E$5+1-Оцінка!$E$23,$E$5-Оцінка!$E$13),$E$4/(($E$5)-$E$7))) -> 27777.77778 | AU92: 12222.22222 | AW92: 0 | AY92: 40000
A93: 74 | B93: 74 | C93: 2027-11-01 | D93: =IF(AND(B93<$E$5,B93=Оцінка!$E$23),D92-E92-Оцінка!$E$22,IF(B93>$E$5,"",D92-E92)) -> 1305555.556 | E93: 27777.77778 | F93: 11967.59259 | G93: 0 | J93: 0 | P93: 39745.37037 | AD93: 10 | AE93: 2027-10-31 | AF93: 2 | AG93: 74 | AH93: =IF(AND(AG93<$E$5,AG93=Оцінка!$F$14),AH92-AI92-Оцінка!$E$14,IF(AG93>$E$5,"",AH92-AI92)) ->  | AL93: 0 | AO93: 11 | AP93: 2027-11-30 | AQ93: 2 | AR93: 74 | AS93: =IF(AND(AR93<$E$5,B93=Оцінка!$E$23),AS92-AT92-Оцінка!$E$22,IF(AR93>$E$5,"",AS92-AT92)) -> 1305555.556 | AT93: =IF(OR(AR93<=$E$7,AR93=""),0,IF(AND(AR93>=Оцінка!$E$23,Оцінка!$E$23<>0),($E$4-Оцінка!$E$22-IF(Оцінка!$E$13<Оцінка!$E$23,($E$4*(Оцінка!$E$23-1-$E$7)/(($E$5)-$E$7)),0))/IF(Оцінка!$E$13<Оцінка!$E$23,$E$5+1-Оцінка!$E$23,$E$5-Оцінка!$E$13),$E$4/(($E$5)-$E$7))) -> 27777.77778 | AU93: 11967.59259 | AW93: 0 | AY93: 39745.37037
A94: 75 | B94: 75 | C94: 2027-12-01 | D94: =IF(AND(B94<$E$5,B94=Оцінка!$E$23),D93-E93-Оцінка!$E$22,IF(B94>$E$5,"",D93-E93)) -> 1277777.778 | E94: 27777.77778 | F94: 11712.96296 | G94: 0 | J94: 0 | P94: 39490.74074 | AD94: 11 | AE94: 2027-11-30 | AF94: 3 | AG94: 75 | AH94: =IF(AND(AG94<$E$5,AG94=Оцінка!$F$14),AH93-AI93-Оцінка!$E$14,IF(AG94>$E$5,"",AH93-AI93)) ->  | AL94: 0 | AO94: 12 | AP94: 2027-12-31 | AQ94: 3 | AR94: 75 | AS94: =IF(AND(AR94<$E$5,B94=Оцінка!$E$23),AS93-AT93-Оцінка!$E$22,IF(AR94>$E$5,"",AS93-AT93)) -> 1277777.778 | AT94: =IF(OR(AR94<=$E$7,AR94=""),0,IF(AND(AR94>=Оцінка!$E$23,Оцінка!$E$23<>0),($E$4-Оцінка!$E$22-IF(Оцінка!$E$13<Оцінка!$E$23,($E$4*(Оцінка!$E$23-1-$E$7)/(($E$5)-$E$7)),0))/IF(Оцінка!$E$13<Оцінка!$E$23,$E$5+1-Оцінка!$E$23,$E$5-Оцінка!$E$13),$E$4/(($E$5)-$E$7))) -> 27777.77778 | AU94: 11712.96296 | AW94: 0 | AY94: 39490.74074
A95: 76 | B95: 76 | C95: 2028-01-01 | D95: =IF(AND(B95<$E$5,B95=Оцінка!$E$23),D94-E94-Оцінка!$E$22,IF(B95>$E$5,"",D94-E94)) -> 1250000 | E95: 27777.77778 | F95: 11458.33333 | G95: 0 | J95: 0 | P95: 39236.11111 | AD95: 12 | AE95: 2027-12-31 | AF95: 4 | AG95: 76 | AH95: =IF(AND(AG95<$E$5,AG95=Оцінка!$F$14),AH94-AI94-Оцінка!$E$14,IF(AG95>$E$5,"",AH94-AI94)) ->  | AL95: 0 | AO95: 1 | AP95: 2028-01-31 | AQ95: 4 | AR95: 76 | AS95: =IF(AND(AR95<$E$5,B95=Оцінка!$E$23),AS94-AT94-Оцінка!$E$22,IF(AR95>$E$5,"",AS94-AT94)) -> 1250000 | AT95: =IF(OR(AR95<=$E$7,AR95=""),0,IF(AND(AR95>=Оцінка!$E$23,Оцінка!$E$23<>0),($E$4-Оцінка!$E$22-IF(Оцінка!$E$13<Оцінка!$E$23,($E$4*(Оцінка!$E$23-1-$E$7)/(($E$5)-$E$7)),0))/IF(Оцінка!$E$13<Оцінка!$E$23,$E$5+1-Оцінка!$E$23,$E$5-Оцінка!$E$13),$E$4/(($E$5)-$E$7))) -> 27777.77778 | AU95: 11458.33333 | AW95: 0 | AY95: 39236.11111
A96: 77 | B96: 77 | C96: 2028-02-01 | D96: =IF(AND(B96<$E$5,B96=Оцінка!$E$23),D95-E95-Оцінка!$E$22,IF(B96>$E$5,"",D95-E95)) -> 1222222.222 | E96: 27777.77778 | F96: =IF(B96>$E$5,"",D96*$E$8/12) -> 11203.7037 | G96: 0 | J96: 0 | P96: 38981.48148 | AD96: 1 | AE96: 2028-01-31 | AF96: 5 | AG96: 77 | AH96: =IF(AND(AG96<$E$5,AG96=Оцінка!$F$14),AH95-AI95-Оцінка!$E$14,IF(AG96>$E$5,"",AH95-AI95)) ->  | AL96: 0 | AO96: 2 | AP96: 2028-02-29 | AQ96: 5 | AR96: 77 | AS96: =IF(AND(AR96<$E$5,B96=Оцінка!$E$23),AS95-AT95-Оцінка!$E$22,IF(AR96>$E$5,"",AS95-AT95)) -> 1222222.222 | AT96: =IF(OR(AR96<=$E$7,AR96=""),0,IF(AND(AR96>=Оцінка!$E$23,Оцінка!$E$23<>0),($E$4-Оцінка!$E$22-IF(Оцінка!$E$13<Оцінка!$E$23,($E$4*(Оцінка!$E$23-1-$E$7)/(($E$5)-$E$7)),0))/IF(Оцінка!$E$13<Оцінка!$E$23,$E$5+1-Оцінка!$E$23,$E$5-Оцінка!$E$13),$E$4/(($E$5)-$E$7))) -> 27777.77778 | AU96: 11203.7037 | AW96: 0 | AY96: 38981.48148
A97: 78 | B97: 78 | C97: 2028-03-01 | D97: =IF(AND(B97<$E$5,B97=Оцінка!$E$23),D96-E96-Оцінка!$E$22,IF(B97>$E$5,"",D96-E96)) -> 1194444.444 | E97: 27777.77778 | F97: 10949.07407 | G97: 0 | J97: 0 | P97: 38726.85185 | AD97: 2 | AE97: 2028-02-29 | AF97: 6 | AG97: 78 | AH97: =IF(AND(AG97<$E$5,AG97=Оцінка!$F$14),AH96-AI96-Оцінка!$E$14,IF(AG97>$E$5,"",AH96-AI96)) ->  | AL97: 0 | AO97: 3 | AP97: 2028-03-31 | AQ97: 6 | AR97: 78 | AS97: =IF(AND(AR97<$E$5,B97=Оцінка!$E$23),AS96-AT96-Оцінка!$E$22,IF(AR97>$E$5,"",AS96-AT96)) -> 1194444.444 | AT97: =IF(OR(AR97<=$E$7,AR97=""),0,IF(AND(AR97>=Оцінка!$E$23,Оцінка!$E$23<>0),($E$4-Оцінка!$E$22-IF(Оцінка!$E$13<Оцінка!$E$23,($E$4*(Оцінка!$E$23-1-$E$7)/(($E$5)-$E$7)),0))/IF(Оцінка!$E$13<Оцінка!$E$23,$E$5+1-Оцінка!$E$23,$E$5-Оцінка!$E$13),$E$4/(($E$5)-$E$7))) -> 27777.77778 | AU97: 10949.07407 | AW97: 0 | AY97: 38726.85185
A98: 79 | B98: 79 | C98: 2028-04-01 | D98: =IF(AND(B98<$E$5,B98=Оцінка!$E$23),D97-E97-Оцінка!$E$22,IF(B98>$E$5,"",D97-E97)) -> 1166666.667 | E98: 27777.77778 | F98: 10694.44444 | G98: 0 | J98: 0 | P98: 38472.22222 | AD98: 3 | AE98: 2028-03-31 | AF98: 7 | AG98: 79 | AH98: =IF(AND(AG98<$E$5,AG98=Оцінка!$F$14),AH97-AI97-Оцінка!$E$14,IF(AG98>$E$5,"",AH97-AI97)) ->  | AL98: 0 | AO98: 4 | AP98: 2028-04-30 | AQ98: 7 | AR98: 79 | AS98: =IF(AND(AR98<$E$5,B98=Оцінка!$E$23),AS97-AT97-Оцінка!$E$22,IF(AR98>$E$5,"",AS97-AT97)) -> 1166666.667 | AT98: =IF(OR(AR98<=$E$7,AR98=""),0,IF(AND(AR98>=Оцінка!$E$23,Оцінка!$E$23<>0),($E$4-Оцінка!$E$22-IF(Оцінка!$E$13<Оцінка!$E$23,($E$4*(Оцінка!$E$23-1-$E$7)/(($E$5)-$E$7)),0))/IF(Оцінка!$E$13<Оцінка!$E$23,$E$5+1-Оцінка!$E$23,$E$5-Оцінка!$E$13),$E$4/(($E$5)-$E$7))) -> 27777.77778 | AU98: 10694.44444 | AW98: 0 | AY98: 38472.22222
A99: 80 | B99: 80 | C99: 2028-05-01 | D99: =IF(AND(B99<$E$5,B99=Оцінка!$E$23),D98-E98-Оцінка!$E$22,IF(B99>$E$5,"",D98-E98)) -> 1138888.889 | E99: 27777.77778 | F99: 10439.81481 | G99: 0 | J99: 0 | P99: 38217.59259 | AD99: 4 | AE99: 2028-04-30 | AF99: 8 | AG99: 80 | AH99: =IF(AND(AG99<$E$5,AG99=Оцінка!$F$14),AH98-AI98-Оцінка!$E$14,IF(AG99>$E$5,"",AH98-AI98)) ->  | AL99: 0 | AO99: 5 | AP99: 2028-05-31 | AQ99: 8 | AR99: 80 | AS99: =IF(AND(AR99<$E$5,B99=Оцінка!$E$23),AS98-AT98-Оцінка!$E$22,IF(AR99>$E$5,"",AS98-AT98)) -> 1138888.889 | AT99: =IF(OR(AR99<=$E$7,AR99=""),0,IF(AND(AR99>=Оцінка!$E$23,Оцінка!$E$23<>0),($E$4-Оцінка!$E$22-IF(Оцінка!$E$13<Оцінка!$E$23,($E$4*(Оцінка!$E$23-1-$E$7)/(($E$5)-$E$7)),0))/IF(Оцінка!$E$13<Оцінка!$E$23,$E$5+1-Оцінка!$E$23,$E$5-Оцінка!$E$13),$E$4/(($E$5)-$E$7))) -> 27777.77778 | AU99: 10439.81481 | AW99: 0 | AY99: 38217.59259
A100: 81 | B100: 81 | C100: 2028-06-01 | D100: =IF(AND(B100<$E$5,B100=Оцінка!$E$23),D99-E99-Оцінка!$E$22,IF(B100>$E$5,"",D99-E99)) -> 1111111.111 | E100: 27777.77778 | F100: 10185.18519 | G100: 0 | J100: 0 | P100: 37962.96296 | AD100: 5 | AE100: 2028-05-31 | AF100: 9 | AG100: 81 | AH100: =IF(AND(AG100<$E$5,AG100=Оцінка!$F$14),AH99-AI99-Оцінка!$E$14,IF(AG100>$E$5,"",AH99-AI99)) ->  | AL100: 0 | AO100: 6 | AP100: 2028-06-30 | AQ100: 9 | AR100: 81 | AS100: =IF(AND(AR100<$E$5,B100=Оцінка!$E$23),AS99-AT99-Оцінка!$E$22,IF(AR100>$E$5,"",AS99-AT99)) -> 1111111.111 | AT100: =IF(OR(AR100<=$E$7,AR100=""),0,IF(AND(AR100>=Оцінка!$E$23,Оцінка!$E$23<>0),($E$4-Оцінка!$E$22-IF(Оцінка!$E$13<Оцінка!$E$23,($E$4*(Оцінка!$E$23-1-$E$7)/(($E$5)-$E$7)),0))/IF(Оцінка!$E$13<Оцінка!$E$23,$E$5+1-Оцінка!$E$23,$E$5-Оцінка!$E$13),$E$4/(($E$5)-$E$7))) -> 27777.77778 | AU100: 10185.18519 | AW100: 0 | AY100: 37962.96296
A101: 82 | B101: 82 | C101: 2028-07-01 | D101: =IF(AND(B101<$E$5,B101=Оцінка!$E$23),D100-E100-Оцінка!$E$22,IF(B101>$E$5,"",D100-E100)) -> 1083333.333 | E101: 27777.77778 | F101: 9930.555556 | G101: 0 | J101: 0 | P101: 37708.33333 | AD101: 6 | AE101: 2028-06-30 | AF101: 10 | AG101: 82 | AH101: =IF(AND(AG101<$E$5,AG101=Оцінка!$F$14),AH100-AI100-Оцінка!$E$14,IF(AG101>$E$5,"",AH100-AI100)) ->  | AL101: 0 | AO101: 7 | AP101: 2028-07-31 | AQ101: 10 | AR101: 82 | AS101: =IF(AND(AR101<$E$5,B101=Оцінка!$E$23),AS100-AT100-Оцінка!$E$22,IF(AR101>$E$5,"",AS100-AT100)) -> 1083333.333 | AT101: =IF(OR(AR101<=$E$7,AR101=""),0,IF(AND(AR101>=Оцінка!$E$23,Оцінка!$E$23<>0),($E$4-Оцінка!$E$22-IF(Оцінка!$E$13<Оцінка!$E$23,($E$4*(Оцінка!$E$23-1-$E$7)/(($E$5)-$E$7)),0))/IF(Оцінка!$E$13<Оцінка!$E$23,$E$5+1-Оцінка!$E$23,$E$5-Оцінка!$E$13),$E$4/(($E$5)-$E$7))) -> 27777.77778 | AU101: 9930.555556 | AW101: 0 | AY101: 37708.33333
A102: 83 | B102: 83 | C102: 2028-08-01 | D102: =IF(AND(B102<$E$5,B102=Оцінка!$E$23),D101-E101-Оцінка!$E$22,IF(B102>$E$5,"",D101-E101)) -> 1055555.556 | E102: 27777.77778 | F102: 9675.925926 | G102: 0 | J102: 0 | P102: 37453.7037 | AD102: 7 | AE102: 2028-07-31 | AF102: 11 | AG102: 83 | AH102: =IF(AND(AG102<$E$5,AG102=Оцінка!$F$14),AH101-AI101-Оцінка!$E$14,IF(AG102>$E$5,"",AH101-AI101)) ->  | AL102: 0 | AO102: 8 | AP102: 2028-08-31 | AQ102: 11 | AR102: 83 | AS102: =IF(AND(AR102<$E$5,B102=Оцінка!$E$23),AS101-AT101-Оцінка!$E$22,IF(AR102>$E$5,"",AS101-AT101)) -> 1055555.556 | AT102: =IF(OR(AR102<=$E$7,AR102=""),0,IF(AND(AR102>=Оцінка!$E$23,Оцінка!$E$23<>0),($E$4-Оцінка!$E$22-IF(Оцінка!$E$13<Оцінка!$E$23,($E$4*(Оцінка!$E$23-1-$E$7)/(($E$5)-$E$7)),0))/IF(Оцінка!$E$13<Оцінка!$E$23,$E$5+1-Оцінка!$E$23,$E$5-Оцінка!$E$13),$E$4/(($E$5)-$E$7))) -> 27777.77778 | AU102: 9675.925926 | AW102: 0 | AY102: 37453.7037
A103: 84 | B103: 84 | C103: 2028-09-01 | D103: =IF(AND(B103<$E$5,B103=Оцінка!$E$23),D102-E102-Оцінка!$E$22,IF(B103>$E$5,"",D102-E102)) -> 1027777.778 | E103: 27777.77778 | F103: 9421.296296 | G103: 0 | J103: 0 | P103: 37199.07407 | AD103: 8 | AE103: 2028-08-31 | AF103: 12 | AG103: 84 | AH103: =IF(AND(AG103<$E$5,AG103=Оцінка!$F$14),AH102-AI102-Оцінка!$E$14,IF(AG103>$E$5,"",AH102-AI102)) ->  | AL103: 0 | AO103: 9 | AP103: 2028-09-30 | AQ103: 12 | AR103: 84 | AS103: =IF(AND(AR103<$E$5,B103=Оцінка!$E$23),AS102-AT102-Оцінка!$E$22,IF(AR103>$E$5,"",AS102-AT102)) -> 1027777.778 | AT103: =IF(OR(AR103<=$E$7,AR103=""),0,IF(AND(AR103>=Оцінка!$E$23,Оцінка!$E$23<>0),($E$4-Оцінка!$E$22-IF(Оцінка!$E$13<Оцінка!$E$23,($E$4*(Оцінка!$E$23-1-$E$7)/(($E$5)-$E$7)),0))/IF(Оцінка!$E$13<Оцінка!$E$23,$E$5+1-Оцінка!$E$23,$E$5-Оцінка!$E$13),$E$4/(($E$5)-$E$7))) -> 27777.77778 | AU103: 9421.296296 | AW103: 0 | AY103: 37199.07407
A104: 85 | B104: 85 | C104: 2028-10-01 | D104: =IF(AND(B104<$E$5,B104=Оцінка!$E$23),D103-E103-Оцінка!$E$22,IF(B104>$E$5,"",D103-E103)) -> 1000000 | E104: 27777.77778 | F104: 9166.666667 | G104: 0 | J104: 0 | P104: 36944.44444 | AD104: 9 | AE104: 2028-09-30 | AF104: 1 | AG104: 85 | AH104: =IF(AND(AG104<$E$5,AG104=Оцінка!$F$14),AH103-AI103-Оцінка!$E$14,IF(AG104>$E$5,"",AH103-AI103)) ->  | AL104: 0 | AO104: 10 | AP104: 2028-10-31 | AQ104: 1 | AR104: 85 | AS104: =IF(AND(AR104<$E$5,B104=Оцінка!$E$23),AS103-AT103-Оцінка!$E$22,IF(AR104>$E$5,"",AS103-AT103)) -> 1000000 | AT104: =IF(OR(AR104<=$E$7,AR104=""),0,IF(AND(AR104>=Оцінка!$E$23,Оцінка!$E$23<>0),($E$4-Оцінка!$E$22-IF(Оцінка!$E$13<Оцінка!$E$23,($E$4*(Оцінка!$E$23-1-$E$7)/(($E$5)-$E$7)),0))/IF(Оцінка!$E$13<Оцінка!$E$23,$E$5+1-Оцінка!$E$23,$E$5-Оцінка!$E$13),$E$4/(($E$5)-$E$7))) -> 27777.77778 | AU104: 9166.666667 | AW104: 0 | AY104: 36944.44444
A105: 86 | B105: 86 | C105: 2028-11-01 | D105: =IF(AND(B105<$E$5,B105=Оцінка!$E$23),D104-E104-Оцінка!$E$22,IF(B105>$E$5,"",D104-E104)) -> 972222.2222 | E105: 27777.77778 | F105: 8912.037037 | G105: 0 | J105: 0 | P105: 36689.81481 | AD105: 10 | AE105: 2028-10-31 | AF105: 2 | AG105: 86 | AH105: =IF(AND(AG105<$E$5,AG105=Оцінка!$F$14),AH104-AI104-Оцінка!$E$14,IF(AG105>$E$5,"",AH104-AI104)) ->  | AL105: 0 | AO105: 11 | AP105: 2028-11-30 | AQ105: 2 | AR105: 86 | AS105: =IF(AND(AR105<$E$5,B105=Оцінка!$E$23),AS104-AT104-Оцінка!$E$22,IF(AR105>$E$5,"",AS104-AT104)) -> 972222.2222 | AT105: =IF(OR(AR105<=$E$7,AR105=""),0,IF(AND(AR105>=Оцінка!$E$23,Оцінка!$E$23<>0),($E$4-Оцінка!$E$22-IF(Оцінка!$E$13<Оцінка!$E$23,($E$4*(Оцінка!$E$23-1-$E$7)/(($E$5)-$E$7)),0))/IF(Оцінка!$E$13<Оцінка!$E$23,$E$5+1-Оцінка!$E$23,$E$5-Оцінка!$E$13),$E$4/(($E$5)-$E$7))) -> 27777.77778 | AU105: 8912.037037 | AW105: 0 | AY105: 36689.81481
A106: 87 | B106: 87 | C106: 2028-12-01 | D106: =IF(AND(B106<$E$5,B106=Оцінка!$E$23),D105-E105-Оцінка!$E$22,IF(B106>$E$5,"",D105-E105)) -> 944444.4444 | E106: 27777.77778 | F106: 8657.407407 | G106: 0 | J106: 0 | P106: 36435.18519 | AD106: 11 | AE106: 2028-11-30 | AF106: 3 | AG106: 87 | AH106: =IF(AND(AG106<$E$5,AG106=Оцінка!$F$14),AH105-AI105-Оцінка!$E$14,IF(AG106>$E$5,"",AH105-AI105)) ->  | AL106: 0 | AO106: 12 | AP106: 2028-12-31 | AQ106: 3 | AR106: 87 | AS106: =IF(AND(AR106<$E$5,B106=Оцінка!$E$23),AS105-AT105-Оцінка!$E$22,IF(AR106>$E$5,"",AS105-AT105)) -> 944444.4444 | AT106: =IF(OR(AR106<=$E$7,AR106=""),0,IF(AND(AR106>=Оцінка!$E$23,Оцінка!$E$23<>0),($E$4-Оцінка!$E$22-IF(Оцінка!$E$13<Оцінка!$E$23,($E$4*(Оцінка!$E$23-1-$E$7)/(($E$5)-$E$7)),0))/IF(Оцінка!$E$13<Оцінка!$E$23,$E$5+1-Оцінка!$E$23,$E$5-Оцінка!$E$13),$E$4/(($E$5)-$E$7))) -> 27777.77778 | AU106: 8657.407407 | AW106: 0 | AY106: 36435.18519
A107: 88 | B107: 88 | C107: 2029-01-01 | D107: =IF(AND(B107<$E$5,B107=Оцінка!$E$23),D106-E106-Оцінка!$E$22,IF(B107>$E$5,"",D106-E106)) -> 916666.6667 | E107: 27777.77778 | F107: 8402.777778 | G107: 0 | J107: 0 | P107: 36180.55556 | AD107: 12 | AE107: 2028-12-31 | AF107: 4 | AG107: 88 | AH107: =IF(AND(AG107<$E$5,AG107=Оцінка!$F$14),AH106-AI106-Оцінка!$E$14,IF(AG107>$E$5,"",AH106-AI106)) ->  | AL107: 0 | AO107: 1 | AP107: 2029-01-31 | AQ107: 4 | AR107: 88 | AS107: =IF(AND(AR107<$E$5,B107=Оцінка!$E$23),AS106-AT106-Оцінка!$E$22,IF(AR107>$E$5,"",AS106-AT106)) -> 916666.6667 | AT107: =IF(OR(AR107<=$E$7,AR107=""),0,IF(AND(AR107>=Оцінка!$E$23,Оцінка!$E$23<>0),($E$4-Оцінка!$E$22-IF(Оцінка!$E$13<Оцінка!$E$23,($E$4*(Оцінка!$E$23-1-$E$7)/(($E$5)-$E$7)),0))/IF(Оцінка!$E$13<Оцінка!$E$23,$E$5+1-Оцінка!$E$23,$E$5-Оцінка!$E$13),$E$4/(($E$5)-$E$7))) -> 27777.77778 | AU107: 8402.777778 | AW107: 0 | AY107: 36180.55556
A108: 89 | B108: 89 | C108: 2029-02-01 | D108: =IF(AND(B108<$E$5,B108=Оцінка!$E$23),D107-E107-Оцінка!$E$22,IF(B108>$E$5,"",D107-E107)) -> 888888.8889 | E108: 27777.77778 | F108: 8148.148148 | G108: 0 | J108: 0 | P108: 35925.92593 | AD108: 1 | AE108: 2029-01-31 | AF108: 5 | AG108: 89 | AH108: =IF(AND(AG108<$E$5,AG108=Оцінка!$F$14),AH107-AI107-Оцінка!$E$14,IF(AG108>$E$5,"",AH107-AI107)) ->  | AL108: 0 | AO108: 2 | AP108: 2029-02-28 | AQ108: 5 | AR108: 89 | AS108: =IF(AND(AR108<$E$5,B108=Оцінка!$E$23),AS107-AT107-Оцінка!$E$22,IF(AR108>$E$5,"",AS107-AT107)) -> 888888.8889 | AT108: =IF(OR(AR108<=$E$7,AR108=""),0,IF(AND(AR108>=Оцінка!$E$23,Оцінка!$E$23<>0),($E$4-Оцінка!$E$22-IF(Оцінка!$E$13<Оцінка!$E$23,($E$4*(Оцінка!$E$23-1-$E$7)/(($E$5)-$E$7)),0))/IF(Оцінка!$E$13<Оцінка!$E$23,$E$5+1-Оцінка!$E$23,$E$5-Оцінка!$E$13),$E$4/(($E$5)-$E$7))) -> 27777.77778 | AU108: 8148.148148 | AW108: 0 | AY108: 35925.92593
A109: 90 | B109: 90 | C109: 2029-03-01 | D109: =IF(AND(B109<$E$5,B109=Оцінка!$E$23),D108-E108-Оцінка!$E$22,IF(B109>$E$5,"",D108-E108)) -> 861111.1111 | E109: 27777.77778 | F109: 7893.518519 | G109: 0 | J109: 0 | P109: 35671.2963 | AD109: 2 | AE109: 2029-02-28 | AF109: 6 | AG109: 90 | AH109: =IF(AND(AG109<$E$5,AG109=Оцінка!$F$14),AH108-AI108-Оцінка!$E$14,IF(AG109>$E$5,"",AH108-AI108)) ->  | AL109: 0 | AO109: 3 | AP109: 2029-03-31 | AQ109: 6 | AR109: 90 | AS109: =IF(AND(AR109<$E$5,B109=Оцінка!$E$23),AS108-AT108-Оцінка!$E$22,IF(AR109>$E$5,"",AS108-AT108)) -> 861111.1111 | AT109: =IF(OR(AR109<=$E$7,AR109=""),0,IF(AND(AR109>=Оцінка!$E$23,Оцінка!$E$23<>0),($E$4-Оцінка!$E$22-IF(Оцінка!$E$13<Оцінка!$E$23,($E$4*(Оцінка!$E$23-1-$E$7)/(($E$5)-$E$7)),0))/IF(Оцінка!$E$13<Оцінка!$E$23,$E$5+1-Оцінка!$E$23,$E$5-Оцінка!$E$13),$E$4/(($E$5)-$E$7))) -> 27777.77778 | AU109: 7893.518519 | AW109: 0 | AY109: 35671.2963
A110: 91 | B110: 91 | C110: 2029-04-01 | D110: =IF(AND(B110<$E$5,B110=Оцінка!$E$23),D109-E109-Оцінка!$E$22,IF(B110>$E$5,"",D109-E109)) -> 833333.3333 | E110: 27777.77778 | F110: 7638.888889 | G110: 0 | J110: 0 | P110: 35416.66667 | AD110: 3 | AE110: 2029-03-31 | AF110: 7 | AG110: 91 | AH110: =IF(AND(AG110<$E$5,AG110=Оцінка!$F$14),AH109-AI109-Оцінка!$E$14,IF(AG110>$E$5,"",AH109-AI109)) ->  | AL110: 0 | AO110: 4 | AP110: 2029-04-30 | AQ110: 7 | AR110: 91 | AS110: =IF(AND(AR110<$E$5,B110=Оцінка!$E$23),AS109-AT109-Оцінка!$E$22,IF(AR110>$E$5,"",AS109-AT109)) -> 833333.3333 | AT110: =IF(OR(AR110<=$E$7,AR110=""),0,IF(AND(AR110>=Оцінка!$E$23,Оцінка!$E$23<>0),($E$4-Оцінка!$E$22-IF(Оцінка!$E$13<Оцінка!$E$23,($E$4*(Оцінка!$E$23-1-$E$7)/(($E$5)-$E$7)),0))/IF(Оцінка!$E$13<Оцінка!$E$23,$E$5+1-Оцінка!$E$23,$E$5-Оцінка!$E$13),$E$4/(($E$5)-$E$7))) -> 27777.77778 | AU110: 7638.888889 | AW110: 0 | AY110: 35416.66667
A111: 92 | B111: 92 | C111: 2029-05-01 | D111: =IF(AND(B111<$E$5,B111=Оцінка!$E$23),D110-E110-Оцінка!$E$22,IF(B111>$E$5,"",D110-E110)) -> 805555.5556 | E111: 27777.77778 | F111: 7384.259259 | G111: 0 | J111: 0 | P111: 35162.03704 | AD111: 4 | AE111: 2029-04-30 | AF111: 8 | AG111: 92 | AH111: =IF(AND(AG111<$E$5,AG111=Оцінка!$F$14),AH110-AI110-Оцінка!$E$14,IF(AG111>$E$5,"",AH110-AI110)) ->  | AL111: 0 | AO111: 5 | AP111: 2029-05-31 | AQ111: 8 | AR111: 92 | AS111: =IF(AND(AR111<$E$5,B111=Оцінка!$E$23),AS110-AT110-Оцінка!$E$22,IF(AR111>$E$5,"",AS110-AT110)) -> 805555.5556 | AT111: =IF(OR(AR111<=$E$7,AR111=""),0,IF(AND(AR111>=Оцінка!$E$23,Оцінка!$E$23<>0),($E$4-Оцінка!$E$22-IF(Оцінка!$E$13<Оцінка!$E$23,($E$4*(Оцінка!$E$23-1-$E$7)/(($E$5)-$E$7)),0))/IF(Оцінка!$E$13<Оцінка!$E$23,$E$5+1-Оцінка!$E$23,$E$5-Оцінка!$E$13),$E$4/(($E$5)-$E$7))) -> 27777.77778 | AU111: 7384.259259 | AW111: 0 | AY111: 35162.03704
A112: 93 | B112: 93 | C112: 2029-06-01 | D112: =IF(AND(B112<$E$5,B112=Оцінка!$E$23),D111-E111-Оцінка!$E$22,IF(B112>$E$5,"",D111-E111)) -> 777777.7778 | E112: 27777.77778 | F112: 7129.62963 | G112: 0 | J112: 0 | P112: 34907.40741 | AD112: 5 | AE112: 2029-05-31 | AF112: 9 | AG112: 93 | AH112: =IF(AND(AG112<$E$5,AG112=Оцінка!$F$14),AH111-AI111-Оцінка!$E$14,IF(AG112>$E$5,"",AH111-AI111)) ->  | AL112: 0 | AO112: 6 | AP112: 2029-06-30 | AQ112: 9 | AR112: 93 | AS112: =IF(AND(AR112<$E$5,B112=Оцінка!$E$23),AS111-AT111-Оцінка!$E$22,IF(AR112>$E$5,"",AS111-AT111)) -> 777777.7778 | AT112: =IF(OR(AR112<=$E$7,AR112=""),0,IF(AND(AR112>=Оцінка!$E$23,Оцінка!$E$23<>0),($E$4-Оцінка!$E$22-IF(Оцінка!$E$13<Оцінка!$E$23,($E$4*(Оцінка!$E$23-1-$E$7)/(($E$5)-$E$7)),0))/IF(Оцінка!$E$13<Оцінка!$E$23,$E$5+1-Оцінка!$E$23,$E$5-Оцінка!$E$13),$E$4/(($E$5)-$E$7))) -> 27777.77778 | AU112: 7129.62963 | AW112: 0 | AY112: 34907.40741
A113: 94 | B113: 94 | C113: 2029-07-01 | D113: =IF(AND(B113<$E$5,B113=Оцінка!$E$23),D112-E112-Оцінка!$E$22,IF(B113>$E$5,"",D112-E112)) -> 750000 | E113: 27777.77778 | F113: 6875 | G113: 0 | J113: 0 | P113: 34652.77778 | AD113: 6 | AE113: 2029-06-30 | AF113: 10 | AG113: 94 | AH113: =IF(AND(AG113<$E$5,AG113=Оцінка!$F$14),AH112-AI112-Оцінка!$E$14,IF(AG113>$E$5,"",AH112-AI112)) ->  | AL113: 0 | AO113: 7 | AP113: 2029-07-31 | AQ113: 10 | AR113: 94 | AS113: =IF(AND(AR113<$E$5,B113=Оцінка!$E$23),AS112-AT112-Оцінка!$E$22,IF(AR113>$E$5,"",AS112-AT112)) -> 750000 | AT113: =IF(OR(AR113<=$E$7,AR113=""),0,IF(AND(AR113>=Оцінка!$E$23,Оцінка!$E$23<>0),($E$4-Оцінка!$E$22-IF(Оцінка!$E$13<Оцінка!$E$23,($E$4*(Оцінка!$E$23-1-$E$7)/(($E$5)-$E$7)),0))/IF(Оцінка!$E$13<Оцінка!$E$23,$E$5+1-Оцінка!$E$23,$E$5-Оцінка!$E$13),$E$4/(($E$5)-$E$7))) -> 27777.77778 | AU113: 6875 | AW113: 0 | AY113: 34652.77778
A114: 95 | B114: 95 | C114: 2029-08-01 | D114: =IF(AND(B114<$E$5,B114=Оцінка!$E$23),D113-E113-Оцінка!$E$22,IF(B114>$E$5,"",D113-E113)) -> 722222.2222 | E114: 27777.77778 | F114: 6620.37037 | G114: 0 | J114: 0 | P114: 34398.14815 | AD114: 7 | AE114: 2029-07-31 | AF114: 11 | AG114: 95 | AH114: =IF(AND(AG114<$E$5,AG114=Оцінка!$F$14),AH113-AI113-Оцінка!$E$14,IF(AG114>$E$5,"",AH113-AI113)) ->  | AL114: 0 | AO114: 8 | AP114: 2029-08-31 | AQ114: 11 | AR114: 95 | AS114: =IF(AND(AR114<$E$5,B114=Оцінка!$E$23),AS113-AT113-Оцінка!$E$22,IF(AR114>$E$5,"",AS113-AT113)) -> 722222.2222 | AT114: =IF(OR(AR114<=$E$7,AR114=""),0,IF(AND(AR114>=Оцінка!$E$23,Оцінка!$E$23<>0),($E$4-Оцінка!$E$22-IF(Оцінка!$E$13<Оцінка!$E$23,($E$4*(Оцінка!$E$23-1-$E$7)/(($E$5)-$E$7)),0))/IF(Оцінка!$E$13<Оцінка!$E$23,$E$5+1-Оцінка!$E$23,$E$5-Оцінка!$E$13),$E$4/(($E$5)-$E$7))) -> 27777.77778 | AU114: 6620.37037 | AW114: 0 | AY114: 34398.14815
A115: 96 | B115: 96 | C115: 2029-09-01 | D115: =IF(AND(B115<$E$5,B115=Оцінка!$E$23),D114-E114-Оцінка!$E$22,IF(B115>$E$5,"",D114-E114)) -> 694444.4444 | E115: 27777.77778 | F115: 6365.740741 | G115: 0 | J115: 0 | P115: 34143.51852 | AD115: 8 | AE115: 2029-08-31 | AF115: 12 | AG115: 96 | AH115: =IF(AND(AG115<$E$5,AG115=Оцінка!$F$14),AH114-AI114-Оцінка!$E$14,IF(AG115>$E$5,"",AH114-AI114)) ->  | AL115: 0 | AO115: 9 | AP115: 2029-09-30 | AQ115: 12 | AR115: 96 | AS115: =IF(AND(AR115<$E$5,B115=Оцінка!$E$23),AS114-AT114-Оцінка!$E$22,IF(AR115>$E$5,"",AS114-AT114)) -> 694444.4444 | AT115: =IF(OR(AR115<=$E$7,AR115=""),0,IF(AND(AR115>=Оцінка!$E$23,Оцінка!$E$23<>0),($E$4-Оцінка!$E$22-IF(Оцінка!$E$13<Оцінка!$E$23,($E$4*(Оцінка!$E$23-1-$E$7)/(($E$5)-$E$7)),0))/IF(Оцінка!$E$13<Оцінка!$E$23,$E$5+1-Оцінка!$E$23,$E$5-Оцінка!$E$13),$E$4/(($E$5)-$E$7))) -> 27777.77778 | AU115: 6365.740741 | AW115: 0 | AY115: 34143.51852
A116: 97 | B116: 97 | C116: 2029-10-01 | D116: =IF(AND(B116<$E$5,B116=Оцінка!$E$23),D115-E115-Оцінка!$E$22,IF(B116>$E$5,"",D115-E115)) -> 666666.6667 | E116: 27777.77778 | F116: 6111.111111 | G116: 0 | J116: 0 | P116: 33888.88889 | AD116: 9 | AE116: 2029-09-30 | AF116: 1 | AG116: 97 | AH116: =IF(AND(AG116<$E$5,AG116=Оцінка!$F$14),AH115-AI115-Оцінка!$E$14,IF(AG116>$E$5,"",AH115-AI115)) ->  | AL116: 0 | AN116: =IF(AG116>$E$5,"",SUM(AI116:AM116)) ->  | AO116: 10 | AP116: 2029-10-31 | AQ116: 1 | AR116: 97 | AS116: =IF(AND(AR116<$E$5,B116=Оцінка!$E$23),AS115-AT115-Оцінка!$E$22,IF(AR116>$E$5,"",AS115-AT115)) -> 666666.6667 | AT116: =IF(OR(AR116<=$E$7,AR116=""),0,IF(AND(AR116>=Оцінка!$E$23,Оцінка!$E$23<>0),($E$4-Оцінка!$E$22-IF(Оцінка!$E$13<Оцінка!$E$23,($E$4*(Оцінка!$E$23-1-$E$7)/(($E$5)-$E$7)),0))/IF(Оцінка!$E$13<Оцінка!$E$23,$E$5+1-Оцінка!$E$23,$E$5-Оцінка!$E$13),$E$4/(($E$5)-$E$7))) -> 27777.77778 | AU116: 6111.111111 | AW116: 0 | AY116: =IF(AR116>$E$5,"",SUM(AT116:AX116)) -> 33888.88889
A117: 98 | B117: 98 | C117: 2029-11-01 | D117: =IF(AND(B117<$E$5,B117=Оцінка!$E$23),D116-E116-Оцінка!$E$22,IF(B117>$E$5,"",D116-E116)) -> 638888.8889 | E117: 27777.77778 | F117: 5856.481481 | G117: 0 | J117: 0 | P117: 33634.25926 | AD117: 10 | AE117: 2029-10-31 | AF117: 2 | AG117: 98 | AH117: =IF(AND(AG117<$E$5,AG117=Оцінка!$F$14),AH116-AI116-Оцінка!$E$14,IF(AG117>$E$5,"",AH116-AI116)) ->  | AL117: 0 | AO117: 11 | AP117: 2029-11-30 | AQ117: 2 | AR117: 98 | AS117: =IF(AND(AR117<$E$5,B117=Оцінка!$E$23),AS116-AT116-Оцінка!$E$22,IF(AR117>$E$5,"",AS116-AT116)) -> 638888.8889 | AT117: =IF(OR(AR117<=$E$7,AR117=""),0,IF(AND(AR117>=Оцінка!$E$23,Оцінка!$E$23<>0),($E$4-Оцінка!$E$22-IF(Оцінка!$E$13<Оцінка!$E$23,($E$4*(Оцінка!$E$23-1-$E$7)/(($E$5)-$E$7)),0))/IF(Оцінка!$E$13<Оцінка!$E$23,$E$5+1-Оцінка!$E$23,$E$5-Оцінка!$E$13),$E$4/(($E$5)-$E$7))) -> 27777.77778 | AU117: 5856.481481 | AW117: 0 | AY117: 33634.25926
A118: 99 | B118: 99 | C118: 2029-12-01 | D118: =IF(AND(B118<$E$5,B118=Оцінка!$E$23),D117-E117-Оцінка!$E$22,IF(B118>$E$5,"",D117-E117)) -> 611111.1111 | E118: 27777.77778 | F118: 5601.851852 | G118: 0 | J118: 0 | P118: 33379.62963 | AD118: 11 | AE118: 2029-11-30 | AF118: 3 | AG118: 99 | AH118: =IF(AND(AG118<$E$5,AG118=Оцінка!$F$14),AH117-AI117-Оцінка!$E$14,IF(AG118>$E$5,"",AH117-AI117)) ->  | AL118: 0 | AO118: 12 | AP118: 2029-12-31 | AQ118: 3 | AR118: 99 | AS118: =IF(AND(AR118<$E$5,B118=Оцінка!$E$23),AS117-AT117-Оцінка!$E$22,IF(AR118>$E$5,"",AS117-AT117)) -> 611111.1111 | AT118: =IF(OR(AR118<=$E$7,AR118=""),0,IF(AND(AR118>=Оцінка!$E$23,Оцінка!$E$23<>0),($E$4-Оцінка!$E$22-IF(Оцінка!$E$13<Оцінка!$E$23,($E$4*(Оцінка!$E$23-1-$E$7)/(($E$5)-$E$7)),0))/IF(Оцінка!$E$13<Оцінка!$E$23,$E$5+1-Оцінка!$E$23,$E$5-Оцінка!$E$13),$E$4/(($E$5)-$E$7))) -> 27777.77778 | AU118: 5601.851852 | AW118: 0 | AY118: 33379.62963
A119: 100 | B119: 100 | C119: 2030-01-01 | D119: =IF(AND(B119<$E$5,B119=Оцінка!$E$23),D118-E118-Оцінка!$E$22,IF(B119>$E$5,"",D118-E118)) -> 583333.3333 | E119: 27777.77778 | F119: 5347.222222 | G119: 0 | J119: 0 | P119: 33125 | AD119: 12 | AE119: 2029-12-31 | AF119: 4 | AG119: 100 | AH119: =IF(AND(AG119<$E$5,AG119=Оцінка!$F$14),AH118-AI118-Оцінка!$E$14,IF(AG119>$E$5,"",AH118-AI118)) ->  | AL119: 0 | AO119: 1 | AP119: 2030-01-31 | AQ119: 4 | AR119: 100 | AS119: =IF(AND(AR119<$E$5,B119=Оцінка!$E$23),AS118-AT118-Оцінка!$E$22,IF(AR119>$E$5,"",AS118-AT118)) -> 583333.3333 | AT119: =IF(OR(AR119<=$E$7,AR119=""),0,IF(AND(AR119>=Оцінка!$E$23,Оцінка!$E$23<>0),($E$4-Оцінка!$E$22-IF(Оцінка!$E$13<Оцінка!$E$23,($E$4*(Оцінка!$E$23-1-$E$7)/(($E$5)-$E$7)),0))/IF(Оцінка!$E$13<Оцінка!$E$23,$E$5+1-Оцінка!$E$23,$E$5-Оцінка!$E$13),$E$4/(($E$5)-$E$7))) -> 27777.77778 | AU119: 5347.222222 | AW119: 0 | AY119: 33125
A120: 101 | B120: 101 | C120: 2030-02-01 | D120: =IF(AND(B120<$E$5,B120=Оцінка!$E$23),D119-E119-Оцінка!$E$22,IF(B120>$E$5,"",D119-E119)) -> 555555.5556 | E120: 27777.77778 | F120: 5092.592593 | G120: 0 | J120: 0 | P120: 32870.37037 | AD120: 1 | AE120: 2030-01-31 | AF120: 5 | AG120: 101 | AH120: =IF(AND(AG120<$E$5,AG120=Оцінка!$F$14),AH119-AI119-Оцінка!$E$14,IF(AG120>$E$5,"",AH119-AI119)) ->  | AL120: 0 | AO120: 2 | AP120: 2030-02-28 | AQ120: 5 | AR120: 101 | AS120: =IF(AND(AR120<$E$5,B120=Оцінка!$E$23),AS119-AT119-Оцінка!$E$22,IF(AR120>$E$5,"",AS119-AT119)) -> 555555.5556 | AT120: =IF(OR(AR120<=$E$7,AR120=""),0,IF(AND(AR120>=Оцінка!$E$23,Оцінка!$E$23<>0),($E$4-Оцінка!$E$22-IF(Оцінка!$E$13<Оцінка!$E$23,($E$4*(Оцінка!$E$23-1-$E$7)/(($E$5)-$E$7)),0))/IF(Оцінка!$E$13<Оцінка!$E$23,$E$5+1-Оцінка!$E$23,$E$5-Оцінка!$E$13),$E$4/(($E$5)-$E$7))) -> 27777.77778 | AU120: 5092.592593 | AW120: 0 | AY120: 32870.37037
A121: 102 | B121: 102 | C121: 2030-03-01 | D121: =IF(AND(B121<$E$5,B121=Оцінка!$E$23),D120-E120-Оцінка!$E$22,IF(B121>$E$5,"",D120-E120)) -> 527777.7778 | E121: 27777.77778 | F121: 4837.962963 | G121: 0 | J121: 0 | P121: 32615.74074 | AD121: 2 | AE121: 2030-02-28 | AF121: 6 | AG121: 102 | AH121: =IF(AND(AG121<$E$5,AG121=Оцінка!$F$14),AH120-AI120-Оцінка!$E$14,IF(AG121>$E$5,"",AH120-AI120)) ->  | AL121: 0 | AO121: 3 | AP121: 2030-03-31 | AQ121: 6 | AR121: 102 | AS121: =IF(AND(AR121<$E$5,B121=Оцінка!$E$23),AS120-AT120-Оцінка!$E$22,IF(AR121>$E$5,"",AS120-AT120)) -> 527777.7778 | AT121: =IF(OR(AR121<=$E$7,AR121=""),0,IF(AND(AR121>=Оцінка!$E$23,Оцінка!$E$23<>0),($E$4-Оцінка!$E$22-IF(Оцінка!$E$13<Оцінка!$E$23,($E$4*(Оцінка!$E$23-1-$E$7)/(($E$5)-$E$7)),0))/IF(Оцінка!$E$13<Оцінка!$E$23,$E$5+1-Оцінка!$E$23,$E$5-Оцінка!$E$13),$E$4/(($E$5)-$E$7))) -> 27777.77778 | AU121: 4837.962963 | AW121: 0 | AY121: 32615.74074
A122: 103 | B122: 103 | C122: 2030-04-01 | D122: =IF(AND(B122<$E$5,B122=Оцінка!$E$23),D121-E121-Оцінка!$E$22,IF(B122>$E$5,"",D121-E121)) -> 500000 | E122: 27777.77778 | F122: 4583.333333 | G122: 0 | J122: 0 | P122: 32361.11111 | AD122: 3 | AE122: 2030-03-31 | AF122: 7 | AG122: 103 | AH122: =IF(AND(AG122<$E$5,AG122=Оцінка!$F$14),AH121-AI121-Оцінка!$E$14,IF(AG122>$E$5,"",AH121-AI121)) ->  | AL122: 0 | AO122: 4 | AP122: 2030-04-30 | AQ122: 7 | AR122: 103 | AS122: =IF(AND(AR122<$E$5,B122=Оцінка!$E$23),AS121-AT121-Оцінка!$E$22,IF(AR122>$E$5,"",AS121-AT121)) -> 500000 | AT122: =IF(OR(AR122<=$E$7,AR122=""),0,IF(AND(AR122>=Оцінка!$E$23,Оцінка!$E$23<>0),($E$4-Оцінка!$E$22-IF(Оцінка!$E$13<Оцінка!$E$23,($E$4*(Оцінка!$E$23-1-$E$7)/(($E$5)-$E$7)),0))/IF(Оцінка!$E$13<Оцінка!$E$23,$E$5+1-Оцінка!$E$23,$E$5-Оцінка!$E$13),$E$4/(($E$5)-$E$7))) -> 27777.77778 | AU122: 4583.333333 | AW122: 0 | AY122: 32361.11111
A123: 104 | B123: 104 | C123: 2030-05-01 | D123: =IF(AND(B123<$E$5,B123=Оцінка!$E$23),D122-E122-Оцінка!$E$22,IF(B123>$E$5,"",D122-E122)) -> 472222.2222 | E123: 27777.77778 | F123: 4328.703704 | G123: 0 | J123: 0 | P123: 32106.48148 | AD123: 4 | AE123: 2030-04-30 | AF123: 8 | AG123: 104 | AH123: =IF(AND(AG123<$E$5,AG123=Оцінка!$F$14),AH122-AI122-Оцінка!$E$14,IF(AG123>$E$5,"",AH122-AI122)) ->  | AL123: 0 | AO123: 5 | AP123: 2030-05-31 | AQ123: 8 | AR123: 104 | AS123: =IF(AND(AR123<$E$5,B123=Оцінка!$E$23),AS122-AT122-Оцінка!$E$22,IF(AR123>$E$5,"",AS122-AT122)) -> 472222.2222 | AT123: =IF(OR(AR123<=$E$7,AR123=""),0,IF(AND(AR123>=Оцінка!$E$23,Оцінка!$E$23<>0),($E$4-Оцінка!$E$22-IF(Оцінка!$E$13<Оцінка!$E$23,($E$4*(Оцінка!$E$23-1-$E$7)/(($E$5)-$E$7)),0))/IF(Оцінка!$E$13<Оцінка!$E$23,$E$5+1-Оцінка!$E$23,$E$5-Оцінка!$E$13),$E$4/(($E$5)-$E$7))) -> 27777.77778 | AU123: 4328.703704 | AW123: 0 | AY123: 32106.48148
A124: 105 | B124: 105 | C124: 2030-06-01 | D124: =IF(AND(B124<$E$5,B124=Оцінка!$E$23),D123-E123-Оцінка!$E$22,IF(B124>$E$5,"",D123-E123)) -> 444444.4444 | E124: 27777.77778 | F124: 4074.074074 | G124: 0 | J124: 0 | P124: 31851.85185 | AD124: 5 | AE124: 2030-05-31 | AF124: 9 | AG124: 105 | AH124: =IF(AND(AG124<$E$5,AG124=Оцінка!$F$14),AH123-AI123-Оцінка!$E$14,IF(AG124>$E$5,"",AH123-AI123)) ->  | AL124: 0 | AO124: 6 | AP124: 2030-06-30 | AQ124: 9 | AR124: 105 | AS124: =IF(AND(AR124<$E$5,B124=Оцінка!$E$23),AS123-AT123-Оцінка!$E$22,IF(AR124>$E$5,"",AS123-AT123)) -> 444444.4444 | AT124: =IF(OR(AR124<=$E$7,AR124=""),0,IF(AND(AR124>=Оцінка!$E$23,Оцінка!$E$23<>0),($E$4-Оцінка!$E$22-IF(Оцінка!$E$13<Оцінка!$E$23,($E$4*(Оцінка!$E$23-1-$E$7)/(($E$5)-$E$7)),0))/IF(Оцінка!$E$13<Оцінка!$E$23,$E$5+1-Оцінка!$E$23,$E$5-Оцінка!$E$13),$E$4/(($E$5)-$E$7))) -> 27777.77778 | AU124: 4074.074074 | AW124: 0 | AY124: 31851.85185
A125: 106 | B125: 106 | C125: 2030-07-01 | D125: =IF(AND(B125<$E$5,B125=Оцінка!$E$23),D124-E124-Оцінка!$E$22,IF(B125>$E$5,"",D124-E124)) -> 416666.6667 | E125: 27777.77778 | F125: 3819.444444 | G125: 0 | J125: 0 | P125: 31597.22222 | AD125: 6 | AE125: 2030-06-30 | AF125: 10 | AG125: 106 | AH125: =IF(AND(AG125<$E$5,AG125=Оцінка!$F$14),AH124-AI124-Оцінка!$E$14,IF(AG125>$E$5,"",AH124-AI124)) ->  | AL125: 0 | AO125: 7 | AP125: 2030-07-31 | AQ125: 10 | AR125: 106 | AS125: =IF(AND(AR125<$E$5,B125=Оцінка!$E$23),AS124-AT124-Оцінка!$E$22,IF(AR125>$E$5,"",AS124-AT124)) -> 416666.6667 | AT125: =IF(OR(AR125<=$E$7,AR125=""),0,IF(AND(AR125>=Оцінка!$E$23,Оцінка!$E$23<>0),($E$4-Оцінка!$E$22-IF(Оцінка!$E$13<Оцінка!$E$23,($E$4*(Оцінка!$E$23-1-$E$7)/(($E$5)-$E$7)),0))/IF(Оцінка!$E$13<Оцінка!$E$23,$E$5+1-Оцінка!$E$23,$E$5-Оцінка!$E$13),$E$4/(($E$5)-$E$7))) -> 27777.77778 | AU125: 3819.444444 | AW125: 0 | AY125: 31597.22222
A126: 107 | B126: 107 | C126: 2030-08-01 | D126: =IF(AND(B126<$E$5,B126=Оцінка!$E$23),D125-E125-Оцінка!$E$22,IF(B126>$E$5,"",D125-E125)) -> 388888.8889 | E126: 27777.77778 | F126: 3564.814815 | G126: 0 | J126: 0 | P126: 31342.59259 | AD126: 7 | AE126: 2030-07-31 | AF126: 11 | AG126: 107 | AH126: =IF(AND(AG126<$E$5,AG126=Оцінка!$F$14),AH125-AI125-Оцінка!$E$14,IF(AG126>$E$5,"",AH125-AI125)) ->  | AL126: 0 | AO126: 8 | AP126: 2030-08-31 | AQ126: 11 | AR126: 107 | AS126: =IF(AND(AR126<$E$5,B126=Оцінка!$E$23),AS125-AT125-Оцінка!$E$22,IF(AR126>$E$5,"",AS125-AT125)) -> 388888.8889 | AT126: =IF(OR(AR126<=$E$7,AR126=""),0,IF(AND(AR126>=Оцінка!$E$23,Оцінка!$E$23<>0),($E$4-Оцінка!$E$22-IF(Оцінка!$E$13<Оцінка!$E$23,($E$4*(Оцінка!$E$23-1-$E$7)/(($E$5)-$E$7)),0))/IF(Оцінка!$E$13<Оцінка!$E$23,$E$5+1-Оцінка!$E$23,$E$5-Оцінка!$E$13),$E$4/(($E$5)-$E$7))) -> 27777.77778 | AU126: 3564.814815 | AW126: 0 | AY126: 31342.59259
A127: 108 | B127: 108 | C127: 2030-09-01 | D127: =IF(AND(B127<$E$5,B127=Оцінка!$E$23),D126-E126-Оцінка!$E$22,IF(B127>$E$5,"",D126-E126)) -> 361111.1111 | E127: 27777.77778 | F127: 3310.185185 | G127: 0 | J127: 0 | P127: 31087.96296 | AD127: 8 | AE127: 2030-08-31 | AF127: 12 | AG127: 108 | AH127: =IF(AND(AG127<$E$5,AG127=Оцінка!$F$14),AH126-AI126-Оцінка!$E$14,IF(AG127>$E$5,"",AH126-AI126)) ->  | AL127: 0 | AO127: 9 | AP127: 2030-09-30 | AQ127: 12 | AR127: 108 | AS127: =IF(AND(AR127<$E$5,B127=Оцінка!$E$23),AS126-AT126-Оцінка!$E$22,IF(AR127>$E$5,"",AS126-AT126)) -> 361111.1111 | AT127: =IF(OR(AR127<=$E$7,AR127=""),0,IF(AND(AR127>=Оцінка!$E$23,Оцінка!$E$23<>0),($E$4-Оцінка!$E$22-IF(Оцінка!$E$13<Оцінка!$E$23,($E$4*(Оцінка!$E$23-1-$E$7)/(($E$5)-$E$7)),0))/IF(Оцінка!$E$13<Оцінка!$E$23,$E$5+1-Оцінка!$E$23,$E$5-Оцінка!$E$13),$E$4/(($E$5)-$E$7))) -> 27777.77778 | AU127: 3310.185185 | AW127: 0 | AY127: 31087.96296
A128: 109 | B128: 109 | C128: 2030-10-01 | D128: =IF(AND(B128<$E$5,B128=Оцінка!$E$23),D127-E127-Оцінка!$E$22,IF(B128>$E$5,"",D127-E127)) -> 333333.3333 | E128: 27777.77778 | F128: 3055.555556 | G128: 0 | J128: 0 | P128: 30833.33333 | AD128: 9 | AE128: 2030-09-30 | AF128: 1 | AG128: 109 | AH128: =IF(AND(AG128<$E$5,AG128=Оцінка!$F$14),AH127-AI127-Оцінка!$E$14,IF(AG128>$E$5,"",AH127-AI127)) ->  | AL128: 0 | AO128: 10 | AP128: 2030-10-31 | AQ128: 1 | AR128: 109 | AS128: =IF(AND(AR128<$E$5,B128=Оцінка!$E$23),AS127-AT127-Оцінка!$E$22,IF(AR128>$E$5,"",AS127-AT127)) -> 333333.3333 | AT128: =IF(OR(AR128<=$E$7,AR128=""),0,IF(AND(AR128>=Оцінка!$E$23,Оцінка!$E$23<>0),($E$4-Оцінка!$E$22-IF(Оцінка!$E$13<Оцінка!$E$23,($E$4*(Оцінка!$E$23-1-$E$7)/(($E$5)-$E$7)),0))/IF(Оцінка!$E$13<Оцінка!$E$23,$E$5+1-Оцінка!$E$23,$E$5-Оцінка!$E$13),$E$4/(($E$5)-$E$7))) -> 27777.77778 | AU128: 3055.555556 | AW128: 0 | AY128: 30833.33333
A129: 110 | B129: 110 | C129: 2030-11-01 | D129: =IF(AND(B129<$E$5,B129=Оцінка!$E$23),D128-E128-Оцінка!$E$22,IF(B129>$E$5,"",D128-E128)) -> 305555.5556 | E129: 27777.77778 | F129: 2800.925926 | G129: 0 | J129: 0 | P129: 30578.7037 | AD129: 10 | AE129: 2030-10-31 | AF129: 2 | AG129: 110 | AH129: =IF(AND(AG129<$E$5,AG129=Оцінка!$F$14),AH128-AI128-Оцінка!$E$14,IF(AG129>$E$5,"",AH128-AI128)) ->  | AL129: 0 | AO129: 11 | AP129: 2030-11-30 | AQ129: 2 | AR129: 110 | AS129: =IF(AND(AR129<$E$5,B129=Оцінка!$E$23),AS128-AT128-Оцінка!$E$22,IF(AR129>$E$5,"",AS128-AT128)) -> 305555.5556 | AT129: =IF(OR(AR129<=$E$7,AR129=""),0,IF(AND(AR129>=Оцінка!$E$23,Оцінка!$E$23<>0),($E$4-Оцінка!$E$22-IF(Оцінка!$E$13<Оцінка!$E$23,($E$4*(Оцінка!$E$23-1-$E$7)/(($E$5)-$E$7)),0))/IF(Оцінка!$E$13<Оцінка!$E$23,$E$5+1-Оцінка!$E$23,$E$5-Оцінка!$E$13),$E$4/(($E$5)-$E$7))) -> 27777.77778 | AU129: 2800.925926 | AW129: 0 | AY129: 30578.7037
A130: 111 | B130: 111 | C130: 2030-12-01 | D130: =IF(AND(B130<$E$5,B130=Оцінка!$E$23),D129-E129-Оцінка!$E$22,IF(B130>$E$5,"",D129-E129)) -> 277777.7778 | E130: 27777.77778 | F130: 2546.296296 | G130: 0 | J130: 0 | P130: 30324.07407 | AD130: 11 | AE130: 2030-11-30 | AF130: 3 | AG130: 111 | AH130: =IF(AND(AG130<$E$5,AG130=Оцінка!$F$14),AH129-AI129-Оцінка!$E$14,IF(AG130>$E$5,"",AH129-AI129)) ->  | AL130: 0 | AO130: 12 | AP130: 2030-12-31 | AQ130: 3 | AR130: 111 | AS130: =IF(AND(AR130<$E$5,B130=Оцінка!$E$23),AS129-AT129-Оцінка!$E$22,IF(AR130>$E$5,"",AS129-AT129)) -> 277777.7778 | AT130: =IF(OR(AR130<=$E$7,AR130=""),0,IF(AND(AR130>=Оцінка!$E$23,Оцінка!$E$23<>0),($E$4-Оцінка!$E$22-IF(Оцінка!$E$13<Оцінка!$E$23,($E$4*(Оцінка!$E$23-1-$E$7)/(($E$5)-$E$7)),0))/IF(Оцінка!$E$13<Оцінка!$E$23,$E$5+1-Оцінка!$E$23,$E$5-Оцінка!$E$13),$E$4/(($E$5)-$E$7))) -> 27777.77778 | AU130: 2546.296296 | AW130: 0 | AY130: 30324.07407
A131: 112 | B131: 112 | C131: 2031-01-01 | D131: =IF(AND(B131<$E$5,B131=Оцінка!$E$23),D130-E130-Оцінка!$E$22,IF(B131>$E$5,"",D130-E130)) -> 250000 | E131: 27777.77778 | F131: 2291.666667 | G131: 0 | J131: 0 | P131: 30069.44444 | AD131: 12 | AE131: 2030-12-31 | AF131: 4 | AG131: 112 | AH131: =IF(AND(AG131<$E$5,AG131=Оцінка!$F$14),AH130-AI130-Оцінка!$E$14,IF(AG131>$E$5,"",AH130-AI130)) ->  | AL131: 0 | AO131: 1 | AP131: 2031-01-31 | AQ131: 4 | AR131: 112 | AS131: =IF(AND(AR131<$E$5,B131=Оцінка!$E$23),AS130-AT130-Оцінка!$E$22,IF(AR131>$E$5,"",AS130-AT130)) -> 250000 | AT131: =IF(OR(AR131<=$E$7,AR131=""),0,IF(AND(AR131>=Оцінка!$E$23,Оцінка!$E$23<>0),($E$4-Оцінка!$E$22-IF(Оцінка!$E$13<Оцінка!$E$23,($E$4*(Оцінка!$E$23-1-$E$7)/(($E$5)-$E$7)),0))/IF(Оцінка!$E$13<Оцінка!$E$23,$E$5+1-Оцінка!$E$23,$E$5-Оцінка!$E$13),$E$4/(($E$5)-$E$7))) -> 27777.77778 | AU131: 2291.666667 | AW131: 0 | AY131: 30069.44444
A132: 113 | B132: 113 | C132: 2031-02-01 | D132: =IF(AND(B132<$E$5,B132=Оцінка!$E$23),D131-E131-Оцінка!$E$22,IF(B132>$E$5,"",D131-E131)) -> 222222.2222 | E132: 27777.77778 | F132: 2037.037037 | G132: 0 | J132: 0 | P132: 29814.81481 | AD132: 1 | AE132: 2031-01-31 | AF132: 5 | AG132: 113 | AH132: =IF(AND(AG132<$E$5,AG132=Оцінка!$F$14),AH131-AI131-Оцінка!$E$14,IF(AG132>$E$5,"",AH131-AI131)) ->  | AL132: 0 | AO132: 2 | AP132: 2031-02-28 | AQ132: 5 | AR132: 113 | AS132: =IF(AND(AR132<$E$5,B132=Оцінка!$E$23),AS131-AT131-Оцінка!$E$22,IF(AR132>$E$5,"",AS131-AT131)) -> 222222.2222 | AT132: =IF(OR(AR132<=$E$7,AR132=""),0,IF(AND(AR132>=Оцінка!$E$23,Оцінка!$E$23<>0),($E$4-Оцінка!$E$22-IF(Оцінка!$E$13<Оцінка!$E$23,($E$4*(Оцінка!$E$23-1-$E$7)/(($E$5)-$E$7)),0))/IF(Оцінка!$E$13<Оцінка!$E$23,$E$5+1-Оцінка!$E$23,$E$5-Оцінка!$E$13),$E$4/(($E$5)-$E$7))) -> 27777.77778 | AU132: 2037.037037 | AW132: 0 | AY132: 29814.81481
A133: 114 | B133: 114 | C133: 2031-03-01 | D133: =IF(AND(B133<$E$5,B133=Оцінка!$E$23),D132-E132-Оцінка!$E$22,IF(B133>$E$5,"",D132-E132)) -> 194444.4444 | E133: 27777.77778 | F133: 1782.407407 | G133: 0 | J133: 0 | P133: 29560.18519 | AD133: 2 | AE133: 2031-02-28 | AF133: 6 | AG133: 114 | AH133: =IF(AND(AG133<$E$5,AG133=Оцінка!$F$14),AH132-AI132-Оцінка!$E$14,IF(AG133>$E$5,"",AH132-AI132)) ->  | AL133: 0 | AO133: 3 | AP133: 2031-03-31 | AQ133: 6 | AR133: 114 | AS133: =IF(AND(AR133<$E$5,B133=Оцінка!$E$23),AS132-AT132-Оцінка!$E$22,IF(AR133>$E$5,"",AS132-AT132)) -> 194444.4444 | AT133: =IF(OR(AR133<=$E$7,AR133=""),0,IF(AND(AR133>=Оцінка!$E$23,Оцінка!$E$23<>0),($E$4-Оцінка!$E$22-IF(Оцінка!$E$13<Оцінка!$E$23,($E$4*(Оцінка!$E$23-1-$E$7)/(($E$5)-$E$7)),0))/IF(Оцінка!$E$13<Оцінка!$E$23,$E$5+1-Оцінка!$E$23,$E$5-Оцінка!$E$13),$E$4/(($E$5)-$E$7))) -> 27777.77778 | AU133: 1782.407407 | AW133: 0 | AY133: 29560.18519
A134: 115 | B134: 115 | C134: 2031-04-01 | D134: =IF(AND(B134<$E$5,B134=Оцінка!$E$23),D133-E133-Оцінка!$E$22,IF(B134>$E$5,"",D133-E133)) -> 166666.6667 | E134: 27777.77778 | F134: 1527.777778 | G134: 0 | J134: 0 | P134: 29305.55556 | AD134: 3 | AE134: 2031-03-31 | AF134: 7 | AG134: 115 | AH134: =IF(AND(AG134<$E$5,AG134=Оцінка!$F$14),AH133-AI133-Оцінка!$E$14,IF(AG134>$E$5,"",AH133-AI133)) ->  | AL134: 0 | AO134: 4 | AP134: 2031-04-30 | AQ134: 7 | AR134: 115 | AS134: =IF(AND(AR134<$E$5,B134=Оцінка!$E$23),AS133-AT133-Оцінка!$E$22,IF(AR134>$E$5,"",AS133-AT133)) -> 166666.6667 | AT134: =IF(OR(AR134<=$E$7,AR134=""),0,IF(AND(AR134>=Оцінка!$E$23,Оцінка!$E$23<>0),($E$4-Оцінка!$E$22-IF(Оцінка!$E$13<Оцінка!$E$23,($E$4*(Оцінка!$E$23-1-$E$7)/(($E$5)-$E$7)),0))/IF(Оцінка!$E$13<Оцінка!$E$23,$E$5+1-Оцінка!$E$23,$E$5-Оцінка!$E$13),$E$4/(($E$5)-$E$7))) -> 27777.77778 | AU134: 1527.777778 | AW134: 0 | AY134: 29305.55556
A135: 116 | B135: 116 | C135: 2031-05-01 | D135: =IF(AND(B135<$E$5,B135=Оцінка!$E$23),D134-E134-Оцінка!$E$22,IF(B135>$E$5,"",D134-E134)) -> 138888.8889 | E135: 27777.77778 | F135: 1273.148148 | G135: 0 | J135: 0 | P135: 29050.92593 | AD135: 4 | AE135: 2031-04-30 | AF135: 8 | AG135: 116 | AH135: =IF(AND(AG135<$E$5,AG135=Оцінка!$F$14),AH134-AI134-Оцінка!$E$14,IF(AG135>$E$5,"",AH134-AI134)) ->  | AL135: 0 | AO135: 5 | AP135: 2031-05-31 | AQ135: 8 | AR135: 116 | AS135: =IF(AND(AR135<$E$5,B135=Оцінка!$E$23),AS134-AT134-Оцінка!$E$22,IF(AR135>$E$5,"",AS134-AT134)) -> 138888.8889 | AT135: =IF(OR(AR135<=$E$7,AR135=""),0,IF(AND(AR135>=Оцінка!$E$23,Оцінка!$E$23<>0),($E$4-Оцінка!$E$22-IF(Оцінка!$E$13<Оцінка!$E$23,($E$4*(Оцінка!$E$23-1-$E$7)/(($E$5)-$E$7)),0))/IF(Оцінка!$E$13<Оцінка!$E$23,$E$5+1-Оцінка!$E$23,$E$5-Оцінка!$E$13),$E$4/(($E$5)-$E$7))) -> 27777.77778 | AU135: 1273.148148 | AW135: 0 | AY135: 29050.92593
A136: 117 | B136: 117 | C136: 2031-06-01 | D136: =IF(AND(B136<$E$5,B136=Оцінка!$E$23),D135-E135-Оцінка!$E$22,IF(B136>$E$5,"",D135-E135)) -> 111111.1111 | E136: 27777.77778 | F136: 1018.518519 | G136: 0 | J136: 0 | P136: 28796.2963 | AD136: 5 | AE136: 2031-05-31 | AF136: 9 | AG136: 117 | AH136: =IF(AND(AG136<$E$5,AG136=Оцінка!$F$14),AH135-AI135-Оцінка!$E$14,IF(AG136>$E$5,"",AH135-AI135)) ->  | AL136: 0 | AO136: 6 | AP136: 2031-06-30 | AQ136: 9 | AR136: 117 | AS136: =IF(AND(AR136<$E$5,B136=Оцінка!$E$23),AS135-AT135-Оцінка!$E$22,IF(AR136>$E$5,"",AS135-AT135)) -> 111111.1111 | AT136: =IF(OR(AR136<=$E$7,AR136=""),0,IF(AND(AR136>=Оцінка!$E$23,Оцінка!$E$23<>0),($E$4-Оцінка!$E$22-IF(Оцінка!$E$13<Оцінка!$E$23,($E$4*(Оцінка!$E$23-1-$E$7)/(($E$5)-$E$7)),0))/IF(Оцінка!$E$13<Оцінка!$E$23,$E$5+1-Оцінка!$E$23,$E$5-Оцінка!$E$13),$E$4/(($E$5)-$E$7))) -> 27777.77778 | AU136: 1018.518519 | AW136: 0 | AY136: 28796.2963
A137: 118 | B137: 118 | C137: 2031-07-01 | D137: =IF(AND(B137<$E$5,B137=Оцінка!$E$23),D136-E136-Оцінка!$E$22,IF(B137>$E$5,"",D136-E136)) -> 83333.33333 | E137: 27777.77778 | F137: 763.8888889 | G137: 0 | J137: 0 | P137: 28541.66667 | AD137: 6 | AE137: 2031-06-30 | AF137: 10 | AG137: 118 | AH137: =IF(AND(AG137<$E$5,AG137=Оцінка!$F$14),AH136-AI136-Оцінка!$E$14,IF(AG137>$E$5,"",AH136-AI136)) ->  | AL137: 0 | AO137: 7 | AP137: 2031-07-31 | AQ137: 10 | AR137: 118 | AS137: =IF(AND(AR137<$E$5,B137=Оцінка!$E$23),AS136-AT136-Оцінка!$E$22,IF(AR137>$E$5,"",AS136-AT136)) -> 83333.33333 | AT137: =IF(OR(AR137<=$E$7,AR137=""),0,IF(AND(AR137>=Оцінка!$E$23,Оцінка!$E$23<>0),($E$4-Оцінка!$E$22-IF(Оцінка!$E$13<Оцінка!$E$23,($E$4*(Оцінка!$E$23-1-$E$7)/(($E$5)-$E$7)),0))/IF(Оцінка!$E$13<Оцінка!$E$23,$E$5+1-Оцінка!$E$23,$E$5-Оцінка!$E$13),$E$4/(($E$5)-$E$7))) -> 27777.77778 | AU137: 763.8888889 | AW137: 0 | AY137: 28541.66667
A138: 119 | B138: 119 | C138: 2031-08-01 | D138: =IF(AND(B138<$E$5,B138=Оцінка!$E$23),D137-E137-Оцінка!$E$22,IF(B138>$E$5,"",D137-E137)) -> 55555.55556 | E138: 27777.77778 | F138: 509.2592593 | G138: 0 | J138: 0 | P138: 28287.03704 | AD138: 7 | AE138: 2031-07-31 | AF138: 11 | AG138: 119 | AH138: =IF(AND(AG138<$E$5,AG138=Оцінка!$F$14),AH137-AI137-Оцінка!$E$14,IF(AG138>$E$5,"",AH137-AI137)) ->  | AL138: 0 | AO138: 8 | AP138: 2031-08-31 | AQ138: 11 | AR138: 119 | AS138: =IF(AND(AR138<$E$5,B138=Оцінка!$E$23),AS137-AT137-Оцінка!$E$22,IF(AR138>$E$5,"",AS137-AT137)) -> 55555.55556 | AT138: =IF(OR(AR138<=$E$7,AR138=""),0,IF(AND(AR138>=Оцінка!$E$23,Оцінка!$E$23<>0),($E$4-Оцінка!$E$22-IF(Оцінка!$E$13<Оцінка!$E$23,($E$4*(Оцінка!$E$23-1-$E$7)/(($E$5)-$E$7)),0))/IF(Оцінка!$E$13<Оцінка!$E$23,$E$5+1-Оцінка!$E$23,$E$5-Оцінка!$E$13),$E$4/(($E$5)-$E$7))) -> 27777.77778 | AU138: 509.2592593 | AW138: 0 | AY138: 28287.03704
A139: 120 | B139: 120 | C139: 2031-09-01 | D139: =IF(AND(B139<$E$5,B139=Оцінка!$E$23),D138-E138-Оцінка!$E$22,IF(B139>$E$5,"",D138-E138)) -> 27777.77778 | E139: 27777.77778 | F139: 254.6296296 | G139: 0 | J139: 0 | P139: 28032.40741 | AD139: 8 | AE139: 2031-08-31 | AF139: 12 | AG139: 120 | AH139: =IF(AND(AG139<$E$5,AG139=Оцінка!$F$14),AH138-AI138-Оцінка!$E$14,IF(AG139>$E$5,"",AH138-AI138)) ->  | AL139: 0 | AO139: 9 | AP139: 2031-09-30 | AQ139: 12 | AR139: 120 | AS139: =IF(AND(AR139<$E$5,B139=Оцінка!$E$23),AS138-AT138-Оцінка!$E$22,IF(AR139>$E$5,"",AS138-AT138)) -> 27777.77778 | AT139: =IF(OR(AR139<=$E$7,AR139=""),0,IF(AND(AR139>=Оцінка!$E$23,Оцінка!$E$23<>0),($E$4-Оцінка!$E$22-IF(Оцінка!$E$13<Оцінка!$E$23,($E$4*(Оцінка!$E$23-1-$E$7)/(($E$5)-$E$7)),0))/IF(Оцінка!$E$13<Оцінка!$E$23,$E$5+1-Оцінка!$E$23,$E$5-Оцінка!$E$13),$E$4/(($E$5)-$E$7))) -> 27777.77778 | AU139: 254.6296296 | AW139: 0 | AY139: 28032.40741
D140: =IF(AND(B140<$E$5,B140=Оцінка!$E$23),D139-E139-Оцінка!$E$22,IF(B140>$E$5,"",D139-E139)) ->  | E140: 0 | AD140: 9 | AE140: 2031-09-30 | AF140: 1 | AG140: 121 | AH140: =IF(AND(AG140<$E$5,AG140=Оцінка!$F$14),AH139-AI139-Оцінка!$E$14,IF(AG140>$E$5,"",AH139-AI139)) ->  | AI140: 0 | AQ140: 1 | AS140: =IF(AND(AR140<$E$5,B140=Оцінка!$E$23),AS139-AT139-Оцінка!$E$22,IF(AR140>$E$5,"",AS139-AT139)) ->  | AT140: =IF(OR(AR140<=$E$7,AR140=""),0,IF(AND(AR140>=Оцінка!$E$23,Оцінка!$E$23<>0),($E$4-Оцінка!$E$22-IF(Оцінка!$E$13<Оцінка!$E$23,($E$4*(Оцінка!$E$23-1-$E$7)/(($E$5)-$E$7)),0))/IF(Оцінка!$E$13<Оцінка!$E$23,$E$5+1-Оцінка!$E$23,$E$5-Оцінка!$E$13),$E$4/(($E$5)-$E$7))) -> 0
D141: =IF(AND(B141<$E$5,B141=Оцінка!$E$23),D140-E140-Оцінка!$E$22,IF(B141>$E$5,"",D140-E140)) ->  | E141: 0 | AD141: 10 | AE141: 2031-10-31 | AF141: 2 | AG141: 122 | AH141: =IF(AND(AG141<$E$5,AG141=Оцінка!$F$14),AH140-AI140-Оцінка!$E$14,IF(AG141>$E$5,"",AH140-AI140)) ->  | AI141: 0 | AQ141: 2 | AS141: =IF(AND(AR141<$E$5,B141=Оцінка!$E$23),AS140-AT140-Оцінка!$E$22,IF(AR141>$E$5,"",AS140-AT140)) ->  | AT141: =IF(OR(AR141<=$E$7,AR141=""),0,IF(AND(AR141>=Оцінка!$E$23,Оцінка!$E$23<>0),($E$4-Оцінка!$E$22-IF(Оцінка!$E$13<Оцінка!$E$23,($E$4*(Оцінка!$E$23-1-$E$7)/(($E$5)-$E$7)),0))/IF(Оцінка!$E$13<Оцінка!$E$23,$E$5+1-Оцінка!$E$23,$E$5-Оцінка!$E$13),$E$4/(($E$5)-$E$7))) -> 0
D142: =IF(AND(B142<$E$5,B142=Оцінка!$E$23),D141-E141-Оцінка!$E$22,IF(B142>$E$5,"",D141-E141)) ->  | E142: 0 | AD142: 11 | AE142: 2031-11-30 | AF142: 3 | AG142: 123 | AH142: =IF(AND(AG142<$E$5,AG142=Оцінка!$F$14),AH141-AI141-Оцінка!$E$14,IF(AG142>$E$5,"",AH141-AI141)) ->  | AI142: 0 | AQ142: 3 | AS142: =IF(AND(AR142<$E$5,B142=Оцінка!$E$23),AS141-AT141-Оцінка!$E$22,IF(AR142>$E$5,"",AS141-AT141)) ->  | AT142: =IF(OR(AR142<=$E$7,AR142=""),0,IF(AND(AR142>=Оцінка!$E$23,Оцінка!$E$23<>0),($E$4-Оцінка!$E$22-IF(Оцінка!$E$13<Оцінка!$E$23,($E$4*(Оцінка!$E$23-1-$E$7)/(($E$5)-$E$7)),0))/IF(Оцінка!$E$13<Оцінка!$E$23,$E$5+1-Оцінка!$E$23,$E$5-Оцінка!$E$13),$E$4/(($E$5)-$E$7))) -> 0
D143: =IF(AND(B143<$E$5,B143=Оцінка!$E$23),D142-E142-Оцінка!$E$22,IF(B143>$E$5,"",D142-E142)) ->  | E143: 0 | AD143: 12 | AE143: 2031-12-31 | AF143: 4 | AG143: 124 | AH143: =IF(AND(AG143<$E$5,AG143=Оцінка!$F$14),AH142-AI142-Оцінка!$E$14,IF(AG143>$E$5,"",AH142-AI142)) ->  | AI143: 0 | AQ143: 4 | AS143: =IF(AND(AR143<$E$5,B143=Оцінка!$E$23),AS142-AT142-Оцінка!$E$22,IF(AR143>$E$5,"",AS142-AT142)) ->  | AT143: =IF(OR(AR143<=$E$7,AR143=""),0,IF(AND(AR143>=Оцінка!$E$23,Оцінка!$E$23<>0),($E$4-Оцінка!$E$22-IF(Оцінка!$E$13<Оцінка!$E$23,($E$4*(Оцінка!$E$23-1-$E$7)/(($E$5)-$E$7)),0))/IF(Оцінка!$E$13<Оцінка!$E$23,$E$5+1-Оцінка!$E$23,$E$5-Оцінка!$E$13),$E$4/(($E$5)-$E$7))) -> 0
D144: =IF(AND(B144<$E$5,B144=Оцінка!$E$23),D143-E143-Оцінка!$E$22,IF(B144>$E$5,"",D143-E143)) ->  | E144: 0 | AD144: 1 | AE144: 2032-01-31 | AF144: 5 | AG144: =AG143+1 -> 125 | AH144: =IF(AND(AG144<$E$5,AG144=Оцінка!$F$14),AH143-AI143-Оцінка!$E$14,IF(AG144>$E$5,"",AH143-AI143)) ->  | AI144: 0 | AQ144: 5 | AR144: =IF(AR143<$E$5,AR143+1,"") ->  | AS144: =IF(AND(AR144<$E$5,B144=Оцінка!$E$23),AS143-AT143-Оцінка!$E$22,IF(AR144>$E$5,"",AS143-AT143)) ->  | AT144: =IF(OR(AR144<=$E$7,AR144=""),0,IF(AND(AR144>=Оцінка!$E$23,Оцінка!$E$23<>0),($E$4-Оцінка!$E$22-IF(Оцінка!$E$13<Оцінка!$E$23,($E$4*(Оцінка!$E$23-1-$E$7)/(($E$5)-$E$7)),0))/IF(Оцінка!$E$13<Оцінка!$E$23,$E$5+1-Оцінка!$E$23,$E$5-Оцінка!$E$13),$E$4/(($E$5)-$E$7))) -> 0
D145: =IF(AND(B145<$E$5,B145=Оцінка!$E$23),D144-E144-Оцінка!$E$22,IF(B145>$E$5,"",D144-E144)) ->  | E145: 0 | AD145: 2 | AE145: 2032-02-29 | AF145: 6 | AG145: 126 | AH145: =IF(AND(AG145<$E$5,AG145=Оцінка!$F$14),AH144-AI144-Оцінка!$E$14,IF(AG145>$E$5,"",AH144-AI144)) ->  | AI145: 0 | AQ145: 6 | AS145: =IF(AND(AR145<$E$5,B145=Оцінка!$E$23),AS144-AT144-Оцінка!$E$22,IF(AR145>$E$5,"",AS144-AT144)) ->  | AT145: =IF(OR(AR145<=$E$7,AR145=""),0,IF(AND(AR145>=Оцінка!$E$23,Оцінка!$E$23<>0),($E$4-Оцінка!$E$22-IF(Оцінка!$E$13<Оцінка!$E$23,($E$4*(Оцінка!$E$23-1-$E$7)/(($E$5)-$E$7)),0))/IF(Оцінка!$E$13<Оцінка!$E$23,$E$5+1-Оцінка!$E$23,$E$5-Оцінка!$E$13),$E$4/(($E$5)-$E$7))) -> 0
D146: =IF(AND(B146<$E$5,B146=Оцінка!$E$23),D145-E145-Оцінка!$E$22,IF(B146>$E$5,"",D145-E145)) ->  | E146: 0 | AD146: =IF(AE146="","",MONTH(AE146)) -> 3 | AE146: 2032-03-31 | AF146: 7 | AG146: 127 | AH146: =IF(AND(AG146<$E$5,AG146=Оцінка!$F$14),AH145-AI145-Оцінка!$E$14,IF(AG146>$E$5,"",AH145-AI145)) ->  | AI146: 0 | AQ146: 7 | AS146: =IF(AND(AR146<$E$5,B146=Оцінка!$E$23),AS145-AT145-Оцінка!$E$22,IF(AR146>$E$5,"",AS145-AT145)) ->  | AT146: =IF(OR(AR146<=$E$7,AR146=""),0,IF(AND(AR146>=Оцінка!$E$23,Оцінка!$E$23<>0),($E$4-Оцінка!$E$22-IF(Оцінка!$E$13<Оцінка!$E$23,($E$4*(Оцінка!$E$23-1-$E$7)/(($E$5)-$E$7)),0))/IF(Оцінка!$E$13<Оцінка!$E$23,$E$5+1-Оцінка!$E$23,$E$5-Оцінка!$E$13),$E$4/(($E$5)-$E$7))) -> 0
D147: =IF(AND(B147<$E$5,B147=Оцінка!$E$23),D146-E146-Оцінка!$E$22,IF(B147>$E$5,"",D146-E146)) ->  | E147: 0 | AD147: 4 | AE147: 2032-04-30 | AF147: 8 | AG147: 128 | AH147: =IF(AND(AG147<$E$5,AG147=Оцінка!$F$14),AH146-AI146-Оцінка!$E$14,IF(AG147>$E$5,"",AH146-AI146)) ->  | AI147: 0 | AQ147: 8 | AS147: =IF(AND(AR147<$E$5,B147=Оцінка!$E$23),AS146-AT146-Оцінка!$E$22,IF(AR147>$E$5,"",AS146-AT146)) ->  | AT147: =IF(OR(AR147<=$E$7,AR147=""),0,IF(AND(AR147>=Оцінка!$E$23,Оцінка!$E$23<>0),($E$4-Оцінка!$E$22-IF(Оцінка!$E$13<Оцінка!$E$23,($E$4*(Оцінка!$E$23-1-$E$7)/(($E$5)-$E$7)),0))/IF(Оцінка!$E$13<Оцінка!$E$23,$E$5+1-Оцінка!$E$23,$E$5-Оцінка!$E$13),$E$4/(($E$5)-$E$7))) -> 0
D148: =IF(AND(B148<$E$5,B148=Оцінка!$E$23),D147-E147-Оцінка!$E$22,IF(B148>$E$5,"",D147-E147)) ->  | E148: 0 | J148: =IF(B148>$E$5,"",$E$4*$E$11) ->  | AD148: 5 | AE148: 2032-05-31 | AF148: 9 | AG148: 129 | AH148: =IF(AND(AG148<$E$5,AG148=Оцінка!$F$14),AH147-AI147-Оцінка!$E$14,IF(AG148>$E$5,"",AH147-AI147)) ->  | AI148: 0 | AJ148: =IF(AG148>$E$5,"",AH148*$E$8/12) ->  | AQ148: 9 | AS148: =IF(AND(AR148<$E$5,B148=Оцінка!$E$23),AS147-AT147-Оцінка!$E$22,IF(AR148>$E$5,"",AS147-AT147)) ->  | AT148: =IF(OR(AR148<=$E$7,AR148=""),0,IF(AND(AR148>=Оцінка!$E$23,Оцінка!$E$23<>0),($E$4-Оцінка!$E$22-IF(Оцінка!$E$13<Оцінка!$E$23,($E$4*(Оцінка!$E$23-1-$E$7)/(($E$5)-$E$7)),0))/IF(Оцінка!$E$13<Оцінка!$E$23,$E$5+1-Оцінка!$E$23,$E$5-Оцінка!$E$13),$E$4/(($E$5)-$E$7))) -> 0 | AU148: =IF(AR148>$E$5,"",AS148*$E$8/12) -> 
A149: =B149 ->  | B149: =IF(B148<$E$5,B148+1,"") ->  | D149: =IF(AND(B149<$E$5,B149=Оцінка!$E$23),D148-E148-Оцінка!$E$22,IF(B149>$E$5,"",D148-E148)) ->  | E149: 0 | P149: =IF(B149>$E$5,"",SUM(E149:O149)) ->  | AD149: 6 | AE149: 2032-06-30 | AF149: 10 | AG149: 130 | AH149: =IF(AND(AG149<$E$5,AG149=Оцінка!$F$14),AH148-AI148-Оцінка!$E$14,IF(AG149>$E$5,"",AH148-AI148)) ->  | AI149: =IF(OR(AG149>$E$5,HLOOKUP(AD149,$AE$7:$AP$8,2,0)=1),0,$E$4/((12-$E$7)*($E$5/12))) -> 0 | AL149: =IF(AG149>$E$5,"",$E$4*$E$11) ->  | AO149: =MONTH(AP149) ->  | AQ149: 10 | AS149: =IF(AND(AR149<$E$5,B149=Оцінка!$E$23),AS148-AT148-Оцінка!$E$22,IF(AR149>$E$5,"",AS148-AT148)) ->  | AT149: =IF(OR(AR149<=$E$7,AR149=""),0,IF(AND(AR149>=Оцінка!$E$23,Оцінка!$E$23<>0),($E$4-Оцінка!$E$22-IF(Оцінка!$E$13<Оцінка!$E$23,($E$4*(Оцінка!$E$23-1-$E$7)/(($E$5)-$E$7)),0))/IF(Оцінка!$E$13<Оцінка!$E$23,$E$5+1-Оцінка!$E$23,$E$5-Оцінка!$E$13),$E$4/(($E$5)-$E$7))) -> 0 | AW149: =IF(AR149>$E$5,"",$E$4*$E$11) -> 
C150: =IF(B150>$E$5,"",EDATE(C149,1)) ->  | D150: =IF(AND(B150<$E$5,B150=Оцінка!$E$23),D149-E149-Оцінка!$E$22,IF(B150>$E$5,"",D149-E149)) ->  | E150: 0 | AD150: 7 | AE150: =EOMONTH(AE149,1) -> 2032-07-31 | AF150: 11 | AG150: 131 | AH150: =IF(AND(AG150<$E$5,AG150=Оцінка!$F$14),AH149-AI149-Оцінка!$E$14,IF(AG150>$E$5,"",AH149-AI149)) ->  | AI150: 0 | AP150: =IF(B150>$E$5,"",EOMONTH(C149,1)) ->  | AQ150: 11 | AS150: =IF(AND(AR150<$E$5,B150=Оцінка!$E$23),AS149-AT149-Оцінка!$E$22,IF(AR150>$E$5,"",AS149-AT149)) ->  | AT150: =IF(OR(AR150<=$E$7,AR150=""),0,IF(AND(AR150>=Оцінка!$E$23,Оцінка!$E$23<>0),($E$4-Оцінка!$E$22-IF(Оцінка!$E$13<Оцінка!$E$23,($E$4*(Оцінка!$E$23-1-$E$7)/(($E$5)-$E$7)),0))/IF(Оцінка!$E$13<Оцінка!$E$23,$E$5+1-Оцінка!$E$23,$E$5-Оцінка!$E$13),$E$4/(($E$5)-$E$7))) -> 0
D151: =IF(AND(B151<$E$5,B151=Оцінка!$E$23),D150-E150-Оцінка!$E$22,IF(B151>$E$5,"",D150-E150)) ->  | E151: =IF((B151>$E$5),0,IF($E$6="щорічне",AI151,AT151)) -> 0 | AD151: 8 | AE151: 2032-08-31 | AF151: 12 | AG151: 132 | AH151: =IF(AND(AG151<$E$5,AG151=Оцінка!$F$14),AH150-AI150-Оцінка!$E$14,IF(AG151>$E$5,"",AH150-AI150)) ->  | AI151: 0 | AQ151: 12 | AS151: =IF(AND(AR151<$E$5,B151=Оцінка!$E$23),AS150-AT150-Оцінка!$E$22,IF(AR151>$E$5,"",AS150-AT150)) ->  | AT151: =IF(OR(AR151<=$E$7,AR151=""),0,IF(AND(AR151>=Оцінка!$E$23,Оцінка!$E$23<>0),($E$4-Оцінка!$E$22-IF(Оцінка!$E$13<Оцінка!$E$23,($E$4*(Оцінка!$E$23-1-$E$7)/(($E$5)-$E$7)),0))/IF(Оцінка!$E$13<Оцінка!$E$23,$E$5+1-Оцінка!$E$23,$E$5-Оцінка!$E$13),$E$4/(($E$5)-$E$7))) -> 0
D152: =IF(AND(B152<$E$5,B152=Оцінка!$E$23),D151-E151-Оцінка!$E$22,IF(B152>$E$5,"",D151-E151)) ->  | E152: 0 | AD152: 9 | AE152: 2032-09-30 | AF152: 1 | AG152: 133 | AH152: =IF(AND(AG152<$E$5,AG152=Оцінка!$F$14),AH151-AI151-Оцінка!$E$14,IF(AG152>$E$5,"",AH151-AI151)) ->  | AI152: 0 | AQ152: 1 | AS152: =IF(AND(AR152<$E$5,B152=Оцінка!$E$23),AS151-AT151-Оцінка!$E$22,IF(AR152>$E$5,"",AS151-AT151)) ->  | AT152: =IF(OR(AR152<=$E$7,AR152=""),0,IF(AND(AR152>=Оцінка!$E$23,Оцінка!$E$23<>0),($E$4-Оцінка!$E$22-IF(Оцінка!$E$13<Оцінка!$E$23,($E$4*(Оцінка!$E$23-1-$E$7)/(($E$5)-$E$7)),0))/IF(Оцінка!$E$13<Оцінка!$E$23,$E$5+1-Оцінка!$E$23,$E$5-Оцінка!$E$13),$E$4/(($E$5)-$E$7))) -> 0
D153: =IF(AND(B153<$E$5,B153=Оцінка!$E$23),D152-E152-Оцінка!$E$22,IF(B153>$E$5,"",D152-E152)) ->  | E153: 0 | AD153: 10 | AE153: 2032-10-31 | AF153: 2 | AG153: 134 | AH153: =IF(AND(AG153<$E$5,AG153=Оцінка!$F$14),AH152-AI152-Оцінка!$E$14,IF(AG153>$E$5,"",AH152-AI152)) ->  | AI153: 0 | AQ153: 2 | AS153: =IF(AND(AR153<$E$5,B153=Оцінка!$E$23),AS152-AT152-Оцінка!$E$22,IF(AR153>$E$5,"",AS152-AT152)) ->  | AT153: =IF(OR(AR153<=$E$7,AR153=""),0,IF(AND(AR153>=Оцінка!$E$23,Оцінка!$E$23<>0),($E$4-Оцінка!$E$22-IF(Оцінка!$E$13<Оцінка!$E$23,($E$4*(Оцінка!$E$23-1-$E$7)/(($E$5)-$E$7)),0))/IF(Оцінка!$E$13<Оцінка!$E$23,$E$5+1-Оцінка!$E$23,$E$5-Оцінка!$E$13),$E$4/(($E$5)-$E$7))) -> 0
D154: =IF(AND(B154<$E$5,B154=Оцінка!$E$23),D153-E153-Оцінка!$E$22,IF(B154>$E$5,"",D153-E153)) ->  | E154: 0 | AD154: 11 | AE154: 2032-11-30 | AF154: 3 | AG154: 135 | AH154: =IF(AND(AG154<$E$5,AG154=Оцінка!$F$14),AH153-AI153-Оцінка!$E$14,IF(AG154>$E$5,"",AH153-AI153)) ->  | AI154: 0 | AQ154: 3 | AS154: =IF(AND(AR154<$E$5,B154=Оцінка!$E$23),AS153-AT153-Оцінка!$E$22,IF(AR154>$E$5,"",AS153-AT153)) ->  | AT154: =IF(OR(AR154<=$E$7,AR154=""),0,IF(AND(AR154>=Оцінка!$E$23,Оцінка!$E$23<>0),($E$4-Оцінка!$E$22-IF(Оцінка!$E$13<Оцінка!$E$23,($E$4*(Оцінка!$E$23-1-$E$7)/(($E$5)-$E$7)),0))/IF(Оцінка!$E$13<Оцінка!$E$23,$E$5+1-Оцінка!$E$23,$E$5-Оцінка!$E$13),$E$4/(($E$5)-$E$7))) -> 0
D155: =IF(AND(B155<$E$5,B155=Оцінка!$E$23),D154-E154-Оцінка!$E$22,IF(B155>$E$5,"",D154-E154)) ->  | E155: 0 | AD155: 12 | AE155: 2032-12-31 | AF155: 4 | AG155: 136 | AH155: =IF(AND(AG155<$E$5,AG155=Оцінка!$F$14),AH154-AI154-Оцінка!$E$14,IF(AG155>$E$5,"",AH154-AI154)) ->  | AI155: 0 | AQ155: 4 | AS155: =IF(AND(AR155<$E$5,B155=Оцінка!$E$23),AS154-AT154-Оцінка!$E$22,IF(AR155>$E$5,"",AS154-AT154)) ->  | AT155: =IF(OR(AR155<=$E$7,AR155=""),0,IF(AND(AR155>=Оцінка!$E$23,Оцінка!$E$23<>0),($E$4-Оцінка!$E$22-IF(Оцінка!$E$13<Оцінка!$E$23,($E$4*(Оцінка!$E$23-1-$E$7)/(($E$5)-$E$7)),0))/IF(Оцінка!$E$13<Оцінка!$E$23,$E$5+1-Оцінка!$E$23,$E$5-Оцінка!$E$13),$E$4/(($E$5)-$E$7))) -> 0
D156: =IF(AND(B156<$E$5,B156=Оцінка!$E$23),D155-E155-Оцінка!$E$22,IF(B156>$E$5,"",D155-E155)) ->  | E156: 0 | AD156: 1 | AE156: 2033-01-31 | AF156: 5 | AG156: 137 | AH156: =IF(AND(AG156<$E$5,AG156=Оцінка!$F$14),AH155-AI155-Оцінка!$E$14,IF(AG156>$E$5,"",AH155-AI155)) ->  | AI156: 0 | AQ156: 5 | AS156: =IF(AND(AR156<$E$5,B156=Оцінка!$E$23),AS155-AT155-Оцінка!$E$22,IF(AR156>$E$5,"",AS155-AT155)) ->  | AT156: =IF(OR(AR156<=$E$7,AR156=""),0,IF(AND(AR156>=Оцінка!$E$23,Оцінка!$E$23<>0),($E$4-Оцінка!$E$22-IF(Оцінка!$E$13<Оцінка!$E$23,($E$4*(Оцінка!$E$23-1-$E$7)/(($E$5)-$E$7)),0))/IF(Оцінка!$E$13<Оцінка!$E$23,$E$5+1-Оцінка!$E$23,$E$5-Оцінка!$E$13),$E$4/(($E$5)-$E$7))) -> 0
D157: =IF(AND(B157<$E$5,B157=Оцінка!$E$23),D156-E156-Оцінка!$E$22,IF(B157>$E$5,"",D156-E156)) ->  | E157: 0 | AD157: 2 | AE157: 2033-02-28 | AF157: 6 | AG157: 138 | AH157: =IF(AND(AG157<$E$5,AG157=Оцінка!$F$14),AH156-AI156-Оцінка!$E$14,IF(AG157>$E$5,"",AH156-AI156)) ->  | AI157: 0 | AQ157: 6 | AS157: =IF(AND(AR157<$E$5,B157=Оцінка!$E$23),AS156-AT156-Оцінка!$E$22,IF(AR157>$E$5,"",AS156-AT156)) ->  | AT157: =IF(OR(AR157<=$E$7,AR157=""),0,IF(AND(AR157>=Оцінка!$E$23,Оцінка!$E$23<>0),($E$4-Оцінка!$E$22-IF(Оцінка!$E$13<Оцінка!$E$23,($E$4*(Оцінка!$E$23-1-$E$7)/(($E$5)-$E$7)),0))/IF(Оцінка!$E$13<Оцінка!$E$23,$E$5+1-Оцінка!$E$23,$E$5-Оцінка!$E$13),$E$4/(($E$5)-$E$7))) -> 0
D158: =IF(AND(B158<$E$5,B158=Оцінка!$E$23),D157-E157-Оцінка!$E$22,IF(B158>$E$5,"",D157-E157)) ->  | E158: 0 | AD158: 3 | AE158: 2033-03-31 | AF158: 7 | AG158: 139 | AH158: =IF(AND(AG158<$E$5,AG158=Оцінка!$F$14),AH157-AI157-Оцінка!$E$14,IF(AG158>$E$5,"",AH157-AI157)) ->  | AI158: 0 | AQ158: 7 | AS158: =IF(AND(AR158<$E$5,B158=Оцінка!$E$23),AS157-AT157-Оцінка!$E$22,IF(AR158>$E$5,"",AS157-AT157)) ->  | AT158: =IF(OR(AR158<=$E$7,AR158=""),0,IF(AND(AR158>=Оцінка!$E$23,Оцінка!$E$23<>0),($E$4-Оцінка!$E$22-IF(Оцінка!$E$13<Оцінка!$E$23,($E$4*(Оцінка!$E$23-1-$E$7)/(($E$5)-$E$7)),0))/IF(Оцінка!$E$13<Оцінка!$E$23,$E$5+1-Оцінка!$E$23,$E$5-Оцінка!$E$13),$E$4/(($E$5)-$E$7))) -> 0
D159: =IF(AND(B159<$E$5,B159=Оцінка!$E$23),D158-E158-Оцінка!$E$22,IF(B159>$E$5,"",D158-E158)) ->  | E159: 0 | AD159: 4 | AE159: 2033-04-30 | AF159: 8 | AG159: 140 | AH159: =IF(AND(AG159<$E$5,AG159=Оцінка!$F$14),AH158-AI158-Оцінка!$E$14,IF(AG159>$E$5,"",AH158-AI158)) ->  | AI159: 0 | AQ159: 8 | AS159: =IF(AND(AR159<$E$5,B159=Оцінка!$E$23),AS158-AT158-Оцінка!$E$22,IF(AR159>$E$5,"",AS158-AT158)) ->  | AT159: =IF(OR(AR159<=$E$7,AR159=""),0,IF(AND(AR159>=Оцінка!$E$23,Оцінка!$E$23<>0),($E$4-Оцінка!$E$22-IF(Оцінка!$E$13<Оцінка!$E$23,($E$4*(Оцінка!$E$23-1-$E$7)/(($E$5)-$E$7)),0))/IF(Оцінка!$E$13<Оцінка!$E$23,$E$5+1-Оцінка!$E$23,$E$5-Оцінка!$E$13),$E$4/(($E$5)-$E$7))) -> 0
D160: =IF(AND(B160<$E$5,B160=Оцінка!$E$23),D159-E159-Оцінка!$E$22,IF(B160>$E$5,"",D159-E159)) ->  | E160: 0 | F160: =IF(B160>$E$5,"",D160*$E$8/12) ->  | AD160: 5 | AE160: 2033-05-31 | AF160: 9 | AG160: 141 | AH160: =IF(AND(AG160<$E$5,AG160=Оцінка!$F$14),AH159-AI159-Оцінка!$E$14,IF(AG160>$E$5,"",AH159-AI159)) ->  | AI160: 0 | AQ160: 9 | AS160: =IF(AND(AR160<$E$5,B160=Оцінка!$E$23),AS159-AT159-Оцінка!$E$22,IF(AR160>$E$5,"",AS159-AT159)) ->  | AT160: =IF(OR(AR160<=$E$7,AR160=""),0,IF(AND(AR160>=Оцінка!$E$23,Оцінка!$E$23<>0),($E$4-Оцінка!$E$22-IF(Оцінка!$E$13<Оцінка!$E$23,($E$4*(Оцінка!$E$23-1-$E$7)/(($E$5)-$E$7)),0))/IF(Оцінка!$E$13<Оцінка!$E$23,$E$5+1-Оцінка!$E$23,$E$5-Оцінка!$E$13),$E$4/(($E$5)-$E$7))) -> 0
D161: =IF(AND(B161<$E$5,B161=Оцінка!$E$23),D160-E160-Оцінка!$E$22,IF(B161>$E$5,"",D160-E160)) ->  | E161: 0 | AD161: 6 | AE161: 2033-06-30 | AF161: 10 | AG161: 142 | AH161: =IF(AND(AG161<$E$5,AG161=Оцінка!$F$14),AH160-AI160-Оцінка!$E$14,IF(AG161>$E$5,"",AH160-AI160)) ->  | AI161: 0 | AQ161: 10 | AS161: =IF(AND(AR161<$E$5,B161=Оцінка!$E$23),AS160-AT160-Оцінка!$E$22,IF(AR161>$E$5,"",AS160-AT160)) ->  | AT161: =IF(OR(AR161<=$E$7,AR161=""),0,IF(AND(AR161>=Оцінка!$E$23,Оцінка!$E$23<>0),($E$4-Оцінка!$E$22-IF(Оцінка!$E$13<Оцінка!$E$23,($E$4*(Оцінка!$E$23-1-$E$7)/(($E$5)-$E$7)),0))/IF(Оцінка!$E$13<Оцінка!$E$23,$E$5+1-Оцінка!$E$23,$E$5-Оцінка!$E$13),$E$4/(($E$5)-$E$7))) -> 0
D162: =IF(AND(B162<$E$5,B162=Оцінка!$E$23),D161-E161-Оцінка!$E$22,IF(B162>$E$5,"",D161-E161)) ->  | E162: 0 | AD162: 7 | AE162: 2033-07-31 | AF162: 11 | AG162: 143 | AH162: =IF(AND(AG162<$E$5,AG162=Оцінка!$F$14),AH161-AI161-Оцінка!$E$14,IF(AG162>$E$5,"",AH161-AI161)) ->  | AI162: 0 | AQ162: 11 | AS162: =IF(AND(AR162<$E$5,B162=Оцінка!$E$23),AS161-AT161-Оцінка!$E$22,IF(AR162>$E$5,"",AS161-AT161)) ->  | AT162: =IF(OR(AR162<=$E$7,AR162=""),0,IF(AND(AR162>=Оцінка!$E$23,Оцінка!$E$23<>0),($E$4-Оцінка!$E$22-IF(Оцінка!$E$13<Оцінка!$E$23,($E$4*(Оцінка!$E$23-1-$E$7)/(($E$5)-$E$7)),0))/IF(Оцінка!$E$13<Оцінка!$E$23,$E$5+1-Оцінка!$E$23,$E$5-Оцінка!$E$13),$E$4/(($E$5)-$E$7))) -> 0
D163: =IF(AND(B163<$E$5,B163=Оцінка!$E$23),D162-E162-Оцінка!$E$22,IF(B163>$E$5,"",D162-E162)) ->  | E163: 0 | AD163: 8 | AE163: 2033-08-31 | AF163: 12 | AG163: 144 | AH163: =IF(AND(AG163<$E$5,AG163=Оцінка!$F$14),AH162-AI162-Оцінка!$E$14,IF(AG163>$E$5,"",AH162-AI162)) ->  | AI163: 0 | AQ163: 12 | AS163: =IF(AND(AR163<$E$5,B163=Оцінка!$E$23),AS162-AT162-Оцінка!$E$22,IF(AR163>$E$5,"",AS162-AT162)) ->  | AT163: =IF(OR(AR163<=$E$7,AR163=""),0,IF(AND(AR163>=Оцінка!$E$23,Оцінка!$E$23<>0),($E$4-Оцінка!$E$22-IF(Оцінка!$E$13<Оцінка!$E$23,($E$4*(Оцінка!$E$23-1-$E$7)/(($E$5)-$E$7)),0))/IF(Оцінка!$E$13<Оцінка!$E$23,$E$5+1-Оцінка!$E$23,$E$5-Оцінка!$E$13),$E$4/(($E$5)-$E$7))) -> 0
D164: =IF(AND(B164<$E$5,B164=Оцінка!$E$23),D163-E163-Оцінка!$E$22,IF(B164>$E$5,"",D163-E163)) ->  | E164: 0 | AD164: 9 | AE164: 2033-09-30 | AF164: 1 | AG164: 145 | AH164: =IF(AND(AG164<$E$5,AG164=Оцінка!$F$14),AH163-AI163-Оцінка!$E$14,IF(AG164>$E$5,"",AH163-AI163)) ->  | AI164: 0 | AQ164: 1 | AS164: =IF(AND(AR164<$E$5,B164=Оцінка!$E$23),AS163-AT163-Оцінка!$E$22,IF(AR164>$E$5,"",AS163-AT163)) ->  | AT164: =IF(OR(AR164<=$E$7,AR164=""),0,IF(AND(AR164>=Оцінка!$E$23,Оцінка!$E$23<>0),($E$4-Оцінка!$E$22-IF(Оцінка!$E$13<Оцінка!$E$23,($E$4*(Оцінка!$E$23-1-$E$7)/(($E$5)-$E$7)),0))/IF(Оцінка!$E$13<Оцінка!$E$23,$E$5+1-Оцінка!$E$23,$E$5-Оцінка!$E$13),$E$4/(($E$5)-$E$7))) -> 0
D165: =IF(AND(B165<$E$5,B165=Оцінка!$E$23),D164-E164-Оцінка!$E$22,IF(B165>$E$5,"",D164-E164)) ->  | E165: 0 | AD165: 10 | AE165: 2033-10-31 | AF165: 2 | AG165: 146 | AH165: =IF(AND(AG165<$E$5,AG165=Оцінка!$F$14),AH164-AI164-Оцінка!$E$14,IF(AG165>$E$5,"",AH164-AI164)) ->  | AI165: 0 | AQ165: 2 | AS165: =IF(AND(AR165<$E$5,B165=Оцінка!$E$23),AS164-AT164-Оцінка!$E$22,IF(AR165>$E$5,"",AS164-AT164)) ->  | AT165: =IF(OR(AR165<=$E$7,AR165=""),0,IF(AND(AR165>=Оцінка!$E$23,Оцінка!$E$23<>0),($E$4-Оцінка!$E$22-IF(Оцінка!$E$13<Оцінка!$E$23,($E$4*(Оцінка!$E$23-1-$E$7)/(($E$5)-$E$7)),0))/IF(Оцінка!$E$13<Оцінка!$E$23,$E$5+1-Оцінка!$E$23,$E$5-Оцінка!$E$13),$E$4/(($E$5)-$E$7))) -> 0
D166: =IF(AND(B166<$E$5,B166=Оцінка!$E$23),D165-E165-Оцінка!$E$22,IF(B166>$E$5,"",D165-E165)) ->  | E166: 0 | AD166: 11 | AE166: 2033-11-30 | AF166: 3 | AG166: 147 | AH166: =IF(AND(AG166<$E$5,AG166=Оцінка!$F$14),AH165-AI165-Оцінка!$E$14,IF(AG166>$E$5,"",AH165-AI165)) ->  | AI166: 0 | AQ166: 3 | AS166: =IF(AND(AR166<$E$5,B166=Оцінка!$E$23),AS165-AT165-Оцінка!$E$22,IF(AR166>$E$5,"",AS165-AT165)) ->  | AT166: =IF(OR(AR166<=$E$7,AR166=""),0,IF(AND(AR166>=Оцінка!$E$23,Оцінка!$E$23<>0),($E$4-Оцінка!$E$22-IF(Оцінка!$E$13<Оцінка!$E$23,($E$4*(Оцінка!$E$23-1-$E$7)/(($E$5)-$E$7)),0))/IF(Оцінка!$E$13<Оцінка!$E$23,$E$5+1-Оцінка!$E$23,$E$5-Оцінка!$E$13),$E$4/(($E$5)-$E$7))) -> 0
D167: =IF(AND(B167<$E$5,B167=Оцінка!$E$23),D166-E166-Оцінка!$E$22,IF(B167>$E$5,"",D166-E166)) ->  | E167: 0 | AD167: 12 | AE167: 2033-12-31 | AF167: 4 | AG167: 148 | AH167: =IF(AND(AG167<$E$5,AG167=Оцінка!$F$14),AH166-AI166-Оцінка!$E$14,IF(AG167>$E$5,"",AH166-AI166)) ->  | AI167: 0 | AQ167: 4 | AS167: =IF(AND(AR167<$E$5,B167=Оцінка!$E$23),AS166-AT166-Оцінка!$E$22,IF(AR167>$E$5,"",AS166-AT166)) ->  | AT167: =IF(OR(AR167<=$E$7,AR167=""),0,IF(AND(AR167>=Оцінка!$E$23,Оцінка!$E$23<>0),($E$4-Оцінка!$E$22-IF(Оцінка!$E$13<Оцінка!$E$23,($E$4*(Оцінка!$E$23-1-$E$7)/(($E$5)-$E$7)),0))/IF(Оцінка!$E$13<Оцінка!$E$23,$E$5+1-Оцінка!$E$23,$E$5-Оцінка!$E$13),$E$4/(($E$5)-$E$7))) -> 0
D168: =IF(AND(B168<$E$5,B168=Оцінка!$E$23),D167-E167-Оцінка!$E$22,IF(B168>$E$5,"",D167-E167)) ->  | E168: 0 | AD168: 1 | AE168: 2034-01-31 | AF168: 5 | AG168: 149 | AH168: =IF(AND(AG168<$E$5,AG168=Оцінка!$F$14),AH167-AI167-Оцінка!$E$14,IF(AG168>$E$5,"",AH167-AI167)) ->  | AI168: 0 | AQ168: 5 | AS168: =IF(AND(AR168<$E$5,B168=Оцінка!$E$23),AS167-AT167-Оцінка!$E$22,IF(AR168>$E$5,"",AS167-AT167)) ->  | AT168: =IF(OR(AR168<=$E$7,AR168=""),0,IF(AND(AR168>=Оцінка!$E$23,Оцінка!$E$23<>0),($E$4-Оцінка!$E$22-IF(Оцінка!$E$13<Оцінка!$E$23,($E$4*(Оцінка!$E$23-1-$E$7)/(($E$5)-$E$7)),0))/IF(Оцінка!$E$13<Оцінка!$E$23,$E$5+1-Оцінка!$E$23,$E$5-Оцінка!$E$13),$E$4/(($E$5)-$E$7))) -> 0
